Workbook

Sheet Contents
A1: Priority Sector Statistics, 2014
A2: This workbook contains statistics on the Welsh Governments Priority Sectors.
A3: Please see the guidance notes for information on each of the data sources and usage of the data
A5: Contents
A6: GuidanceNotes | B6: Guidance notes on the use of these statistics
A7: DefinitionsSIC2007 | B7: Priority Sector Definitions by SIC2007 4 digit code
A9: 1.1 | B9: Enterprises Active in Wales by Priority Sector and Sizeband
A10: 1.2 | B10: Employees in Enterprises Active in Wales by Priority Sector and Sizeband
A11: 1.3 | B11: Turnover in Enterprises Active in Wales by Priority Sector and Sizeband
A12: 1.4 | B12: Local Units in Wales by Priority Sector and Sizeband
A13: 1.5 | B13: Enterprises in the UK by Priority Sector
A14: 1.6 | B14: Employees in Enterprises in the UK by Priority Sector
A15: 1.7 | B15: Turnover in Enterprises in the UK by Priority Sector
A16: 1.8 | B16: Local Units in the UK by Priority Sector
A18: 2.1 | B18: Employee Jobs by Priority Sector, Wales and GB
A20: 3.1 | B20: Employment by Priority Sector, Wales and the UK
A21: 3.2 | B21: Employment Status by Priority Sector, Wales and the UK
A22: 3.3 | B22: Employment by Occupation (3 level split) and Priority Sector, Wales and the UK
A23: 3.4 | B23: Employment by Occupation (9 level split) and Priority Sector, Wales and the UK
A24: 3.5 | B24: Employment by Qualification (3 level split) and Priority Sector, Wales and the UK
A25: 3.6 | B25: Employment by Gender and Priority Sector, Wales and the UK
A26: 3.7 | B26: Employment by Age and Priority Sector, Wales and the UK
A27: 3.8 | B27: Employment by Disability and Priority Sector, Wales and the UK
A28: 3.9 | B28: Employment by Ethnicity and Priority Sector, Wales and the UK
A29: 3.10 | B29: Employment by Full-Time/Part-Time and Priority Sector, Wales and the UK
A30: 3.11 | B30: Second Jobs by Employment Status and Priority Sector, Wales and the UK
A32: 4.1 | B32: Mean Gross Weekly Earnings by Full-Time/Part-Time and Priority Sector, Wales
A33: 4.2 | B33: Mean Gross Weekly Earnings Full-Time/Part-Time and Priority Sector, UK
A34: 4.3 | B34: Median Gross Weekly Earnings Full-Time/Part-Time and Priority Sector, Wales
A35: 4.4 | B35: Median Gross Weekly Earnings Full-Time/Part-Time and Priority Sector, UK
A36: 4.5 | B36: Mean Gross Hourly Earnings Excluding Overtime by Full-Time/Part-Time, Gender and Priority Sector, Wales
A37: 4.6 | B37: Mean Gross Hourly Earnings Excluding Overtime by Full-Time/Part-Time, Gender and Priority Sector, Wales
A38: 4.7 | B38: Median Gross Hourly Earnings Excluding Overtime by Full-Time/Part-Time, Gender and Priority Sector, Wales
A39: 4.8 | B39: Median Gross Hourly Earnings Excluding Overtime by Full-Time/Part-Time, Gender and Priority Sector, Wales
A41: 5.1 | B41: Enterprises Births and Deaths by Priority Sector, Wales and the UK
A43: 6.1 | B43: Gross Value Added by Priority Sector, Wales and the UK

Sheet GuidanceNotes
A1: This workbook contains statistics on the Welsh Governments Priority Sectors.
A3: The definitions used are detailed in the definitions tab. These are finalised and are available for SIC2007.
A5: For more information please contact:
A6: economic.stats@wales.gsi.gov.uk
A7: 02920 825701
A9: Data source | B9: Tables | C9: Type of data | D9: Industry definition | E9: Sample size - Wales | F9: Data Coverage | G9: Usage | H9: Volatility | I9: Rounding | J9: More information on quality
A10: Inter-Departmental Business Register, ONS | B10: 1.1-1.8 | C10: Administrative | D10: Enterprise based (Wales/UK) | E10: n/a - based on VAT/PAYE records (and updated using other sources such as Companies House) | F10: Data has been dual coded since 2008 on both a SIC2003 and SIC2007 basis, prior to 2008 data is on a SIC2003 basis only. Data relates to businesses that are active in Wales and covers those which are registered either for VAT or PAYE. | G10: Number of registered businesses by size-band. Employee numbers should only be used for size-band analysis (e.g. numbers in SMEs). | H10: None, complete coverage of VAT/PAYE businesses. Potentially volatile as businesses move between sectors or size-bands or large businesses appear (eg splitting of businesses) | I10: Rounded to the nearest 5 | J10: http://ons.gov.uk/ons/about-ons/who-we-are/services/idbr/about-the-idbr/index.html and
A11: Business Register and Employment Survey, ONS | B11: 2.1 | C11: Survey (business) | D11: Local unit based | E11: Around 7,600 reporting units plus in total 4,600 funded by the WG. The 2010 survey covered 26,000 local units in Wales (around a quarter of all registered business sites) | F11: Data available on a SIC2003 basis until 2008; whilst data on a SIC2007 basis available from 2009 onwards. The data in this article relates to employees only. Data not available for Northern Ireland. Covers those businesses which are registered either for | G11: BRES is the most appropriate source when looking at employee jobs by industry. However farms are excluded at a LA level. | H11: Sample size in Wales is relatively large due to WG boost to sample. Data at a sector level are likely to be regarded as reasonably robust | I11: Rounded to the nearest 100 | J11: http://ons.gov.uk/ons/guide-method/method-quality/quality/quality-information/business-statistics/summary-quality-report-for-the-business-register-employment-survey--bres-.pdf
A12: Annual Population Survey, ONS | B12: 3.1-3.11 | C12: Survey (household) | D12: Individual response | E12: WG fund a boost of around 16,500 households a year in Wales, with the total sample of around 20,000 households. This is the largest survey in Wales. Each years data is based on around 14,000 people in employment in Wales (which has fallen during the recession. | F12: Data for the period to 2008 is available on a SIC2003 basis only and for 2009 onwards on a SIC2007 basis only. As it is a sample based survey estimates can be volatile where the sample sizes are small. | G12: APS data include the self-employed, however as respondents self-classify themselves to an industry sector the quality of the employee data is lower than other sources. Therefore for total employment or self-employment the APS should be used, for employees BRES should be used. | H12: Sample size in Wales is relatively large due to WG boost to sample. Data at a sector level are likely to be regarded as reasonably robust, however once data is broken down the quality will reduce (and volatility is likely to increase). | I12: Unrounded, but tables shown to the nearest 100 | J12: http://ons.gov.uk/ons/guide-method/method-quality/quality/quality-information/social-statistics/summary-quality-report-for-the-annual-population-survey--aps-.pdf
A13: Annual Survey of Hours and Earnings, ONS | B13: 4.1-4.8 | C13: Survey (business) | D13: Enterprise based (UK) | E13: Based on around 7,500 employees in Wales. | F13: Data available on a SIC2003 basis until 2009; whilst data on a SIC2007 basis available from 2008 onwards. The data relates to employees only. As it is a sample based survey estimates can be volatile where the sample sizes are small. Covers those business | G13: Mean and Median Earnings statistics. For gender analysis hourly earnings excluding over-time should be used. | H13: Data for the mean are going to be affected by very few high earners so will be more volatile. The median is less susceptible to volatility. Sample sizes mean that for smaller sectors some data are suppressed. | I13: Unrounded, but tables shown to the nearest 10p | J13: http://ons.gov.uk/ons/guide-method/method-quality/quality/quality-information/business-statistics/summary-quality-report-for-annual-survey-of-hours-and-earnings--ashe-.pdf
A14: Business Demography, ONS | B14: 5.1 | C14: Administrative | D14: Enterprise based (UK) | E14: n/a - based on the IDBR | F14: Data for the period to 2007 is available on a SIC2003 basis and for 2008 onwards on a SIC2007 basis only. Data relates to VAT or PAYE registered businesses only, is on a headquarters basis and excludes Agriculture, Central Government, Local Government and Managed Service Companies | G14: Estimates of business start-ups and closures. | H14: None, complete coverage of VAT/PAYE businesses. | I14: Rounded to the nearest 5 | J14: http://ons.gov.uk/ons/rel/bus-register/business-demography/2010/stb---business-demography-2010.html#tab-background-notes
A15: Annual Business Survey, Annual Population Survey and Regional Accounts, ONS | B15: 6.1 | C15: Survey (business) -ABS, Regional Accounts (mixed) | D15: ABS - Local unit based | E15: ABS is a sample of 3,000 reporting units in Wales. | F15: These data have been constructed using the Annual Business Survey, APS and Regional Accounts. Data are on a SIC2003 basis to 2008 and on a SIC2007 basis from 2009 onwards. For more information on the methodology please see the GVA section of the bulletin | G15: Provides estimates of output by sector and output by job. As the methodology is experimental the estimates should be used as a guide. | H15: Methodology constrains data to regional accounts totals which will reduce some of the volatility. However sample sizes are small so the data for smaller sectors may be volatile. | I15: Unrounded | J15: ABS: http://ons.gov.uk/ons/guide-method/method-quality/quality/quality-information/business-statistics/quality-and-methodology-information-for-annual-business-survey.pdf, Regional Accounts: http://ons.gov.uk/ons/guide-method/method-quality/quality/quality
A17: Local Unit | B17: Individual sites of a business (shop, factory, etc)
A18: Reporting Unit | B18: Reporting Units hold the mailing address to which the survey questionnaires are sent. The questionnaire can cover the enterprise as a whole, or parts of the enterprise identified by lists of local units.
A19: Enterprise | B19: An Enterprise is the smallest combination of legal units (generally based on VAT and/or PAYE records) which has a certain degree of autonomy within an Enterprise Group.
A20: Enterprise Group | B20: A group of legal units under common ownership is called an Enterprise Group.

Sheet DefinitionsSIC2007Sectors
A1: SIC20074Dig | B1: SIC2007Description4DigEnglish | C1: Advanced materials & manufacturing | D1: Construction | E1: Creative industries | F1: Energy & environment | G1: Finance and Professional Services | H1: Food and Farming | I1: ICT | J1: Life Sciences | K1: Tourism | M1: In A Sector | N1: Not In A Sector
A2: 0111 | B2: Growing of cereals (except rice), leguminous crops and oil seeds | H2: 1 | M2: 1
A3: 0112 | B3: Growing of rice | H3: 1 | M3: 1
A4: 0113 | B4: Growing of vegetables and melons, roots and tubers | H4: 1 | M4: 1
A5: 0114 | B5: Growing of sugar cane | H5: 1 | M5: 1
A6: 0115 | B6: Growing of tobacco | H6: 1 | M6: 1
A7: 0116 | B7: Growing of fibre crops | H7: 1 | M7: 1
A8: 0119 | B8: Growing of other non-perennial crops | H8: 1 | M8: 1
A9: 0121 | B9: Growing of grapes | H9: 1 | M9: 1
A10: 0122 | B10: Growing of tropical and subtropical fruits | H10: 1 | M10: 1
A11: 0123 | B11: Growing of citrus fruits | H11: 1 | M11: 1
A12: 0124 | B12: Growing of pome fruits and stone fruits | H12: 1 | M12: 1
A13: 0125 | B13: Growing of other tree and bush fruits and nuts | H13: 1 | M13: 1
A14: 0126 | B14: Growing of oleaginous fruits | H14: 1 | M14: 1
A15: 0127 | B15: Growing of beverage crops | H15: 1 | M15: 1
A16: 0128 | B16: Growing of spices, aromatic, drug and pharmaceutical crops | H16: 1 | M16: 1
A17: 0129 | B17: Growing of other perennial crops | H17: 1 | M17: 1
A18: 0130 | B18: Plant propagation | H18: 1 | M18: 1
A19: 0141 | B19: Raising of dairy cattle | H19: 1 | M19: 1
A20: 0142 | B20: Raising of other cattle and buffaloes | H20: 1 | M20: 1
A21: 0143 | B21: Raising of horses and other equines | H21: 1 | M21: 1
A22: 0144 | B22: Raising of camels and camelids | H22: 1 | M22: 1
A23: 0145 | B23: Raising of sheep and goats | H23: 1 | M23: 1
A24: 0146 | B24: Raising of swine/pigs | H24: 1 | M24: 1
A25: 0147 | B25: Raising of poultry | H25: 1 | M25: 1
A26: 0149 | B26: Raising of other animals | H26: 1 | M26: 1
A27: 0150 | B27: Mixed farming | H27: 1 | M27: 1
A28: 0161 | B28: Support activities for crop production | H28: 1 | M28: 1
A29: 0162 | B29: Support activities for animal production | H29: 1 | M29: 1
A30: 0163 | B30: Post-harvest crop activities | H30: 1 | M30: 1
A31: 0164 | B31: Seed processing for propagation | H31: 1 | M31: 1
A32: 0170 | B32: Hunting, trapping and related service activities | H32: 1 | M32: 1
A33: 0210 | B33: Silviculture and other forestry activities | N33: 1
A34: 0220 | B34: Logging | N34: 1
A35: 0230 | B35: Gathering of wild growing non-wood products | N35: 1
A36: 0240 | B36: Support services to forestry | N36: 1
A37: 0311 | B37: Marine fishing | H37: 1 | M37: 1
A38: 0312 | B38: Freshwater fishing | H38: 1 | M38: 1
A39: 0321 | B39: Marine aquaculture | H39: 1 | M39: 1
A40: 0322 | B40: Freshwater aquaculture | H40: 1 | M40: 1
A41: 0510 | B41: Mining of Hard Coal | F41: 1 | M41: 1
A42: 0520 | B42: Mining of lignite | F42: 1 | M42: 1
A43: 0610 | B43: Extraction of crude petroleum | F43: 1 | M43: 1
A44: 0620 | B44: Extraction of natural gas | F44: 1 | M44: 1
A45: 0710 | B45: Mining of iron ores | N45: 1
A46: 0721 | B46: Mining of uranium and thorium ores | N46: 1
A47: 0729 | B47: Mining of other non-ferrous metal ores | N47: 1
A48: 0811 | B48: Quarrying of ornamental and building stone, limestone, gypsum, chalk and slate | D48: 1 | M48: 1
A49: 0812 | B49: Operation of gravel and sand pits; mining of clays and kaolin | D49: 1 | M49: 1
A50: 0891 | B50: Mining of chemical and fertilizer minerals | N50: 1
A51: 0892 | B51: Extraction of peat | F51: 1 | M51: 1
A52: 0893 | B52: Extraction of salt | N52: 1
A53: 0899 | B53: Other mining and quarrying n.e.c. | N53: 1
A54: 0910 | B54: Support activities for petroleum and natural gas mining | F54: 1 | M54: 1
A55: 0990 | B55: Support activities for other mining and quarrying | N55: 1
A56: 1011 | B56: Processing and preserving of meat | H56: 1 | M56: 1
A57: 1012 | B57: Processing and preserving of poultry meat | H57: 1 | M57: 1
A58: 1013 | B58: Production of meat and poultry meat products | H58: 1 | M58: 1
A59: 1020 | B59: Processing and preserving of fish, crustaceans and molluscs | H59: 1 | M59: 1
A60: 1031 | B60: Processing and preserving of potatoes | H60: 1 | M60: 1
A61: 1032 | B61: Manufacture of fruit and vegetable juice | H61: 1 | M61: 1
A62: 1039 | B62: Other processing and preserving of fruit and vegetables | H62: 1 | M62: 1
A63: 1041 | B63: Manufacture of oils and fats | H63: 1 | M63: 1
A64: 1042 | B64: Manufacture of margarine and similar edible fats | H64: 1 | M64: 1
A65: 1051 | B65: Operation of Dairies and Cheese making | H65: 1 | M65: 1
A66: 1052 | B66: Manufacture of ice cream | H66: 1 | M66: 1
A67: 1061 | B67: Manufacture of breakfast cereals and cereals-based food | H67: 1 | M67: 1
A68: 1062 | B68: Manufacture of starches and starch products | H68: 1 | M68: 1
A69: 1071 | B69: Manufacture of bread; manufacture of fresh pastry goods and cakes | H69: 1 | M69: 1
A70: 1072 | B70: Manufacture of rusks and biscuits; manufacture of preserved pastry goods and cakes | H70: 1 | M70: 1
A71: 1073 | B71: Manufacture of macaroni, noodles, couscous and similar farinaceous products | H71: 1 | M71: 1
A72: 1081 | B72: Manufacture of sugar | H72: 1 | M72: 1
A73: 1082 | B73: Manufacture of cocoa ,chocolate and sugar confectionery | H73: 1 | M73: 1
A74: 1083 | B74: Processing of tea and coffee | H74: 1 | M74: 1
A75: 1084 | B75: Manufacture of condiments and seasonings | H75: 1 | M75: 1
A76: 1085 | B76: Manufacture of prepared meals and dishes | H76: 1 | M76: 1
A77: 1086 | B77: Manufacture of homogenized food preparations and dietetic food | H77: 1 | M77: 1
A78: 1089 | B78: Manufacture of other food products n.e.c. | H78: 1 | M78: 1
A79: 1091 | B79: Manufacture of prepared feeds for farm animals | H79: 1 | M79: 1
A80: 1092 | B80: Manufacture of prepared pet foods | H80: 1 | M80: 1
A81: 1101 | B81: Distilling, rectifying and blending of spirits | H81: 1 | M81: 1
A82: 1102 | B82: Manufacture of wine from grape | H82: 1 | M82: 1
A83: 1103 | B83: Manufacture of cider and other fruit wines | H83: 1 | M83: 1
A84: 1104 | B84: Manufacture of other non-distilled fermented beverages | H84: 1 | M84: 1
A85: 1105 | B85: Manufacture of beer | H85: 1 | M85: 1
A86: 1106 | B86: Manufacture of malt | H86: 1 | M86: 1
A87: 1107 | B87: Manufacture of soft drinks; production of mineral waters and other bottled waters | H87: 1 | M87: 1
A88: 1200 | B88: Manufacture of tobacco products | N88: 1
A89: 1310 | B89: Preparation and spinning of textile fibres | C89: 1 | M89: 1
A90: 1320 | B90: Weaving of textiles | C90: 1 | M90: 1
A91: 1330 | B91: Finishing of textiles | C91: 1 | M91: 1
A92: 1391 | B92: Manufacture of knitted and crocheted fabrics | N92: 1
A93: 1392 | B93: Manufacture of made-up textile articles except apparel | C93: 1 | M93: 1
A94: 1393 | B94: Manufacture of carpets and rugs | N94: 1
A95: 1394 | B95: Manufacture of cordage, rope, twine and netting | N95: 1
A96: 1395 | B96: Manufacture of non-wovens and articles made from non-wovens, except apparel | C96: 1 | F96: 1 | M96: 1
A97: 1396 | B97: Manufacture of other technical and industrial textiles | C97: 1 | M97: 1
A98: 1399 | B98: Manufacture of other textiles n.e.c. | N98: 1
A99: 1411 | B99: Manufacture of leather clothes | N99: 1
A100: 1412 | B100: Manufacture of workwear | N100: 1
A101: 1413 | B101: Manufacture of outerwear | N101: 1
A102: 1414 | B102: Manufacture underwear | N102: 1
A103: 1419 | B103: Manufacture of other wearing apparel and accessories n.e.c. | N103: 1
A104: 1420 | B104: Manufacture of articles of fur | N104: 1
A105: 1431 | B105: Manufacture of knitted and crocheted hosiery | N105: 1
A106: 1439 | B106: Manufacture of other knitted and crocheted apparel | N106: 1
A107: 1511 | B107: Tanning and dressing of leather; dressing and dyeing of fur | N107: 1
A108: 1512 | B108: Manufacture of luggage, handbags and the like, saddlery and harness | N108: 1
A109: 1520 | B109: Manufacture of footwear | N109: 1
A110: 1610 | B110: Sawmilling and planing of wood | D110: 1 | M110: 1
A111: 1621 | B111: Manufacture of veneer sheets and wood-based panels | D111: 1 | M111: 1
A112: 1622 | B112: Manufacture of assembled parquet floors | D112: 1 | M112: 1
A113: 1623 | B113: Manufacture of other builders' carpentry and joinery | D113: 1 | M113: 1
A114: 1624 | B114: Manufacture of wooden containers | N114: 1
A115: 1629 | B115: Manufacture of other products of wood; manufacture of articles of cork, straw and plaiting materials | N115: 1
A116: 1711 | B116: Manufacture of pulp | N116: 1
A117: 1712 | B117: Manufacture of paper and paperboard | C117: 1 | M117: 1
A118: 1721 | B118: Manufacture of corrugated paper and paperboard, and of containers of paper and paperboard | N118: 1
A119: 1722 | B119: Manufacture of household and sanitary goods and of toilet requisites | N119: 1
A120: 1723 | B120: Manufacture of paper stationery | N120: 1
A121: 1724 | B121: Manufacture of wallpaper | N121: 1
A122: 1729 | B122: Manufacture of other articles of paper and paperboard n.e.c. | N122: 1
A123: 1811 | B123: Printing of newspapers | N123: 1
A124: 1812 | B124: Other printing | N124: 1
A125: 1813 | B125: Pre-press and pre-media services | N125: 1
A126: 1814 | B126: Binding and related services | N126: 1
A127: 1820 | B127: Reproduction of recorded media | N127: 1
A128: 1910 | B128: Manufacture of coke oven products | F128: 1 | M128: 1
A129: 1920 | B129: Manufacture of refined petroleum products | F129: 1 | M129: 1
A130: 2011 | B130: Manufacture of industrial gases | C130: 1 | M130: 1
A131: 2012 | B131: Manufacture of dyes and pigments | C131: 1 | M131: 1
A132: 2013 | B132: Manufacture of other inorganic basic chemicals | C132: 1 | J132: 1 | M132: 1
A133: 2014 | B133: Manufacture of other organic basic chemicals | C133: 1 | J133: 1 | M133: 1
A134: 2015 | B134: Manufacture of fertilizers and nitrogen compounds | C134: 1 | J134: 1 | M134: 1
A135: 2016 | B135: Manufacture of plastics in primary forms | C135: 1 | M135: 1
A136: 2017 | B136: Manufacture of synthetic rubber in primary forms | C136: 1 | M136: 1
A137: 2020 | B137: Manufacture of pesticides and other agrochemical products | C137: 1 | J137: 1 | M137: 1
A138: 2030 | B138: Manufacture of paints, varnishes and similar coatings, printing ink and mastics | C138: 1 | M138: 1
A139: 2041 | B139: Manufacture of soap and detergents, cleaning and polishing preparations | C139: 1 | M139: 1
A140: 2042 | B140: Manufacture of perfumes and toilet preparations | C140: 1 | M140: 1
A141: 2051 | B141: Manufacture of explosives | C141: 1 | M141: 1
A142: 2052 | B142: Manufacture of glues | C142: 1 | M142: 1
A143: 2053 | B143: Manufacture of essential oils | C143: 1 | M143: 1
A144: 2059 | B144: Manufacture of other chemical products n.e.c. | C144: 1 | M144: 1
A145: 2060 | B145: Manufacture of man-made fibres | C145: 1 | M145: 1
A146: 2110 | B146: Manufacture of basic pharmaceutical products | J146: 1 | M146: 1
A147: 2120 | B147: Manufacture of pharmaceutical preparations | J147: 1 | M147: 1
A148: 2211 | B148: Manufacture of rubber tyres and tubes; retreading and rebuilding of rubber tyres | C148: 1 | F148: 1 | M148: 1
A149: 2219 | B149: Manufacture of other rubber products | C149: 1 | M149: 1
A150: 2221 | B150: Manufacture of plastic plates, sheets, tubes and profiles | C150: 1 | F150: 1 | M150: 1
A151: 2222 | B151: Manufacture of plastic packing goods | C151: 1 | M151: 1
A152: 2223 | B152: Manufacture of builders ware of plastic | N152: 1
A153: 2229 | B153: Manufacture of other plastic products | C153: 1 | M153: 1
A154: 2311 | B154: Manufacture of flat glass | C154: 1 | M154: 1
A155: 2312 | B155: Shaping and processing of flat glass | N155: 1
A156: 2313 | B156: Manufacture of hollow glass | C156: 1 | M156: 1
A157: 2314 | B157: Manufacture of glass fibres | C157: 1 | M157: 1
A158: 2319 | B158: Manufacture and processing of other glass, including technical glassware | C158: 1 | M158: 1
A159: 2320 | B159: Manufacture of refractory products | D159: 1 | M159: 1
A160: 2331 | B160: Manufacture of ceramic tiles and flags | D160: 1 | M160: 1
A161: 2332 | B161: Manufacture of bricks, tiles and construction products, in baked clay | D161: 1 | M161: 1
A162: 2341 | B162: Manufacture of ceramic household and ornamental articles | N162: 1
A163: 2342 | B163: Manufacture of ceramic sanitary fixtures | D163: 1 | M163: 1
A164: 2343 | B164: Manufacture of ceramic insulators and insulating fittings | C164: 1 | M164: 1
A165: 2344 | B165: Manufacture of other technical ceramic products | C165: 1 | M165: 1
A166: 2349 | B166: Manufacture of other ceramic products n.e.c. | C166: 1 | M166: 1
A167: 2351 | B167: Manufacture of cement | D167: 1 | M167: 1
A168: 2352 | B168: Manufacture of lime and plaster | D168: 1 | M168: 1
A169: 2361 | B169: Manufacture of concrete products for construction purposes | D169: 1 | M169: 1
A170: 2362 | B170: Manufacture of plaster products for construction purposes | D170: 1 | M170: 1
A171: 2363 | B171: Manufacture of ready-mixed concrete | D171: 1 | M171: 1
A172: 2364 | B172: Manufacture of mortars | D172: 1 | M172: 1
A173: 2365 | B173: Manufacture of fibre cement | C173: 1 | D173: 1 | M173: 1
A174: 2369 | B174: Manufacture of other articles of concrete, plaster and cement | D174: 1 | M174: 1
A175: 2370 | B175: Cutting, shaping and finishing of stone | N175: 1
A176: 2391 | B176: Production of abrasive products | C176: 1 | M176: 1
A177: 2399 | B177: Manufacture of other non-metallic mineral products n.e.c. | C177: 1 | M177: 1
A178: 2410 | B178: Manufacture of basic iron and steel and of ferro-alloys | C178: 1 | M178: 1
A179: 2420 | B179: Manufacture of tubes, pipes, hollow profiles and related fittings, of steel | C179: 1 | M179: 1
A180: 2431 | B180: Cold drawing of bars | C180: 1 | M180: 1
A181: 2432 | B181: Cold rolling of narrow strip | C181: 1 | M181: 1
A182: 2433 | B182: Cold forming or folding | C182: 1 | M182: 1
A183: 2434 | B183: Cold drawing of wire | C183: 1 | M183: 1
A184: 2441 | B184: Precious metals production | C184: 1 | M184: 1
A185: 2442 | B185: Aluminium production | C185: 1 | M185: 1
A186: 2443 | B186: Lead, zinc and tin production | C186: 1 | M186: 1
A187: 2444 | B187: Copper production | C187: 1 | M187: 1
A188: 2445 | B188: Other non-ferrous metal production | C188: 1 | M188: 1
A189: 2446 | B189: Processing of nuclear fuel | C189: 1 | F189: 1 | M189: 1
A190: 2451 | B190: Casting of iron | C190: 1 | M190: 1
A191: 2452 | B191: Casting of steel | C191: 1 | M191: 1
A192: 2453 | B192: Casting of light metals | C192: 1 | M192: 1
A193: 2454 | B193: Casting of other non-ferrous metals | C193: 1 | M193: 1
A194: 2511 | B194: Manufacture of metal structures and parts of structures | C194: 1 | D194: 1 | M194: 1
A195: 2512 | B195: Manufacture of doors and windows of metal | D195: 1 | M195: 1
A196: 2521 | B196: Manufacture of central heating radiators and boilers | C196: 1 | D196: 1 | F196: 1 | M196: 1
A197: 2529 | B197: Manufacture of other tanks, reservoirs and containers of metal | F197: 1 | M197: 1
A198: 2530 | B198: Manufacture of steam generators, except central heating hot water boilers | C198: 1 | F198: 1 | M198: 1
A199: 2540 | B199: Manufacture of weapons and ammunition | C199: 1 | M199: 1
A200: 2550 | B200: Forging, pressing, stamping and roll-forming of metal; powder metallurgy | C200: 1 | M200: 1
... 417 more rows

Sheet 1.1
B1: Enterprises Active1 in Wales by Priority Sector2 and Sizeband3,4
C2: 2005 | D2: 2006 | E2: 2007 | F2: 2008 | G2: 2009 | H2: 2010 | I2: 2011 | J2: 2012 | K2: 2013 | M2: Change 2005 - 2013 | N2: Change 2012 - 2013
B4: Advanced materials / manufacturing:
B5: Zero (0) | C5: 610 | D5: 625 | E5: 690 | F5: 690 | G5: 710 | H5: 660 | I5: 675 | J5: 695 | K5: 735 | M5: 20.7% | N5: 5.7%
B6: Micro (1-9) | C6: 1,150 | D6: 1,170 | E6: 1,150 | F6: 1,130 | G6: 1,085 | H6: 1,030 | I6: 1,005 | J6: 995 | K6: 930 | M6: -19.2% | N6: -6.5%
B7: Small (10-49) | C7: 505 | D7: 530 | E7: 510 | F7: 495 | G7: 505 | H7: 510 | I7: 460 | J7: 450 | K7: 430 | M7: -15.2% | N7: -4.2%
B8: Medium (50-249) | C8: 270 | D8: 265 | E8: 250 | F8: 255 | G8: 230 | H8: 220 | I8: 220 | J8: 220 | K8: 225 | M8: -16.0% | N8: 2.7%
B9: Large (250+) | C9: 175 | D9: 175 | E9: 160 | F9: 145 | G9: 135 | H9: 125 | I9: 125 | J9: 115 | K9: 120 | M9: -30.3% | N9: 4.3%
B10: Total | C10: 2,715 | D10: 2,765 | E10: 2,755 | F10: 2,715 | G10: 2,670 | H10: 2,550 | I10: 2,480 | J10: 2,480 | K10: 2,445 | M10: -9.9% | N10: -1.3%
B11: Construction:
B12: Zero (0) | C12: 5,705 | D12: 5,790 | E12: 6,080 | F12: 5,705 | G12: 5,165 | H12: 4,820 | I12: 4,635 | J12: 4,605 | K12: 4,565 | M12: -19.9% | N12: -0.9%
B13: Micro (1-9) | C13: 5,150 | D13: 5,650 | E13: 5,830 | F13: 6,680 | G13: 6,900 | H13: 6,670 | I13: 6,345 | J13: 6,495 | K13: 6,015 | M13: 16.8% | N13: -7.4%
B14: Small (10-49) | C14: 745 | D14: 740 | E14: 840 | F14: 935 | G14: 970 | H14: 965 | I14: 875 | J14: 845 | K14: 900 | M14: 20.9% | N14: 6.9%
B15: Medium (50-249) | C15: 140 | D15: 145 | E15: 150 | F15: 170 | G15: 185 | H15: 175 | I15: 170 | J15: 160 | K15: 160 | M15: 15.0% | N15: 1.3%
B16: Large (250+) | C16: 110 | D16: 110 | E16: 115 | F16: 120 | G16: 110 | H16: 100 | I16: 100 | J16: 105 | K16: 105 | M16: -4.3% | N16: -0.9%
B17: Total | C17: 11,850 | D17: 12,440 | E17: 13,020 | F17: 13,610 | G17: 13,325 | H17: 12,730 | I17: 12,135 | J17: 12,210 | K17: 11,750 | M17: -0.8% | N17: -3.8%
B18: Creative industries5:
B19: Zero (0) | C19: 2,120 | D19: 2,165 | E19: 2,275 | F19: 2,470 | G19: 2,540 | H19: 2,455 | I19: 2,530 | J19: 2,670 | K19: 2,775 | M19: 30.9% | N19: 3.9%
B20: Micro (1-9) | C20: 1,460 | D20: 1,575 | E20: 1,615 | F20: 1,615 | G20: 1,615 | H20: 1,595 | I20: 1,580 | J20: 1,620 | K20: 1,615 | M20: 10.6% | N20: -0.2%
B21: Small (10-49) | C21: 135 | D21: 150 | E21: 165 | F21: 170 | G21: 185 | H21: 195 | I21: 195 | J21: 210 | K21: 215 | M21: 57.2% | N21: 2.4%
B22: Medium (50-249) | C22: 45 | D22: 40 | E22: 35 | F22: 35 | G22: 45 | H22: 45 | I22: 40 | J22: 45 | K22: 45 | M22: 1.2% | N22: -4.3%
B23: Large (250+) | C23: 50 | D23: 50 | E23: 55 | F23: 55 | G23: 45 | H23: 45 | I23: 45 | J23: 35 | K23: 40 | M23: -26.1% | N23: 2.7%
B24: Total | C24: 3,810 | D24: 3,980 | E24: 4,145 | F24: 4,350 | G24: 4,430 | H24: 4,335 | I24: 4,390 | J24: 4,580 | K24: 4,685 | M24: 22.9% | N24: 2.3%
B25: Energy & environment:
B26: Zero (0) | C26: 6,245 | D26: 6,270 | E26: 6,605 | F26: 6,670 | G26: 6,780 | H26: 6,340 | I26: 6,200 | J26: 6,320 | K26: 6,605 | M26: 5.8% | N26: 4.5%
B27: Micro (1-9) | C27: 5,330 | D27: 5,730 | E27: 5,890 | F27: 6,490 | G27: 6,565 | H27: 6,515 | I27: 6,285 | J27: 6,560 | K27: 6,140 | M27: 15.2% | N27: -6.4%
B28: Small (10-49) | C28: 840 | D28: 845 | E28: 935 | F28: 985 | G28: 1,060 | H28: 1,045 | I28: 985 | J28: 980 | K28: 1,025 | M28: 21.8% | N28: 4.6%
B29: Medium (50-249) | C29: 245 | D29: 245 | E29: 240 | F29: 260 | G29: 270 | H29: 280 | I29: 280 | J29: 275 | K29: 285 | M29: 17.1% | N29: 3.6%
B30: Large (250+) | C30: 215 | D30: 210 | E30: 215 | F30: 230 | G30: 230 | H30: 235 | I30: 240 | J30: 245 | K30: 250 | M30: 14.3% | N30: 0.8%
B31: Total | C31: 12,875 | D31: 13,300 | E31: 13,885 | F31: 14,635 | G31: 14,905 | H31: 14,410 | I31: 13,990 | J31: 14,385 | K31: 14,305 | M31: 11.1% | N31: -0.5%
B32: Food & Farming:
B33: Zero (0) | C33: 12,770 | D33: 12,540 | E33: 12,365 | F33: 10,895 | G33: 10,880 | H33: 10,375 | I33: 10,485 | J33: 10,530 | K33: 10,505 | M33: -17.7% | N33: -0.2%
B34: Micro (1-9) | C34: 1,770 | D34: 1,880 | E34: 2,020 | F34: 3,350 | G34: 3,095 | H34: 3,395 | I34: 3,280 | J34: 3,205 | K34: 3,240 | M34: 83.1% | N34: 1.1%
B35: Small (10-49) | C35: 130 | D35: 145 | E35: 145 | F35: 185 | G35: 180 | H35: 215 | I35: 185 | J35: 170 | K35: 195 | M35: 47.1% | N35: 13.5%
B36: Medium (50-249) | C36: 45 | D36: 45 | E36: 45 | F36: 45 | G36: 40 | H36: 45 | I36: 45 | J36: 45 | K36: 50 | M36: 12.4% | N36: 4.3%
B37: Large (250+) | C37: 50 | D37: 45 | E37: 45 | F37: 45 | G37: 40 | H37: 40 | I37: 40 | J37: 35 | K37: 35 | M37: -26.8% | N37: 2.9%
B38: Total | C38: 14,760 | D38: 14,655 | E38: 14,620 | F38: 14,525 | G38: 14,235 | H38: 14,075 | I38: 14,035 | J38: 13,985 | K38: 14,025 | M38: -5.0% | N38: 0.3%
B39: Financial and professional services:
B40: Zero (0) | C40: 5,405 | D40: 5,735 | E40: 6,180 | F40: 6,240 | G40: 6,630 | H40: 6,455 | I40: 6,275 | J40: 6,500 | K40: 6,935 | M40: 28.3% | N40: 6.7%
B41: Micro (1-9) | C41: 5,670 | D41: 6,070 | E41: 6,365 | F41: 6,135 | G41: 6,005 | H41: 5,915 | I41: 5,715 | J41: 5,900 | K41: 5,695 | M41: 0.4% | N41: -3.5%
B42: Small (10-49) | C42: 815 | D42: 855 | E42: 900 | F42: 940 | G42: 1,000 | H42: 950 | I42: 940 | J42: 985 | K42: 1,010 | M42: 23.8% | N42: 2.2%
B43: Medium (50-249) | C43: 250 | D43: 265 | E43: 245 | F43: 270 | G43: 265 | H43: 255 | I43: 265 | J43: 280 | K43: 295 | M43: 18.0% | N43: 5.8%
B44: Large (250+) | C44: 240 | D44: 250 | E44: 270 | F44: 280 | G44: 265 | H44: 270 | I44: 275 | J44: 285 | K44: 280 | M44: 16.5% | N44: -0.7%
B45: Total | C45: 12,380 | D45: 13,175 | E45: 13,960 | F45: 13,860 | G45: 14,165 | H45: 13,850 | I45: 13,475 | J45: 13,945 | K45: 14,210 | M45: 14.8% | N45: 1.9%
B46: ICT:
B47: Zero (0) | C47: 1,595 | D47: 1,515 | E47: 1,520 | F47: 1,750 | G47: 1,710 | H47: 1,590 | I47: 1,665 | J47: 1,665 | K47: 1,725 | M47: 8.1% | N47: 3.6%
B48: Micro (1-9) | C48: 1,130 | D48: 1,180 | E48: 1,195 | F48: 1,185 | G48: 1,165 | H48: 1,130 | I48: 1,070 | J48: 1,080 | K48: 1,070 | M48: -5.3% | N48: -0.9%
B49: Small (10-49) | C49: 150 | D49: 145 | E49: 140 | F49: 140 | G49: 155 | H49: 155 | I49: 145 | J49: 160 | K49: 155 | M49: 5.0% | N49: -1.9%
B50: Medium (50-249) | C50: 50 | D50: 55 | E50: 50 | F50: 50 | G50: 45 | H50: 45 | I50: 45 | J50: 55 | K50: 55 | M50: 10.6% | N50: 0.0%
B51: Large (250+) | C51: 45 | D51: 50 | E51: 40 | F51: 45 | G51: 50 | H51: 50 | I51: 45 | J51: 40 | K51: 45 | M51: -8.8% | N51: 2.4%
B52: Total | C52: 2,970 | D52: 2,945 | E52: 2,950 | F52: 3,170 | G52: 3,125 | H52: 2,975 | I52: 2,975 | J52: 3,000 | K52: 3,050 | M52: 2.7% | N52: 1.6%
B53: Life sciences:
B54: Zero (0) | C54: 65 | D54: 65 | E54: 70 | F54: 95 | G54: 95 | H54: 85 | I54: 80 | J54: 70 | K54: 75 | M54: 9.4% | N54: 4.3%
B55: Micro (1-9) | C55: 120 | D55: 125 | E55: 120 | F55: 135 | G55: 110 | H55: 115 | I55: 105 | J55: 115 | K55: 110 | M55: -5.0% | N55: -1.8%
B56: Small (10-49) | C56: 35 | D56: 40 | E56: 40 | F56: 40 | G56: 45 | H56: 35 | I56: 40 | J56: 40 | K56: 40 | M56: 3.9% | N56: -9.5%
B57: Medium (50-249) | C57: 30 | D57: 25 | E57: 25 | F57: 35 | G57: 30 | H57: 30 | I57: 30 | J57: 30 | K57: 35 | M57: 24.4% | N57: 24.1%
B58: Large (250+) | C58: 20 | D58: 15 | E58: 20 | F58: 20 | G58: 25 | H58: 25 | I58: 20 | J58: 20 | K58: 15 | M58: -23.0% | N58: -21.1%
B59: Total | C59: 270 | D59: 270 | E59: 275 | F59: 325 | G59: 305 | H59: 285 | I59: 270 | J59: 275 | K59: 275 | M59: 1.6% | N59: 0.0%
B60: Tourism:
B61: Zero (0) | C61: 2,585 | D61: 2,490 | E61: 2,540 | F61: 2,435 | G61: 2,345 | H61: 2,180 | I61: 2,035 | J61: 2,000 | K61: 1,915 | M61: -25.9% | N61: -4.4%
B62: Micro (1-9) | C62: 6,285 | D62: 6,595 | E62: 6,790 | F62: 6,975 | G62: 6,695 | H62: 6,440 | I62: 6,310 | J62: 6,570 | K62: 6,375 | M62: 1.4% | N62: -2.9%
B63: Small (10-49) | C63: 1,110 | D63: 1,130 | E63: 1,200 | F63: 1,320 | G63: 1,325 | H63: 1,360 | I63: 1,335 | J63: 1,365 | K63: 1,515 | M63: 36.4% | N63: 10.8%
B64: Medium (50-249) | C64: 160 | D64: 165 | E64: 185 | F64: 175 | G64: 175 | H64: 180 | I64: 180 | J64: 185 | K64: 185 | M64: 15.9% | N64: 1.8%
B65: Large (250+) | C65: 155 | D65: 150 | E65: 140 | F65: 150 | G65: 140 | H65: 150 | I65: 155 | J65: 160 | K65: 165 | M65: 7.6% | N65: 3.1%
B66: Total | C66: 10,295 | D66: 10,530 | E66: 10,860 | F66: 11,055 | G66: 10,680 | H66: 10,310 | I66: 10,010 | J66: 10,280 | K66: 10,155 | M66: -1.4% | N66: -1.2%
B67: In A Sector6:
B68: Zero (0) | C68: 30,515 | D68: 30,600 | E68: 31,370 | F68: 29,750 | G68: 29,625 | H68: 28,115 | I68: 27,780 | J68: 28,010 | K68: 28,450 | M68: -6.8% | N68: 1.6%
B69: Micro (1-9) | C69: 22,295 | D69: 23,780 | E69: 24,615 | F69: 26,800 | G69: 26,235 | H69: 25,875 | I69: 25,000 | J69: 25,565 | K69: 24,625 | M69: 10.5% | N69: -3.7%
B70: Small (10-49) | C70: 3,595 | D70: 3,690 | E70: 3,900 | F70: 4,170 | G70: 4,290 | H70: 4,320 | I70: 4,105 | J70: 4,160 | K70: 4,405 | M70: 22.5% | N70: 5.9%
B71: Medium (50-249) | C71: 945 | D71: 970 | E71: 960 | F71: 995 | G71: 995 | H71: 975 | I71: 980 | J71: 995 | K71: 1,030 | M71: 9.0% | N71: 3.4%
B72: Large (250+) | C72: 845 | D72: 840 | E72: 840 | F72: 855 | G72: 825 | H72: 820 | I72: 810 | J72: 815 | K72: 820 | M72: -3.2% | N72: 0.6%
B73: Total | C73: 58,195 | D73: 59,880 | E73: 61,685 | F73: 62,570 | G73: 61,965 | H73: 60,100 | I73: 58,670 | J73: 59,545 | K73: 59,330 | M73: 1.9% | N73: -0.4%
B74: Not In A Sector:
B75: Zero (0) | C75: 10,205 | D75: 9,930 | E75: 9,870 | F75: 9,770 | G75: 9,285 | H75: 8,825 | I75: 8,555 | J75: 8,450 | K75: 8,430 | M75: -17.4% | N75: -0.2%
B76: Micro (1-9) | C76: 17,325 | D76: 17,505 | E76: 17,680 | F76: 17,695 | G76: 17,335 | H76: 17,010 | I76: 16,685 | J76: 16,965 | K76: 16,220 | M76: -6.4% | N76: -4.4%
B77: Small (10-49) | C77: 3,325 | D77: 3,400 | E77: 3,545 | F77: 3,580 | G77: 3,635 | H77: 3,725 | I77: 3,705 | J77: 3,740 | K77: 3,915 | M77: 17.8% | N77: 4.8%
B78: Medium (50-249) | C78: 915 | D78: 940 | E78: 950 | F78: 955 | G78: 945 | H78: 925 | I78: 960 | J78: 1,000 | K78: 1,010 | M78: 10.5% | N78: 1.0%
B79: Large (250+) | C79: 895 | D79: 895 | E79: 900 | F79: 880 | G79: 895 | H79: 910 | I79: 900 | J79: 905 | K79: 895 | M79: -0.0% | N79: -1.4%
B80: Total | C80: 32,660 | D80: 32,675 | E80: 32,945 | F80: 32,875 | G80: 32,095 | H80: 31,400 | I80: 30,800 | J80: 31,060 | K80: 30,470 | M80: -6.7% | N80: -1.9%
B81: All Industries:
B82: Zero (0) | C82: 40,720 | D82: 40,530 | E82: 41,240 | F82: 39,520 | G82: 38,910 | H82: 36,945 | I82: 36,335 | J82: 36,460 | K82: 36,880 | M82: -9.4% | N82: 1.2%
B83: Micro (1-9) | C83: 39,615 | D83: 41,290 | E83: 42,295 | F83: 44,490 | G83: 43,570 | H83: 42,885 | I83: 41,680 | J83: 42,530 | K83: 40,845 | M83: 3.1% | N83: -4.0%
B84: Small (10-49) | C84: 6,920 | D84: 7,090 | E84: 7,445 | F84: 7,750 | G84: 7,925 | H84: 8,045 | I84: 7,805 | J84: 7,900 | K84: 8,320 | M84: 20.2% | N84: 5.4%
B85: Medium (50-249) | C85: 1,860 | D85: 1,910 | E85: 1,910 | F85: 1,955 | G85: 1,940 | H85: 1,900 | I85: 1,940 | J85: 2,000 | K85: 2,040 | M85: 9.7% | N85: 2.2%
B86: Large (250+) | C86: 1,740 | D86: 1,735 | E86: 1,740 | F86: 1,735 | G86: 1,720 | H86: 1,730 | I86: 1,705 | J86: 1,720 | K86: 1,710 | M86: -1.6% | N86: -0.5%
B87: Total | C87: 90,860 | D87: 92,550 | E87: 94,630 | F87: 95,445 | G87: 94,065 | H87: 91,500 | I87: 89,470 | J87: 90,610 | K87: 89,800 | M87: -1.2% | N87: -0.9%
N89: Source: Inter-Departmental Business Register (IDBR), ONS
B90: 1Enterprises active in Wales includes those headquartered outside Wales, but have local units in Wales.
B91: 2Based on the main activity of the UK enterprise.
B92: 3Sizeband is based on the size of the whole enterprise (not just the part in Wales).
B93: 42005 - 2008 data based on SIC 2003 which has been converted to SIC2007. Data after 2009 based on SIC2007.
B94: 5Based on the updated DCMS Creative Industries classification.
B95: 6This total will not equal the sum of the individual priority sectors as there is overlap between several sectors.

Sheet 1.2
B1: Number of Employees in Enterprises Active1 in Wales by Priority Sector2 and Sizeband3,4
C2: 2005 | D2: 2006 | E2: 2007 | F2: 2008 | G2: 2009 | H2: 2010 | I2: 2011 | J2: 2012 | K2: 2013 | M2: Change 2005 - 2013 | N2: Change 2012 - 2013
B4: Advanced materials / manufacturing:
B5: Zero (0) | C5: 325 | D5: 300 | E5: 345 | F5: 340 | G5: 385 | H5: 365 | I5: 390 | J5: 435 | K5: 465 | M5: 43.5% | N5: 6.2%
B6: Micro (1-9) | C6: 4,390 | D6: 4,280 | E6: 4,145 | F6: 4,165 | G6: 4,125 | H6: 3,805 | I6: 3,725 | J6: 3,770 | K6: 3,495 | M6: -20.4% | N6: -7.3%
B7: Small (10-49) | C7: 10,735 | D7: 10,995 | E7: 10,610 | F7: 10,615 | G7: 10,895 | H7: 10,480 | I7: 9,375 | J7: 9,425 | K7: 8,780 | M7: -18.2% | N7: -6.8%
B8: Medium (50-249) | C8: 23,650 | D8: 22,700 | E8: 21,460 | F8: 21,475 | G8: 19,425 | H8: 17,810 | I8: 18,300 | J8: 18,440 | K8: 18,815 | M8: -20.4% | N8: 2.0%
B9: Large (250+) | C9: 64,375 | D9: 62,955 | E9: 59,270 | F9: 58,015 | G9: 52,205 | H9: 47,260 | I9: 47,215 | J9: 44,545 | K9: 46,925 | M9: -27.1% | N9: 5.3%
B10: Total | C10: 103,475 | D10: 101,235 | E10: 95,830 | F10: 94,615 | G10: 87,035 | H10: 79,715 | I10: 79,010 | J10: 76,610 | K10: 78,475 | M10: -24.2% | N10: 2.4%
B11: Construction:
B12: Zero (0) | C12: 1,795 | D12: 2,025 | E12: 2,245 | F12: 2,375 | G12: 2,290 | H12: 2,195 | I12: 2,185 | J12: 2,370 | K12: 2,450 | M12: 36.5% | N12: 3.5%
B13: Micro (1-9) | C13: 15,850 | D13: 17,285 | E13: 17,440 | F13: 19,890 | G13: 20,810 | H13: 20,400 | I13: 19,390 | J13: 19,740 | K13: 18,745 | M13: 18.3% | N13: -5.0%
B14: Small (10-49) | C14: 14,335 | D14: 14,715 | E14: 16,225 | F14: 17,560 | G14: 18,610 | H14: 17,650 | I14: 16,120 | J14: 15,870 | K14: 16,740 | M14: 16.8% | N14: 5.5%
B15: Medium (50-249) | C15: 9,630 | D15: 10,550 | E15: 10,955 | F15: 11,975 | G15: 13,460 | H15: 11,860 | I15: 11,555 | J15: 10,615 | K15: 11,135 | M15: 15.6% | N15: 4.9%
B16: Large (250+) | C16: 17,530 | D16: 14,825 | E16: 16,320 | F16: 18,520 | G16: 15,600 | H16: 15,395 | I16: 11,660 | J16: 12,270 | K16: 12,435 | M16: -29.1% | N16: 1.3%
B17: Total | C17: 59,145 | D17: 59,405 | E17: 63,190 | F17: 70,325 | G17: 70,765 | H17: 67,495 | I17: 60,905 | J17: 60,865 | K17: 61,505 | M17: 4.0% | N17: 1.1%
B18: Creative industries5:
B19: Zero (0) | C19: 1,130 | D19: 1,210 | E19: 1,305 | F19: 1,515 | G19: 1,585 | H19: 1,570 | I19: 1,675 | J19: 1,845 | K19: 2,015 | M19: 78.3% | N19: 9.3%
B20: Micro (1-9) | C20: 4,255 | D20: 4,580 | E20: 4,650 | F20: 4,665 | G20: 4,730 | H20: 4,610 | I20: 4,585 | J20: 4,715 | K20: 4,815 | M20: 13.1% | N20: 2.1%
B21: Small (10-49) | C21: 2,370 | D21: 2,675 | E21: 2,900 | F21: 2,985 | G21: 3,170 | H21: 3,135 | I21: 3,280 | J21: 3,435 | K21: 3,570 | M21: 50.7% | N21: 3.9%
B22: Medium (50-249) | C22: 2,230 | D22: 1,995 | E22: 2,055 | F22: 1,815 | G22: 2,225 | H22: 2,415 | I22: 2,040 | J22: 2,305 | K22: 2,470 | M22: 10.8% | N22: 7.3%
B23: Large (250+) | C23: 8,380 | D23: 8,950 | E23: 8,860 | F23: 9,015 | G23: 8,450 | H23: 7,760 | I23: 7,435 | J23: 6,220 | K23: 6,025 | M23: -28.1% | N23: -3.2%
B24: Total | C24: 18,365 | D24: 19,415 | E24: 19,775 | F24: 19,990 | G24: 20,160 | H24: 19,490 | I24: 19,015 | J24: 18,520 | K24: 18,895 | M24: 2.9% | N24: 2.0%
B25: Energy & environment:
B26: Zero (0) | C26: 2,130 | D26: 2,305 | E26: 2,630 | F26: 3,065 | G26: 3,355 | H26: 3,265 | I26: 3,285 | J26: 3,605 | K26: 4,040 | M26: 89.8% | N26: 12.0%
B27: Micro (1-9) | C27: 16,375 | D27: 17,450 | E27: 17,830 | F27: 19,540 | G27: 19,845 | H27: 20,035 | I27: 19,345 | J27: 20,110 | K27: 19,155 | M27: 17.0% | N27: -4.7%
B28: Small (10-49) | C28: 15,870 | D28: 16,555 | E28: 17,640 | F28: 18,750 | G28: 19,735 | H28: 19,300 | I28: 18,150 | J28: 18,090 | K28: 18,700 | M28: 17.8% | N28: 3.4%
B29: Medium (50-249) | C29: 16,005 | D29: 16,250 | E29: 16,215 | F29: 17,425 | G29: 18,695 | H29: 18,055 | I29: 17,865 | J29: 17,825 | K29: 18,475 | M29: 15.4% | N29: 3.7%
B30: Large (250+) | C30: 40,480 | D30: 36,690 | E30: 39,040 | F30: 42,760 | G30: 42,615 | H30: 42,850 | I30: 41,045 | J30: 44,075 | K30: 44,800 | M30: 10.7% | N30: 1.6%
B31: Total | C31: 90,860 | D31: 89,255 | E31: 93,355 | F31: 101,535 | G31: 104,245 | H31: 103,505 | I31: 99,700 | J31: 103,705 | K31: 105,175 | M31: 15.8% | N31: 1.4%
B32: Food & Farming:
B33: Zero (0) | C33: 185 | D33: 205 | E33: 225 | F33: 220 | G33: 200 | H33: 185 | I33: 210 | J33: 210 | K33: 255 | M33: 39.8% | N33: 21.2%
B34: Micro (1-9) | C34: 4,020 | D34: 4,320 | E34: 4,640 | F34: 7,545 | G34: 7,285 | H34: 8,415 | I34: 7,805 | J34: 7,575 | K34: 7,815 | M34: 94.4% | N34: 3.2%
B35: Small (10-49) | C35: 2,730 | D35: 2,980 | E35: 2,930 | F35: 3,370 | G35: 3,270 | H35: 3,565 | I35: 3,380 | J35: 3,185 | K35: 3,610 | M35: 32.2% | N35: 13.4%
B36: Medium (50-249) | C36: 4,035 | D36: 4,410 | E36: 4,045 | F36: 4,190 | G36: 3,445 | H36: 3,715 | I36: 3,905 | J36: 4,045 | K36: 4,150 | M36: 2.9% | N36: 2.7%
B37: Large (250+) | C37: 16,850 | D37: 15,960 | E37: 16,800 | F37: 15,610 | G37: 16,565 | H37: 15,045 | I37: 13,935 | J37: 12,035 | K37: 12,455 | M37: -26.1% | N37: 3.5%
B38: Total | C38: 27,820 | D38: 27,875 | E38: 28,635 | F38: 30,940 | G38: 30,765 | H38: 30,925 | I38: 29,240 | J38: 27,045 | K38: 28,290 | M38: 1.7% | N38: 4.6%
B39: Financial and professional services:
B40: Zero (0) | C40: 3,060 | D40: 3,495 | E40: 3,870 | F40: 3,935 | G40: 4,325 | H40: 4,230 | I40: 4,200 | J40: 4,530 | K40: 5,010 | M40: 63.5% | N40: 10.6%
B41: Micro (1-9) | C41: 18,030 | D41: 19,085 | E41: 19,905 | F41: 19,240 | G41: 19,255 | H41: 19,005 | I41: 18,485 | J41: 19,130 | K41: 18,535 | M41: 2.8% | N41: -3.1%
B42: Small (10-49) | C42: 14,640 | D42: 15,525 | E42: 16,480 | F42: 17,035 | G42: 17,755 | H42: 16,870 | I42: 16,675 | J42: 17,330 | K42: 17,605 | M42: 20.3% | N42: 1.6%
B43: Medium (50-249) | C43: 15,545 | D43: 15,950 | E43: 15,890 | F43: 16,910 | G43: 16,960 | H43: 16,110 | I43: 17,225 | J43: 18,020 | K43: 18,560 | M43: 19.4% | N43: 3.0%
B44: Large (250+) | C44: 54,995 | D44: 59,655 | E44: 65,490 | F44: 71,335 | G44: 69,835 | H44: 63,450 | I44: 63,290 | J44: 64,280 | K44: 64,840 | M44: 17.9% | N44: 0.9%
B45: Total | C45: 106,275 | D45: 113,715 | E45: 121,630 | F45: 128,460 | G45: 128,125 | H45: 119,665 | I45: 119,875 | J45: 123,290 | K45: 124,550 | M45: 17.2% | N45: 1.0%
B46: ICT:
B47: Zero (0) | C47: 1,205 | D47: 1,160 | E47: 1,190 | F47: 1,410 | G47: 1,430 | H47: 1,335 | I47: 1,415 | J47: 1,450 | K47: 1,525 | M47: 26.3% | N47: 5.2%
B48: Micro (1-9) | C48: 3,385 | D48: 3,500 | E48: 3,570 | F48: 3,520 | G48: 3,520 | H48: 3,410 | I48: 3,285 | J48: 3,365 | K48: 3,395 | M48: 0.3% | N48: 0.9%
B49: Small (10-49) | C49: 2,815 | D49: 2,745 | E49: 2,685 | F49: 2,775 | G49: 2,970 | H49: 2,840 | I49: 2,600 | J49: 2,675 | K49: 2,750 | M49: -2.3% | N49: 2.9%
B50: Medium (50-249) | C50: 3,940 | D50: 4,035 | E50: 3,650 | F50: 4,290 | G50: 3,195 | H50: 3,445 | I50: 3,745 | J50: 3,950 | K50: 3,965 | M50: 0.7% | N50: 0.4%
B51: Large (250+) | C51: 16,295 | D51: 14,120 | E51: 12,015 | F51: 10,540 | G51: 13,580 | H51: 12,895 | I51: 11,520 | J51: 11,055 | K51: 10,425 | M51: -36.0% | N51: -5.7%
B52: Total | C52: 27,645 | D52: 25,560 | E52: 23,115 | F52: 22,535 | G52: 24,685 | H52: 23,925 | I52: 22,565 | J52: 22,495 | K52: 22,065 | M52: -20.2% | N52: -1.9%
B53: Life sciences6:
B54: Zero (0) | C54: 45 | D54: 45 | E54: 50 | F54: 75 | G54: 75 | H54: 70 | I54: 70 | J54: 60 | K54: 65 | M54: 49.2% | N54: 6.6%
B55: Micro (1-9) | C55: 430 | D55: 465 | E55: 405 | F55: 455 | G55: 390 | H55: 420 | I55: 385 | J55: 415 | K55: 410 | M55: -5.0% | N55: -1.7%
B56: Small (10-49) | C56: 795 | D56: 960 | E56: 950 | F56: 895 | G56: 920 | H56: 770 | I56: 810 | J56: 1,000 | K56: 930 | M56: 17.1% | N56: -6.9%
B57: Medium/Large (50+) | C57: 8,175 | D57: 7,125 | E57: 7,325 | F57: 7,375 | G57: 8,595 | H57: 9,065 | I57: 7,775 | J57: 7,705 | K57: 8,115 | M57: -0.7% | N57: 5.3%
B58: Medium (50-249) | C58: * | D58: * | E58: * | F58: 2,820 | G58: 2,590 | H58: 2,190 | I58: * | J58: * | K58: * | M58: * | N58: *
B59: Large (250+) | C59: * | D59: * | E59: * | F59: 4,550 | G59: 6,010 | H59: 6,875 | I59: * | J59: * | K59: * | M59: * | N59: *
B60: Total | C60: 9,445 | D60: 8,595 | E60: 8,730 | F60: 8,795 | G60: 9,980 | H60: 10,330 | I60: 9,040 | J60: 9,180 | K60: 9,520 | M60: 0.0% | N60: 0.8%
B61: Tourism:
B62: Zero (0) | C62: 725 | D62: 755 | E62: 810 | F62: 815 | G62: 795 | H62: 735 | I62: 670 | J62: 690 | K62: 735 | M62: 1.5% | N62: 6.4%
B63: Micro (1-9) | C63: 19,675 | D63: 20,405 | E63: 21,530 | F63: 22,145 | G63: 22,040 | H63: 21,565 | I63: 21,575 | J63: 22,975 | K63: 22,775 | M63: 15.8% | N63: -0.9%
B64: Small (10-49) | C64: 21,505 | D64: 21,945 | E64: 22,955 | F64: 24,515 | G64: 24,825 | H64: 24,245 | I64: 23,785 | J64: 24,550 | K64: 27,500 | M64: 27.9% | N64: 12.0%
B65: Medium (50-249) | C65: 11,050 | D65: 11,620 | E65: 12,595 | F65: 12,600 | G65: 12,850 | H65: 12,515 | I65: 12,315 | J65: 12,820 | K65: 13,165 | M65: 19.1% | N65: 2.7%
B66: Large (250+) | C66: 31,985 | D66: 31,510 | E66: 34,615 | F66: 35,300 | G66: 33,060 | H66: 35,110 | I66: 38,625 | J66: 39,390 | K66: 40,685 | M66: 27.2% | N66: 3.3%
B67: Total | C67: 84,940 | D67: 86,235 | E67: 92,500 | F67: 95,375 | G67: 93,565 | H67: 94,170 | I67: 96,970 | J67: 100,425 | K67: 104,855 | M67: 23.4% | N67: 4.4%
B68: In A Sector7:
B69: Zero (0) | C69: 7,745 | D69: 8,460 | E69: 9,255 | F69: 9,725 | G69: 10,090 | H69: 9,730 | I69: 9,745 | J69: 10,405 | K69: 11,260 | M69: 45.4% | N69: 8.2%
B70: Micro (1-9) | C70: 68,755 | D70: 72,630 | E70: 75,000 | F70: 80,465 | G70: 80,815 | H70: 80,430 | I70: 78,145 | J70: 80,625 | K70: 78,900 | M70: 14.8% | N70: -2.1%
B71: Small (10-49) | C71: 69,250 | D71: 71,675 | E71: 74,730 | F71: 78,560 | G71: 80,910 | H71: 78,385 | I71: 74,760 | J71: 76,260 | K71: 80,530 | M71: 16.3% | N71: 5.6%
B72: Medium (50-249) | C72: 69,250 | D72: 70,755 | E72: 70,360 | F72: 73,155 | G72: 73,620 | H72: 69,350 | I72: 70,430 | J72: 71,480 | K72: 73,345 | M72: 5.9% | N72: 2.6%
B73: Large (250+) | C73: 215,090 | D73: 212,755 | E73: 219,825 | F73: 225,435 | G73: 218,075 | H73: 206,710 | I73: 204,585 | J73: 204,500 | K73: 208,510 | M73: -3.1% | N73: 2.0%
B74: Total | C74: 430,095 | D74: 436,275 | E74: 449,165 | F74: 467,340 | G74: 463,515 | H74: 444,610 | I74: 437,670 | J74: 443,270 | K74: 452,545 | M74: 5.2% | N74: 2.1%
B75: Not In A Sector:
B76: Zero (0) | C76: 2,805 | D76: 2,880 | E76: 3,045 | F76: 3,375 | G76: 3,430 | H76: 3,405 | I76: 3,495 | J76: 3,660 | K76: 3,880 | M76: 38.5% | N76: 6.1%
B77: Micro (1-9) | C77: 55,895 | D77: 56,285 | E77: 56,990 | F77: 56,450 | G77: 56,910 | H77: 56,275 | I77: 54,825 | J77: 57,135 | K77: 55,295 | M77: -1.1% | N77: -3.2%
B78: Small (10-49) | C78: 63,315 | D78: 65,350 | E78: 67,060 | F78: 67,995 | G78: 67,840 | H78: 68,555 | I78: 67,610 | J78: 68,245 | K78: 71,455 | M78: 12.9% | N78: 4.7%
B79: Medium (50-249) | C79: 54,750 | D79: 55,310 | E79: 55,085 | F79: 56,605 | G79: 57,090 | H79: 53,090 | I79: 55,780 | J79: 59,040 | K79: 59,090 | M79: 7.9% | N79: 0.1%
B80: Large (250+) | C80: 454,465 | D80: 468,470 | E80: 473,630 | F80: 482,070 | G80: 497,640 | H80: 501,385 | I80: 503,880 | J80: 503,870 | K80: 504,315 | M80: 11.0% | N80: 0.1%
B81: Total | C81: 631,235 | D81: 648,290 | E81: 655,815 | F81: 666,495 | G81: 682,915 | H81: 682,710 | I81: 685,590 | J81: 691,950 | K81: 694,035 | M81: 9.9% | N81: 0.3%
B82: All Industries:
B83: Zero (0) | C83: 10,550 | D83: 11,340 | E83: 12,305 | F83: 13,105 | G83: 13,525 | H83: 13,135 | I83: 13,240 | J83: 14,065 | K83: 15,145 | M83: 43.6% | N83: 7.7%
B84: Micro (1-9) | C84: 124,650 | D84: 128,915 | E84: 131,990 | F84: 136,915 | G84: 137,725 | H84: 136,705 | I84: 132,975 | J84: 137,755 | K84: 134,195 | M84: 7.7% | N84: -2.6%
B85: Small (10-49) | C85: 132,565 | D85: 137,025 | E85: 141,790 | F85: 146,555 | G85: 148,750 | H85: 146,940 | I85: 142,375 | J85: 144,505 | K85: 151,985 | M85: 14.6% | N85: 5.2%
B86: Medium (50-249) | C86: 124,005 | D86: 126,065 | E86: 125,445 | F86: 129,755 | G86: 130,715 | H86: 122,440 | I86: 126,210 | J86: 130,525 | K86: 132,435 | M86: 6.8% | N86: 1.5%
B87: Large (250+) | C87: 669,560 | D87: 681,225 | E87: 693,455 | F87: 707,505 | G87: 715,715 | H87: 708,095 | I87: 708,465 | J87: 708,370 | K87: 712,825 | M87: 6.5% | N87: 0.6%
B88: Total | C88: 1,061,330 | D88: 1,084,570 | E88: 1,104,980 | F88: 1,133,835 | G88: 1,146,430 | H88: 1,127,315 | I88: 1,123,260 | J88: 1,135,220 | K88: 1,146,585 | M88: 8.0% | N88: 1.0%
N90: Source: Inter-Departmental Business Register (IDBR), ONS
B91: 1Enterprises active in Wales includes those headquartered outside Wales, but have local units in Wales.
B92: 2Based on the main activity of the UK enterprise.
B93: 3Sizeband is based on the size of the whole enterprise (not just the part in Wales).
B94: 42005 - 2008 data based on SIC 2003 which has been converted to SIC2007. Data after 2009 based on SIC2007.
B95: 5Based on the updated DCMS Creative Industries classification.
B96: 6For Life Sciences Medium and Large have been grouped due to disclosure.
B97: 7This total will not equal the sum of the individual priority sectors as there is overlap between several sectors.
B98: *Denotes data item is disclosive

Sheet 1.3
B1: Turnover of Enterprises Active1 in Wales by Priority Sector2 and Sizeband3,4,5 (£m)
C2: 2005 | D2: 2006 | E2: 2007 | F2: 2008 | G2: 2009 | H2: 2010 | I2: 2011 | J2: 2012 | K2: 2013 | M2: Change 2005 - 2013 | N2: Change 2012 - 2013
B4: Advanced materials / manufacturing:
B5: Zero (0) | C5: 47 | D5: 49 | E5: 59 | F5: 55 | G5: 61 | H5: 52 | I5: 172 | J5: 50 | K5: 56 | M5: 18.8% | N5: 12.7%
B6: Micro (1-9) | C6: 377 | D6: 369 | E6: 371 | F6: 402 | G6: 421 | H6: 385 | I6: 352 | J6: 486 | K6: 373 | M6: -1.1% | N6: -23.3%
B7: Small (10-49) | C7: 829 | D7: 1,089 | E7: 827 | F7: 949 | G7: 1,021 | H7: 1,150 | I7: 903 | J7: 1,048 | K7: 912 | M7: 9.9% | N7: -13.0%
B8: Medium (50-249) | C8: 2,861 | D8: 2,654 | E8: 6,036 | F8: 3,097 | G8: 2,754 | H8: 3,013 | I8: 2,849 | J8: 3,213 | K8: 3,605 | M8: 26.0% | N8: 12.2%
B9: Large (250+) | C9: 12,064 | D9: 14,250 | E9: 13,201 | F9: 13,833 | G9: 15,993 | H9: 17,593 | I9: 15,279 | J9: 15,632 | K9: 16,678 | M9: 38.2% | N9: 6.7%
B10: Total | C10: 16,177 | D10: 18,411 | E10: 20,494 | F10: 18,336 | G10: 20,249 | H10: 22,194 | I10: 19,554 | J10: 20,429 | K10: 21,623 | M10: 33.7% | N10: 5.8%
B11: Construction:
B12: Zero (0) | C12: 685 | D12: 717 | E12: 866 | F12: 822 | G12: 735 | H12: 755 | I12: 545 | J12: 556 | K12: 577 | M12: -15.7% | N12: 3.8%
B13: Micro (1-9) | C13: 1,653 | D13: 1,953 | E13: 2,030 | F13: 2,191 | G13: 2,277 | H13: 2,131 | I13: 1,882 | J13: 1,892 | K13: 1,828 | M13: 10.6% | N13: -3.4%
B14: Small (10-49) | C14: 1,188 | D14: 1,277 | E14: 1,444 | F14: 1,645 | G14: 1,985 | H14: 1,998 | I14: 1,649 | J14: 1,559 | K14: 1,660 | M14: 39.7% | N14: 6.5%
B15: Medium (50-249) | C15: 979 | D15: 1,116 | E15: 1,223 | F15: 1,329 | G15: 1,795 | H15: 1,763 | I15: 1,484 | J15: 1,467 | K15: 1,602 | M15: 63.6% | N15: 9.2%
B16: Large (250+) | C16: 3,357 | D16: 3,248 | E16: 3,536 | F16: 4,149 | G16: 3,394 | H16: 2,885 | I16: 2,354 | J16: 2,245 | K16: 2,346 | M16: -30.1% | N16: 4.5%
B17: Total | C17: 7,863 | D17: 8,311 | E17: 9,098 | F17: 10,136 | G17: 10,187 | H17: 9,533 | I17: 7,914 | J17: 7,717 | K17: 8,013 | M17: 1.9% | N17: 3.8%
B18: Creative industries6:
B19: Zero (0) | C19: 181 | D19: 164 | E19: 172 | F19: 182 | G19: 201 | H19: 190 | I19: 175 | J19: 184 | K19: 195 | M19: 7.4% | N19: 5.9%
B20: Micro (1-9) | C20: 299 | D20: 349 | E20: 357 | F20: 378 | G20: 371 | H20: 319 | I20: 355 | J20: 351 | K20: 374 | M20: 25.4% | N20: 6.7%
B21: Small (10-49) | C21: 182 | D21: 201 | E21: 269 | F21: 225 | G21: 253 | H21: 266 | I21: 274 | J21: 283 | K21: 295 | M21: 61.9% | N21: 4.0%
B22: Medium (50-249) | C22: 134 | D22: 133 | E22: 150 | F22: 117 | G22: 169 | H22: 204 | I22: 250 | J22: 311 | K22: 363 | M22: 171.0% | N22: 17.0%
B23: Large (250+) | C23: 685 | D23: 691 | E23: 781 | F23: 954 | G23: 817 | H23: 662 | I23: 772 | J23: 475 | K23: 420 | M23: -38.7% | N23: -11.6%
B24: Total | C24: 1,481 | D24: 1,538 | E24: 1,729 | F24: 1,857 | G24: 1,811 | H24: 1,641 | I24: 1,826 | J24: 1,603 | K24: 1,647 | M24: 11.2% | N24: 2.7%
B25: Energy & environment:
B26: Zero (0) | C26: 574 | D26: 584 | E26: 721 | F26: 673 | G26: 732 | H26: 794 | I26: 685 | J26: 646 | K26: 826 | M26: 43.8% | N26: 27.8%
B27: Micro (1-9) | C27: 1,410 | D27: 1,649 | E27: 1,615 | F27: 1,795 | G27: 1,947 | H27: 1,907 | I27: 1,730 | J27: 1,830 | K27: 1,896 | M27: 34.4% | N27: 3.6%
B28: Small (10-49) | C28: 1,301 | D28: 1,575 | E28: 1,588 | F28: 1,727 | G28: 1,878 | H28: 2,122 | I28: 1,802 | J28: 1,754 | K28: 1,890 | M28: 45.3% | N28: 7.7%
B29: Medium (50-249) | C29: 2,101 | D29: 2,538 | E29: 5,752 | F29: 2,676 | G29: 3,634 | H29: 3,847 | I29: 2,730 | J29: 2,860 | K29: 3,181 | M29: 51.4% | N29: 11.2%
B30: Large (250+) | C30: 9,476 | D30: 8,754 | E30: 8,721 | F30: 13,293 | G30: 14,350 | H30: 18,382 | I30: 15,285 | J30: 21,571 | K30: 30,319 | M30: 219.9% | N30: 40.6%
B31: Total | C31: 14,862 | D31: 15,100 | E31: 18,399 | F31: 20,165 | G31: 22,542 | H31: 27,052 | I31: 22,231 | J31: 28,662 | K31: 38,111 | M31: 156.4% | N31: 33.0%
B32: Food & Farming:
B33: Zero (0) | C33: 661 | D33: 652 | E33: 622 | F33: 444 | G33: 452 | H33: 458 | I33: 525 | J33: 535 | K33: 589 | M33: -10.8% | N33: 10.1%
B34: Micro (1-9) | C34: 487 | D34: 542 | E34: 566 | F34: 733 | G34: 748 | H34: 966 | I34: 939 | J34: 955 | K34: 1,087 | M34: 123.0% | N34: 13.8%
B35: Small (10-49) | C35: 294 | D35: 327 | E35: 312 | F35: 323 | G35: 349 | H35: 358 | I35: 376 | J35: 434 | K35: 480 | M35: 63.3% | N35: 10.7%
B36: Medium (50-249) | C36: 415 | D36: 593 | E36: 495 | F36: 491 | G36: 385 | H36: 459 | I36: 528 | J36: 572 | K36: 598 | M36: 44.0% | N36: 4.5%
B37: Large (250+) | C37: 2,408 | D37: 2,214 | E37: 2,585 | F37: 2,619 | G37: 2,771 | H37: 2,977 | I37: 2,841 | J37: 2,665 | K37: 2,927 | M37: 21.5% | N37: 9.8%
B38: Total | C38: 4,266 | D38: 4,329 | E38: 4,580 | F38: 4,610 | G38: 4,707 | H38: 5,217 | I38: 5,208 | J38: 5,161 | K38: 5,681 | M38: 33.2% | N38: 10.1%
B39: Financial and professional services:
B40: Zero (0) | C40: 400 | D40: 433 | E40: 502 | F40: 500 | G40: 629 | H40: 628 | I40: 658 | J40: 571 | K40: 528 | M40: 32.2% | N40: -7.4%
B41: Micro (1-9) | C41: 1,228 | D41: 1,251 | E41: 1,387 | F41: 1,364 | G41: 1,361 | H41: 1,315 | I41: 1,225 | J41: 1,294 | K41: 1,322 | M41: 7.7% | N41: 2.2%
B42: Small (10-49) | C42: 703 | D42: 698 | E42: 815 | F42: 880 | G42: 1,325 | H42: 941 | I42: 922 | J42: 1,016 | K42: 1,031 | M42: 46.7% | N42: 1.6%
B43: Medium (50-249) | C43: 608 | D43: 616 | E43: 582 | F43: 671 | G43: 688 | H43: 670 | I43: 1,113 | J43: 1,077 | K43: 958 | M43: 57.6% | N43: -11.1%
B44: Large (250+) | C44: 1,357 | D44: 1,696 | E44: 1,808 | F44: 1,699 | G44: 1,460 | H44: 1,548 | I44: 1,609 | J44: 1,644 | K44: 1,879 | M44: 38.4% | N44: 14.3%
B45: Total | C45: 4,296 | D45: 4,694 | E45: 5,095 | F45: 5,115 | G45: 5,463 | H45: 5,103 | I45: 5,526 | J45: 5,602 | K45: 5,719 | M45: 33.1% | N45: 2.1%
B46: ICT:
B47: Zero (0) | C47: 114 | D47: 111 | E47: 112 | F47: 127 | G47: 124 | H47: 109 | I47: 117 | J47: 115 | K47: 128 | M47: 11.9% | N47: 11.2%
B48: Micro (1-9) | C48: 221 | D48: 239 | E48: 243 | F48: 245 | G48: 275 | H48: 254 | I48: 247 | J48: 228 | K48: 259 | M48: 17.2% | N48: 13.6%
B49: Small (10-49) | C49: 249 | D49: 243 | E49: 234 | F49: 257 | G49: 286 | H49: 309 | I49: 263 | J49: 271 | K49: 299 | M49: 19.8% | N49: 10.0%
B50: Medium (50-249) | C50: 448 | D50: 358 | E50: 434 | F50: 543 | G50: 269 | H50: 372 | I50: 589 | J50: 768 | K50: 864 | M50: 92.8% | N50: 12.4%
B51: Large (250+) | C51: 3,447 | D51: 3,756 | E51: 2,491 | F51: 2,451 | G51: 2,810 | H51: 3,558 | I51: 4,445 | J51: 3,570 | K51: 2,952 | M51: -14.4% | N51: -17.3%
B52: Total | C52: 4,479 | D52: 4,706 | E52: 3,514 | F52: 3,623 | G52: 3,764 | H52: 4,602 | I52: 5,661 | J52: 4,952 | K52: 4,500 | M52: 0.5% | N52: -9.1%
B53: Life sciences7:
B54: Zero (0) | C54: 6 | D54: 5 | E54: 5 | F54: 6 | G54: 7 | H54: 6 | I54: 6 | J54: 4 | K54: 5 | M54: -10.7% | N54: 20.2%
B55: Micro (1-9) | C55: 32 | D55: 43 | E55: 31 | F55: 43 | G55: 40 | H55: 49 | I55: 37 | J55: 46 | K55: 51 | M55: 58.3% | N55: 9.9%
B56: Small (10-49) | C56: 62 | D56: 94 | E56: 78 | F56: 82 | G56: 90 | H56: 83 | I56: 99 | J56: 103 | K56: 72 | M56: 15.6% | N56: -30.0%
B57: Medium/Large (50+) | C57: 1,253 | D57: 1,010 | E57: 1,046 | F57: 1,005 | G57: 2,391 | H57: 2,878 | I57: 1,538 | J57: 1,845 | K57: 2,006 | M57: 60.0% | N57: 8.7%
B58: Medium (50-249) | C58: * | D58: * | E58: * | F58: 353 | G58: 364 | H58: 403 | I58: * | J58: * | K58: * | M58: * | N58: *
B59: Large (250+) | C59: * | D59: * | E59: * | F59: 651 | G59: 2,027 | H59: 2,475 | I59: * | J59: * | K59: * | M59: * | N59: *
B60: Total | C60: 1,353 | D60: 1,152 | E60: 1,161 | F60: 1,135 | G60: 2,528 | H60: 3,016 | I60: 1,679 | J60: 1,998 | K60: 2,134 | M60: 57.7% | N60: 6.8%
B61: Tourism:
B62: Zero (0) | C62: 204 | D62: 229 | E62: 218 | F62: 208 | G62: 203 | H62: 197 | I62: 181 | J62: 167 | K62: 161 | M62: -21.4% | N62: -4.0%
B63: Micro (1-9) | C63: 1,216 | D63: 1,296 | E63: 1,334 | F63: 1,387 | G63: 1,324 | H63: 1,280 | I63: 1,249 | J63: 1,252 | K63: 1,145 | M63: -5.8% | N63: -8.5%
B64: Small (10-49) | C64: 689 | D64: 709 | E64: 785 | F64: 841 | G64: 885 | H64: 882 | I64: 906 | J64: 854 | K64: 1,010 | M64: 46.4% | N64: 18.2%
B65: Medium (50-249) | C65: 574 | D65: 836 | E65: 677 | F65: 634 | G65: 682 | H65: 663 | I65: 568 | J65: 573 | K65: 578 | M65: 0.7% | N65: 0.8%
B66: Large (250+) | C66: 1,836 | D66: 2,325 | E66: 2,608 | F66: 2,905 | G66: 3,148 | H66: 3,436 | I66: 3,405 | J66: 3,602 | K66: 3,788 | M66: 106.3% | N66: 5.2%
B67: Total | C67: 4,520 | D67: 5,394 | E67: 5,622 | F67: 5,975 | G67: 6,242 | H67: 6,458 | I67: 6,308 | J67: 6,449 | K67: 6,681 | M67: 47.8% | N67: 3.6%
B68: In A Sector8:
B69: Zero (0) | C69: 2,277 | D69: 2,330 | E69: 2,530 | F69: 2,315 | G69: 2,375 | H69: 2,354 | I69: 2,337 | J69: 2,145 | K69: 2,372 | M69: 4.2% | N69: 10.6%
B70: Micro (1-9) | C70: 5,547 | D70: 6,111 | E70: 6,346 | F70: 6,791 | G70: 6,947 | H70: 6,821 | I70: 6,434 | J70: 6,694 | K70: 6,640 | M70: 19.7% | N70: -0.8%
B71: Small (10-49) | C71: 4,225 | D71: 4,656 | E71: 4,840 | F71: 5,238 | G71: 6,160 | H71: 6,120 | I71: 5,447 | J71: 5,653 | K71: 5,916 | M71: 40.0% | N71: 4.6%
B72: Medium (50-249) | C72: 6,787 | D72: 7,450 | E72: 10,499 | F72: 7,751 | G72: 8,494 | H72: 8,955 | I72: 8,228 | J72: 8,766 | K72: 9,250 | M72: 36.3% | N72: 5.5%
B73: Large (250+) | C73: 28,905 | D73: 30,775 | E73: 30,618 | F73: 36,582 | G73: 40,147 | H73: 45,741 | I73: 40,060 | J73: 46,743 | K73: 57,324 | M73: 98.3% | N73: 22.6%
B74: Total | C74: 47,741 | D74: 51,322 | E74: 54,833 | F74: 58,676 | G74: 64,123 | H74: 69,992 | I74: 62,505 | J74: 70,001 | K74: 81,502 | M74: 70.7% | N74: 16.4%
B75: Not In A Sector:
B76: Zero (0) | C76: 1,136 | D76: 1,087 | E76: 1,035 | F76: 1,030 | G76: 965 | H76: 1,023 | I76: 991 | J76: 925 | K76: 933 | M76: -17.9% | N76: 0.8%
B77: Micro (1-9) | C77: 5,866 | D77: 5,978 | E77: 6,197 | F77: 6,083 | G77: 6,133 | H77: 5,955 | I77: 5,707 | J77: 5,623 | K77: 5,566 | M77: -5.1% | N77: -1.0%
B78: Small (10-49) | C78: 5,167 | D78: 5,620 | E78: 5,836 | F78: 5,957 | G78: 6,412 | H78: 6,837 | I78: 6,473 | J78: 6,374 | K78: 7,447 | M78: 44.1% | N78: 16.8%
B79: Medium (50-249) | C79: 4,654 | D79: 5,137 | E79: 5,077 | F79: 5,727 | G79: 5,863 | H79: 5,241 | I79: 5,227 | J79: 5,819 | K79: 5,937 | M79: 27.6% | N79: 2.0%
B80: Large (250+) | C80: 20,721 | D80: 21,763 | E80: 24,450 | F80: 25,620 | G80: 27,527 | H80: 29,269 | I80: 29,142 | J80: 27,097 | K80: 27,075 | M80: 30.7% | N80: -0.1%
B81: Total | C81: 37,544 | D81: 39,585 | E81: 42,595 | F81: 44,416 | G81: 46,899 | H81: 48,326 | I81: 47,541 | J81: 45,839 | K81: 46,957 | M81: 25.1% | N81: 2.4%
B82: All Industries:
B83: Zero (0) | C83: 3,413 | D83: 3,418 | E83: 3,565 | F83: 3,344 | G83: 3,340 | H83: 3,377 | I83: 3,328 | J83: 3,070 | K83: 3,305 | M83: -3.2% | N83: 7.6%
B84: Micro (1-9) | C84: 11,413 | D84: 12,088 | E84: 12,543 | F84: 12,874 | G84: 13,080 | H84: 12,776 | I84: 12,141 | J84: 12,317 | K84: 12,206 | M84: 6.9% | N84: -0.9%
B85: Small (10-49) | C85: 9,392 | D85: 10,276 | E85: 10,676 | F85: 11,194 | G85: 12,572 | H85: 12,958 | I85: 11,920 | J85: 12,028 | K85: 13,362 | M85: 42.3% | N85: 11.1%
B86: Medium (50-249) | C86: 11,441 | D86: 12,588 | E86: 15,577 | F86: 13,478 | G86: 14,357 | H86: 14,197 | I86: 13,455 | J86: 14,585 | K86: 15,187 | M86: 32.7% | N86: 4.1%
B87: Large (250+) | C87: 49,626 | D87: 52,538 | E87: 55,068 | F87: 62,202 | G87: 67,674 | H87: 75,010 | I87: 69,201 | J87: 73,840 | K87: 84,399 | M87: 70.1% | N87: 14.3%
B88: Total | C88: 85,285 | D88: 90,907 | E88: 97,428 | F88: 103,092 | G88: 111,022 | H88: 118,318 | I88: 110,046 | J88: 115,840 | K88: 128,459 | M88: 50.6% | N88: 10.9%
N90: Source: Inter-Departmental Business Register (IDBR), ONS
B91: 1Enterprises active in Wales includes those headquartered outside Wales, but have local units in Wales.
B92: 2Based on the main activity of the UK enterprise.
B93: 3Sizeband is based on the size of the whole enterprise (not just the part in Wales).
B94: 42005 - 2008 data based on SIC 2003 which has been converted to SIC2007. Data after 2009 based on SIC2007.
B95: 5Turnover excludes the financial services sector. For multi site enterprises turnover is apportioned using turnover per head.
B96: 6Based on the updated DCMS Creative Industries classification.
B97: 7For Life Sciences Medium and Large have been grouped due to disclosure.
B98: 8This total will not equal the sum of the individual priority sectors as there is overlap between several sectors.
B99: *Denotes data item is disclosive.

Sheet 1.4
B1: Local Units1,5 in Wales by Priority Sector2 and Sizeband3,4 (£m)
C2: 2005 | D2: 2006 | E2: 2007 | F2: 2008 | G2: 2009 | H2: 2010 | I2: 2011 | J2: 2012 | K2: 2013 | M2: Change 2005 - 2013 | N2: Change 2012 - 2013
B4: Advanced materials / manufacturing:
B5: Zero (0) | C5: 610 | D5: 625 | E5: 690 | F5: 690 | G5: 710 | H5: 660 | I5: 675 | J5: 695 | K5: 735 | M5: 20.7% | N5: 5.7%
B6: Micro (1-9) | C6: 1,165 | D6: 1,180 | E6: 1,160 | F6: 1,145 | G6: 1,100 | H6: 1,040 | I6: 1,015 | J6: 1,005 | K6: 945 | M6: -19.0% | N6: -6.2%
B7: Small (10-49) | C7: 550 | D7: 580 | E7: 550 | F7: 535 | G7: 540 | H7: 555 | I7: 495 | J7: 480 | K7: 465 | M7: -15.8% | N7: -3.3%
B8: Medium (50-249) | C8: 330 | D8: 330 | E8: 305 | F8: 300 | G8: 265 | H8: 250 | I8: 260 | J8: 260 | K8: 260 | M8: -21.0% | N8: 1.6%
B9: Large (250+) | C9: 260 | D9: 260 | E9: 245 | F9: 260 | G9: 250 | H9: 235 | I9: 220 | J9: 225 | K9: 220 | M9: -16.6% | N9: -2.7%
B10: Total | C10: 2,920 | D10: 2,975 | E10: 2,950 | F10: 2,930 | G10: 2,860 | H10: 2,745 | I10: 2,660 | J10: 2,665 | K10: 2,625 | M10: -10.1% | N10: -1.5%
B11: Construction:
B12: Zero (0) | C12: 5,705 | D12: 5,790 | E12: 6,080 | F12: 5,705 | G12: 5,165 | H12: 4,820 | I12: 4,640 | J12: 4,605 | K12: 4,565 | M12: -19.9% | N12: -0.9%
B13: Micro (1-9) | C13: 5,190 | D13: 5,695 | E13: 5,875 | F13: 6,725 | G13: 6,950 | H13: 6,725 | I13: 6,400 | J13: 6,550 | K13: 6,060 | M13: 16.8% | N13: -7.5%
B14: Small (10-49) | C14: 810 | D14: 795 | E14: 900 | F14: 985 | G14: 1,025 | H14: 1,030 | I14: 940 | J14: 915 | K14: 970 | M14: 20.3% | N14: 6.1%
B15: Medium (50-249) | C15: 205 | D15: 230 | E15: 235 | F15: 245 | G15: 270 | H15: 280 | I15: 270 | J15: 245 | K15: 250 | M15: 21.0% | N15: 2.9%
B16: Large (250+) | C16: 330 | D16: 330 | E16: 350 | F16: 340 | G16: 355 | H16: 335 | I16: 350 | J16: 360 | K16: 350 | M16: 5.1% | N16: -3.5%
B17: Total | C17: 12,240 | D17: 12,840 | E17: 13,440 | F17: 14,000 | G17: 13,765 | H17: 13,190 | I17: 12,600 | J17: 12,680 | K17: 12,200 | M17: -0.3% | N17: -3.8%
B18: Creative industries6:
B19: Zero (0) | C19: 2,120 | D19: 2,165 | E19: 2,275 | F19: 2,470 | G19: 2,540 | H19: 2,455 | I19: 2,530 | J19: 2,670 | K19: 2,775 | M19: 30.9% | N19: 3.9%
B20: Micro (1-9) | C20: 1,470 | D20: 1,585 | E20: 1,625 | F20: 1,630 | G20: 1,630 | H20: 1,610 | I20: 1,595 | J20: 1,630 | K20: 1,630 | M20: 10.7% | N20: -0.2%
B21: Small (10-49) | C21: 175 | D21: 190 | E21: 205 | F21: 195 | G21: 215 | H21: 225 | I21: 225 | J21: 235 | K21: 240 | M21: 36.4% | N21: 0.8%
B22: Medium (50-249) | C22: 60 | D22: 55 | E22: 50 | F22: 45 | G22: 50 | H22: 55 | I22: 50 | J22: 60 | K22: 55 | M22: -5.4% | N22: -1.7%
B23: Large (250+) | C23: 460 | D23: 455 | E23: 470 | F23: 205 | G23: 165 | H23: 155 | I23: 135 | J23: 120 | K23: 120 | M23: -73.9% | N23: 0.8%
B24: Total | C24: 4,285 | D24: 4,455 | E24: 4,630 | F24: 4,550 | G24: 4,605 | H24: 4,500 | I24: 4,535 | J24: 4,715 | K24: 4,820 | M24: 12.4% | N24: 2.2%
B25: Energy & environment:
B26: Zero (0) | C26: 6,245 | D26: 6,270 | E26: 6,605 | F26: 6,670 | G26: 6,785 | H26: 6,340 | I26: 6,200 | J26: 6,325 | K26: 6,610 | M26: 5.8% | N26: 4.5%
B27: Micro (1-9) | C27: 5,385 | D27: 5,785 | E27: 5,945 | F27: 6,555 | G27: 6,630 | H27: 6,575 | I27: 6,340 | J27: 6,620 | K27: 6,190 | M27: 14.9% | N27: -6.5%
B28: Small (10-49) | C28: 980 | D28: 990 | E28: 1,085 | F28: 1,150 | G28: 1,210 | H28: 1,230 | I28: 1,120 | J28: 1,100 | K28: 1,130 | M28: 15.2% | N28: 2.5%
B29: Medium (50-249) | C29: 420 | D29: 450 | E29: 430 | F29: 435 | G29: 415 | H29: 420 | I29: 435 | J29: 425 | K29: 450 | M29: 6.7% | N29: 5.2%
B30: Large (250+) | C30: 650 | D30: 630 | E30: 650 | F30: 730 | G30: 910 | H30: 975 | I30: 1,115 | J30: 1,105 | K30: 1,015 | M30: 56.3% | N30: -7.9%
B31: Total | C31: 13,680 | D31: 14,135 | E31: 14,715 | F31: 15,540 | G31: 15,955 | H31: 15,545 | I31: 15,210 | J31: 15,575 | K31: 15,395 | M31: 12.5% | N31: -1.2%
B32: Food & Farming:
B33: Zero (0) | C33: 12,770 | D33: 12,540 | E33: 12,365 | F33: 10,895 | G33: 10,880 | H33: 10,380 | I33: 10,485 | J33: 10,535 | K33: 10,510 | M33: -17.7% | N33: -0.2%
B34: Micro (1-9) | C34: 1,785 | D34: 1,900 | E34: 2,040 | F34: 3,370 | G34: 3,115 | H34: 3,415 | I34: 3,305 | J34: 3,225 | K34: 3,255 | M34: 82.2% | N34: 0.9%
B35: Small (10-49) | C35: 155 | D35: 170 | E35: 165 | F35: 200 | G35: 200 | H35: 235 | I35: 210 | J35: 195 | K35: 215 | M35: 41.2% | N35: 11.9%
B36: Medium (50-249) | C36: 70 | D36: 75 | E36: 70 | F36: 70 | G36: 50 | H36: 60 | I36: 60 | J36: 60 | K36: 65 | M36: -12.1% | N36: 3.3%
B37: Large (250+) | C37: 150 | D37: 170 | E37: 170 | F37: 125 | G37: 190 | H37: 105 | I37: 165 | J37: 105 | K37: 105 | M37: -30.4% | N37: -1.0%
B38: Total | C38: 14,930 | D38: 14,850 | E38: 14,810 | F38: 14,665 | G38: 14,440 | H38: 14,190 | I38: 14,220 | J38: 14,115 | K38: 14,145 | M38: -5.2% | N38: 0.2%
B39: Financial and professional services:
B40: Zero (0) | C40: 5,405 | D40: 5,735 | E40: 6,185 | F40: 6,240 | G40: 6,635 | H40: 6,460 | I40: 6,280 | J40: 6,500 | K40: 6,940 | M40: 28.4% | N40: 6.7%
B41: Micro (1-9) | C41: 5,790 | D41: 6,180 | E41: 6,485 | F41: 6,265 | G41: 6,130 | H41: 6,045 | I41: 5,840 | J41: 6,020 | K41: 5,815 | M41: 0.5% | N41: -3.5%
B42: Small (10-49) | C42: 1,175 | D42: 1,230 | E42: 1,285 | F42: 1,325 | G42: 1,380 | H42: 1,365 | I42: 1,315 | J42: 1,365 | K42: 1,350 | M42: 15.0% | N42: -1.2%
B43: Medium (50-249) | C43: 730 | D43: 730 | E43: 650 | F43: 660 | G43: 650 | H43: 590 | I43: 635 | J43: 635 | K43: 690 | M43: -5.7% | N43: 8.7%
B44: Large (250+) | C44: 1,560 | D44: 1,975 | E44: 2,100 | F44: 1,810 | G44: 1,945 | H44: 1,875 | I44: 1,910 | J44: 1,710 | K44: 1,720 | M44: 10.3% | N44: 0.5%
B45: Total | C45: 14,655 | D45: 15,845 | E45: 16,700 | F45: 16,310 | G45: 16,740 | H45: 16,335 | I45: 15,985 | J45: 16,235 | K45: 16,510 | M45: 12.7% | N45: 1.7%
B46: ICT:
B47: Zero (0) | C47: 1,595 | D47: 1,515 | E47: 1,520 | F47: 1,750 | G47: 1,710 | H47: 1,590 | I47: 1,665 | J47: 1,665 | K47: 1,725 | M47: 8.1% | N47: 3.6%
B48: Micro (1-9) | C48: 1,140 | D48: 1,190 | E48: 1,205 | F48: 1,195 | G48: 1,175 | H48: 1,140 | I48: 1,080 | J48: 1,085 | K48: 1,075 | M48: -5.3% | N48: -0.8%
B49: Small (10-49) | C49: 175 | D49: 165 | E49: 165 | F49: 150 | G49: 160 | H49: 165 | I49: 150 | J49: 170 | K49: 165 | M49: -4.4% | N49: -1.8%
B50: Medium (50-249) | C50: 60 | D50: 65 | E50: 60 | F50: 55 | G50: 45 | H50: 50 | I50: 50 | J50: 60 | K50: 60 | M50: 0.1% | N50: 0.0%
B51: Large (250+) | C51: 470 | D51: 480 | E51: 485 | F51: 230 | G51: 265 | H51: 265 | I51: 260 | J51: 250 | K51: 265 | M51: -44.1% | N51: 5.6%
B52: Total | C52: 3,435 | D52: 3,415 | E52: 3,430 | F52: 3,375 | G52: 3,355 | H52: 3,210 | I52: 3,210 | J52: 3,230 | K52: 3,290 | M52: -4.3% | N52: 1.9%
B53: Life sciences:
B54: Zero (0) | C54: 65 | D54: 65 | E54: 70 | F54: 95 | G54: 95 | H54: 85 | I54: 80 | J54: 70 | K54: 75 | M54: 9.4% | N54: 4.3%
B55: Micro (1-9) | C55: 120 | D55: 125 | E55: 120 | F55: 140 | G55: 110 | H55: 115 | I55: 110 | J55: 120 | K55: 115 | M55: -4.1% | N55: -2.5%
B56: Small (10-49) | C56: 45 | D56: 55 | E56: 60 | F56: 55 | G56: 50 | H56: 40 | I56: 45 | J56: 45 | K56: 45 | M56: -1.0% | N56: -4.3%
B57: Medium (50-249) | C57: 75 | D57: 30 | E57: 65 | F57: 35 | G57: 40 | H57: 35 | I57: 35 | J57: 35 | K57: 45 | M57: 23.1% | N57: 16.2%
B58: Large (250+) | C58: 35 | D58: 35 | E58: 30 | F58: 40 | G58: 40 | H58: 50 | I58: 30 | J58: 30 | K58: 30 | M58: -22.6% | N58: -3.2%
B59: Total | C59: 305 | D59: 310 | E59: 315 | F59: 360 | G59: 335 | H59: 320 | I59: 295 | J59: 305 | K59: 305 | M59: 0.1% | N59: 1.0%
B60: Tourism:
B61: Zero (0) | C61: 2,585 | D61: 2,495 | E61: 2,545 | F61: 2,435 | G61: 2,345 | H61: 2,185 | I61: 2,035 | J61: 2,000 | K61: 1,915 | M61: -25.9% | N61: -4.4%
B62: Micro (1-9) | C62: 6,360 | D62: 6,660 | E62: 6,860 | F62: 7,045 | G62: 6,775 | H62: 6,510 | I62: 6,375 | J62: 6,625 | K62: 6,430 | M62: 1.2% | N62: -2.9%
B63: Small (10-49) | C63: 1,320 | D63: 1,350 | E63: 1,405 | F63: 1,525 | G63: 1,510 | H63: 1,545 | I63: 1,530 | J63: 1,555 | K63: 1,730 | M63: 30.9% | N63: 11.2%
B64: Medium (50-249) | C64: 415 | D64: 345 | E64: 405 | F64: 400 | G64: 435 | H64: 430 | I64: 425 | J64: 415 | K64: 415 | M64: -0.5% | N64: -0.9%
B65: Large (250+) | C65: 1,410 | D65: 1,470 | E65: 1,710 | F65: 1,635 | G65: 1,620 | H65: 1,665 | I65: 1,575 | J65: 1,755 | K65: 1,860 | M65: 31.9% | N65: 6.1%
B66: Total | C66: 12,090 | D66: 12,320 | E66: 12,920 | F66: 13,045 | G66: 12,680 | H66: 12,335 | I66: 11,935 | J66: 12,350 | K66: 12,350 | M66: 2.2% | N66: -0.0%
B67: In A Sector7:
B68: Zero (0) | C68: 30,515 | D68: 30,600 | E68: 31,375 | F68: 29,755 | G68: 29,625 | H68: 28,125 | I68: 27,790 | J68: 28,015 | K68: 28,460 | M68: -6.7% | N68: 1.6%
B69: Micro (1-9) | C69: 22,585 | D69: 24,060 | E69: 24,915 | F69: 27,110 | G69: 26,555 | H69: 26,185 | I69: 25,295 | J69: 25,850 | K69: 24,900 | M69: 10.3% | N69: -3.7%
B70: Small (10-49) | C70: 4,390 | D70: 4,505 | E70: 4,705 | F70: 4,945 | G70: 5,035 | H70: 5,120 | I70: 4,865 | J70: 4,910 | K70: 5,145 | M70: 17.2% | N70: 4.8%
B71: Medium (50-249) | C71: 1,890 | D71: 1,845 | E71: 1,795 | F71: 1,815 | G71: 1,830 | H71: 1,770 | I71: 1,800 | J71: 1,785 | K71: 1,855 | M71: -1.7% | N71: 4.1%
B72: Large (250+) | C72: 4,605 | D72: 5,055 | E72: 5,430 | F72: 4,780 | G72: 5,005 | H72: 4,900 | I72: 4,875 | J72: 4,790 | K72: 4,855 | M72: 5.4% | N72: 1.4%
B73: Total | C73: 63,980 | D73: 66,070 | E73: 68,215 | F73: 68,405 | G73: 68,050 | H73: 66,095 | I73: 64,620 | J73: 65,345 | K73: 65,215 | M73: 1.9% | N73: -0.2%
B74: Not In A Sector:
B75: Zero (0) | C75: 10,205 | D75: 9,930 | E75: 9,870 | F75: 9,770 | G75: 9,290 | H75: 8,830 | I75: 8,560 | J75: 8,455 | K75: 8,435 | M75: -17.3% | N75: -0.2%
B76: Micro (1-9) | C76: 17,935 | D76: 18,090 | E76: 18,265 | F76: 18,275 | G76: 17,900 | H76: 17,560 | I76: 17,205 | J76: 17,465 | K76: 16,695 | M76: -6.9% | N76: -4.4%
B77: Small (10-49) | C77: 4,670 | D77: 4,795 | E77: 4,970 | F77: 4,935 | G77: 4,900 | H77: 5,075 | I77: 5,030 | J77: 5,010 | K77: 5,205 | M77: 11.4% | N77: 3.9%
B78: Medium (50-249) | C78: 1,965 | D78: 2,050 | E78: 2,140 | F78: 2,245 | G78: 2,190 | H78: 2,250 | I78: 2,305 | J78: 2,350 | K78: 2,285 | M78: 16.5% | N78: -2.8%
B79: Large (250+) | C79: 12,480 | D79: 13,180 | E79: 13,010 | F79: 12,710 | G79: 12,855 | H79: 12,705 | I79: 12,520 | J79: 12,630 | K79: 12,345 | M79: -1.1% | N79: -2.3%
B80: Total | C80: 47,255 | D80: 48,045 | E80: 48,255 | F80: 47,945 | G80: 47,135 | H80: 46,420 | I80: 45,620 | J80: 45,910 | K80: 44,960 | M80: -4.9% | N80: -2.1%
B81: All Industries:
B82: Zero (0) | C82: 40,720 | D82: 40,530 | E82: 41,245 | F82: 39,525 | G82: 38,915 | H82: 36,960 | I82: 36,350 | J82: 36,470 | K82: 36,890 | M82: -9.4% | N82: 1.2%
B83: Micro (1-9) | C83: 40,520 | D83: 42,150 | E83: 43,180 | F83: 45,385 | G83: 44,460 | H83: 43,740 | I83: 42,500 | J83: 43,315 | K83: 41,595 | M83: 2.7% | N83: -4.0%
B84: Small (10-49) | C84: 9,060 | D84: 9,305 | E84: 9,670 | F84: 9,885 | G84: 9,935 | H84: 10,195 | I84: 9,895 | J84: 9,920 | K84: 10,350 | M84: 14.2% | N84: 4.3%
B85: Medium (50-249) | C85: 3,850 | D85: 3,895 | E85: 3,935 | F85: 4,060 | G85: 4,020 | H85: 4,020 | I85: 4,105 | J85: 4,135 | K85: 4,145 | M85: 7.6% | N85: 0.2%
B86: Large (250+) | C86: 17,085 | D86: 18,235 | E86: 18,440 | F86: 17,495 | G86: 17,860 | H86: 17,605 | I86: 17,390 | J86: 17,420 | K86: 17,195 | M86: 0.7% | N86: -1.3%
B87: Total | C87: 111,235 | D87: 114,110 | E87: 116,470 | F87: 116,345 | G87: 115,185 | H87: 112,520 | I87: 110,240 | J87: 111,260 | K87: 110,175 | M87: -1.0% | N87: -1.0%
N89: Source: Inter-Departmental Business Register (IDBR), ONS
B90: 1Enterprises active in Wales includes those headquartered outside Wales, but have local units in Wales.
B91: 2Based on the main activity of the UK enterprise.
B92: 3Sizeband is based on the size of the whole enterprise (not just the part in Wales).
B93: 42005 - 2008 data based on SIC 2003 which has been converted to SIC2007. Data after 2009 based on SIC2007.
B94: 5Local units are individual sites of an enterprise.
B95: 6Based on the updated DCMS Creative Industries classification.
B96: 7This total will not equal the sum of the individual priority sectors as there is overlap between several sectors.

Sheet 1.5
B1: Enterprises Active in UK by Priority Sector1
C2: 2005 | D2: 2006 | E2: 2007 | F2: 2008 | G2: 2009 | H2: 2010 | I2: 2011 | J2: 2012 | K2: 2013 | M2: Change 2005 - 2013 | N2: Change 2012 - 2013
B4: Advanced materials / manufacturing | C4: 65,270 | D4: 64,850 | E4: 64,210 | F4: 62,840 | G4: 62,795 | H4: 59,870 | I4: 57,095 | J4: 57,305 | K4: 56,955 | M4: -12.7% | N4: -0.6%
B5: Construction | C5: 276,255 | D5: 287,955 | E5: 299,765 | F5: 319,820 | G5: 317,585 | H5: 302,880 | I5: 290,860 | J5: 294,305 | K5: 288,955 | M5: 4.6% | N5: -1.8%
B6: Creative industries2 | C6: 158,415 | D6: 162,280 | E6: 168,345 | F6: 180,355 | G6: 193,495 | H6: 192,170 | I6: 198,015 | J6: 213,615 | K6: 223,860 | M6: 41.3% | N6: 4.8%
B7: Energy & environment | C7: 317,975 | D7: 330,905 | E7: 344,865 | F7: 372,845 | G7: 386,630 | H7: 378,460 | I7: 374,220 | J7: 389,320 | K7: 396,535 | M7: 24.7% | N7: 1.9%
B8: Food & Farming | C8: 132,725 | D8: 132,070 | E8: 143,890 | F8: 145,230 | G8: 143,250 | H8: 141,230 | I8: 143,150 | J8: 143,065 | K8: 148,135 | M8: 11.6% | N8: 3.5%
B9: Financial and professional services | C9: 406,855 | D9: 431,165 | E9: 455,175 | F9: 476,275 | G9: 488,380 | H9: 481,330 | I9: 480,010 | J9: 504,985 | K9: 517,735 | M9: 27.3% | N9: 2.5%
B10: ICT | C10: 119,020 | D10: 118,540 | E10: 120,260 | F10: 130,965 | G10: 129,095 | H10: 124,650 | I10: 126,540 | J10: 136,000 | K10: 141,125 | M10: 18.6% | N10: 3.8%
B11: Life sciences | C11: 5,895 | D11: 5,975 | E11: 6,080 | F11: 6,405 | G11: 6,585 | H11: 6,450 | I11: 6,410 | J11: 6,515 | K11: 6,665 | M11: 13.1% | N11: 2.3%
B12: Tourism | C12: 198,720 | D12: 201,675 | E12: 205,145 | F12: 209,030 | G12: 205,855 | H12: 199,765 | I12: 196,370 | J12: 202,260 | K12: 200,565 | M12: 0.9% | N12: -0.8%
B13: In A Priority Sector3 | C13: 1,273,345 | D13: 1,314,195 | E13: 1,369,270 | F13: 1,428,150 | G13: 1,437,980 | H13: 1,401,170 | I13: 1,387,135 | J13: 1,436,740 | K13: 1,456,505 | M13: 14.4% | N13: 1.4%
B14: Not In A Sector | C14: 729,435 | D14: 727,295 | E14: 729,825 | F14: 733,405 | G14: 714,420 | H14: 699,200 | I14: 693,725 | J14: 712,445 | K14: 711,075 | M14: -2.5% | N14: -0.2%
B15: Total | C15: 2,002,780 | D15: 2,041,490 | E15: 2,099,095 | F15: 2,161,555 | G15: 2,152,400 | H15: 2,100,370 | I15: 2,080,860 | J15: 2,149,185 | K15: 2,167,580 | M15: 8.2% | N15: 0.9%
N17: Source: Inter-Departmental Business Register (IDBR), ONS
B18: 12005 - 2008 data based on SIC 2003 which has been converted to SIC2007. Data after 2009 based on SIC2007.
B19: 2Based on the updated DCMS Creative Industries classification.
B20: 3This total will not equal the sum of the individual priority sectors as there is overlap between several sectors.

Sheet 1.6
B1: Number of employees in Enterprises Active in UK by Priority Sector1
C2: 2005 | D2: 2006 | E2: 2007 | F2: 2008 | G2: 2009 | H2: 2010 | I2: 2011 | J2: 2012 | K2: 2013 | M2: Change 2005 - 2013 | N2: Change 2012 - 2013
B4: Advanced materials / manufacturing | C4: 1,678,895 | D4: 1,614,275 | E4: 1,539,175 | F4: 1,478,945 | G4: 1,439,675 | H4: 1,336,945 | I4: 1,279,855 | J4: 1,289,785 | K4: 1,288,465 | M4: -23.3% | N4: -0.1%
B5: Construction | C5: 1,465,900 | D5: 1,512,215 | E5: 1,543,800 | F5: 1,664,265 | G5: 1,708,270 | H5: 1,600,975 | I5: 1,490,015 | J5: 1,449,380 | K5: 1,437,975 | M5: -1.9% | N5: -0.8%
B6: Creative industries2 | C6: 895,380 | D6: 907,225 | E6: 925,695 | F6: 935,085 | G6: 968,060 | H6: 948,195 | I6: 954,270 | J6: 1,000,635 | K6: 1,039,855 | M6: 16.1% | N6: 3.9%
B7: Energy & environment | C7: 2,483,235 | D7: 2,560,185 | E7: 2,590,065 | F7: 2,781,465 | G7: 2,873,735 | H7: 2,901,830 | I7: 2,821,600 | J7: 2,843,180 | K7: 2,879,175 | M7: 15.9% | N7: 1.3%
B8: Food & Farming | C8: 619,130 | D8: 616,890 | E8: 598,975 | F8: 611,775 | G8: 612,445 | H8: 605,355 | I8: 610,075 | J8: 619,790 | K8: 639,575 | M8: 3.3% | N8: 3.2%
B9: Financial and professional services | C9: 3,959,910 | D9: 4,191,370 | E9: 4,253,860 | F9: 4,421,380 | G9: 4,561,490 | H9: 4,432,325 | I9: 4,360,835 | J9: 4,531,830 | K9: 4,595,435 | M9: 16.0% | N9: 1.4%
B10: ICT | C10: 919,545 | D10: 874,640 | E10: 895,675 | F10: 871,730 | G10: 896,495 | H10: 844,085 | I10: 835,670 | J10: 888,215 | K10: 916,350 | M10: -0.3% | N10: 3.2%
B11: Life sciences | C11: 242,320 | D11: 236,970 | E11: 242,885 | F11: 239,350 | G11: 237,940 | H11: 220,565 | I11: 220,625 | J11: 216,255 | K11: 211,995 | M11: -12.5% | N11: -2.0%
B12: Tourism | C12: 2,242,235 | D12: 2,260,325 | E12: 2,339,540 | F12: 2,377,020 | G12: 2,411,175 | H12: 2,383,305 | I12: 2,379,035 | J12: 2,478,040 | K12: 2,572,195 | M12: 14.7% | N12: 3.8%
B13: In A Priority Sector3 | C13: 11,646,570 | D13: 11,873,315 | E13: 11,993,500 | F13: 12,256,985 | G13: 12,516,965 | H13: 12,102,545 | I13: 11,867,420 | J13: 12,199,745 | K13: 12,418,910 | M13: 6.6% | N13: 1.8%
B14: Not In A Sector | C14: 13,803,305 | D14: 14,042,665 | E14: 14,292,945 | F14: 14,405,845 | G14: 14,414,120 | H14: 14,593,550 | I14: 14,569,040 | J14: 14,567,445 | K14: 14,697,520 | M14: 6.5% | N14: 0.9%
B15: Total | C15: 25,449,875 | D15: 25,915,980 | E15: 26,286,445 | F15: 26,662,830 | G15: 26,931,090 | H15: 26,696,095 | I15: 26,436,460 | J15: 26,767,190 | K15: 27,116,430 | M15: 6.5% | N15: 1.3%
N17: Source: Inter-Departmental Business Register (IDBR), ONS
B18: 12005 - 2008 data based on SIC 2003 which has been converted to SIC2007. Data after 2009 based on SIC2007.
B19: 2Based on the updated DCMS Creative Industries classification.
B20: 3This total will not equal the sum of the individual priority sectors as there is overlap between several sectors.

Sheet 1.7
B1: Turnover2 in Enterprises Active in UK by Priority Sector (£m)1
C2: 2005 | D2: 2006 | E2: 2007 | F2: 2008 | G2: 2009 | H2: 2010 | I2: 2011 | J2: 2012 | K2: 2013 | M2: Change 2005 - 2013 | N2: Change 2012 - 2013
B4: Advanced materials / manufacturing | C4: 227,375 | D4: 238,410 | E4: 243,005 | F4: 240,170 | G4: 258,145 | H4: 276,910 | I4: 248,100 | J4: 271,560 | K4: 282,230 | M4: 24.1% | N4: 3.9%
B5: Construction | C5: 224,335 | D5: 236,125 | E5: 249,730 | F5: 278,575 | G5: 285,025 | H5: 274,045 | I5: 234,770 | J5: 228,950 | K5: 232,295 | M5: 3.5% | N5: 1.5%
B6: Creative industries3 | C6: 119,060 | D6: 124,585 | E6: 131,205 | F6: 132,450 | G6: 134,245 | H6: 147,630 | I6: 135,340 | J6: 139,840 | K6: 147,750 | M6: 24.1% | N6: 5.7%
B7: Energy & environment | C7: 460,520 | D7: 487,485 | E7: 548,215 | F7: 647,060 | G7: 739,505 | H7: 888,145 | I7: 741,990 | J7: 775,220 | K7: 864,430 | M7: 87.7% | N7: 11.5%
B8: Food & Farming | C8: 94,380 | D8: 94,770 | E8: 95,055 | F8: 96,365 | G8: 102,720 | H8: 110,460 | I8: 117,075 | J8: 120,310 | K8: 130,660 | M8: 38.4% | N8: 8.6%
B9: Financial and professional services | C9: 201,985 | D9: 214,575 | E9: 234,755 | F9: 260,610 | G9: 278,370 | H9: 293,575 | I9: 303,460 | J9: 296,175 | K9: 317,465 | M9: 57.2% | N9: 7.2%
B10: ICT | C10: 133,115 | D10: 141,235 | E10: 143,945 | F10: 148,120 | G10: 155,240 | H10: 159,140 | I10: 151,185 | J10: 158,290 | K10: 168,855 | M10: 26.8% | N10: 6.7%
B11: Life sciences | C11: 47,880 | D11: 45,090 | E11: 49,340 | F11: 53,335 | G11: 56,465 | H11: 66,920 | I11: 69,520 | J11: 68,180 | K11: 61,380 | M11: 28.2% | N11: -10.0%
B12: Tourism | C12: 168,105 | D12: 186,205 | E12: 193,085 | F12: 203,795 | G12: 215,590 | H12: 222,130 | I12: 219,470 | J12: 229,045 | K12: 247,685 | M12: 47.3% | N12: 8.1%
B13: In A Priority Sector4 | C13: 1,341,735 | D13: 1,417,805 | E13: 1,529,055 | F13: 1,658,520 | G13: 1,810,300 | H13: 1,989,110 | I13: 1,807,695 | J13: 1,868,830 | K13: 2,022,520 | M13: 50.7% | N13: 8.2%
B14: Not In A Sector | C14: 1,121,665 | D14: 1,157,525 | E14: 1,228,570 | F14: 1,285,650 | G14: 1,322,745 | H14: 1,375,980 | I14: 1,353,205 | J14: 1,388,450 | K14: 1,382,260 | M14: 23.2% | N14: -0.4%
B15: Total | C15: 2,463,395 | D15: 2,575,330 | E15: 2,757,630 | F15: 2,944,170 | G15: 3,133,045 | H15: 3,365,095 | I15: 3,160,900 | J15: 3,257,280 | K15: 3,404,775 | M15: 38.2% | N15: 4.5%
N17: Source: Inter-Departmental Business Register (IDBR), ONS
B18: 12005 - 2008 data based on SIC 2003 which has been converted to SIC2007. Data after 2009 based on SIC2007.
B19: 2Turnover excludes the financial services sector.
B20: 3Based on the updated DCMS Creative Industries classification.
B21: 4This total will not equal the sum of the individual priority sectors as there is overlap between several sectors.

Sheet 1.8
B1: Local Units2 in UK by Priority Sector1
C2: 2005 | D2: 2006 | E2: 2007 | F2: 2008 | G2: 2009 | H2: 2010 | I2: 2011 | J2: 2012 | K2: 2013 | M2: Change 2005 - 2013 | N2: Change 2012 - 2013
B4: Advanced materials / manufacturing | C4: 74,490 | D4: 73,830 | E4: 72,980 | F4: 70,615 | G4: 69,945 | H4: 66,720 | I4: 63,600 | J4: 63,770 | K4: 63,205 | M4: -15.2% | N4: -0.9%
B5: Construction | C5: 288,670 | D5: 300,155 | E5: 311,905 | F5: 332,195 | G5: 330,645 | H5: 315,250 | I5: 303,585 | J5: 307,125 | K5: 301,185 | M5: 4.3% | N5: -1.9%
B6: Creative industries3 | C6: 172,340 | D6: 176,380 | E6: 183,640 | F6: 188,020 | G6: 199,965 | H6: 198,450 | I6: 203,950 | J6: 219,315 | K6: 229,635 | M6: 33.2% | N6: 4.7%
B7: Energy & environment | C7: 349,900 | D7: 363,445 | E7: 379,320 | F7: 408,490 | G7: 423,420 | H7: 414,185 | I7: 410,830 | J7: 425,550 | K7: 432,015 | M7: 23.5% | N7: 1.5%
B8: Food & Farming | C8: 138,200 | D8: 137,520 | E8: 148,905 | F8: 151,315 | G8: 149,030 | H8: 146,955 | I8: 148,720 | J8: 148,475 | K8: 153,620 | M8: 11.2% | N8: 3.5%
B9: Financial and professional services | C9: 478,850 | D9: 511,970 | E9: 539,970 | F9: 553,305 | G9: 566,575 | H9: 553,890 | I9: 550,660 | J9: 571,730 | K9: 584,220 | M9: 22.0% | N9: 2.2%
B10: ICT | C10: 134,180 | D10: 133,150 | E10: 137,675 | F10: 138,945 | G10: 137,225 | H10: 132,525 | I10: 134,545 | J10: 144,075 | K10: 149,335 | M10: 11.3% | N10: 3.7%
B11: Life sciences | C11: 7,585 | D11: 7,985 | E11: 8,120 | F11: 8,370 | G11: 8,565 | H11: 8,215 | I11: 8,075 | J11: 8,175 | K11: 8,230 | M11: 8.5% | N11: 0.6%
B12: Tourism | C12: 255,090 | D12: 257,620 | E12: 261,845 | F12: 266,540 | G12: 266,350 | H12: 259,760 | I12: 250,795 | J12: 258,105 | K12: 258,920 | M12: 1.5% | N12: 0.3%
B13: In A Priority Sector4 | C13: 1,453,540 | D13: 1,502,950 | E13: 1,563,820 | F13: 1,607,210 | G13: 1,620,750 | H13: 1,576,970 | I13: 1,554,925 | J13: 1,602,055 | K13: 1,623,295 | M13: 11.7% | N13: 1.3%
B14: Not In A Sector | C14: 1,032,495 | D14: 1,030,620 | E14: 1,036,245 | F14: 1,035,770 | G14: 1,012,570 | H14: 997,255 | I14: 992,915 | J14: 1,008,480 | K14: 1,002,195 | M14: -2.9% | N14: -0.6%
B15: Total | C15: 2,486,040 | D15: 2,533,565 | E15: 2,600,065 | F15: 2,642,980 | G15: 2,633,320 | H15: 2,574,225 | I15: 2,547,840 | J15: 2,610,535 | K15: 2,625,490 | M15: 5.6% | N15: 0.6%
N17: Source: Inter-Departmental Business Register (IDBR), ONS
B18: 12005 - 2008 data based on SIC 2003 which has been converted to SIC2007. Data after 2009 based on SIC2007.
B19: 2Local units are individual sites of an enterprise
B20: 3Based on the updated DCMS Creative Industries classification.
B21: 4This total will not equal the sum of the individual priority sectors as there is overlap between several sectors.

Sheet 2.1
B1: Employee Jobs by Priority Sector1,2 | M1: Thousands
C3: 2005 | D3: 2006 | E3: 2007 | F3: 2008 | G3: 2009 | H3: 2010 | I3: 2011 | J3: 2012 | L3: Change 2005 - 2012 | M3: Change 2011 - 2012
B5: Wales:
B6: Advanced materials / manufacturing | C6: 97.2 | D6: 91.9 | E6: 91.2 | F6: 89.7 | G6: 78.3 | H6: 73.2 | I6: 79.7 | J6: 77.2 | L6: -20.5% | M6: -3.1%
B7: Construction | C7: 71.3 | D7: 78.8 | E7: 75.4 | F7: 78.6 | G7: 72.9 | H7: 69.4 | I7: 68.7 | J7: 62.9 | L7: -11.7% | M7: -8.4%
B8: Creative industries3 | C8: 23.7 | D8: 25.0 | E8: 25.3 | F8: 23.1 | G8: 22.7 | H8: 22.6 | I8: 20.3 | J8: 20.3 | L8: -14.2% | M8: 0.1%
B9: Energy & environment | C9: 106.5 | D9: 109.8 | E9: 111.6 | F9: 108.3 | G9: 117.5 | H9: 114.7 | I9: 114.3 | J9: 107.8 | L9: 1.2% | M9: -5.7%
B10: Food & Farming | C10: 35.8 | D10: 37.7 | E10: 38.2 | F10: 37.9 | G10: 48.6 | H10: 49.2 | I10: 47.1 | J10: 48.1 | L10: 34.3% | M10: 2.1%
B11: Financial and professional services | C11: 125.7 | D11: 135.3 | E11: 132.9 | F11: 133.5 | G11: 133.6 | H11: 132.2 | I11: 135.2 | J11: 128.2 | L11: 2.0% | M11: -5.2%
B12: ICT | C12: 25.4 | D12: 23.3 | E12: 24.3 | F12: 23.7 | G12: 23.6 | H12: 23.0 | I12: 21.2 | J12: 23.5 | L12: -7.3% | M12: 10.8%
B13: Life sciences | C13: 8.8 | D13: 8.2 | E13: 10.0 | F13: 10.4 | G13: 8.3 | H13: 10.1 | I13: 9.2 | J13: 9.7 | L13: 9.8% | M13: 5.0%
B14: Tourism | C14: 111.8 | D14: 116.0 | E14: 115.5 | F14: 113.0 | G14: 114.5 | H14: 116.7 | I14: 112.2 | J14: 122.0 | L14: 9.1% | M14: 8.7%
B15: In A Priority Sector4 | C15: 496.7 | D15: 513.7 | E15: 511.8 | F15: 507.5 | G15: 505.2 | H15: 499.5 | I15: 498.4 | J15: 497.9 | L15: 0.3% | M15: -0.1%
B16: Not In A Sector | C16: 692.4 | D16: 674.3 | E16: 676.9 | F16: 675.5 | G16: 679.6 | H16: 680.7 | I16: 685.6 | J16: 693.9 | L16: 0.2% | M16: 1.2%
B17: Total | C17: 1,189.1 | D17: 1,188.0 | E17: 1,188.7 | F17: 1,183.0 | G17: 1,184.8 | H17: 1,180.2 | I17: 1,184.0 | J17: 1,191.9 | L17: 0.2% | M17: 0.7%
B18: Great Britain:
B19: Advanced materials / manufacturing | C19: 1,488.1 | D19: 1,438.1 | E19: 1,419.7 | F19: 1,391.2 | G19: 1,292.2 | H19: 1,236.4 | I19: 1,267.0 | J19: 1,255.5 | L19: -15.6% | M19: -0.9%
B20: Construction | C20: 1,567.9 | D20: 1,606.1 | E20: 1,653.7 | F20: 1,628.3 | G20: 1,599.4 | H20: 1,477.6 | I20: 1,459.6 | J20: 1,435.5 | L20: -8.4% | M20: -1.7%
B21: Creative industries3 | C21: 940.2 | D21: 960.4 | E21: 985.2 | F21: 987.8 | G21: 1,005.3 | H21: 1,013.8 | I21: 1,024.3 | J21: 1,066.0 | L21: 13.4% | M21: 4.1%
B22: Energy & environment | C22: 2,609.7 | D22: 2,742.9 | E22: 2,819.7 | F22: 2,851.9 | G22: 2,953.6 | H22: 2,915.9 | I22: 2,885.3 | J22: 2,898.1 | L22: 11.0% | M22: 0.4%
B23: Food & Farming | C23: 618.7 | D23: 604.8 | E23: 602.3 | F23: 586.5 | G23: 743.1 | H23: 736.8 | I23: 734.6 | J23: 739.4 | L23: 19.5% | M23: 0.6%
B24: Financial and professional services | C24: 4,256.1 | D24: 4,337.2 | E24: 4,488.5 | F24: 4,576.6 | G24: 4,639.6 | H24: 4,614.2 | I24: 4,717.5 | J24: 4,814.7 | L24: 13.1% | M24: 2.1%
B25: ICT | C25: 858.3 | D25: 874.6 | E25: 882.1 | F25: 883.3 | G25: 871.5 | H25: 890.0 | I25: 904.0 | J25: 873.4 | L25: 1.8% | M25: -3.4%
B26: Life sciences | C26: 226.5 | D26: 228.4 | E26: 234.6 | F26: 221.3 | G26: 218.5 | H26: 233.2 | I26: 227.9 | J26: 219.4 | L26: -3.1% | M26: -3.7%
B27: Tourism | C27: 2,556.3 | D27: 2,573.6 | E27: 2,583.7 | F27: 2,606.3 | G27: 2,561.2 | H27: 2,565.5 | I27: 2,612.5 | J27: 2,645.3 | L27: 3.5% | M27: 1.3%
B28: In A Priority Sector4 | C28: 12,185.8 | D28: 12,332.4 | E28: 12,539.3 | F28: 12,571.4 | G28: 12,646.7 | H28: 12,506.0 | I28: 12,681.1 | J28: 12,776.6 | L28: 4.8% | M28: 0.8%
B29: Not In A Sector | C29: 14,310.9 | D29: 14,022.7 | E29: 14,063.0 | F29: 14,105.8 | G29: 14,172.4 | H29: 14,248.5 | I29: 14,082.7 | J29: 14,120.1 | L29: -1.3% | M29: 0.3%
B30: Total | C30: 26,496.6 | D30: 26,355.1 | E30: 26,602.3 | F30: 26,677.2 | G30: 26,819.1 | H30: 26,754.5 | I30: 26,763.8 | J30: 26,896.7 | L30: 1.5% | M30: 0.5%
M32: Source: Annual Business Inquiry/Business Register and Employment Survey, Office for National Statistics
B33: 12005 - 2008 data based on SIC 2003 sourced from the Annual Business Inquiry, which has been converted to SIC2007. Data after 2009 based on SIC2007 sourced from the Business Register and Employment Survey.
B34: 2The data for 2009 onwards includes improvements to the estimation of working proprietors.
B35: 3Based on the updated DCMS Creative Industries classification.
B36: 4This total will not equal the sum of the individual priority sectors as there is overlap between several sectors.

Sheet 3.1
B1: Employment by Priority Sector1,2 (Aged 16 Plus) | N1: Thousands
C3: 2005 | D3: 2006 | E3: 2007 | F3: 2008 | G3: 2009 | H3: 2010 | I3: 2011 | J3: 2012 | K3: 2013 | M3: Change 2005 - 2013 | N3: Change 2012 - 2013
B5: Wales:
B6: Advanced materials / manufacturing | C6: 118.2 | D6: 106.6 | E6: 103.8 | F6: 105.9 | G6: 81.2 | H6: 78.9 | I6: 81.3 | J6: 80.4 | K6: 84.4 | M6: =IF(AND(C6<>"*", K6<>"*"), K6/C6-1, "*") -> -28.6% | N6: =IF(AND(J6<>"*", K6<>"*"), K6/J6-1, "*") -> 5.0%
B7: Construction | C7: 116.0 | D7: 128.9 | E7: 135.8 | F7: 135.8 | G7: 116.0 | H7: 110.1 | I7: 109.7 | J7: 101.8 | K7: 101.8 | M7: =IF(AND(C7<>"*", K7<>"*"), K7/C7-1, "*") -> -12.3% | N7: =IF(AND(J7<>"*", K7<>"*"), K7/J7-1, "*") -> -0.1%
B8: Creative industries3 | C8: 30.8 | D8: 31.4 | E8: 37.6 | F8: 33.2 | G8: 38.1 | H8: 36.7 | I8: 42.0 | J8: 39.9 | K8: 48.9 | M8: 58.5% | N8: 22.4%
B9: Energy & environment | C9: 142.0 | D9: 147.2 | E9: 153.3 | F9: 153.8 | G9: 153.7 | H9: 139.5 | I9: 160.3 | J9: 151.7 | K9: 141.9 | M9: -0.1% | N9: -6.5%
B10: Food & Farming | C10: 43.9 | D10: 42.6 | E10: 41.8 | F10: 41.3 | G10: 40.3 | H10: 41.1 | I10: 43.2 | J10: 42.8 | K10: 44.6 | M10: 1.6% | N10: 4.3%
B11: Financial and professional services | C11: 104.3 | D11: 97.0 | E11: 103.3 | F11: 106.2 | G11: 114.1 | H11: 104.8 | I11: 115.3 | J11: 118.0 | K11: 107.0 | M11: 2.5% | N11: -9.3%
B12: ICT | C12: 36.5 | D12: 32.1 | E12: 30.4 | F12: 32.5 | G12: 23.6 | H12: 20.5 | I12: 26.1 | J12: 24.1 | K12: 29.0 | M12: -20.5% | N12: 20.2%
B13: Life sciences | C13: 12.7 | D13: 13.0 | E13: 10.3 | F13: 11.4 | G13: 12.9 | H13: 10.4 | I13: 12.4 | J13: 12.6 | K13: 11.6 | M13: -9.1% | N13: -8.2%
B14: Tourism | C14: 101.8 | D14: 97.9 | E14: 104.5 | F14: 101.6 | G14: 109.7 | H14: 112.3 | I14: 115.4 | J14: 117.4 | K14: 121.4 | M14: 19.2% | N14: 3.4%
B15: In A Priority Sector4 | C15: 560.7 | D15: 551.0 | E15: 567.8 | F15: 569.2 | G15: 539.9 | H15: 524.0 | I15: 549.0 | J15: 545.4 | K15: 550.0 | M15: -1.9% | N15: 0.8%
B16: Not In A Sector | C16: 715.2 | D16: 729.2 | E16: 730.9 | F16: 725.5 | G16: 705.5 | H16: 722.1 | I16: 712.8 | J16: 713.3 | K16: 738.1 | M16: 3.2% | N16: 3.5%
B17: Total | C17: 1,275.9 | D17: 1,280.3 | E17: 1,298.7 | F17: 1,294.7 | G17: 1,245.4 | H17: 1,246.1 | I17: 1,261.8 | J17: 1,258.6 | K17: 1,288.1 | M17: 1.0% | N17: 2.3%
B18: UK:
B19: Advanced materials / manufacturing | C19: 2,039.6 | D19: 1,988.7 | E19: 2,011.7 | F19: 1,886.9 | G19: 1,586.8 | H19: 1,615.9 | I19: 1,569.5 | J19: 1,605.0 | K19: 1,608.1 | M19: =IF(AND(C19<>"*", K19<>"*"), K19/C19-1, "*") -> -21.2% | N19: =IF(AND(J19<>"*", K19<>"*"), K19/J19-1, "*") -> 0.2%
B20: Construction | C20: 2,734.3 | D20: 2,813.8 | E20: 2,830.7 | F20: 2,874.5 | G20: 2,609.1 | H20: 2,468.4 | I20: 2,434.3 | J20: 2,356.0 | K20: 2,427.0 | M20: =IF(AND(C20<>"*", K20<>"*"), K20/C20-1, "*") -> -11.2% | N20: =IF(AND(J20<>"*", K20<>"*"), K20/J20-1, "*") -> 3.0%
B21: Creative industries3 | C21: 1,129.3 | D21: 1,157.4 | E21: 1,162.3 | F21: 1,151.4 | G21: 1,441.1 | H21: 1,425.0 | I21: 1,464.8 | J21: 1,597.6 | K21: 1,612.7 | M21: 42.8% | N21: 0.9%
B22: Energy & environment | C22: 3,350.3 | D22: 3,395.5 | E22: 3,506.1 | F22: 3,526.8 | G22: 3,650.3 | H22: 3,573.1 | I22: 3,652.0 | J22: 3,597.3 | K22: 3,758.6 | M22: 12.2% | N22: 4.5%
B23: Food & Farming | C23: 650.2 | D23: 684.3 | E23: 692.8 | F23: 718.0 | G23: 652.4 | H23: 707.8 | I23: 730.2 | J23: 712.1 | K23: 694.7 | M23: 6.8% | N23: -2.5%
B24: Financial and professional services | C24: 3,275.7 | D24: 3,288.3 | E24: 3,482.5 | F24: 3,457.1 | G24: 3,551.5 | H24: 3,558.6 | I24: 3,608.1 | J24: 3,702.4 | K24: 3,789.8 | M24: 15.7% | N24: 2.4%
B25: ICT | C25: 1,016.2 | D25: 1,032.4 | E25: 1,027.8 | F25: 1,012.9 | G25: 847.2 | H25: 851.5 | I25: 884.9 | J25: 930.4 | K25: 958.2 | M25: -5.7% | N25: 3.0%
B26: Life sciences | C26: 297.4 | D26: 307.4 | E26: 310.1 | F26: 290.6 | G26: 339.1 | H26: 308.3 | I26: 304.2 | J26: 319.6 | K26: 329.6 | M26: 10.8% | N26: 3.1%
B27: Tourism | C27: 2,211.6 | D27: 2,226.2 | E27: 2,289.5 | F27: 2,312.2 | G27: 2,466.0 | H27: 2,547.5 | I27: 2,535.5 | J27: 2,566.5 | K27: 2,618.0 | M27: 18.4% | N27: 2.0%
B28: In A Priority Sector4 | C28: 13,071.8 | D28: 13,223.3 | E28: 13,567.6 | F28: 13,478.4 | G28: 13,223.5 | H28: 13,208.2 | I28: 13,304.0 | J28: 13,471.2 | K28: 13,746.8 | M28: 5.2% | N28: 2.0%
B29: Not In A Sector | C29: 15,403.0 | D29: 15,502.7 | E29: 15,430.1 | F29: 15,618.5 | G29: 15,391.8 | H29: 15,463.8 | I29: 15,500.1 | J29: 15,575.6 | K29: 15,764.3 | M29: 2.3% | N29: 1.2%
B30: Total | C30: 28,474.8 | D30: 28,726.0 | E30: 28,997.8 | F30: 29,097.0 | G30: 28,615.3 | H30: 28,672.0 | I30: 28,804.1 | J30: 29,046.8 | K30: 29,511.1 | M30: 3.6% | N30: 1.6%
N32: Source: Annual Population Survey, ONS
B33: 12005 - 2008 data based on SIC 2003 which has been converted to SIC2007. Data after 2009 based on SIC2007.
B34: 2Those people with missing industry information are excluded.
B35: 3Based on the updated DCMS Creative Industries classification.
B36: 4This total will not equal the sum of the individual priority sectors as there is overlap between several sectors.

Sheet 3.2
B1: Employment Status by Priority Sector1,2 (Aged 16 Plus) | AA1: Thousands
C2: Wales | P2: UK
C4: 2005 | D4: 2006 | E4: 2007 | F4: 2008 | G4: 2009 | H4: 2010 | I4: 2011 | J4: 2012 | K4: 2013 | M4: Change 2005 - 2013 | N4: Change 2012 - 2013 | P4: 2005 | Q4: 2006 | R4: 2007 | S4: 2008 | T4: 2009 | U4: 2010 | V4: 2011 | W4: 2012 | X4: 2013 | Z4: Change 2005 - 2013 | AA4: Change 2012 - 2013
B6: Employees:
B7: Advanced materials / manufacturing | C7: 113.5 | D7: 102.0 | E7: 98.4 | F7: 100.8 | G7: 77.7 | H7: 74.8 | I7: 77.1 | J7: 77.0 | K7: 80.5 | M7: =IF(AND(C7<>"*", K7<>"*"), K7/C7-1, "*") -> -29.0% | N7: =IF(AND(J7<>"*", K7<>"*"), K7/J7-1, "*") -> 4.5% | P7: 1,936.2 | Q7: 1,882.4 | R7: 1,901.7 | S7: 1,776.3 | T7: 1,492.8 | U7: 1,510.7 | V7: 1,486.2 | W7: 1,525.0 | X7: 1,511.7 | Z7: =IF(AND(P7<>"*", X7<>"*"), X7/P7-1, "*") -> -21.9% | AA7: =IF(AND(W7<>"*", X7<>"*"), X7/W7-1, "*") -> -0.9%
B8: Construction | C8: 75.7 | D8: 87.3 | E8: 92.4 | F8: 91.8 | G8: 77.6 | H8: 73.5 | I8: 72.8 | J8: 59.9 | K8: 60.6 | M8: =IF(AND(C8<>"*", K8<>"*"), K8/C8-1, "*") -> -20.0% | N8: =IF(AND(J8<>"*", K8<>"*"), K8/J8-1, "*") -> 1.1% | P8: 1,797.6 | Q8: 1,881.0 | R8: 1,869.1 | S8: 1,926.1 | T8: 1,699.1 | U8: 1,569.0 | V8: 1,538.6 | W8: 1,457.8 | X8: 1,499.8 | Z8: =IF(AND(P8<>"*", X8<>"*"), X8/P8-1, "*") -> -16.6% | AA8: =IF(AND(W8<>"*", X8<>"*"), X8/W8-1, "*") -> 2.9%
B9: Creative industries4 | C9: 22.0 | D9: 22.5 | E9: 26.1 | F9: 22.4 | G9: 26.9 | H9: 23.1 | I9: 26.7 | J9: 26.5 | K9: 31.0 | M9: 40.8% | N9: 17.3% | P9: 814.7 | Q9: 841.6 | R9: 847.6 | S9: 851.9 | T9: 1,037.8 | U9: 1,000.6 | V9: 1,019.1 | W9: 1,097.5 | X9: 1,100.1 | Z9: 35.0% | AA9: 0.2%
B10: Energy & environment | C10: 103.2 | D10: 108.6 | E10: 114.4 | F10: 112.7 | G10: 123.2 | H10: 110.3 | I10: 125.8 | J10: 115.2 | K10: 106.2 | M10: 2.9% | N10: -7.8% | P10: 2,436.3 | Q10: 2,488.6 | R10: 2,576.6 | S10: 2,601.7 | T10: 2,843.0 | U10: 2,730.6 | V10: 2,788.5 | W10: 2,710.8 | X10: 2,828.0 | Z10: 16.1% | AA10: 4.3%
B11: Food & Farming | C11: 24.9 | D11: 25.0 | E11: 23.5 | F11: 21.3 | G11: 18.1 | H11: 19.7 | I11: 22.0 | J11: 22.8 | K11: 24.1 | M11: -3.5% | N11: 5.5% | P11: 495.1 | Q11: 512.0 | R11: 530.4 | S11: 530.1 | T11: 464.8 | U11: 501.8 | V11: 524.0 | W11: 512.9 | X11: 506.5 | Z11: 2.3% | AA11: -1.3%
B12: Financial and professional services | C12: 86.0 | D12: 80.5 | E12: 85.3 | F12: 87.5 | G12: 94.7 | H12: 84.6 | I12: 94.0 | J12: 97.6 | K12: 87.0 | M12: 1.1% | N12: -10.9% | P12: 2,752.5 | Q12: 2,771.2 | R12: 2,932.7 | S12: 2,912.6 | T12: 3,024.8 | U12: 2,982.2 | V12: 3,005.2 | W12: 3,053.1 | X12: 3,128.0 | Z12: 13.6% | AA12: 2.5%
B13: ICT | C13: 33.4 | D13: 28.7 | E13: 25.8 | F13: 28.8 | G13: 20.8 | H13: 18.1 | I13: 22.4 | J13: 21.4 | K13: 26.9 | M13: -19.5% | N13: 25.9% | P13: 910.9 | Q13: 915.8 | R13: 914.5 | S13: 906.9 | T13: 752.9 | U13: 756.6 | V13: 776.1 | W13: 813.7 | X13: 830.7 | Z13: -8.8% | AA13: 2.1%
B14: Life sciences | C14: 12.1 | D14: 12.6 | E14: 10.0 | F14: 10.9 | G14: 12.2 | H14: 10.2 | I14: 11.9 | J14: 11.2 | K14: 10.6 | M14: -13.1% | N14: -5.9% | P14: 283.6 | Q14: 294.3 | R14: 294.8 | S14: 276.9 | T14: 325.0 | U14: 296.3 | V14: 290.7 | W14: 300.8 | X14: 308.6 | Z14: 8.8% | AA14: 2.6%
B15: Tourism | C15: 81.3 | D15: 77.7 | E15: 82.8 | F15: 82.4 | G15: 89.4 | H15: 89.6 | I15: 93.4 | J15: 93.5 | K15: 94.9 | M15: 16.7% | N15: 1.5% | P15: 1,756.7 | Q15: 1,780.1 | R15: 1,810.2 | S15: 1,846.5 | T15: 1,985.6 | U15: 2,058.3 | V15: 2,041.4 | W15: 2,049.9 | X15: 2,093.3 | Z15: 19.2% | AA15: 2.1%
B16: In A Priority Sector5 | C16: 448.5 | D16: 440.8 | E16: 449.7 | F16: 451.3 | G16: 423.0 | H16: 405.2 | I16: 428.7 | J16: 421.0 | K16: 420.7 | M16: -6.2% | N16: -0.0% | P16: 10,601.5 | Q16: 10,742.9 | R16: 11,006.1 | S16: 10,936.6 | T16: 10,626.6 | U16: 10,510.6 | V16: 10,574.6 | W16: 10,614.8 | X16: 10,817.9 | Z16: 2.0% | AA16: 1.9%
B17: Not In A Sector | C17: 658.5 | D17: 670.6 | E17: 672.7 | F17: 665.4 | G17: 649.1 | H17: 665.7 | I17: 653.5 | J17: 655.0 | K17: 673.4 | M17: 2.3% | N17: 2.8% | P17: 14,053.3 | Q17: 14,095.5 | R17: 14,040.0 | S17: 14,242.7 | T17: 14,061.4 | U17: 14,106.8 | V17: 14,078.0 | W17: 14,125.3 | X17: 14,283.8 | Z17: 1.6% | AA17: 1.1%
B18: Total | C18: 1,107.0 | D18: 1,111.4 | E18: 1,122.4 | F18: 1,116.8 | G18: 1,072.1 | H18: 1,070.9 | I18: 1,082.1 | J18: 1,076.0 | K18: 1,094.2 | M18: -1.2% | N18: 1.7% | P18: 24,654.8 | Q18: 24,838.4 | R18: 25,046.1 | S18: 25,179.2 | T18: 24,688.0 | U18: 24,617.4 | V18: 24,652.5 | W18: 24,740.2 | X18: 25,101.7 | Z18: 1.8% | AA18: 1.5%
B19: Self Employed:
B20: Advanced materials / manufacturing | C20: 4.6 | D20: 4.6 | E20: 5.0 | F20: 5.0 | G20: 3.5 | H20: 4.0 | I20: 4.2 | J20: 3.2 | K20: 3.6 | M20: =IF(AND(C20<>"*", K20<>"*"), K20/C20-1, "*") -> -21.6% | N20: =IF(AND(J20<>"*", K20<>"*"), K20/J20-1, "*") -> 11.0% | P20: 96.5 | Q20: 101.6 | R20: 105.3 | S20: 105.3 | T20: 89.6 | U20: 99.5 | V20: 77.0 | W20: 77.6 | X20: 93.2 | Z20: =IF(AND(P20<>"*", X20<>"*"), X20/P20-1, "*") -> -3.3% | AA20: =IF(AND(W20<>"*", X20<>"*"), X20/W20-1, "*") -> 20.2%
B21: Construction | C21: 39.6 | D21: 41.2 | E21: 42.7 | F21: 43.3 | G21: 37.5 | H21: 36.1 | I21: 36.1 | J21: 41.5 | K21: 40.9 | M21: =IF(AND(C21<>"*", K21<>"*"), K21/C21-1, "*") -> 3.3% | N21: =IF(AND(J21<>"*", K21<>"*"), K21/J21-1, "*") -> -1.3% | P21: 909.0 | Q21: 905.0 | R21: 931.2 | S21: 923.8 | T21: 892.4 | U21: 880.9 | V21: 878.2 | W21: 880.5 | X21: 912.1 | Z21: =IF(AND(P21<>"*", X21<>"*"), X21/P21-1, "*") -> 0.3% | AA21: =IF(AND(W21<>"*", X21<>"*"), X21/W21-1, "*") -> 3.6%
B22: Creative industries4 | C22: 8.5 | D22: 8.8 | E22: 11.3 | F22: 10.7 | G22: 11.0 | H22: 13.0 | I22: 15.0 | J22: 13.3 | K22: 17.8 | M22: 109.9% | N22: 33.9% | P22: 307.0 | Q22: 309.1 | R22: 309.4 | S22: 295.2 | T22: 391.6 | U22: 416.3 | V22: 437.7 | W22: 487.7 | X22: 496.6 | Z22: 61.8% | AA22: 1.8%
B23: Energy & environment | C23: 38.0 | D23: 38.2 | E23: 38.2 | F23: 40.5 | G23: 30.0 | H23: 29.0 | I23: 33.6 | J23: 35.8 | K23: 34.7 | M23: -8.7% | N23: -3.1% | P23: 888.0 | Q23: 882.8 | R23: 903.6 | S23: 902.9 | T23: 791.0 | U23: 822.6 | V23: 843.7 | W23: 864.5 | X23: 914.8 | Z23: 3.0% | AA23: 5.8%
B24: Food & Farming | C24: 17.7 | D24: 16.7 | E24: 17.1 | F24: 18.8 | G24: 20.6 | H24: 18.9 | I24: 19.4 | J24: 18.7 | K24: 19.5 | M24: 10.5% | N24: 4.2% | P24: 140.5 | Q24: 160.6 | R24: 151.2 | S24: 171.8 | T24: 173.2 | U24: 191.5 | V24: 192.3 | W24: 184.3 | X24: 172.6 | Z24: 22.8% | AA24: -6.4%
B25: Financial and professional services | C25: 17.9 | D25: 16.2 | E25: 17.8 | F25: 18.5 | G25: 19.0 | H25: 19.8 | I25: 20.4 | J25: 19.8 | K25: 19.1 | M25: 6.8% | N25: -3.5% | P25: 511.9 | Q25: 503.8 | R25: 537.7 | S25: 530.7 | T25: 517.1 | U25: 565.0 | V25: 589.8 | W25: 633.4 | X25: 645.2 | Z25: 26.0% | AA25: 1.9%
B26: ICT | C26: 3.0 | D26: 3.2 | E26: 4.4 | F26: 3.7 | G26: 2.8 | H26: 2.4 | I26: 3.6 | J26: 2.6 | K26: 2.1 | M26: -29.2% | N26: -19.6% | P26: 100.3 | Q26: 112.9 | R26: 111.3 | S26: 102.4 | T26: 90.2 | U26: 91.5 | V26: 107.0 | W26: 113.2 | X26: 121.5 | Z26: 21.2% | AA26: 7.4%
B27: Life sciences | C27: * | D27: * | E27: * | F27: * | G27: * | H27: * | I27: * | J27: 1.3 | K27: 0.9 | M27: * | N27: -31.2% | P27: 12.9 | Q27: 13.1 | R27: 14.8 | S27: 13.1 | T27: 13.3 | U27: 10.8 | V27: 12.7 | W27: 18.5 | X27: 20.7 | Z27: 60.8% | AA27: 12.0%
B28: Tourism | C28: 19.9 | D28: 19.2 | E28: 21.3 | F28: 18.5 | G28: 19.8 | H28: 21.9 | I28: 21.5 | J28: 23.1 | K28: 25.5 | M28: 28.4% | N28: 10.6% | P28: 441.6 | Q28: 434.2 | R28: 464.7 | S28: 453.5 | T28: 469.5 | U28: 475.9 | V28: 478.9 | W28: 500.5 | X28: 508.7 | Z28: 15.2% | AA28: 1.6%
B29: In A Priority Sector5 | C29: 108.6 | D29: 107.2 | E29: 115.2 | F29: 115.0 | G29: 113.4 | H29: 114.0 | I29: 116.1 | J29: 120.8 | K29: 125.5 | M29: 15.5% | N29: 3.8% | P29: 2,385.0 | Q29: 2,402.0 | R29: 2,481.7 | S29: 2,463.1 | T29: 2,527.8 | U29: 2,623.3 | V29: 2,655.5 | W29: 2,776.0 | X29: 2,846.2 | Z29: 19.3% | AA29: 2.5%
B30: Not In A Sector | C30: 54.1 | D30: 55.9 | E30: 56.0 | F30: 57.2 | G30: 54.1 | H30: 54.3 | I30: 57.3 | J30: 56.3 | K30: 62.3 | M30: 15.1% | N30: 10.8% | P30: 1,271.8 | Q30: 1,337.4 | R30: 1,312.9 | S30: 1,307.1 | T30: 1,274.1 | U30: 1,296.3 | V30: 1,366.8 | W30: 1,388.3 | X30: 1,410.3 | Z30: 10.9% | AA30: 1.6%
B31: Total | C31: 162.8 | D31: 163.1 | E31: 171.2 | F31: 172.3 | G31: 167.6 | H31: 168.3 | I31: 173.3 | J31: 177.1 | K31: 187.8 | M31: 15.4% | N31: 6.0% | P31: 3,656.9 | Q31: 3,739.4 | R31: 3,794.6 | S31: 3,770.2 | T31: 3,801.9 | U31: 3,919.6 | V31: 4,022.3 | W31: 4,164.3 | X31: 4,256.5 | Z31: 16.4% | AA31: 2.2%
B32: Other Employment Status3:
B33: Advanced materials / manufacturing | C33: * | D33: * | E33: * | F33: * | G33: * | H33: * | I33: * | J33: * | K33: * | M33: =IF(AND(C33<>"*", J33<>"*"), J33/C33-1, "*") -> * | N33: =IF(AND(I33<>"*", J33<>"*"), J33/I33-1, "*") -> * | P33: 7.0 | Q33: 4.7 | R33: 4.6 | S33: 5.4 | T33: 4.4 | U33: 5.7 | V33: 6.3 | W33: 2.5 | X33: 3.2 | Z33: =IF(AND(P33<>"*", X33<>"*"), X33/P33-1, "*") -> -54.4% | AA33: =IF(AND(W33<>"*", X33<>"*"), X33/W33-1, "*") -> 29.2%
B34: Construction | C34: 0.8 | D34: * | E34: * | F34: * | G34: * | H34: * | I34: 0.8 | J34: * | K34: * | M34: * | N34: * | P34: 27.7 | Q34: 27.9 | R34: 30.5 | S34: 24.6 | T34: 17.6 | U34: 18.5 | V34: 17.5 | W34: 17.7 | X34: 15.2 | Z34: =IF(AND(P34<>"*", X34<>"*"), X34/P34-1, "*") -> -45.2% | AA34: =IF(AND(W34<>"*", X34<>"*"), X34/W34-1, "*") -> -14.0%
B35: Creative industries4 | C35: * | D35: * | E35: * | F35: * | G35: * | H35: * | I35: * | J35: * | K35: * | M35: * | N35: * | P35: 7.6 | Q35: 6.8 | R35: 5.3 | S35: 4.3 | T35: 11.8 | U35: 8.1 | V35: 8.0 | W35: 12.4 | X35: 15.9 | Z35: 110.7% | AA35: 28.5%
B36: Energy & environment | C36: 0.7 | D36: * | E36: * | F36: * | G36: * | H36: * | I36: * | J36: * | K36: 1.0 | M36: * | N36: * | P36: 26.0 | Q36: 24.2 | R36: 26.0 | S36: 22.2 | T36: 16.3 | U36: 19.9 | V36: 19.8 | W36: 22.0 | X36: 15.8 | Z36: -39.2% | AA36: -28.1%
B37: Food & Farming | C37: 1.3 | D37: 0.9 | E37: 1.2 | F37: 1.1 | G37: 1.7 | H37: 2.4 | I37: 1.9 | J37: 1.2 | K37: 1.0 | M37: =IF(AND(C37<>"*", K37<>"*"), K37/C37-1, "*") -> -20.8% | N37: =IF(AND(J37<>"*", K37<>"*"), K37/J37-1, "*") -> -16.5% | P37: 14.6 | Q37: 11.7 | R37: 11.2 | S37: 16.1 | T37: 14.4 | U37: 14.5 | V37: 13.9 | W37: 14.9 | X37: 15.6 | Z37: 7.2% | AA37: 4.7%
B38: Financial and professional services | C38: * | D38: * | E38: * | F38: * | G38: * | H38: * | I38: * | J38: * | K38: * | M38: * | N38: * | P38: 11.3 | Q38: 13.3 | R38: 12.1 | S38: 13.7 | T38: 9.5 | U38: 11.4 | V38: 13.1 | W38: 16.0 | X38: 16.6 | Z38: 47.0% | AA38: 3.7%
B39: ICT | C39: * | D39: * | E39: * | F39: * | G39: * | H39: * | I39: * | J39: * | K39: * | M39: * | N39: * | P39: 5.0 | Q39: 3.7 | R39: 2.0 | S39: 3.7 | T39: 4.1 | U39: 3.3 | V39: * | W39: 3.5 | X39: 6.0 | Z39: 19.4% | AA39: 71.1%
B40: Life sciences | C40: * | D40: * | E40: * | F40: * | G40: * | H40: * | I40: * | J40: * | K40: * | M40: * | N40: * | P40: * | Q40: * | R40: * | S40: * | T40: * | U40: * | V40: * | W40: * | X40: * | Z40: * | AA40: *
B41: Tourism | C41: * | D41: 1.0 | E41: * | F41: 0.7 | G41: * | H41: 0.8 | I41: * | J41: 0.8 | K41: 0.9 | M41: * | N41: * | P41: 13.4 | Q41: 11.9 | R41: 14.6 | S41: 12.2 | T41: 10.9 | U41: 13.3 | V41: 15.1 | W41: 16.1 | X41: 16.0 | Z41: 20.0% | AA41: -0.4%
B42: In A Priority Sector5 | C42: 3.6 | D42: 3.0 | E42: 2.9 | F42: 2.8 | G42: 3.5 | H42: 4.8 | I42: 4.3 | J42: 3.6 | K42: 3.7 | M42: =IF(AND(C42<>"*", K42<>"*"), K42/C42-1, "*") -> 3.8% | N42: =IF(AND(J42<>"*", K42<>"*"), K42/J42-1, "*") -> 3.6% | P42: 85.2 | Q42: 78.4 | R42: 79.9 | S42: 78.8 | T42: 69.1 | U42: 74.3 | V42: 73.9 | W42: 80.4 | X42: 82.7 | Z42: -3.0% | AA42: 2.9%
B43: Not In A Sector | C43: 2.5 | D43: 2.8 | E43: 2.2 | F43: 2.9 | G43: 2.2 | H43: 2.2 | I43: 2.1 | J43: 2.0 | K43: 2.4 | M43: -5.3% | N43: 21.1% | P43: 77.9 | Q43: 69.8 | R43: 77.3 | S43: 68.8 | T43: 56.3 | U43: 60.8 | V43: 55.3 | W43: 61.9 | X43: 70.2 | Z43: -9.9% | AA43: 13.4%
B44: Total | C44: 6.1 | D44: 5.8 | E44: 5.1 | F44: 5.6 | G44: 5.7 | H44: 6.9 | I44: 6.3 | J44: 5.6 | K44: 6.1 | M44: 0.1% | N44: 9.8% | P44: 163.1 | Q44: 148.2 | R44: 157.1 | S44: 147.6 | T44: 125.4 | U44: 135.0 | V44: 129.2 | W44: 142.3 | X44: 152.9 | Z44: -6.3% | AA44: 7.5%
B45: All (16 Plus):
B46: Advanced materials / manufacturing | C46: ='3.1'!C6 -> 118.2 | D46: ='3.1'!D6 -> 106.6 | E46: ='3.1'!E6 -> 103.8 | F46: ='3.1'!F6 -> 105.9 | G46: ='3.1'!G6 -> 81.2 | H46: ='3.1'!H6 -> 78.9 | I46: ='3.1'!I6 -> 81.3 | J46: ='3.1'!J6 -> 80.4 | K46: ='3.1'!K6 -> 84.4 | M46: ='3.1'!M6 -> -28.6% | N46: ='3.1'!N6 -> 5.0% | P46: ='3.1'!C19 -> 2,039.6 | Q46: ='3.1'!D19 -> 1,988.7 | R46: ='3.1'!E19 -> 2,011.7 | S46: ='3.1'!F19 -> 1,886.9 | T46: ='3.1'!G19 -> 1,586.8 | U46: ='3.1'!H19 -> 1,615.9 | V46: ='3.1'!I19 -> 1,569.5 | W46: ='3.1'!J19 -> 1,605.0 | X46: ='3.1'!K19 -> 1,608.1 | Z46: ='3.1'!M19 -> -21.2% | AA46: ='3.1'!N19 -> 0.2%
B47: Construction | C47: ='3.1'!C7 -> 116.0 | D47: ='3.1'!D7 -> 128.9 | E47: ='3.1'!E7 -> 135.8 | F47: ='3.1'!F7 -> 135.8 | G47: ='3.1'!G7 -> 116.0 | H47: ='3.1'!H7 -> 110.1 | I47: ='3.1'!I7 -> 109.7 | J47: ='3.1'!J7 -> 101.8 | K47: ='3.1'!K7 -> 101.8 | M47: ='3.1'!M7 -> -12.3% | N47: ='3.1'!N7 -> -0.1% | P47: ='3.1'!C20 -> 2,734.3 | Q47: ='3.1'!D20 -> 2,813.8 | R47: ='3.1'!E20 -> 2,830.7 | S47: ='3.1'!F20 -> 2,874.5 | T47: ='3.1'!G20 -> 2,609.1 | U47: ='3.1'!H20 -> 2,468.4 | V47: ='3.1'!I20 -> 2,434.3 | W47: ='3.1'!J20 -> 2,356.0 | X47: ='3.1'!K20 -> 2,427.0 | Z47: ='3.1'!M20 -> -11.2% | AA47: ='3.1'!N20 -> 3.0%
B48: Creative industries4 | C48: ='3.1'!C8 -> 30.8 | D48: ='3.1'!D8 -> 31.4 | E48: ='3.1'!E8 -> 37.6 | F48: ='3.1'!F8 -> 33.2 | G48: ='3.1'!G8 -> 38.1 | H48: ='3.1'!H8 -> 36.7 | I48: ='3.1'!I8 -> 42.0 | J48: ='3.1'!J8 -> 39.9 | K48: ='3.1'!K8 -> 48.9 | M48: ='3.1'!M8 -> 58.5% | N48: ='3.1'!N8 -> 22.4% | P48: ='3.1'!C21 -> 1,129.3 | Q48: ='3.1'!D21 -> 1,157.4 | R48: ='3.1'!E21 -> 1,162.3 | S48: ='3.1'!F21 -> 1,151.4 | T48: ='3.1'!G21 -> 1,441.1 | U48: ='3.1'!H21 -> 1,425.0 | V48: ='3.1'!I21 -> 1,464.8 | W48: ='3.1'!J21 -> 1,597.6 | X48: ='3.1'!K21 -> 1,612.7 | Z48: ='3.1'!M21 -> 42.8% | AA48: ='3.1'!N21 -> 0.9%
B49: Energy & environment | C49: ='3.1'!C9 -> 142.0 | D49: ='3.1'!D9 -> 147.2 | E49: ='3.1'!E9 -> 153.3 | F49: ='3.1'!F9 -> 153.8 | G49: ='3.1'!G9 -> 153.7 | H49: ='3.1'!H9 -> 139.5 | I49: ='3.1'!I9 -> 160.3 | J49: ='3.1'!J9 -> 151.7 | K49: ='3.1'!K9 -> 141.9 | M49: ='3.1'!M9 -> -0.1% | N49: ='3.1'!N9 -> -6.5% | P49: ='3.1'!C22 -> 3,350.3 | Q49: ='3.1'!D22 -> 3,395.5 | R49: ='3.1'!E22 -> 3,506.1 | S49: ='3.1'!F22 -> 3,526.8 | T49: ='3.1'!G22 -> 3,650.3 | U49: ='3.1'!H22 -> 3,573.1 | V49: ='3.1'!I22 -> 3,652.0 | W49: ='3.1'!J22 -> 3,597.3 | X49: ='3.1'!K22 -> 3,758.6 | Z49: ='3.1'!M22 -> 12.2% | AA49: ='3.1'!N22 -> 4.5%
B50: Food & Farming | C50: ='3.1'!C10 -> 43.9 | D50: ='3.1'!D10 -> 42.6 | E50: ='3.1'!E10 -> 41.8 | F50: ='3.1'!F10 -> 41.3 | G50: ='3.1'!G10 -> 40.3 | H50: ='3.1'!H10 -> 41.1 | I50: ='3.1'!I10 -> 43.2 | J50: ='3.1'!J10 -> 42.8 | K50: ='3.1'!K10 -> 44.6 | M50: ='3.1'!M10 -> 1.6% | N50: ='3.1'!N10 -> 4.3% | P50: ='3.1'!C23 -> 650.2 | Q50: ='3.1'!D23 -> 684.3 | R50: ='3.1'!E23 -> 692.8 | S50: ='3.1'!F23 -> 718.0 | T50: ='3.1'!G23 -> 652.4 | U50: ='3.1'!H23 -> 707.8 | V50: ='3.1'!I23 -> 730.2 | W50: ='3.1'!J23 -> 712.1 | X50: ='3.1'!K23 -> 694.7 | Z50: ='3.1'!M23 -> 6.8% | AA50: ='3.1'!N23 -> -2.5%
B51: Financial and professional services | C51: ='3.1'!C11 -> 104.3 | D51: ='3.1'!D11 -> 97.0 | E51: ='3.1'!E11 -> 103.3 | F51: ='3.1'!F11 -> 106.2 | G51: ='3.1'!G11 -> 114.1 | H51: ='3.1'!H11 -> 104.8 | I51: ='3.1'!I11 -> 115.3 | J51: ='3.1'!J11 -> 118.0 | K51: ='3.1'!K11 -> 107.0 | M51: ='3.1'!M11 -> 2.5% | N51: ='3.1'!N11 -> -9.3% | P51: ='3.1'!C24 -> 3,275.7 | Q51: ='3.1'!D24 -> 3,288.3 | R51: ='3.1'!E24 -> 3,482.5 | S51: ='3.1'!F24 -> 3,457.1 | T51: ='3.1'!G24 -> 3,551.5 | U51: ='3.1'!H24 -> 3,558.6 | V51: ='3.1'!I24 -> 3,608.1 | W51: ='3.1'!J24 -> 3,702.4 | X51: ='3.1'!K24 -> 3,789.8 | Z51: ='3.1'!M24 -> 15.7% | AA51: ='3.1'!N24 -> 2.4%
B52: ICT | C52: ='3.1'!C12 -> 36.5 | D52: ='3.1'!D12 -> 32.1 | E52: ='3.1'!E12 -> 30.4 | F52: ='3.1'!F12 -> 32.5 | G52: ='3.1'!G12 -> 23.6 | H52: ='3.1'!H12 -> 20.5 | I52: ='3.1'!I12 -> 26.1 | J52: ='3.1'!J12 -> 24.1 | K52: ='3.1'!K12 -> 29.0 | M52: ='3.1'!M12 -> -20.5% | N52: ='3.1'!N12 -> 20.2% | P52: ='3.1'!C25 -> 1,016.2 | Q52: ='3.1'!D25 -> 1,032.4 | R52: ='3.1'!E25 -> 1,027.8 | S52: ='3.1'!F25 -> 1,012.9 | T52: ='3.1'!G25 -> 847.2 | U52: ='3.1'!H25 -> 851.5 | V52: ='3.1'!I25 -> 884.9 | W52: ='3.1'!J25 -> 930.4 | X52: ='3.1'!K25 -> 958.2 | Z52: ='3.1'!M25 -> -5.7% | AA52: ='3.1'!N25 -> 3.0%
B53: Life sciences | C53: ='3.1'!C13 -> 12.7 | D53: ='3.1'!D13 -> 13.0 | E53: ='3.1'!E13 -> 10.3 | F53: ='3.1'!F13 -> 11.4 | G53: ='3.1'!G13 -> 12.9 | H53: ='3.1'!H13 -> 10.4 | I53: ='3.1'!I13 -> 12.4 | J53: ='3.1'!J13 -> 12.6 | K53: ='3.1'!K13 -> 11.6 | M53: ='3.1'!M13 -> -9.1% | N53: ='3.1'!N13 -> -8.2% | P53: ='3.1'!C26 -> 297.4 | Q53: ='3.1'!D26 -> 307.4 | R53: ='3.1'!E26 -> 310.1 | S53: ='3.1'!F26 -> 290.6 | T53: ='3.1'!G26 -> 339.1 | U53: ='3.1'!H26 -> 308.3 | V53: ='3.1'!I26 -> 304.2 | W53: ='3.1'!J26 -> 319.6 | X53: ='3.1'!K26 -> 329.6 | Z53: ='3.1'!M26 -> 10.8% | AA53: ='3.1'!N26 -> 3.1%
B54: Tourism | C54: ='3.1'!C14 -> 101.8 | D54: ='3.1'!D14 -> 97.9 | E54: ='3.1'!E14 -> 104.5 | F54: ='3.1'!F14 -> 101.6 | G54: ='3.1'!G14 -> 109.7 | H54: ='3.1'!H14 -> 112.3 | I54: ='3.1'!I14 -> 115.4 | J54: ='3.1'!J14 -> 117.4 | K54: ='3.1'!K14 -> 121.4 | M54: ='3.1'!M14 -> 19.2% | N54: ='3.1'!N14 -> 3.4% | P54: ='3.1'!C27 -> 2,211.6 | Q54: ='3.1'!D27 -> 2,226.2 | R54: ='3.1'!E27 -> 2,289.5 | S54: ='3.1'!F27 -> 2,312.2 | T54: ='3.1'!G27 -> 2,466.0 | U54: ='3.1'!H27 -> 2,547.5 | V54: ='3.1'!I27 -> 2,535.5 | W54: ='3.1'!J27 -> 2,566.5 | X54: ='3.1'!K27 -> 2,618.0 | Z54: ='3.1'!M27 -> 18.4% | AA54: ='3.1'!N27 -> 2.0%
B55: In A Priority Sector5 | C55: ='3.1'!C15 -> 560.7 | D55: ='3.1'!D15 -> 551.0 | E55: ='3.1'!E15 -> 567.8 | F55: ='3.1'!F15 -> 569.2 | G55: ='3.1'!G15 -> 539.9 | H55: ='3.1'!H15 -> 524.0 | I55: ='3.1'!I15 -> 549.0 | J55: ='3.1'!J15 -> 545.4 | K55: ='3.1'!K15 -> 550.0 | M55: ='3.1'!M15 -> -1.9% | N55: ='3.1'!N15 -> 0.8% | P55: ='3.1'!C28 -> 13,071.8 | Q55: ='3.1'!D28 -> 13,223.3 | R55: ='3.1'!E28 -> 13,567.6 | S55: ='3.1'!F28 -> 13,478.4 | T55: ='3.1'!G28 -> 13,223.5 | U55: ='3.1'!H28 -> 13,208.2 | V55: ='3.1'!I28 -> 13,304.0 | W55: ='3.1'!J28 -> 13,471.2 | X55: ='3.1'!K28 -> 13,746.8 | Z55: ='3.1'!M28 -> 5.2% | AA55: ='3.1'!N28 -> 2.0%
B56: Not In A Sector | C56: ='3.1'!C16 -> 715.2 | D56: ='3.1'!D16 -> 729.2 | E56: ='3.1'!E16 -> 730.9 | F56: ='3.1'!F16 -> 725.5 | G56: ='3.1'!G16 -> 705.5 | H56: ='3.1'!H16 -> 722.1 | I56: ='3.1'!I16 -> 712.8 | J56: ='3.1'!J16 -> 713.3 | K56: ='3.1'!K16 -> 738.1 | M56: ='3.1'!M16 -> 3.2% | N56: ='3.1'!N16 -> 3.5% | P56: ='3.1'!C29 -> 15,403.0 | Q56: ='3.1'!D29 -> 15,502.7 | R56: ='3.1'!E29 -> 15,430.1 | S56: ='3.1'!F29 -> 15,618.5 | T56: ='3.1'!G29 -> 15,391.8 | U56: ='3.1'!H29 -> 15,463.8 | V56: ='3.1'!I29 -> 15,500.1 | W56: ='3.1'!J29 -> 15,575.6 | X56: ='3.1'!K29 -> 15,764.3 | Z56: ='3.1'!M29 -> 2.3% | AA56: ='3.1'!N29 -> 1.2%
B57: Total | C57: ='3.1'!C17 -> 1,275.9 | D57: ='3.1'!D17 -> 1,280.3 | E57: ='3.1'!E17 -> 1,298.7 | F57: ='3.1'!F17 -> 1,294.7 | G57: ='3.1'!G17 -> 1,245.4 | H57: ='3.1'!H17 -> 1,246.1 | I57: ='3.1'!I17 -> 1,261.8 | J57: ='3.1'!J17 -> 1,258.6 | K57: ='3.1'!K17 -> 1,288.1 | M57: ='3.1'!M17 -> 1.0% | N57: ='3.1'!N17 -> 2.3% | P57: ='3.1'!C30 -> 28,474.8 | Q57: ='3.1'!D30 -> 28,726.0 | R57: ='3.1'!E30 -> 28,997.8 | S57: ='3.1'!F30 -> 29,097.0 | T57: ='3.1'!G30 -> 28,615.3 | U57: ='3.1'!H30 -> 28,672.0 | V57: ='3.1'!I30 -> 28,804.1 | W57: ='3.1'!J30 -> 29,046.8 | X57: ='3.1'!K30 -> 29,511.1 | Z57: ='3.1'!M30 -> 3.6% | AA57: ='3.1'!N30 -> 1.6%
AA59: Source: Annual Population Survey, ONS
B60: 12005 - 2008 data based on SIC 2003 which has been converted to SIC2007. Data after 2009 based on SIC2007.
B61: 2Those people with missing industry information are excluded.
B62: 3Covers Government supported trainees and unpaid family workers.
B63: 4Based on the updated DCMS Creative Industries classification.
B64: 5This total will not equal the sum of the individual priority sectors as there is overlap between several sectors.

Sheet 3.3
B1: Employment by Occupation and Priority Sector1,2,3 (Aged 16 Plus) | AA1: Thousands
C2: Wales | P2: UK
C4: 2005 | D4: 2006 | E4: 2007 | F4: 2008 | G4: 2009 | H4: 2010 | I4: 2011 | J4: 2012 | K4: 2013 | M4: Change 2005 - 2013 | N4: Change 2012 - 2013 | P4: 2005 | Q4: 2006 | R4: 2007 | S4: 2008 | T4: 2009 | U4: 2010 | V4: 2011 | W4: 2012 | X4: 2013 | Z4: Change 2005 - 2013 | AA4: Change 2012 - 2013
B6: Occupation: Managers, Professionals and Associate Professionals:
B7: Advanced materials / manufacturing | C7: 35.1 | D7: 29.8 | E7: 34.0 | F7: 35.3 | G7: 27.9 | H7: 28.3 | I7: 27.1 | J7: 27.6 | K7: 27.2 | M7: =IF(AND(C7<>"*", K7<>"*"), K7/C7-1, "*") -> -22.7% | N7: =IF(AND(J7<>"*", K7<>"*"), K7/J7-1, "*") -> -1.7% | P7: 771.4 | Q7: 791.9 | R7: 798.7 | S7: 751.7 | T7: 650.0 | U7: 674.1 | V7: 657.0 | W7: 668.5 | X7: 678.7 | Z7: =IF(AND(P7<>"*", X7<>"*"), X7/P7-1, "*") -> -12.0% | AA7: =IF(AND(W7<>"*", X7<>"*"), X7/W7-1, "*") -> 1.5%
B8: Construction | C8: 24.6 | D8: 29.2 | E8: 32.4 | F8: 33.2 | G8: 29.4 | H8: 27.4 | I8: 29.3 | J8: 23.6 | K8: 23.8 | M8: =IF(AND(C8<>"*", K8<>"*"), K8/C8-1, "*") -> -3.3% | N8: =IF(AND(J8<>"*", K8<>"*"), K8/J8-1, "*") -> 0.9% | P8: 710.4 | Q8: 739.7 | R8: 755.4 | S8: 807.6 | T8: 778.0 | U8: 735.4 | V8: 713.4 | W8: 707.5 | X8: 747.0 | Z8: =IF(AND(P8<>"*", X8<>"*"), X8/P8-1, "*") -> 5.1% | AA8: =IF(AND(W8<>"*", X8<>"*"), X8/W8-1, "*") -> 5.6%
B9: Creative industries4 | C9: 23.0 | D9: 23.3 | E9: 28.5 | F9: 25.5 | G9: 29.5 | H9: 28.8 | I9: 34.4 | J9: 31.1 | K9: 38.3 | M9: 66.6% | N9: 23.4% | P9: 871.0 | Q9: 908.9 | R9: 921.4 | S9: 912.3 | T9: 1,174.0 | U9: 1,146.8 | V9: 1,201.3 | W9: 1,332.0 | X9: 1,335.5 | Z9: 53.3% | AA9: 0.3%
B10: Energy & environment | C10: 40.7 | D10: 43.6 | E10: 46.7 | F10: 50.4 | G10: 58.1 | H10: 52.3 | I10: 60.9 | J10: 53.6 | K10: 54.1 | M10: 32.9% | N10: 0.8% | P10: 1,228.8 | Q10: 1,249.6 | R10: 1,314.5 | S10: 1,342.2 | T10: 1,567.9 | U10: 1,602.4 | V10: 1,581.8 | W10: 1,602.1 | X10: 1,686.6 | Z10: 37.3% | AA10: 5.3%
B11: Food & Farming | C11: 6.4 | D11: 6.3 | E11: 7.9 | F11: 8.3 | G11: 5.2 | H11: 6.8 | I11: 6.0 | J11: 6.5 | K11: 6.3 | M11: -2.0% | N11: -3.0% | P11: 137.0 | Q11: 148.9 | R11: 151.4 | S11: 163.8 | T11: 145.7 | U11: 144.9 | V11: 138.2 | W11: 133.8 | X11: 151.0 | Z11: 10.2% | AA11: 12.8%
B12: Financial and professional services | C12: 48.9 | D12: 47.0 | E12: 51.7 | F12: 57.6 | G12: 61.4 | H12: 59.5 | I12: 65.1 | J12: 63.3 | K12: 61.3 | M12: 25.3% | N12: -3.2% | P12: 1,848.1 | Q12: 1,888.5 | R12: 2,043.1 | S12: 2,062.5 | T12: 2,122.2 | U12: 2,172.3 | V12: 2,171.0 | W12: 2,263.3 | X12: 2,342.0 | Z12: 26.7% | AA12: 3.5%
B13: ICT | C13: 18.6 | D13: 16.2 | E13: 16.9 | F13: 19.3 | G13: 17.5 | H13: 14.9 | I13: 18.7 | J13: 16.7 | K13: 20.0 | M13: 7.6% | N13: 19.7% | P13: 724.1 | Q13: 750.8 | R13: 747.1 | S13: 734.9 | T13: 671.0 | U13: 680.3 | V13: 700.3 | W13: 755.4 | X13: 779.2 | Z13: 7.6% | AA13: 3.1%
B14: Life sciences | C14: 6.3 | D14: 6.3 | E14: 5.5 | F14: 5.6 | G14: 7.9 | H14: 7.3 | I14: 7.4 | J14: 7.5 | K14: 7.6 | M14: 21.8% | N14: 1.5% | P14: 200.4 | Q14: 206.4 | R14: 210.6 | S14: 191.7 | T14: 223.3 | U14: 224.3 | V14: 217.8 | W14: 225.7 | X14: 230.4 | Z14: 15.0% | AA14: 2.0%
B15: Tourism | C15: 28.0 | D15: 29.1 | E15: 27.8 | F15: 26.2 | G15: 28.0 | H15: 31.0 | I15: 35.3 | J15: 34.0 | K15: 37.9 | M15: 35.5% | N15: 11.6% | P15: 652.7 | Q15: 645.0 | R15: 686.5 | S15: 699.9 | T15: 737.3 | U15: 750.6 | V15: 771.7 | W15: 788.5 | X15: 806.5 | Z15: 23.6% | AA15: 2.3%
B16: In A Priority Sector5 | C16: 180.7 | D16: 179.8 | E16: 193.7 | F16: 202.5 | G16: 195.0 | H16: 193.4 | I16: 206.9 | J16: 198.0 | K16: 206.5 | M16: 14.3% | N16: 4.3% | P16: 5,473.3 | Q16: 5,611.5 | R16: 5,878.6 | S16: 5,911.2 | T16: 5,929.9 | U16: 5,978.6 | V16: 6,017.1 | W16: 6,238.3 | X16: 6,438.4 | Z16: 17.6% | AA16: 3.2%
B17: Not In A Sector | C17: 281.7 | D17: 296.7 | E17: 301.8 | F17: 303.2 | G17: 292.2 | H17: 309.3 | I17: 309.5 | J17: 303.0 | K17: 321.5 | M17: 14.1% | N17: 6.1% | P17: 6,363.5 | Q17: 6,498.5 | R17: 6,546.5 | S17: 6,653.6 | T17: 6,645.5 | U17: 6,740.6 | V17: 6,838.6 | W17: 6,852.0 | X17: 7,028.3 | Z17: 10.4% | AA17: 2.6%
B18: Total | C18: 462.4 | D18: 476.6 | E18: 495.5 | F18: 505.6 | G18: 487.3 | H18: 502.7 | I18: 516.3 | J18: 501.0 | K18: 528.0 | M18: 14.2% | N18: 5.4% | P18: 11,836.8 | Q18: 12,109.9 | R18: 12,425.1 | S18: 12,564.9 | T18: 12,575.4 | U18: 12,719.2 | V18: 12,855.7 | W18: 13,090.2 | X18: 13,466.7 | Z18: 13.8% | AA18: 2.9%
B19: Occupation: Administrative, Skilled Trades and Personal Services:
B20: Advanced materials / manufacturing | C20: 34.7 | D20: 32.8 | E20: 29.7 | F20: 31.9 | G20: 24.5 | H20: 23.9 | I20: 25.5 | J20: 25.3 | K20: 31.8 | M20: =IF(AND(C20<>"*", K20<>"*"), K20/C20-1, "*") -> -8.4% | N20: =IF(AND(J20<>"*", K20<>"*"), K20/J20-1, "*") -> 25.5% | P20: 625.6 | Q20: 597.5 | R20: 615.2 | S20: 580.9 | T20: 497.0 | U20: 487.0 | V20: 483.5 | W20: 508.0 | X20: 486.4 | Z20: =IF(AND(P20<>"*", X20<>"*"), X20/P20-1, "*") -> -22.3% | AA20: =IF(AND(W20<>"*", X20<>"*"), X20/W20-1, "*") -> -4.3%
B21: Construction | C21: 64.9 | D21: 69.6 | E21: 72.3 | F21: 72.1 | G21: 63.3 | H21: 59.6 | I21: 57.5 | J21: 56.6 | K21: 57.9 | M21: =IF(AND(C21<>"*", K21<>"*"), K21/C21-1, "*") -> -10.8% | N21: =IF(AND(J21<>"*", K21<>"*"), K21/J21-1, "*") -> 2.2% | P21: 1,526.5 | Q21: 1,539.4 | R21: 1,554.3 | S21: 1,557.0 | T21: 1,395.6 | U21: 1,310.3 | V21: 1,306.8 | W21: 1,255.0 | X21: 1,253.6 | Z21: =IF(AND(P21<>"*", X21<>"*"), X21/P21-1, "*") -> -17.9% | AA21: =IF(AND(W21<>"*", X21<>"*"), X21/W21-1, "*") -> -0.1%
B22: Creative industries4 | C22: 5.2 | D22: 5.6 | E22: 6.0 | F22: 5.4 | G22: 5.1 | H22: 5.8 | I22: 5.7 | J22: 5.3 | K22: 7.5 | M22: 42.5% | N22: 40.2% | P22: 170.2 | Q22: 165.3 | R22: 160.0 | S22: 153.2 | T22: 177.2 | U22: 186.4 | V22: 177.8 | W22: 183.7 | X22: 192.4 | Z22: 13.0% | AA22: 4.7%
B23: Energy & environment | C23: 56.4 | D23: 58.1 | E23: 61.2 | F23: 60.5 | G23: 54.6 | H23: 50.9 | I23: 57.5 | J23: 55.4 | K23: 51.9 | M23: -8.1% | N23: -6.4% | P23: 1,313.2 | Q23: 1,333.8 | R23: 1,345.1 | S23: 1,335.8 | T23: 1,272.4 | U23: 1,194.2 | V23: 1,232.7 | W23: 1,160.4 | X23: 1,220.7 | Z23: -7.0% | AA23: 5.2%
B24: Food & Farming | C24: 20.0 | D24: 18.6 | E24: 16.9 | F24: 18.6 | G24: 18.7 | H24: 17.1 | I24: 19.1 | J24: 20.9 | K24: 19.8 | M24: -1.1% | N24: -5.4% | P24: 224.1 | Q24: 226.6 | R24: 244.5 | S24: 260.3 | T24: 216.6 | U24: 243.3 | V24: 257.0 | W24: 252.3 | X24: 231.8 | Z24: 3.4% | AA24: -8.1%
B25: Financial and professional services | C25: 33.0 | D25: 27.4 | E25: 31.3 | F25: 27.2 | G25: 28.3 | H25: 24.8 | I25: 28.3 | J25: 30.1 | K25: 26.5 | M25: -19.7% | N25: -11.9% | P25: 878.4 | Q25: 852.1 | R25: 867.3 | S25: 810.6 | T25: 814.7 | U25: 766.4 | V25: 805.6 | W25: 810.7 | X25: 794.4 | Z25: -9.6% | AA25: -2.0%
B26: ICT | C26: 8.4 | D26: 6.0 | E26: 6.4 | F26: 6.5 | G26: 2.9 | H26: 2.6 | I26: 3.7 | J26: 2.8 | K26: 5.5 | M26: -34.1% | N26: 95.6% | P26: 171.3 | Q26: 161.2 | R26: 151.6 | S26: 167.9 | T26: 101.7 | U26: 99.9 | V26: 112.6 | W26: 106.7 | X26: 114.8 | Z26: -33.0% | AA26: 7.6%
B27: Life sciences | C27: 2.3 | D27: 2.3 | E27: 1.7 | F27: 1.9 | G27: 1.8 | H27: 1.3 | I27: 2.3 | J27: 2.3 | K27: 1.6 | M27: -30.3% | N27: -29.0% | P27: 43.2 | Q27: 48.0 | R27: 51.0 | S27: 44.9 | T27: 57.4 | U27: 39.0 | V27: 42.4 | W27: 48.4 | X27: 49.3 | Z27: 14.3% | AA27: 1.9%
B28: Tourism | C28: 23.2 | D28: 23.5 | E28: 25.0 | F28: 25.8 | G28: 26.7 | H28: 28.3 | I28: 24.8 | J28: 28.1 | K28: 27.4 | M28: 18.2% | N28: -2.5% | P28: 541.7 | Q28: 563.9 | R28: 549.4 | S28: 555.9 | T28: 598.7 | U28: 630.0 | V28: 602.9 | W28: 615.9 | X28: 646.6 | Z28: 19.4% | AA28: 5.0%
B29: In A Priority Sector5 | C29: 192.0 | D29: 187.2 | E29: 191.3 | F29: 192.3 | G29: 178.1 | H29: 171.7 | I29: 173.4 | J29: 181.2 | K29: 183.8 | M29: -4.2% | N29: 1.5% | P29: 4,210.8 | Q29: 4,204.9 | R29: 4,238.0 | S29: 4,160.5 | T29: 3,975.1 | U29: 3,876.7 | V29: 3,915.9 | W29: 3,901.4 | X29: 3,909.0 | Z29: -7.2% | AA29: 0.2%
B30: Not In A Sector | C30: 231.9 | D30: 236.1 | E30: 231.3 | F30: 230.8 | G30: 230.6 | H30: 239.0 | I30: 229.4 | J30: 237.7 | K30: 240.9 | M30: 3.9% | N30: 1.4% | P30: 4,812.0 | Q30: 4,775.5 | R30: 4,691.2 | S30: 4,751.5 | T30: 4,756.9 | U30: 4,820.0 | V30: 4,713.2 | W30: 4,745.8 | X30: 4,822.9 | Z30: 0.2% | AA30: 1.6%
B31: Total | C31: 423.9 | D31: 423.3 | E31: 422.6 | F31: 423.1 | G31: 408.7 | H31: 410.8 | I31: 402.9 | J31: 418.9 | K31: 424.7 | M31: 0.2% | N31: 1.4% | P31: 9,022.7 | Q31: 8,980.4 | R31: 8,929.3 | S31: 8,912.0 | T31: 8,732.0 | U31: 8,696.8 | V31: 8,629.1 | W31: 8,647.1 | X31: 8,731.9 | Z31: -3.2% | AA31: 1.0%
B32: Occupation: Sales, Process Operatives, Elementary:
B33: Advanced materials / manufacturing | C33: 48.3 | D33: 43.9 | E33: 40.1 | F33: 38.5 | G33: 28.9 | H33: 26.7 | I33: 28.7 | J33: 27.4 | K33: 25.4 | M33: =IF(AND(C33<>"*", K33<>"*"), K33/C33-1, "*") -> -47.5% | N33: =IF(AND(J33<>"*", K33<>"*"), K33/J33-1, "*") -> -7.6% | P33: 640.8 | Q33: 598.3 | R33: 597.1 | S33: 552.9 | T33: 439.6 | U33: 453.4 | V33: 426.9 | W33: 427.5 | X33: 441.6 | Z33: =IF(AND(P33<>"*", X33<>"*"), X33/P33-1, "*") -> -31.1% | AA33: =IF(AND(W33<>"*", X33<>"*"), X33/W33-1, "*") -> 3.3%
B34: Construction | C34: 26.5 | D34: 30.1 | E34: 31.1 | F34: 30.4 | G34: 23.4 | H34: 23.0 | I34: 22.9 | J34: 21.5 | K34: 20.1 | M34: =IF(AND(C34<>"*", K34<>"*"), K34/C34-1, "*") -> -24.3% | N34: =IF(AND(J34<>"*", K34<>"*"), K34/J34-1, "*") -> -6.9% | P34: 496.7 | Q34: 533.6 | R34: 519.4 | S34: 508.9 | T34: 434.7 | U34: 421.5 | V34: 413.5 | W34: 392.3 | X34: 425.5 | Z34: =IF(AND(P34<>"*", X34<>"*"), X34/P34-1, "*") -> -14.3% | AA34: =IF(AND(W34<>"*", X34<>"*"), X34/W34-1, "*") -> 8.5%
B35: Creative industries4 | C35: 2.5 | D35: 2.5 | E35: 3.0 | F35: 2.3 | G35: 3.4 | H35: 2.1 | I35: 1.9 | J35: 3.5 | K35: 3.0 | M35: 23.4% | N35: -13.2% | P35: 86.5 | Q35: 82.5 | R35: 80.2 | S35: 85.2 | T35: 88.4 | U35: 89.6 | V35: 85.6 | W35: 81.0 | X35: 82.6 | Z35: -4.5% | AA35: 2.0%
B36: Energy & environment | C36: 44.8 | D36: 45.5 | E36: 45.2 | F36: 42.8 | G36: 41.0 | H36: 36.2 | I36: 41.9 | J36: 42.4 | K36: 35.9 | M36: -19.9% | N36: -15.3% | P36: 807.0 | Q36: 809.5 | R36: 844.5 | S36: 846.6 | T36: 808.2 | U36: 774.8 | V36: 834.9 | W36: 830.1 | X36: 849.1 | Z36: 5.2% | AA36: 2.3%
B37: Food & Farming | C37: 17.5 | D37: 17.7 | E37: 17.0 | F37: 14.3 | G37: 16.4 | H37: 17.3 | I37: 18.2 | J37: 15.3 | K37: 18.6 | M37: 6.1% | N37: 21.2% | P37: 288.7 | Q37: 308.1 | R37: 295.7 | S37: 292.4 | T37: 289.9 | U37: 319.3 | V37: 334.8 | W37: 325.4 | X37: 311.5 | Z37: 7.9% | AA37: -4.3%
B38: Financial and professional services | C38: 22.4 | D38: 22.5 | E38: 20.3 | F38: 21.4 | G38: 24.3 | H38: 20.1 | I38: 21.9 | J38: 24.4 | K38: 19.1 | M38: -14.6% | N38: -21.6% | P38: 545.9 | Q38: 546.1 | R38: 569.1 | S38: 581.0 | T38: 610.7 | U38: 618.1 | V38: 629.3 | W38: 624.6 | X38: 648.9 | Z38: 18.9% | AA38: 3.9%
B39: ICT | C39: 9.6 | D39: 9.8 | E39: 7.1 | F39: 6.6 | G39: 3.2 | H39: 3.0 | I39: 3.7 | J39: 4.6 | K39: 3.5 | M39: -63.1% | N39: -23.7% | P39: 119.3 | Q39: 119.9 | R39: 128.0 | S39: 108.7 | T39: 73.6 | U39: 69.1 | V39: 71.1 | W39: 67.3 | X39: 63.2 | Z39: -47.0% | AA39: -6.1%
B40: Life sciences | C40: 4.1 | D40: 4.4 | E40: 3.1 | F40: 3.9 | G40: 3.2 | H40: 1.8 | I40: 2.7 | J40: 2.8 | K40: 2.3 | M40: -44.0% | N40: -17.4% | P40: 52.9 | Q40: 52.1 | R40: 48.2 | S40: 53.4 | T40: 58.3 | U40: 45.0 | V40: 43.8 | W40: 45.4 | X40: 49.7 | Z40: -6.1% | AA40: 9.6%
B41: Tourism | C41: 50.6 | D41: 45.2 | E41: 51.7 | F41: 49.6 | G41: 55.0 | H41: 52.9 | I41: 55.3 | J41: 55.3 | K41: 56.0 | M41: 10.6% | N41: 1.3% | P41: 1,017.0 | Q41: 1,016.7 | R41: 1,053.4 | S41: 1,055.7 | T41: 1,128.6 | U41: 1,165.7 | V41: 1,159.9 | W41: 1,161.4 | X41: 1,164.3 | Z41: 14.5% | AA41: 0.3%
B42: In A Priority Sector5 | C42: 226.3 | D42: 221.7 | E42: 218.6 | F42: 209.9 | G42: 198.8 | H42: 183.2 | I42: 197.0 | J42: 197.3 | K42: 183.9 | M42: -18.7% | N42: -6.8% | P42: 4,054.8 | Q42: 4,066.9 | R42: 4,135.7 | S42: 4,085.0 | T42: 3,932.0 | U42: 3,956.6 | V42: 3,999.8 | W42: 3,954.9 | X42: 4,036.5 | Z42: -0.5% | AA42: 2.1%
B43: Not In A Sector | C43: 201.5 | D43: 196.1 | E43: 197.4 | F43: 191.2 | G43: 182.5 | H43: 173.6 | I43: 173.8 | J43: 172.2 | K43: 175.5 | M43: -12.9% | N43: 2.0% | P43: 4,218.2 | Q43: 4,219.3 | R43: 4,183.5 | S43: 4,204.7 | T43: 3,978.3 | U43: 3,894.5 | V43: 3,934.1 | W43: 3,972.3 | X43: 3,903.0 | Z43: -7.5% | AA43: -1.7%
B44: Total | C44: 389.3 | D44: 380.0 | E44: 379.9 | F44: 365.3 | G44: 349.1 | H44: 331.7 | I44: 342.5 | J44: 338.0 | K44: 335.0 | M44: -13.9% | N44: -0.9% | P44: 7,595.9 | Q44: 7,619.1 | R44: 7,625.1 | S44: 7,601.4 | T44: 7,287.6 | U44: 7,237.3 | V44: 7,297.8 | W44: 7,292.6 | X44: 7,291.2 | Z44: -4.0% | AA44: -0.0%
B45: All occupations6:
B46: Advanced materials / manufacturing | C46: ='3.1'!C6 -> 118.2 | D46: ='3.1'!D6 -> 106.6 | E46: ='3.1'!E6 -> 103.8 | F46: ='3.1'!F6 -> 105.9 | G46: ='3.1'!G6 -> 81.2 | H46: ='3.1'!H6 -> 78.9 | I46: ='3.1'!I6 -> 81.3 | J46: ='3.1'!J6 -> 80.4 | K46: ='3.1'!K6 -> 84.4 | M46: ='3.1'!M6 -> -28.6% | N46: ='3.1'!N6 -> 5.0% | P46: ='3.1'!C19 -> 2,039.6 | Q46: ='3.1'!D19 -> 1,988.7 | R46: ='3.1'!E19 -> 2,011.7 | S46: ='3.1'!F19 -> 1,886.9 | T46: ='3.1'!G19 -> 1,586.8 | U46: ='3.1'!H19 -> 1,615.9 | V46: ='3.1'!I19 -> 1,569.5 | W46: ='3.1'!J19 -> 1,605.0 | X46: ='3.1'!K19 -> 1,608.1 | Z46: ='3.1'!M19 -> -21.2% | AA46: ='3.1'!N19 -> 0.2%
B47: Construction | C47: ='3.1'!C7 -> 116.0 | D47: ='3.1'!D7 -> 128.9 | E47: ='3.1'!E7 -> 135.8 | F47: ='3.1'!F7 -> 135.8 | G47: ='3.1'!G7 -> 116.0 | H47: ='3.1'!H7 -> 110.1 | I47: ='3.1'!I7 -> 109.7 | J47: ='3.1'!J7 -> 101.8 | K47: ='3.1'!K7 -> 101.8 | M47: ='3.1'!M7 -> -12.3% | N47: ='3.1'!N7 -> -0.1% | P47: ='3.1'!C20 -> 2,734.3 | Q47: ='3.1'!D20 -> 2,813.8 | R47: ='3.1'!E20 -> 2,830.7 | S47: ='3.1'!F20 -> 2,874.5 | T47: ='3.1'!G20 -> 2,609.1 | U47: ='3.1'!H20 -> 2,468.4 | V47: ='3.1'!I20 -> 2,434.3 | W47: ='3.1'!J20 -> 2,356.0 | X47: ='3.1'!K20 -> 2,427.0 | Z47: ='3.1'!M20 -> -11.2% | AA47: ='3.1'!N20 -> 3.0%
B48: Creative industries4 | C48: ='3.1'!C8 -> 30.8 | D48: ='3.1'!D8 -> 31.4 | E48: ='3.1'!E8 -> 37.6 | F48: ='3.1'!F8 -> 33.2 | G48: ='3.1'!G8 -> 38.1 | H48: ='3.1'!H8 -> 36.7 | I48: ='3.1'!I8 -> 42.0 | J48: ='3.1'!J8 -> 39.9 | K48: ='3.1'!K8 -> 48.9 | M48: ='3.1'!M8 -> 58.5% | N48: ='3.1'!N8 -> 22.4% | P48: ='3.1'!C21 -> 1,129.3 | Q48: ='3.1'!D21 -> 1,157.4 | R48: ='3.1'!E21 -> 1,162.3 | S48: ='3.1'!F21 -> 1,151.4 | T48: ='3.1'!G21 -> 1,441.1 | U48: ='3.1'!H21 -> 1,425.0 | V48: ='3.1'!I21 -> 1,464.8 | W48: ='3.1'!J21 -> 1,597.6 | X48: ='3.1'!K21 -> 1,612.7 | Z48: ='3.1'!M21 -> 42.8% | AA48: ='3.1'!N21 -> 0.9%
B49: Energy & environment | C49: ='3.1'!C9 -> 142.0 | D49: ='3.1'!D9 -> 147.2 | E49: ='3.1'!E9 -> 153.3 | F49: ='3.1'!F9 -> 153.8 | G49: ='3.1'!G9 -> 153.7 | H49: ='3.1'!H9 -> 139.5 | I49: ='3.1'!I9 -> 160.3 | J49: ='3.1'!J9 -> 151.7 | K49: ='3.1'!K9 -> 141.9 | M49: ='3.1'!M9 -> -0.1% | N49: ='3.1'!N9 -> -6.5% | P49: ='3.1'!C22 -> 3,350.3 | Q49: ='3.1'!D22 -> 3,395.5 | R49: ='3.1'!E22 -> 3,506.1 | S49: ='3.1'!F22 -> 3,526.8 | T49: ='3.1'!G22 -> 3,650.3 | U49: ='3.1'!H22 -> 3,573.1 | V49: ='3.1'!I22 -> 3,652.0 | W49: ='3.1'!J22 -> 3,597.3 | X49: ='3.1'!K22 -> 3,758.6 | Z49: ='3.1'!M22 -> 12.2% | AA49: ='3.1'!N22 -> 4.5%
B50: Food & Farming | C50: ='3.1'!C10 -> 43.9 | D50: ='3.1'!D10 -> 42.6 | E50: ='3.1'!E10 -> 41.8 | F50: ='3.1'!F10 -> 41.3 | G50: ='3.1'!G10 -> 40.3 | H50: ='3.1'!H10 -> 41.1 | I50: ='3.1'!I10 -> 43.2 | J50: ='3.1'!J10 -> 42.8 | K50: ='3.1'!K10 -> 44.6 | M50: ='3.1'!M10 -> 1.6% | N50: ='3.1'!N10 -> 4.3% | P50: ='3.1'!C23 -> 650.2 | Q50: ='3.1'!D23 -> 684.3 | R50: ='3.1'!E23 -> 692.8 | S50: ='3.1'!F23 -> 718.0 | T50: ='3.1'!G23 -> 652.4 | U50: ='3.1'!H23 -> 707.8 | V50: ='3.1'!I23 -> 730.2 | W50: ='3.1'!J23 -> 712.1 | X50: ='3.1'!K23 -> 694.7 | Z50: ='3.1'!M23 -> 6.8% | AA50: ='3.1'!N23 -> -2.5%
B51: Financial and professional services | C51: ='3.1'!C11 -> 104.3 | D51: ='3.1'!D11 -> 97.0 | E51: ='3.1'!E11 -> 103.3 | F51: ='3.1'!F11 -> 106.2 | G51: ='3.1'!G11 -> 114.1 | H51: ='3.1'!H11 -> 104.8 | I51: ='3.1'!I11 -> 115.3 | J51: ='3.1'!J11 -> 118.0 | K51: ='3.1'!K11 -> 107.0 | M51: ='3.1'!M11 -> 2.5% | N51: ='3.1'!N11 -> -9.3% | P51: ='3.1'!C24 -> 3,275.7 | Q51: ='3.1'!D24 -> 3,288.3 | R51: ='3.1'!E24 -> 3,482.5 | S51: ='3.1'!F24 -> 3,457.1 | T51: ='3.1'!G24 -> 3,551.5 | U51: ='3.1'!H24 -> 3,558.6 | V51: ='3.1'!I24 -> 3,608.1 | W51: ='3.1'!J24 -> 3,702.4 | X51: ='3.1'!K24 -> 3,789.8 | Z51: ='3.1'!M24 -> 15.7% | AA51: ='3.1'!N24 -> 2.4%
B52: ICT | C52: ='3.1'!C12 -> 36.5 | D52: ='3.1'!D12 -> 32.1 | E52: ='3.1'!E12 -> 30.4 | F52: ='3.1'!F12 -> 32.5 | G52: ='3.1'!G12 -> 23.6 | H52: ='3.1'!H12 -> 20.5 | I52: ='3.1'!I12 -> 26.1 | J52: ='3.1'!J12 -> 24.1 | K52: ='3.1'!K12 -> 29.0 | M52: ='3.1'!M12 -> -20.5% | N52: ='3.1'!N12 -> 20.2% | P52: ='3.1'!C25 -> 1,016.2 | Q52: ='3.1'!D25 -> 1,032.4 | R52: ='3.1'!E25 -> 1,027.8 | S52: ='3.1'!F25 -> 1,012.9 | T52: ='3.1'!G25 -> 847.2 | U52: ='3.1'!H25 -> 851.5 | V52: ='3.1'!I25 -> 884.9 | W52: ='3.1'!J25 -> 930.4 | X52: ='3.1'!K25 -> 958.2 | Z52: ='3.1'!M25 -> -5.7% | AA52: ='3.1'!N25 -> 3.0%
B53: Life sciences | C53: ='3.1'!C13 -> 12.7 | D53: ='3.1'!D13 -> 13.0 | E53: ='3.1'!E13 -> 10.3 | F53: ='3.1'!F13 -> 11.4 | G53: ='3.1'!G13 -> 12.9 | H53: ='3.1'!H13 -> 10.4 | I53: ='3.1'!I13 -> 12.4 | J53: ='3.1'!J13 -> 12.6 | K53: ='3.1'!K13 -> 11.6 | M53: ='3.1'!M13 -> -9.1% | N53: ='3.1'!N13 -> -8.2% | P53: ='3.1'!C26 -> 297.4 | Q53: ='3.1'!D26 -> 307.4 | R53: ='3.1'!E26 -> 310.1 | S53: ='3.1'!F26 -> 290.6 | T53: ='3.1'!G26 -> 339.1 | U53: ='3.1'!H26 -> 308.3 | V53: ='3.1'!I26 -> 304.2 | W53: ='3.1'!J26 -> 319.6 | X53: ='3.1'!K26 -> 329.6 | Z53: ='3.1'!M26 -> 10.8% | AA53: ='3.1'!N26 -> 3.1%
B54: Tourism | C54: ='3.1'!C14 -> 101.8 | D54: ='3.1'!D14 -> 97.9 | E54: ='3.1'!E14 -> 104.5 | F54: ='3.1'!F14 -> 101.6 | G54: ='3.1'!G14 -> 109.7 | H54: ='3.1'!H14 -> 112.3 | I54: ='3.1'!I14 -> 115.4 | J54: ='3.1'!J14 -> 117.4 | K54: ='3.1'!K14 -> 121.4 | M54: ='3.1'!M14 -> 19.2% | N54: ='3.1'!N14 -> 3.4% | P54: ='3.1'!C27 -> 2,211.6 | Q54: ='3.1'!D27 -> 2,226.2 | R54: ='3.1'!E27 -> 2,289.5 | S54: ='3.1'!F27 -> 2,312.2 | T54: ='3.1'!G27 -> 2,466.0 | U54: ='3.1'!H27 -> 2,547.5 | V54: ='3.1'!I27 -> 2,535.5 | W54: ='3.1'!J27 -> 2,566.5 | X54: ='3.1'!K27 -> 2,618.0 | Z54: ='3.1'!M27 -> 18.4% | AA54: ='3.1'!N27 -> 2.0%
B55: In A Priority Sector5 | C55: ='3.1'!C15 -> 560.7 | D55: ='3.1'!D15 -> 551.0 | E55: ='3.1'!E15 -> 567.8 | F55: ='3.1'!F15 -> 569.2 | G55: ='3.1'!G15 -> 539.9 | H55: ='3.1'!H15 -> 524.0 | I55: ='3.1'!I15 -> 549.0 | J55: ='3.1'!J15 -> 545.4 | K55: ='3.1'!K15 -> 550.0 | M55: ='3.1'!M15 -> -1.9% | N55: ='3.1'!N15 -> 0.8% | P55: ='3.1'!C28 -> 13,071.8 | Q55: ='3.1'!D28 -> 13,223.3 | R55: ='3.1'!E28 -> 13,567.6 | S55: ='3.1'!F28 -> 13,478.4 | T55: ='3.1'!G28 -> 13,223.5 | U55: ='3.1'!H28 -> 13,208.2 | V55: ='3.1'!I28 -> 13,304.0 | W55: ='3.1'!J28 -> 13,471.2 | X55: ='3.1'!K28 -> 13,746.8 | Z55: ='3.1'!M28 -> 5.2% | AA55: ='3.1'!N28 -> 2.0%
B56: Not In A Sector | C56: ='3.1'!C16 -> 715.2 | D56: ='3.1'!D16 -> 729.2 | E56: ='3.1'!E16 -> 730.9 | F56: ='3.1'!F16 -> 725.5 | G56: ='3.1'!G16 -> 705.5 | H56: ='3.1'!H16 -> 722.1 | I56: ='3.1'!I16 -> 712.8 | J56: ='3.1'!J16 -> 713.3 | K56: ='3.1'!K16 -> 738.1 | M56: ='3.1'!M16 -> 3.2% | N56: ='3.1'!N16 -> 3.5% | P56: ='3.1'!C29 -> 15,403.0 | Q56: ='3.1'!D29 -> 15,502.7 | R56: ='3.1'!E29 -> 15,430.1 | S56: ='3.1'!F29 -> 15,618.5 | T56: ='3.1'!G29 -> 15,391.8 | U56: ='3.1'!H29 -> 15,463.8 | V56: ='3.1'!I29 -> 15,500.1 | W56: ='3.1'!J29 -> 15,575.6 | X56: ='3.1'!K29 -> 15,764.3 | Z56: ='3.1'!M29 -> 2.3% | AA56: ='3.1'!N29 -> 1.2%
B57: Total | C57: ='3.1'!C17 -> 1,275.9 | D57: ='3.1'!D17 -> 1,280.3 | E57: ='3.1'!E17 -> 1,298.7 | F57: ='3.1'!F17 -> 1,294.7 | G57: ='3.1'!G17 -> 1,245.4 | H57: ='3.1'!H17 -> 1,246.1 | I57: ='3.1'!I17 -> 1,261.8 | J57: ='3.1'!J17 -> 1,258.6 | K57: ='3.1'!K17 -> 1,288.1 | M57: ='3.1'!M17 -> 1.0% | N57: ='3.1'!N17 -> 2.3% | P57: ='3.1'!C30 -> 28,474.8 | Q57: ='3.1'!D30 -> 28,726.0 | R57: ='3.1'!E30 -> 28,997.8 | S57: ='3.1'!F30 -> 29,097.0 | T57: ='3.1'!G30 -> 28,615.3 | U57: ='3.1'!H30 -> 28,672.0 | V57: ='3.1'!I30 -> 28,804.1 | W57: ='3.1'!J30 -> 29,046.8 | X57: ='3.1'!K30 -> 29,511.1 | Z57: ='3.1'!M30 -> 3.6% | AA57: ='3.1'!N30 -> 1.6%
AA59: Source: Annual Population Survey, ONS
B60: 12005 - 2008 data based on SIC 2003 which has been converted to SIC2007. Data after 2009 based on SIC2007.
B61: 2Those people with missing industry information are excluded.
B62: 32005 - 2010 data based on SOC 2000. Data for 2011 - 2013 are based on SOC 2010 which has been converted to SOC 2000 using probalistic matching.
B63: 4Based on the updated DCMS Creative Industries classification.
B64: 5This total will not equal the sum of the individual priority sectors as there is overlap between several sectors.
B65: 6Includes those people with missing occupation information.

Sheet 3.4
B1: Employment by Occupation and Priority Sector1,2,3 (Aged 16 Plus) | AA1: Thousands
C2: Wales | P2: UK
C4: 2005 | D4: 2006 | E4: 2007 | F4: 2008 | G4: 2009 | H4: 2010 | I4: 2011 | J4: 2012 | K4: 2013 | M4: Change 2005 - 2013 | N4: Change 2012 - 2013 | P4: 2005 | Q4: 2006 | R4: 2007 | S4: 2008 | T4: 2009 | U4: 2010 | V4: 2011 | W4: 2012 | X4: 2013 | Z4: Change 2005 - 2013 | AA4: Change 2012 - 2013
B6: Managers and Senior Officials:
B7: Advanced materials / manufacturing | C7: 12.6 | D7: 12.7 | E7: 15.0 | F7: 14.9 | G7: 11.0 | H7: 11.8 | I7: 13.7 | J7: 11.7 | K7: 10.8 | M7: =IF(AND(C7<>"*", K7<>"*"), K7/C7-1, "*") -> -13.9% | N7: =IF(AND(J7<>"*", K7<>"*"), K7/J7-1, "*") -> -7.5% | P7: 356.4 | Q7: 366.7 | R7: 371.6 | S7: 349.1 | T7: 309.6 | U7: 321.5 | V7: 314.6 | W7: 308.5 | X7: 311.6 | Z7: =IF(AND(P7<>"*", X7<>"*"), X7/P7-1, "*") -> -12.6% | AA7: =IF(AND(W7<>"*", X7<>"*"), X7/W7-1, "*") -> 1.0%
B8: Construction | C8: 12.4 | D8: 14.9 | E8: 16.7 | F8: 18.4 | G8: 14.7 | H8: 13.9 | I8: 16.3 | J8: 12.0 | K8: 12.5 | M8: =IF(AND(C8<>"*", K8<>"*"), K8/C8-1, "*") -> 0.9% | N8: =IF(AND(J8<>"*", K8<>"*"), K8/J8-1, "*") -> 3.6% | P8: 370.6 | Q8: 384.9 | R8: 400.3 | S8: 432.2 | T8: 403.6 | U8: 392.8 | V8: 389.8 | W8: 386.9 | X8: 412.2 | Z8: =IF(AND(P8<>"*", X8<>"*"), X8/P8-1, "*") -> 11.2% | AA8: =IF(AND(W8<>"*", X8<>"*"), X8/W8-1, "*") -> 6.5%
B9: Creative industries4 | C9: 4.3 | D9: 5.8 | E9: 5.3 | F9: 5.3 | G9: 5.2 | H9: 5.6 | I9: 7.5 | J9: 7.2 | K9: 9.0 | M9: 107.4% | N9: 25.4% | P9: 228.7 | Q9: 239.9 | R9: 254.8 | S9: 252.2 | T9: 309.9 | U9: 307.3 | V9: 312.2 | W9: 331.3 | X9: 360.7 | Z9: 57.7% | AA9: 8.9%
B10: Energy & environment | C10: 16.6 | D10: 17.1 | E10: 19.2 | F10: 20.2 | G10: 21.9 | H10: 23.3 | I10: 28.8 | J10: 23.6 | K10: 23.3 | M10: 40.5% | N10: -1.0% | P10: 488.4 | Q10: 503.8 | R10: 525.7 | S10: 554.4 | T10: 657.4 | U10: 679.1 | V10: 686.3 | W10: 673.4 | X10: 719.6 | Z10: 47.3% | AA10: 6.9%
B11: Food & Farming | C11: 4.5 | D11: 4.8 | E11: 6.0 | F11: 6.4 | G11: 3.5 | H11: 5.2 | I11: 4.6 | J11: 4.0 | K11: 5.2 | M11: 14.4% | N11: 27.8% | P11: 91.7 | Q11: 103.6 | R11: 98.9 | S11: 108.4 | T11: 99.8 | U11: 102.7 | V11: 97.1 | W11: 83.0 | X11: 101.3 | Z11: 10.6% | AA11: 22.1%
B12: Financial and professional services | C12: 15.6 | D12: 15.1 | E12: 17.7 | F12: 19.0 | G12: 21.6 | H12: 20.3 | I12: 25.6 | J12: 23.9 | K12: 24.3 | M12: 55.8% | N12: 1.7% | P12: 636.5 | Q12: 656.9 | R12: 719.2 | S12: 745.7 | T12: 793.1 | U12: 817.3 | V12: 841.8 | W12: 877.2 | X12: 930.8 | Z12: 46.2% | AA12: 6.1%
B13: ICT | C13: 7.7 | D13: 5.0 | E13: 5.5 | F13: 6.9 | G13: 4.7 | H13: 4.9 | I13: 8.6 | J13: 7.6 | K13: 6.8 | M13: -12.1% | N13: -10.4% | P13: 266.8 | Q13: 280.1 | R13: 281.2 | S13: 273.0 | T13: 256.4 | U13: 258.1 | V13: 266.8 | W13: 274.0 | X13: 283.0 | Z13: 6.1% | AA13: 3.3%
B14: Life sciences | C14: 1.9 | D14: 2.4 | E14: 2.0 | F14: 2.0 | G14: 2.1 | H14: 2.0 | I14: 2.8 | J14: 2.9 | K14: 2.6 | M14: 36.3% | N14: -10.4% | P14: 62.3 | Q14: 66.4 | R14: 70.6 | S14: 68.9 | T14: 75.9 | U14: 78.2 | V14: 68.0 | W14: 78.2 | X14: 77.9 | Z14: 25.0% | AA14: -0.3%
B15: Tourism | C15: 17.5 | D15: 19.9 | E15: 16.1 | F15: 17.7 | G15: 17.1 | H15: 17.7 | I15: 21.1 | J15: 18.7 | K15: 22.9 | M15: 30.6% | N15: 22.7% | P15: 380.3 | Q15: 361.2 | R15: 391.8 | S15: 413.8 | T15: 422.4 | U15: 427.7 | V15: 444.9 | W15: 441.7 | X15: 463.1 | Z15: 21.8% | AA15: 4.8%
B16: In A Priority Sector5 | C16: 74.8 | D16: 79.8 | E16: 83.2 | F16: 89.8 | G16: 80.9 | H16: 82.1 | I16: 97.4 | J16: 87.3 | K16: 93.8 | M16: 25.5% | N16: 7.4% | P16: 2,296.5 | Q16: 2,344.7 | R16: 2,486.6 | S16: 2,556.0 | T16: 2,551.4 | U16: 2,593.6 | V16: 2,623.0 | W16: 2,638.4 | X16: 2,812.7 | Z16: 22.5% | AA16: 6.6%
B17: Not In A Sector | C17: 77.2 | D17: 83.0 | E17: 87.9 | F17: 84.2 | G17: 77.3 | H17: 78.8 | I17: 82.1 | J17: 75.3 | K17: 84.9 | M17: 10.0% | N17: 12.8% | P17: 1,914.3 | Q17: 1,922.2 | R17: 1,937.6 | S17: 1,976.7 | T17: 1,914.3 | U17: 1,894.3 | V17: 1,934.5 | W17: 1,854.7 | X17: 1,991.1 | Z17: 4.0% | AA17: 7.4%
B18: Total | C18: 151.9 | D18: 162.8 | E18: 171.2 | F18: 174.0 | G18: 158.2 | H18: 160.9 | I18: 179.5 | J18: 162.6 | K18: 178.7 | M18: 17.6% | N18: 9.9% | P18: 4,210.9 | Q18: 4,266.9 | R18: 4,424.2 | S18: 4,532.7 | T18: 4,465.7 | U18: 4,487.8 | V18: 4,557.4 | W18: 4,493.1 | X18: 4,803.8 | Z18: 14.1% | AA18: 6.9%
B19: Professional Occupations:
B20: Advanced materials / manufacturing | C20: 11.6 | D20: 8.7 | E20: 10.0 | F20: 12.1 | G20: 8.6 | H20: 7.9 | I20: 6.6 | J20: 5.6 | K20: 7.5 | M20: =IF(AND(C20<>"*", K20<>"*"), K20/C20-1, "*") -> -35.0% | N20: =IF(AND(J20<>"*", K20<>"*"), K20/J20-1, "*") -> 35.5% | P20: 233.3 | Q20: 233.1 | R20: 241.0 | S20: 236.9 | T20: 186.1 | U20: 204.8 | V20: 190.3 | W20: 175.4 | X20: 191.4 | Z20: =IF(AND(P20<>"*", X20<>"*"), X20/P20-1, "*") -> -18.0% | AA20: =IF(AND(W20<>"*", X20<>"*"), X20/W20-1, "*") -> 9.1%
B21: Construction | C21: 5.9 | D21: 7.6 | E21: 9.3 | F21: 8.2 | G21: 8.8 | H21: 8.8 | I21: 7.6 | J21: 6.6 | K21: 6.8 | M21: =IF(AND(C21<>"*", K21<>"*"), K21/C21-1, "*") -> 15.8% | N21: =IF(AND(J21<>"*", K21<>"*"), K21/J21-1, "*") -> 2.2% | P21: 179.5 | Q21: 186.8 | R21: 190.2 | S21: 203.6 | T21: 237.4 | U21: 216.8 | V21: 195.3 | W21: 184.5 | X21: 193.1 | Z21: =IF(AND(P21<>"*", X21<>"*"), X21/P21-1, "*") -> 7.6% | AA21: =IF(AND(W21<>"*", X21<>"*"), X21/W21-1, "*") -> 4.6%
B22: Creative industries4 | C22: 6.0 | D22: 6.0 | E22: 7.2 | F22: 7.1 | G22: 10.5 | H22: 9.5 | I22: 11.4 | J22: 6.8 | K22: 9.4 | M22: 55.6% | N22: 37.2% | P22: 242.3 | Q22: 260.2 | R22: 257.3 | S22: 256.0 | T22: 347.9 | U22: 342.8 | V22: 349.8 | W22: 372.9 | X22: 376.9 | Z22: 55.5% | AA22: 1.1%
B23: Energy & environment | C23: 14.7 | D23: 15.3 | E23: 16.6 | F23: 18.1 | G23: 20.3 | H23: 17.5 | I23: 18.8 | J23: 14.7 | K23: 15.7 | M23: 6.9% | N23: 6.9% | P23: 453.4 | Q23: 459.3 | R23: 489.7 | S23: 477.2 | T23: 566.6 | U23: 574.1 | V23: 533.9 | W23: 533.1 | X23: 566.4 | Z23: 24.9% | AA23: 6.2%
B24: Food & Farming | C24: 0.9 | D24: * | E24: 0.9 | F24: * | G24: 0.9 | H24: 0.7 | I24: * | J24: * | K24: * | M24: * | N24: * | P24: 19.0 | Q24: 16.8 | R24: 22.2 | S24: 26.3 | T24: 18.6 | U24: 14.9 | V24: 15.6 | W24: 17.4 | X24: 19.2 | Z24: 1.0% | AA24: 10.1%
B25: Financial and professional services | C25: 15.8 | D25: 12.3 | E25: 12.6 | F25: 18.8 | G25: 17.4 | H25: 17.0 | I25: 18.1 | J25: 14.3 | K25: 14.8 | M25: -6.2% | N25: 3.3% | P25: 556.0 | Q25: 577.8 | R25: 610.8 | S25: 592.0 | T25: 616.5 | U25: 639.2 | V25: 617.2 | W25: 613.7 | X25: 653.5 | Z25: 17.5% | AA25: 6.5%
B26: ICT | C26: 6.5 | D26: 7.4 | E26: 7.8 | F26: 8.3 | G26: 8.4 | H26: 7.6 | I26: 6.9 | J26: 4.2 | K26: 8.9 | M26: 37.2% | N26: 112.0% | P26: 313.7 | Q26: 326.2 | R26: 314.3 | S26: 317.8 | T26: 301.9 | U26: 304.3 | V26: 313.7 | W26: 328.9 | X26: 346.6 | Z26: 10.5% | AA26: 5.4%
B27: Life sciences | C27: 2.4 | D27: 2.5 | E27: 1.7 | F27: 1.9 | G27: 2.9 | H27: 2.4 | I27: 2.7 | J27: 2.3 | K27: 2.4 | M27: 2.0% | N27: 3.8% | P27: 85.9 | Q27: 80.6 | R27: 78.8 | S27: 72.3 | T27: 89.3 | U27: 93.2 | V27: 88.7 | W27: 80.9 | X27: 88.1 | Z27: 2.5% | AA27: 8.9%
B28: Tourism | C28: 1.4 | D28: 1.2 | E28: 1.5 | F28: * | G28: * | H28: 1.5 | I28: 2.2 | J28: 1.9 | K28: 0.6 | M28: -58.4% | N28: -69.4% | P28: 41.5 | Q28: 47.2 | R28: 45.6 | S28: 43.6 | T28: 42.3 | U28: 43.4 | V28: 36.2 | W28: 36.3 | X28: 45.2 | Z28: 8.9% | AA28: 24.3%
B29: In A Priority Sector5 | C29: 45.8 | D29: 42.9 | E29: 46.9 | F29: 52.6 | G29: 50.6 | H29: 49.2 | I29: 49.3 | J29: 38.5 | K29: 44.4 | M29: -3.1% | N29: 15.3% | P29: 1,473.0 | Q29: 1,533.5 | R29: 1,588.4 | S29: 1,572.9 | T29: 1,579.4 | U29: 1,610.6 | V29: 1,554.8 | W29: 1,535.5 | X29: 1,631.8 | Z29: 10.8% | AA29: 6.3%
B30: Not In A Sector | C30: 99.5 | D30: 101.3 | E30: 102.0 | F30: 106.1 | G30: 101.8 | H30: 111.1 | I30: 112.1 | J30: 114.0 | K30: 115.5 | M30: 16.2% | N30: 1.3% | P30: 2,110.7 | Q30: 2,198.9 | R30: 2,193.2 | S30: 2,226.8 | T30: 2,314.7 | U30: 2,410.9 | V30: 2,396.9 | W30: 2,427.8 | X30: 2,485.6 | Z30: 17.8% | AA30: 2.4%
B31: Total | C31: 145.2 | D31: 144.3 | E31: 148.9 | F31: 158.8 | G31: 152.4 | H31: 160.3 | I31: 161.4 | J31: 152.5 | K31: 159.9 | M31: 10.1% | N31: 4.9% | P31: 3,583.7 | Q31: 3,732.4 | R31: 3,781.6 | S31: 3,799.7 | T31: 3,894.1 | U31: 4,021.5 | V31: 3,951.7 | W31: 3,963.2 | X31: 4,117.4 | Z31: 14.9% | AA31: 3.9%
B32: Associate Professional & Technical Occupations:
B33: Advanced materials / manufacturing | C33: 11.0 | D33: 8.4 | E33: 9.1 | F33: 8.4 | G33: 8.3 | H33: 8.6 | I33: 6.8 | J33: 10.4 | K33: 8.8 | M33: =IF(AND(C33<>"*", K33<>"*"), K33/C33-1, "*") -> -19.6% | N33: =IF(AND(J33<>"*", K33<>"*"), K33/J33-1, "*") -> -14.9% | P33: 181.7 | Q33: 192.1 | R33: 186.2 | S33: 165.7 | T33: 154.4 | U33: 147.8 | V33: 152.1 | W33: 184.6 | X33: 175.7 | Z33: =IF(AND(P33<>"*", X33<>"*"), X33/P33-1, "*") -> -3.3% | AA33: =IF(AND(W33<>"*", X33<>"*"), X33/W33-1, "*") -> -4.8%
B34: Construction | C34: 6.4 | D34: 6.6 | E34: 6.4 | F34: 6.6 | G34: 6.0 | H34: 4.7 | I34: 5.5 | J34: 4.9 | K34: 4.6 | M34: =IF(AND(C34<>"*", K34<>"*"), K34/C34-1, "*") -> -28.9% | N34: =IF(AND(J34<>"*", K34<>"*"), K34/J34-1, "*") -> -7.4% | P34: 160.4 | Q34: 168.0 | R34: 165.0 | S34: 171.8 | T34: 137.1 | U34: 125.7 | V34: 128.3 | W34: 136.1 | X34: 141.8 | Z34: =IF(AND(P34<>"*", X34<>"*"), X34/P34-1, "*") -> -11.6% | AA34: =IF(AND(W34<>"*", X34<>"*"), X34/W34-1, "*") -> 4.2%
B35: Creative industries4 | C35: 12.7 | D35: 11.4 | E35: 16.0 | F35: 13.2 | G35: 13.9 | H35: 13.7 | I35: 15.5 | J35: 17.1 | K35: 20.0 | M35: 57.8% | N35: 17.1% | P35: 399.9 | Q35: 408.8 | R35: 409.2 | S35: 404.2 | T35: 516.2 | U35: 496.7 | V35: 539.3 | W35: 627.9 | X35: 597.9 | Z35: 49.5% | AA35: -4.8%
B36: Energy & environment | C36: 9.4 | D36: 11.1 | E36: 10.9 | F36: 12.1 | G36: 15.8 | H36: 11.4 | I36: 13.2 | J36: 15.4 | K36: 15.1 | M36: 60.1% | N36: -2.2% | P36: 287.0 | Q36: 286.4 | R36: 299.0 | S36: 310.7 | T36: 344.0 | U36: 349.2 | V36: 361.6 | W36: 395.6 | X36: 400.6 | Z36: 39.6% | AA36: 1.3%
B37: Food & Farming | C37: 1.0 | D37: 1.2 | E37: 0.9 | F37: 1.2 | G37: * | H37: 0.9 | I37: * | J37: 1.5 | K37: * | M37: * | N37: * | P37: 26.4 | Q37: 28.6 | R37: 30.3 | S37: 29.1 | T37: 27.3 | U37: 27.3 | V37: 25.5 | W37: 33.4 | X37: 30.4 | Z37: 15.4% | AA37: -9.0%
B38: Financial and professional services | C38: 17.5 | D38: 19.6 | E38: 21.4 | F38: 19.8 | G38: 22.4 | H38: 22.3 | I38: 21.3 | J38: 25.1 | K38: 22.2 | M38: 26.5% | N38: -11.5% | P38: 655.5 | Q38: 653.8 | R38: 713.1 | S38: 724.9 | T38: 712.6 | U38: 715.8 | V38: 711.9 | W38: 772.4 | X38: 757.8 | Z38: 15.6% | AA38: -1.9%
B39: ICT | C39: 4.4 | D39: 3.7 | E39: 3.5 | F39: 4.1 | G39: 4.4 | H39: 2.5 | I39: 3.3 | J39: 4.9 | K39: 4.3 | M39: -1.5% | N39: -12.4% | P39: 143.6 | Q39: 144.5 | R39: 151.5 | S39: 144.2 | T39: 112.7 | U39: 117.9 | V39: 119.7 | W39: 152.6 | X39: 149.6 | Z39: 4.1% | AA39: -2.0%
B40: Life sciences | C40: 2.0 | D40: 1.4 | E40: 1.9 | F40: 1.7 | G40: 2.9 | H40: 2.8 | I40: 1.8 | J40: 2.3 | K40: 2.6 | M40: 31.5% | N40: 14.3% | P40: 52.1 | Q40: 59.4 | R40: 61.1 | S40: 50.5 | T40: 58.1 | U40: 52.9 | V40: 61.1 | W40: 66.7 | X40: 64.4 | Z40: 23.5% | AA40: -3.5%
B41: Tourism | C41: 9.1 | D41: 7.9 | E41: 10.2 | F41: 7.6 | G41: 10.1 | H41: 11.9 | I41: 12.1 | J41: 13.4 | K41: 14.5 | M41: 59.7% | N41: 7.9% | P41: 230.9 | Q41: 236.7 | R41: 249.1 | S41: 242.5 | T41: 272.6 | U41: 279.6 | V41: 290.5 | W41: 310.4 | X41: 298.2 | Z41: 29.2% | AA41: -3.9%
B42: In A Priority Sector5 | C42: 60.2 | D42: 57.1 | E42: 63.6 | F42: 60.1 | G42: 63.5 | H42: 62.1 | I42: 60.2 | J42: 72.2 | K42: 68.4 | M42: 13.7% | N42: -5.2% | P42: 1,703.7 | Q42: 1,733.3 | R42: 1,803.6 | S42: 1,782.4 | T42: 1,799.2 | U42: 1,774.4 | V42: 1,839.3 | W42: 2,064.4 | X42: 1,993.9 | Z42: 17.0% | AA42: -3.4%
B43: Not In A Sector | C43: 105.1 | D43: 112.5 | E43: 111.9 | F43: 112.9 | G43: 113.1 | H43: 119.4 | I43: 115.3 | J43: 113.8 | K43: 121.0 | M43: 15.2% | N43: 6.4% | P43: 2,338.5 | Q43: 2,377.4 | R43: 2,415.8 | S43: 2,450.1 | T43: 2,416.5 | U43: 2,435.4 | V43: 2,507.3 | W43: 2,569.4 | X43: 2,551.6 | Z43: 9.1% | AA43: -0.7%
B44: Total | C44: 165.2 | D44: 169.5 | E44: 175.5 | F44: 172.9 | G44: 176.6 | H44: 181.5 | I44: 175.5 | J44: 185.9 | K44: 189.4 | M44: 14.6% | N44: 1.9% | P44: 4,042.2 | Q44: 4,110.7 | R44: 4,219.4 | S44: 4,232.5 | T44: 4,215.7 | U44: 4,209.8 | V44: 4,346.6 | W44: 4,633.9 | X44: 4,545.5 | Z44: 12.5% | AA44: -1.9%
B45: Administrative and Secretarial Occupations:
B46: Advanced materials / manufacturing | C46: 8.3 | D46: 7.4 | E46: 7.2 | F46: 7.5 | G46: 4.4 | H46: 4.6 | I46: 5.0 | J46: 4.3 | K46: 7.5 | M46: =IF(AND(C46<>"*", K46<>"*"), K46/C46-1, "*") -> -9.5% | N46: =IF(AND(J46<>"*", K46<>"*"), K46/J46-1, "*") -> 74.0% | P46: 159.8 | Q46: 148.7 | R46: 158.0 | S46: 149.3 | T46: 126.7 | U46: 113.9 | V46: 117.0 | W46: 126.3 | X46: 126.8 | Z46: =IF(AND(P46<>"*", X46<>"*"), X46/P46-1, "*") -> -20.7% | AA46: =IF(AND(W46<>"*", X46<>"*"), X46/W46-1, "*") -> 0.3%
B47: Construction | C47: 9.0 | D47: 9.2 | E47: 8.8 | F47: 7.9 | G47: 8.4 | H47: 6.4 | I47: 6.6 | J47: 5.1 | K47: 5.6 | M47: =IF(AND(C47<>"*", K47<>"*"), K47/C47-1, "*") -> -37.5% | N47: =IF(AND(J47<>"*", K47<>"*"), K47/J47-1, "*") -> 10.6% | P47: 223.0 | Q47: 218.0 | R47: 221.0 | S47: 216.0 | T47: 188.0 | U47: 163.7 | V47: 163.7 | W47: 160.5 | X47: 159.7 | Z47: =IF(AND(P47<>"*", X47<>"*"), X47/P47-1, "*") -> -28.4% | AA47: =IF(AND(W47<>"*", X47<>"*"), X47/W47-1, "*") -> -0.5%
B48: Creative industries4 | C48: 4.1 | D48: 3.2 | E48: 3.5 | F48: 4.0 | G48: 3.1 | H48: 3.6 | I48: 3.5 | J48: 2.5 | K48: 3.5 | M48: -14.2% | N48: 38.7% | P48: 122.9 | Q48: 112.4 | R48: 112.5 | S48: 106.5 | T48: 112.4 | U48: 111.1 | V48: 107.8 | W48: 118.1 | X48: 116.1 | Z48: -5.5% | AA48: -1.6%
B49: Energy & environment | C49: 10.7 | D49: 9.0 | E49: 9.7 | F49: 8.8 | G49: 11.5 | H49: 10.5 | I49: 10.6 | J49: 10.7 | K49: 10.7 | M49: 0.1% | N49: -0.2% | P49: 268.3 | Q49: 266.0 | R49: 263.1 | S49: 263.8 | T49: 289.5 | U49: 266.8 | V49: 271.7 | W49: 263.0 | X49: 274.6 | Z49: 2.4% | AA49: 4.4%
B50: Food & Farming | C50: 1.8 | D50: 1.8 | E50: 1.3 | F50: 1.0 | G50: 1.0 | H50: 1.9 | I50: 1.2 | J50: 1.8 | K50: 1.6 | M50: -13.5% | N50: -9.8% | P50: 38.5 | Q50: 37.8 | R50: 40.7 | S50: 41.4 | T50: 36.3 | U50: 39.0 | V50: 41.8 | W50: 46.7 | X50: 36.3 | Z50: -5.9% | AA50: -22.3%
B51: Financial and professional services | C51: 30.3 | D51: 25.0 | E51: 27.7 | F51: 24.8 | G51: 25.1 | H51: 21.1 | I51: 22.8 | J51: 25.2 | K51: 22.4 | M51: -26.3% | N51: -11.1% | P51: 809.5 | Q51: 781.6 | R51: 796.4 | S51: 735.4 | T51: 710.2 | U51: 667.5 | V51: 681.9 | W51: 695.6 | X51: 666.0 | Z51: -17.7% | AA51: -4.3%
B52: ICT | C52: 3.3 | D52: 2.2 | E52: 2.3 | F52: 2.7 | G52: * | H52: 1.1 | I52: 1.2 | J52: * | K52: 2.0 | M52: -39.1% | N52: * | P52: 81.4 | Q52: 71.0 | R52: 67.7 | S52: 78.2 | T52: 52.5 | U52: 50.5 | V52: 56.1 | W52: 57.3 | X52: 62.2 | Z52: -23.5% | AA52: 8.7%
B53: Life sciences | C53: 1.1 | D53: 1.5 | E53: * | F53: * | G53: 1.0 | H53: * | I53: 1.0 | J53: 0.8 | K53: 0.7 | M53: -36.8% | N53: -12.1% | P53: 23.5 | Q53: 30.0 | R53: 30.8 | S53: 27.2 | T53: 36.4 | U53: 22.6 | V53: 23.7 | W53: 24.2 | X53: 25.0 | Z53: 6.3% | AA53: 3.0%
B54: Tourism | C54: 6.3 | D54: 5.0 | E54: 6.5 | F54: 6.1 | G54: 5.3 | H54: 6.7 | I54: 7.2 | J54: 7.5 | K54: 8.5 | M54: 35.9% | N54: 13.2% | P54: 150.6 | Q54: 162.4 | R54: 165.5 | S54: 156.7 | T54: 168.0 | U54: 177.0 | V54: 172.1 | W54: 169.0 | X54: 188.3 | Z54: 25.1% | AA54: 11.4%
B55: In A Priority Sector5 | C55: 63.2 | D55: 55.4 | E55: 58.0 | F55: 55.0 | G55: 50.7 | H55: 47.5 | I55: 49.2 | J55: 51.0 | K55: 53.6 | M55: -15.1% | N55: 5.2% | P55: 1,608.7 | Q55: 1,564.2 | R55: 1,589.3 | S55: 1,498.7 | T55: 1,422.9 | U55: 1,343.7 | V55: 1,364.3 | W55: 1,391.0 | X55: 1,376.7 | Z55: -14.4% | AA55: -1.0%
B56: Not In A Sector | C56: 96.2 | D56: 94.4 | E56: 86.2 | F56: 89.2 | G56: 85.9 | H56: 84.6 | I56: 88.9 | J56: 87.9 | K56: 89.3 | M56: -7.1% | N56: 1.6% | P56: 1,968.0 | Q56: 1,914.2 | R56: 1,827.7 | S56: 1,836.2 | T56: 1,800.7 | U56: 1,778.2 | V56: 1,744.2 | W56: 1,728.5 | X56: 1,707.7 | Z56: -13.2% | AA56: -1.2%
B57: Total | C57: 159.4 | D57: 149.7 | E57: 144.2 | F57: 144.2 | G57: 136.6 | H57: 132.1 | I57: 138.2 | J57: 138.9 | K57: 143.0 | M57: -10.3% | N57: 2.9% | P57: 3,576.6 | Q57: 3,478.4 | R57: 3,416.9 | S57: 3,334.9 | T57: 3,223.5 | U57: 3,121.9 | V57: 3,108.5 | W57: 3,119.5 | X57: 3,084.4 | Z57: -13.8% | AA57: -1.1%
B58: Skilled Trade Occupations:
B59: Advanced materials / manufacturing | C59: 26.2 | D59: 25.3 | E59: 22.2 | F59: 24.1 | G59: 19.9 | H59: 19.1 | I59: 20.4 | J59: 20.8 | K59: 24.3 | M59: =IF(AND(C59<>"*", K59<>"*"), K59/C59-1, "*") -> -7.5% | N59: =IF(AND(J59<>"*", K59<>"*"), K59/J59-1, "*") -> 16.7% | P59: 462.2 | Q59: 445.5 | R59: 451.2 | S59: 428.7 | T59: 368.4 | U59: 370.1 | V59: 365.5 | W59: 380.4 | X59: 356.8 | Z59: =IF(AND(P59<>"*", X59<>"*"), X59/P59-1, "*") -> -22.8% | AA59: =IF(AND(W59<>"*", X59<>"*"), X59/W59-1, "*") -> -6.2%
B60: Construction | C60: 55.4 | D60: 60.0 | E60: 62.7 | F60: 63.2 | G60: 54.6 | H60: 52.8 | I60: 50.6 | J60: 51.5 | K60: 52.0 | M60: =IF(AND(C60<>"*", K60<>"*"), K60/C60-1, "*") -> -6.0% | N60: =IF(AND(J60<>"*", K60<>"*"), K60/J60-1, "*") -> 0.9% | P60: 1,287.8 | Q60: 1,305.7 | R60: 1,317.8 | S60: 1,325.2 | T60: 1,201.5 | U60: 1,140.3 | V60: 1,137.4 | W60: 1,090.6 | X60: 1,088.3 | Z60: =IF(AND(P60<>"*", X60<>"*"), X60/P60-1, "*") -> -15.5% | AA60: =IF(AND(W60<>"*", X60<>"*"), X60/W60-1, "*") -> -0.2%
B61: Creative industries4 | C61: 0.8 | D61: 2.1 | E61: 1.8 | F61: 1.0 | G61: 1.6 | H61: 1.8 | I61: 1.6 | J61: 1.8 | K61: 2.9 | M61: 285.1% | N61: 56.9% | P61: 38.4 | Q61: 42.7 | R61: 39.5 | S61: 36.6 | T61: 53.6 | U61: 63.5 | V61: 56.8 | W61: 55.4 | X61: 63.9 | Z61: 66.3% | AA61: 15.4%
B62: Energy & environment | C62: 45.1 | D62: 48.6 | E62: 50.9 | F62: 51.2 | G62: 42.0 | H62: 39.4 | I62: 46.1 | J62: 43.8 | K62: 40.3 | M62: -10.6% | N62: -8.1% | P62: 1,027.6 | Q62: 1,052.6 | R62: 1,066.3 | S62: 1,057.5 | T62: 956.7 | U62: 904.7 | V62: 935.8 | W62: 877.8 | X62: 919.4 | Z62: -10.5% | AA62: 4.7%
B63: Food & Farming | C63: 16.8 | D63: 16.0 | E63: 14.5 | F63: 16.9 | G63: 17.7 | H63: 14.8 | I63: 17.7 | J63: 19.0 | K63: 17.8 | M63: 6.0% | N63: -6.0% | P63: 169.2 | Q63: 170.7 | R63: 176.9 | S63: 190.1 | T63: 175.1 | U63: 197.7 | V63: 207.7 | W63: 197.9 | X63: 184.9 | Z63: 9.3% | AA63: -6.6%
B64: Financial and professional services | C64: 1.4 | D64: 1.7 | E64: 1.8 | F64: 1.5 | G64: 2.2 | H64: 1.7 | I64: 4.1 | J64: 3.7 | K64: 2.5 | M64: 85.0% | N64: -33.1% | P64: 39.3 | Q64: 39.0 | R64: 43.3 | S64: 44.4 | T64: 63.4 | U64: 57.3 | V64: 77.2 | W64: 73.1 | X64: 81.1 | Z64: 106.6% | AA64: 10.9%
B65: ICT | C65: 5.0 | D65: 3.8 | E65: 4.0 | F65: 3.9 | G65: 1.9 | H65: 1.5 | I65: 2.5 | J65: 2.1 | K65: 3.5 | M65: -29.0% | N65: 68.6% | P65: 88.4 | Q65: 90.2 | R65: 84.0 | S65: 89.4 | T65: 48.8 | U65: 48.9 | V65: 56.3 | W65: 48.8 | X65: 51.1 | Z65: -42.2% | AA65: 4.8%
B66: Life sciences | C66: 1.1 | D66: * | E66: 1.0 | F66: 1.1 | G66: * | H66: * | I66: 1.3 | J66: 1.5 | K66: * | M66: * | N66: * | P66: 18.0 | Q66: 16.1 | R66: 17.3 | S66: 16.3 | T66: 20.6 | U66: 15.6 | V66: 17.9 | W66: 22.1 | X66: 22.7 | Z66: 26.1% | AA66: 2.7%
B67: Tourism | C67: 8.9 | D67: 11.4 | E67: 11.9 | F67: 12.3 | G67: 13.4 | H67: 12.8 | I67: 10.7 | J67: 12.8 | K67: 11.4 | M67: 27.6% | N67: -10.9% | P67: 228.1 | Q67: 233.5 | R67: 232.8 | S67: 230.2 | T67: 243.5 | U67: 267.2 | V67: 250.4 | W67: 271.8 | X67: 283.1 | Z67: 24.1% | AA67: 4.2%
B68: In A Priority Sector5 | C68: 117.2 | D68: 122.6 | E68: 122.6 | F68: 126.6 | G68: 117.4 | H68: 112.1 | I68: 114.9 | J68: 120.1 | K68: 120.2 | M68: 2.5% | N68: 0.1% | P68: 2,366.9 | Q68: 2,396.0 | R68: 2,413.9 | S68: 2,406.3 | T68: 2,300.6 | U68: 2,278.6 | V68: 2,298.2 | W68: 2,269.3 | X68: 2,276.8 | Z68: -3.8% | AA68: 0.3%
B69: Not In A Sector | C69: 40.4 | D69: 40.3 | E69: 38.8 | F69: 36.3 | G69: 35.7 | H69: 35.4 | I69: 32.8 | J69: 30.9 | K69: 31.1 | M69: -23.0% | N69: 0.7% | P69: 853.8 | Q69: 812.0 | R69: 778.2 | S69: 785.5 | T69: 734.6 | U69: 715.6 | V69: 693.7 | W69: 709.5 | X69: 731.6 | Z69: -14.3% | AA69: 3.1%
B70: Total | C70: 157.6 | D70: 162.9 | E70: 161.3 | F70: 162.9 | G70: 153.1 | H70: 147.5 | I70: 147.6 | J70: 151.0 | K70: 151.3 | M70: -4.0% | N70: 0.2% | P70: 3,220.7 | Q70: 3,208.0 | R70: 3,192.1 | S70: 3,191.8 | T70: 3,035.2 | U70: 2,994.2 | V70: 2,991.9 | W70: 2,978.8 | X70: 3,008.5 | Z70: -6.6% | AA70: 1.0%
B71: Personal Service Occupations:
B72: Advanced materials / manufacturing | C72: * | D72: * | E72: * | F72: * | G72: * | H72: * | I72: * | J72: * | K72: * | M72: =IF(AND(C72<>"*", K72<>"*"), K72/C72-1, "*") -> * | N72: =IF(AND(J72<>"*", K72<>"*"), K72/J72-1, "*") -> * | P72: 3.6 | Q72: 3.3 | R72: 6.0 | S72: 3.0 | T72: 2.0 | U72: 3.0 | V72: * | W72: * | X72: 2.8 | Z72: =IF(AND(P72<>"*", X72<>"*"), X72/P72-1, "*") -> -22.6% | AA72: =IF(AND(W72<>"*", X72<>"*"), X72/W72-1, "*") -> *
B73: Construction | C73: * | D73: * | E73: * | F73: * | G73: * | H73: * | I73: * | J73: * | K73: * | M73: =IF(AND(C73<>"*", K73<>"*"), K73/C73-1, "*") -> * | N73: =IF(AND(J73<>"*", K73<>"*"), K73/J73-1, "*") -> * | P73: 15.7 | Q73: 15.7 | R73: 15.5 | S73: 15.9 | T73: 6.1 | U73: 6.3 | V73: 5.7 | W73: 3.9 | X73: 5.6 | Z73: =IF(AND(P73<>"*", X73<>"*"), X73/P73-1, "*") -> -64.0% | AA73: =IF(AND(W73<>"*", X73<>"*"), X73/W73-1, "*") -> 43.2%
B74: Creative industries4 | C74: * | D74: * | E74: * | F74: * | G74: * | H74: * | I74: * | J74: * | K74: * | M74: * | N74: * | P74: 8.9 | Q74: 10.1 | R74: 8.0 | S74: 10.2 | T74: 11.2 | U74: 11.8 | V74: 13.2 | W74: 10.3 | X74: 12.4 | Z74: 38.6% | AA74: 20.0%
B75: Energy & environment | C75: 0.7 | D75: * | E75: * | F75: * | G75: 1.1 | H75: 1.0 | I75: 0.8 | J75: 0.9 | K75: 0.9 | M75: 27.5% | N75: -0.2% | P75: 17.4 | Q75: 15.2 | R75: 15.8 | S75: 14.5 | T75: 26.1 | U75: 22.7 | V75: 25.3 | W75: 19.5 | X75: 26.8 | Z75: 54.1% | AA75: 37.0%
B76: Food & Farming | C76: 1.3 | D76: 0.8 | E76: 1.1 | F76: * | G76: * | H76: * | I76: * | J76: * | K76: * | M76: * | N76: * | P76: 16.4 | Q76: 18.2 | R76: 26.9 | S76: 28.8 | T76: 5.2 | U76: 6.6 | V76: 7.6 | W76: 7.7 | X76: 10.6 | Z76: -35.2% | AA76: 37.8%
B77: Financial and professional services | C77: 1.3 | D77: 0.7 | E77: 1.8 | F77: 0.8 | G77: 1.0 | H77: 2.0 | I77: 1.5 | J77: 1.2 | K77: 1.7 | M77: 24.8% | N77: 39.4% | P77: 29.6 | Q77: 31.4 | R77: 27.5 | S77: 30.8 | T77: 41.2 | U77: 41.6 | V77: 46.5 | W77: 41.9 | X77: 47.2 | Z77: 59.5% | AA77: 12.7%
B78: ICT | C78: * | D78: * | E78: * | F78: * | G78: * | H78: * | I78: * | J78: * | K78: * | M78: * | N78: * | P78: 1.5 | Q78: * | R78: * | S78: * | T78: * | U78: * | V78: * | W78: * | X78: * | Z78: * | AA78: *
B79: Life sciences | C79: * | D79: * | E79: * | F79: * | G79: * | H79: * | I79: * | J79: * | K79: * | M79: * | N79: * | P79: 1.7 | Q79: 1.9 | R79: 3.0 | S79: * | T79: * | U79: * | V79: * | W79: * | X79: * | Z79: * | AA79: *
B80: Tourism | C80: 8.0 | D80: 7.1 | E80: 6.6 | F80: 7.4 | G80: 7.9 | H80: 8.8 | I80: 6.9 | J80: 7.8 | K80: 7.5 | M80: -6.3% | N80: -3.9% | P80: 163.0 | Q80: 167.9 | R80: 151.1 | S80: 169.0 | T80: 187.2 | U80: 185.7 | V80: 180.4 | W80: 175.1 | X80: 175.2 | Z80: 7.5% | AA80: 0.0%
B81: In A Priority Sector5 | C81: 11.5 | D81: 9.3 | E81: 10.7 | F81: 10.7 | G81: 10.0 | H81: 12.1 | I81: 9.3 | J81: 10.1 | K81: 10.0 | M81: -13.3% | N81: -0.8% | P81: 235.2 | Q81: 244.6 | R81: 234.9 | S81: 255.5 | T81: 251.7 | U81: 254.4 | V81: 253.3 | W81: 241.0 | X81: 255.5 | Z81: 8.6% | AA81: 6.0%
B82: Not In A Sector | C82: 95.3 | D82: 101.4 | E82: 106.4 | F82: 105.3 | G82: 109.0 | H82: 119.0 | I82: 107.7 | J82: 118.9 | K82: 120.4 | M82: 26.4% | N82: 1.3% | P82: 1,990.2 | Q82: 2,049.4 | R82: 2,085.4 | S82: 2,129.8 | T82: 2,221.6 | U82: 2,326.3 | V82: 2,275.3 | W82: 2,307.8 | X82: 2,383.5 | Z82: 19.8% | AA82: 3.3%
B83: Total | C83: 106.8 | D83: 110.7 | E83: 117.1 | F83: 116.0 | G83: 119.0 | H83: 131.2 | I83: 117.0 | J83: 128.9 | K83: 130.4 | M83: 22.1% | N83: 1.2% | P83: 2,225.4 | Q83: 2,294.0 | R83: 2,320.2 | S83: 2,385.2 | T83: 2,473.3 | U83: 2,580.7 | V83: 2,528.7 | W83: 2,548.8 | X83: 2,639.0 | Z83: 18.6% | AA83: 3.5%
B84: Sales and Customer Service Occupations:
B85: Advanced materials / manufacturing | C85: 1.4 | D85: * | E85: 1.7 | F85: 1.1 | G85: 1.6 | H85: * | I85: 1.6 | J85: 1.0 | K85: * | M85: =IF(AND(C85<>"*", K85<>"*"), K85/C85-1, "*") -> * | N85: =IF(AND(J85<>"*", K85<>"*"), K85/J85-1, "*") -> * | P85: 32.2 | Q85: 33.0 | R85: 37.5 | S85: 29.6 | T85: 24.1 | U85: 26.8 | V85: 27.7 | W85: 22.2 | X85: 22.4 | Z85: =IF(AND(P85<>"*", X85<>"*"), X85/P85-1, "*") -> -30.5% | AA85: =IF(AND(W85<>"*", X85<>"*"), X85/W85-1, "*") -> 0.9%
B86: Construction | C86: 1.2 | D86: 0.8 | E86: 1.1 | F86: 1.4 | G86: 1.6 | H86: 1.1 | I86: 1.3 | J86: * | K86: * | M86: =IF(AND(C86<>"*", K86<>"*"), K86/C86-1, "*") -> * | N86: =IF(AND(J86<>"*", K86<>"*"), K86/J86-1, "*") -> * | P86: 22.3 | Q86: 26.5 | R86: 28.6 | S86: 24.6 | T86: 19.9 | U86: 23.3 | V86: 21.6 | W86: 16.1 | X86: 21.3 | Z86: =IF(AND(P86<>"*", X86<>"*"), X86/P86-1, "*") -> -4.6% | AA86: =IF(AND(W86<>"*", X86<>"*"), X86/W86-1, "*") -> 32.2%
B87: Creative industries4 | C87: 0.8 | D87: 1.0 | E87: * | F87: * | G87: * | H87: * | I87: * | J87: * | K87: 1.1 | M87: 42.0% | N87: * | P87: 35.1 | Q87: 33.7 | R87: 31.6 | S87: 34.6 | T87: 34.1 | U87: 32.3 | V87: 30.5 | W87: 26.8 | X87: 32.1 | Z87: -8.6% | AA87: 19.9%
B88: Energy & environment | C88: 3.6 | D88: 3.3 | E88: 2.4 | F88: 2.9 | G88: 3.1 | H88: 2.9 | I88: 5.3 | J88: 4.5 | K88: 4.2 | M88: 16.2% | N88: -8.2% | P88: 55.7 | Q88: 55.3 | R88: 62.9 | S88: 57.6 | T88: 60.6 | U88: 63.9 | V88: 66.4 | W88: 65.1 | X88: 65.8 | Z88: 18.2% | AA88: 1.0%
B89: Food & Farming | C89: * | D89: * | E89: * | F89: * | G89: * | H89: * | I89: * | J89: * | K89: * | M89: * | N89: * | P89: 13.3 | Q89: 12.9 | R89: 14.5 | S89: 11.8 | T89: 11.5 | U89: 13.9 | V89: 12.4 | W89: 15.0 | X89: 9.1 | Z89: -31.4% | AA89: -39.2%
B90: Financial and professional services | C90: 7.9 | D90: 7.2 | E90: 6.6 | F90: 7.7 | G90: 7.8 | H90: 6.4 | I90: 6.5 | J90: 5.7 | K90: 5.1 | M90: -34.5% | N90: -9.0% | P90: 163.2 | Q90: 172.9 | R90: 168.2 | S90: 161.6 | T90: 152.2 | U90: 157.7 | V90: 142.8 | W90: 135.4 | X90: 142.3 | Z90: -12.8% | AA90: 5.1%
B91: ICT | C91: 4.0 | D91: 5.3 | E91: 3.7 | F91: 3.8 | G91: 0.7 | H91: 1.1 | I91: 2.0 | J91: 1.7 | K91: 0.9 | M91: -77.5% | N91: -46.1% | P91: 60.2 | Q91: 70.1 | R91: 76.9 | S91: 62.3 | T91: 36.8 | U91: 33.0 | V91: 33.7 | W91: 27.5 | X91: 28.2 | Z91: -53.1% | AA91: 2.8%
B92: Life sciences | C92: * | D92: * | E92: * | F92: * | G92: * | H92: * | I92: * | J92: * | K92: * | M92: * | N92: * | P92: 2.6 | Q92: 4.3 | R92: 3.1 | S92: 5.1 | T92: 4.6 | U92: 4.5 | V92: 4.1 | W92: 4.4 | X92: 4.4 | Z92: 65.6% | AA92: -0.4%
B93: Tourism | C93: 3.7 | D93: 3.3 | E93: 5.0 | F93: 3.4 | G93: 5.6 | H93: 6.2 | I93: 4.0 | J93: 5.1 | K93: 3.7 | M93: 0.1% | N93: -27.4% | P93: 95.5 | Q93: 89.9 | R93: 107.0 | S93: 94.7 | T93: 119.9 | U93: 124.2 | V93: 102.5 | W93: 111.5 | X93: 113.2 | Z93: 18.5% | AA93: 1.5%
B94: In A Priority Sector5 | C94: 21.8 | D94: 21.4 | E94: 20.4 | F94: 20.0 | G94: 20.5 | H94: 18.2 | I94: 20.3 | J94: 18.6 | K94: 15.2 | M94: -30.2% | N94: -18.3% | P94: 446.4 | Q94: 464.3 | R94: 491.2 | S94: 447.4 | T94: 424.5 | U94: 434.4 | V94: 399.0 | W94: 387.3 | X94: 398.1 | Z94: -10.8% | AA94: 2.8%
B95: Not In A Sector | C95: 84.8 | D95: 82.5 | E95: 87.6 | F95: 81.3 | G95: 78.7 | H95: 77.0 | I95: 81.2 | J95: 81.8 | K95: 79.9 | M95: -5.8% | N95: -2.3% | P95: 1,757.9 | Q95: 1,756.9 | R95: 1,720.6 | S95: 1,767.8 | T95: 1,684.8 | U95: 1,692.6 | V95: 1,724.1 | W95: 1,796.1 | X95: 1,722.7 | Z95: -2.0% | AA95: -4.1%
B96: Total | C96: 106.6 | D96: 103.9 | E96: 108.0 | F96: 101.3 | G96: 99.2 | H96: 95.2 | I96: 101.5 | J96: 100.5 | K96: 95.1 | M96: -10.8% | N96: -5.3% | P96: 2,204.2 | Q96: 2,221.2 | R96: 2,211.7 | S96: 2,215.2 | T96: 2,109.2 | U96: 2,127.0 | V96: 2,123.1 | W96: 2,183.4 | X96: 2,120.9 | Z96: -3.8% | AA96: -2.9%
B97: Process, Plant and Machine Operatives:
B98: Advanced materials / manufacturing | C98: 35.1 | D98: 33.7 | E98: 30.2 | F98: 29.5 | G98: 20.9 | H98: 20.8 | I98: 19.1 | J98: 20.1 | K98: 19.7 | M98: =IF(AND(C98<>"*", K98<>"*"), K98/C98-1, "*") -> -43.8% | N98: =IF(AND(J98<>"*", K98<>"*"), K98/J98-1, "*") -> -1.7% | P98: 466.4 | Q98: 434.9 | R98: 426.8 | S98: 395.1 | T98: 317.9 | U98: 322.6 | V98: 303.4 | W98: 300.4 | X98: 314.1 | Z98: =IF(AND(P98<>"*", X98<>"*"), X98/P98-1, "*") -> -32.7% | AA98: =IF(AND(W98<>"*", X98<>"*"), X98/W98-1, "*") -> 4.6%
B99: Construction | C99: 13.4 | D99: 17.4 | E99: 15.4 | F99: 15.1 | G99: 11.9 | H99: 13.2 | I99: 10.4 | J99: 13.0 | K99: 10.7 | M99: =IF(AND(C99<>"*", K99<>"*"), K99/C99-1, "*") -> -20.2% | N99: =IF(AND(J99<>"*", K99<>"*"), K99/J99-1, "*") -> -18.1% | P99: 248.6 | Q99: 268.6 | R99: 255.3 | S99: 255.0 | T99: 221.9 | U99: 225.7 | V99: 205.6 | W99: 217.1 | X99: 206.9 | Z99: =IF(AND(P99<>"*", X99<>"*"), X99/P99-1, "*") -> -16.8% | AA99: =IF(AND(W99<>"*", X99<>"*"), X99/W99-1, "*") -> -4.7%
B100: Creative industries4 | C100: * | D100: * | E100: * | F100: * | G100: * | H100: * | I100: * | J100: * | K100: * | M100: * | N100: * | P100: 10.6 | Q100: 10.7 | R100: 8.9 | S100: 7.1 | T100: 12.7 | U100: 13.9 | V100: 11.8 | W100: 10.4 | X100: 12.0 | Z100: 12.6% | AA100: 14.6%
B101: Energy & environment | C101: 18.3 | D101: 19.3 | E101: 18.9 | F101: 17.5 | G101: 15.4 | H101: 16.2 | I101: 13.7 | J101: 16.3 | K101: 13.9 | M101: -24.3% | N101: -15.0% | P101: 310.5 | Q101: 313.3 | R101: 307.4 | S101: 308.1 | T101: 273.1 | U101: 270.0 | V101: 272.1 | W101: 291.0 | X101: 270.9 | Z101: -12.8% | AA101: -6.9%
B102: Food & Farming | C102: 7.9 | D102: 7.4 | E102: 8.8 | F102: 5.8 | G102: 6.4 | H102: 6.3 | I102: 6.8 | J102: 5.8 | K102: 6.7 | M102: -15.6% | N102: 15.0% | P102: 144.5 | Q102: 153.3 | R102: 159.9 | S102: 142.6 | T102: 134.2 | U102: 144.0 | V102: 157.6 | W102: 137.6 | X102: 149.1 | Z102: 3.2% | AA102: 8.4%
B103: Financial and professional services | C103: 1.0 | D103: * | E103: 1.5 | F103: * | G103: 1.1 | H103: 1.1 | I103: 2.0 | J103: 1.3 | K103: 1.3 | M103: 28.2% | N103: -4.0% | P103: 26.6 | Q103: 28.1 | R103: 28.9 | S103: 26.6 | T103: 39.3 | U103: 38.0 | V103: 39.5 | W103: 39.7 | X103: 40.2 | Z103: 51.5% | AA103: 1.4%
B104: ICT | C104: 4.2 | D104: 3.6 | E104: 2.5 | F104: 2.3 | G104: 1.8 | H104: 1.6 | I104: 1.4 | J104: 2.7 | K104: 2.2 | M104: -49.0% | N104: -20.8% | P104: 44.7 | Q104: 37.3 | R104: 38.0 | S104: 32.6 | T104: 26.7 | U104: 27.9 | V104: 26.4 | W104: 28.5 | X104: 26.0 | Z104: -41.8% | AA104: -8.7%
B105: Life sciences | C105: 2.2 | D105: 3.1 | E105: 2.3 | F105: 2.5 | G105: 1.7 | H105: 1.3 | I105: 1.6 | J105: 1.2 | K105: 1.2 | M105: -43.7% | N105: 5.2% | P105: 32.9 | Q105: 32.9 | R105: 30.3 | S105: 32.9 | T105: 34.4 | U105: 24.3 | V105: 27.3 | W105: 25.3 | X105: 30.4 | Z105: -7.4% | AA105: 20.1%
B106: Tourism | C106: 9.1 | D106: 8.6 | E106: 10.4 | F106: 9.0 | G106: 10.3 | H106: 10.3 | I106: 9.7 | J106: 9.2 | K106: 9.8 | M106: 7.8% | N106: 6.8% | P106: 233.8 | Q106: 230.8 | R106: 248.9 | S106: 244.0 | T106: 252.6 | U106: 263.5 | V106: 237.1 | W106: 247.4 | X106: 233.3 | Z106: -0.2% | AA106: -5.7%
B107: In A Priority Sector5 | C107: 74.3 | D107: 76.0 | E107: 75.2 | F107: 67.8 | G107: 59.0 | H107: 59.8 | I107: 55.8 | J107: 56.5 | K107: 55.8 | M107: -24.9% | N107: -1.3% | P107: 1,250.8 | Q107: 1,247.8 | R107: 1,244.5 | S107: 1,195.0 | T107: 1,119.3 | U107: 1,126.2 | V107: 1,089.0 | W107: 1,089.9 | X107: 1,085.8 | Z107: -13.2% | AA107: -0.4%
B108: Not In A Sector | C108: 42.7 | D108: 40.4 | E108: 40.0 | F108: 38.1 | G108: 33.7 | H108: 35.7 | I108: 32.5 | J108: 32.3 | K108: 35.1 | M108: -17.7% | N108: 8.9% | P108: 893.8 | Q108: 857.6 | R108: 856.0 | S108: 864.5 | T108: 822.6 | U108: 789.1 | V108: 789.7 | W108: 763.1 | X108: 788.6 | Z108: -11.8% | AA108: 3.3%
B109: Total | C109: 117.0 | D109: 116.4 | E109: 115.2 | F109: 105.9 | G109: 92.7 | H109: 95.4 | I109: 88.4 | J109: 88.8 | K109: 91.0 | M109: -22.3% | N109: 2.4% | P109: 2,144.6 | Q109: 2,105.3 | R109: 2,100.5 | S109: 2,059.5 | T109: 1,941.9 | U109: 1,915.3 | V109: 1,878.7 | W109: 1,853.0 | X109: 1,874.4 | Z109: -12.6% | AA109: 1.2%
B110: Elementary Occupations:
B111: Advanced materials / manufacturing | C111: 11.8 | D111: 9.3 | E111: 8.1 | F111: 7.9 | G111: 6.3 | H111: 5.5 | I111: 7.9 | J111: 6.4 | K111: 4.8 | M111: =IF(AND(C111<>"*", K111<>"*"), K111/C111-1, "*") -> -58.9% | N111: =IF(AND(J111<>"*", K111<>"*"), K111/J111-1, "*") -> -24.5% | P111: 142.1 | Q111: 130.4 | R111: 132.8 | S111: 128.2 | T111: 97.6 | U111: 104.0 | V111: 95.8 | W111: 104.9 | X111: 105.1 | Z111: =IF(AND(P111<>"*", X111<>"*"), X111/P111-1, "*") -> -26.1% | AA111: =IF(AND(W111<>"*", X111<>"*"), X111/W111-1, "*") -> 0.2%
B112: Construction | C112: 11.9 | D112: 11.9 | E112: 14.6 | F112: 13.8 | G112: 9.8 | H112: 8.8 | I112: 11.1 | J112: 8.1 | K112: 9.0 | M112: =IF(AND(C112<>"*", K112<>"*"), K112/C112-1, "*") -> -24.7% | N112: =IF(AND(J112<>"*", K112<>"*"), K112/J112-1, "*") -> 11.7% | P112: 225.8 | Q112: 238.5 | R112: 235.5 | S112: 229.3 | T112: 192.9 | U112: 172.5 | V112: 186.3 | W112: 159.1 | X112: 197.4 | Z112: =IF(AND(P112<>"*", X112<>"*"), X112/P112-1, "*") -> -12.6% | AA112: =IF(AND(W112<>"*", X112<>"*"), X112/W112-1, "*") -> 24.1%
B113: Creative industries4 | C113: 1.5 | D113: 1.3 | E113: 1.7 | F113: 1.8 | G113: 2.6 | H113: 1.2 | I113: 1.0 | J113: 2.5 | K113: 1.3 | M113: -10.2% | N113: -46.7% | P113: 40.8 | Q113: 38.1 | R113: 39.7 | S113: 43.5 | T113: 41.5 | U113: 43.4 | V113: 43.3 | W113: 43.8 | X113: 38.6 | Z113: -5.4% | AA113: -11.9%
B114: Energy & environment | C114: 22.9 | D114: 23.0 | E114: 24.0 | F114: 22.3 | G114: 22.6 | H114: 17.2 | I114: 22.9 | J114: 21.5 | K114: 17.9 | M114: -22.0% | N114: -17.0% | P114: 440.9 | Q114: 441.0 | R114: 474.2 | S114: 480.9 | T114: 474.4 | U114: 440.9 | V114: 496.5 | W114: 473.9 | X114: 512.5 | Z114: 16.2% | AA114: 8.1%
B115: Food & Farming | C115: 9.3 | D115: 10.1 | E115: 8.0 | F115: 8.0 | G115: 9.7 | H115: 10.5 | I115: 11.0 | J115: 9.1 | K115: 11.4 | M115: 22.7% | N115: 25.5% | P115: 130.9 | Q115: 141.9 | R115: 121.3 | S115: 138.1 | T115: 144.2 | U115: 161.4 | V115: 164.8 | W115: 172.8 | X115: 153.3 | Z115: 17.2% | AA115: -11.3%
B116: Financial and professional services | C116: 13.5 | D116: 14.7 | E116: 12.3 | F116: 13.4 | G116: 15.5 | H116: 12.7 | I116: 13.3 | J116: 17.4 | K116: 12.7 | M116: -6.2% | N116: -27.1% | P116: 356.1 | Q116: 345.0 | R116: 372.1 | S116: 392.9 | T116: 419.3 | U116: 422.5 | V116: 447.0 | W116: 449.6 | X116: 466.4 | Z116: 31.0% | AA116: 3.7%
B117: ICT | C117: 1.4 | D117: * | E117: * | F117: * | G117: * | H117: * | I117: * | J117: * | K117: * | M117: * | N117: * | P117: 14.3 | Q117: 12.5 | R117: 13.2 | S117: 13.8 | T117: 10.1 | U117: 8.2 | V117: 11.0 | W117: 11.4 | X117: 9.0 | Z117: -37.4% | AA117: -21.2%
B118: Life sciences | C118: 1.7 | D118: 1.2 | E118: * | F118: 1.3 | G118: 1.4 | H118: * | I118: 1.0 | J118: 1.4 | K118: * | M118: * | N118: * | P118: 17.4 | Q118: 14.9 | R118: 14.8 | S118: 15.4 | T118: 19.3 | U118: 16.1 | V118: 12.4 | W118: 15.7 | X118: 14.9 | Z118: -14.4% | AA118: -4.7%
B119: Tourism | C119: 37.8 | D119: 33.4 | E119: 36.3 | F119: 37.3 | G119: 39.1 | H119: 36.5 | I119: 41.6 | J119: 41.0 | K119: 42.5 | M119: 12.3% | N119: 3.7% | P119: 687.7 | Q119: 696.0 | R119: 697.4 | S119: 717.0 | T119: 756.2 | U119: 778.0 | V119: 820.3 | W119: 802.4 | X119: 817.8 | Z119: 18.9% | AA119: 1.9%
B120: In A Priority Sector5 | C120: 91.7 | D120: 86.5 | E120: 87.0 | F120: 86.3 | G120: 87.1 | H120: 80.2 | I120: 92.5 | J120: 90.7 | K120: 88.5 | M120: -3.5% | N120: -2.5% | P120: 1,680.6 | Q120: 1,687.7 | R120: 1,706.0 | S120: 1,754.3 | T120: 1,765.5 | U120: 1,782.2 | V120: 1,875.7 | W120: 1,843.1 | X120: 1,904.2 | Z120: 13.3% | AA120: 3.3%
B121: Not In A Sector | C121: 73.9 | D121: 73.2 | E121: 69.7 | F121: 71.8 | G121: 70.1 | H121: 60.9 | I121: 60.1 | J121: 58.1 | K121: 60.4 | M121: -18.2% | N121: 4.1% | P121: 1,566.4 | Q121: 1,604.8 | R121: 1,606.9 | S121: 1,572.5 | T121: 1,471.0 | U121: 1,412.7 | V121: 1,420.3 | W121: 1,413.1 | X121: 1,391.7 | Z121: -11.2% | AA121: -1.5%
B122: Total | C122: 165.6 | D122: 159.7 | E122: 156.7 | F122: 158.1 | G122: 157.2 | H122: 141.1 | I122: 152.6 | J122: 148.8 | K122: 148.9 | M122: -10.1% | N122: 0.1% | P122: 3,247.1 | Q122: 3,292.5 | R122: 3,312.9 | S122: 3,326.8 | T122: 3,236.5 | U122: 3,195.0 | V122: 3,296.0 | W122: 3,256.2 | X122: 3,295.9 | Z122: 1.5% | AA122: 1.2%
B123: All occupations6:
B124: Advanced materials / manufacturing | C124: ='3.1'!C6 -> 118.2 | D124: ='3.1'!D6 -> 106.6 | E124: ='3.1'!E6 -> 103.8 | F124: ='3.1'!F6 -> 105.9 | G124: ='3.1'!G6 -> 81.2 | H124: ='3.1'!H6 -> 78.9 | I124: ='3.1'!I6 -> 81.3 | J124: ='3.1'!J6 -> 80.4 | K124: ='3.1'!K6 -> 84.4 | M124: ='3.1'!M6 -> -28.6% | N124: ='3.1'!N6 -> 5.0% | P124: ='3.1'!C19 -> 2,039.6 | Q124: ='3.1'!D19 -> 1,988.7 | R124: ='3.1'!E19 -> 2,011.7 | S124: ='3.1'!F19 -> 1,886.9 | T124: ='3.1'!G19 -> 1,586.8 | U124: ='3.1'!H19 -> 1,615.9 | V124: ='3.1'!I19 -> 1,569.5 | W124: ='3.1'!J19 -> 1,605.0 | X124: ='3.1'!K19 -> 1,608.1 | Z124: ='3.1'!M19 -> -21.2% | AA124: ='3.1'!N19 -> 0.2%
B125: Construction | C125: ='3.1'!C7 -> 116.0 | D125: ='3.1'!D7 -> 128.9 | E125: ='3.1'!E7 -> 135.8 | F125: ='3.1'!F7 -> 135.8 | G125: ='3.1'!G7 -> 116.0 | H125: ='3.1'!H7 -> 110.1 | I125: ='3.1'!I7 -> 109.7 | J125: ='3.1'!J7 -> 101.8 | K125: ='3.1'!K7 -> 101.8 | M125: ='3.1'!M7 -> -12.3% | N125: ='3.1'!N7 -> -0.1% | P125: ='3.1'!C20 -> 2,734.3 | Q125: ='3.1'!D20 -> 2,813.8 | R125: ='3.1'!E20 -> 2,830.7 | S125: ='3.1'!F20 -> 2,874.5 | T125: ='3.1'!G20 -> 2,609.1 | U125: ='3.1'!H20 -> 2,468.4 | V125: ='3.1'!I20 -> 2,434.3 | W125: ='3.1'!J20 -> 2,356.0 | X125: ='3.1'!K20 -> 2,427.0 | Z125: ='3.1'!M20 -> -11.2% | AA125: ='3.1'!N20 -> 3.0%
B126: Creative industries4 | C126: ='3.1'!C8 -> 30.8 | D126: ='3.1'!D8 -> 31.4 | E126: ='3.1'!E8 -> 37.6 | F126: ='3.1'!F8 -> 33.2 | G126: ='3.1'!G8 -> 38.1 | H126: ='3.1'!H8 -> 36.7 | I126: ='3.1'!I8 -> 42.0 | J126: ='3.1'!J8 -> 39.9 | K126: ='3.1'!K8 -> 48.9 | M126: ='3.1'!M8 -> 58.5% | N126: ='3.1'!N8 -> 22.4% | P126: ='3.1'!C21 -> 1,129.3 | Q126: ='3.1'!D21 -> 1,157.4 | R126: ='3.1'!E21 -> 1,162.3 | S126: ='3.1'!F21 -> 1,151.4 | T126: ='3.1'!G21 -> 1,441.1 | U126: ='3.1'!H21 -> 1,425.0 | V126: ='3.1'!I21 -> 1,464.8 | W126: ='3.1'!J21 -> 1,597.6 | X126: ='3.1'!K21 -> 1,612.7 | Z126: ='3.1'!M21 -> 42.8% | AA126: ='3.1'!N21 -> 0.9%
B127: Energy & environment | C127: ='3.1'!C9 -> 142.0 | D127: ='3.1'!D9 -> 147.2 | E127: ='3.1'!E9 -> 153.3 | F127: ='3.1'!F9 -> 153.8 | G127: ='3.1'!G9 -> 153.7 | H127: ='3.1'!H9 -> 139.5 | I127: ='3.1'!I9 -> 160.3 | J127: ='3.1'!J9 -> 151.7 | K127: ='3.1'!K9 -> 141.9 | M127: ='3.1'!M9 -> -0.1% | N127: ='3.1'!N9 -> -6.5% | P127: ='3.1'!C22 -> 3,350.3 | Q127: ='3.1'!D22 -> 3,395.5 | R127: ='3.1'!E22 -> 3,506.1 | S127: ='3.1'!F22 -> 3,526.8 | T127: ='3.1'!G22 -> 3,650.3 | U127: ='3.1'!H22 -> 3,573.1 | V127: ='3.1'!I22 -> 3,652.0 | W127: ='3.1'!J22 -> 3,597.3 | X127: ='3.1'!K22 -> 3,758.6 | Z127: ='3.1'!M22 -> 12.2% | AA127: ='3.1'!N22 -> 4.5%
B128: Food & Farming | C128: ='3.1'!C10 -> 43.9 | D128: ='3.1'!D10 -> 42.6 | E128: ='3.1'!E10 -> 41.8 | F128: ='3.1'!F10 -> 41.3 | G128: ='3.1'!G10 -> 40.3 | H128: ='3.1'!H10 -> 41.1 | I128: ='3.1'!I10 -> 43.2 | J128: ='3.1'!J10 -> 42.8 | K128: ='3.1'!K10 -> 44.6 | M128: ='3.1'!M10 -> 1.6% | N128: ='3.1'!N10 -> 4.3% | P128: ='3.1'!C23 -> 650.2 | Q128: ='3.1'!D23 -> 684.3 | R128: ='3.1'!E23 -> 692.8 | S128: ='3.1'!F23 -> 718.0 | T128: ='3.1'!G23 -> 652.4 | U128: ='3.1'!H23 -> 707.8 | V128: ='3.1'!I23 -> 730.2 | W128: ='3.1'!J23 -> 712.1 | X128: ='3.1'!K23 -> 694.7 | Z128: ='3.1'!M23 -> 6.8% | AA128: ='3.1'!N23 -> -2.5%
B129: Financial and professional services | C129: ='3.1'!C11 -> 104.3 | D129: ='3.1'!D11 -> 97.0 | E129: ='3.1'!E11 -> 103.3 | F129: ='3.1'!F11 -> 106.2 | G129: ='3.1'!G11 -> 114.1 | H129: ='3.1'!H11 -> 104.8 | I129: ='3.1'!I11 -> 115.3 | J129: ='3.1'!J11 -> 118.0 | K129: ='3.1'!K11 -> 107.0 | M129: ='3.1'!M11 -> 2.5% | N129: ='3.1'!N11 -> -9.3% | P129: ='3.1'!C24 -> 3,275.7 | Q129: ='3.1'!D24 -> 3,288.3 | R129: ='3.1'!E24 -> 3,482.5 | S129: ='3.1'!F24 -> 3,457.1 | T129: ='3.1'!G24 -> 3,551.5 | U129: ='3.1'!H24 -> 3,558.6 | V129: ='3.1'!I24 -> 3,608.1 | W129: ='3.1'!J24 -> 3,702.4 | X129: ='3.1'!K24 -> 3,789.8 | Z129: ='3.1'!M24 -> 15.7% | AA129: ='3.1'!N24 -> 2.4%
B130: ICT | C130: ='3.1'!C12 -> 36.5 | D130: ='3.1'!D12 -> 32.1 | E130: ='3.1'!E12 -> 30.4 | F130: ='3.1'!F12 -> 32.5 | G130: ='3.1'!G12 -> 23.6 | H130: ='3.1'!H12 -> 20.5 | I130: ='3.1'!I12 -> 26.1 | J130: ='3.1'!J12 -> 24.1 | K130: ='3.1'!K12 -> 29.0 | M130: ='3.1'!M12 -> -20.5% | N130: ='3.1'!N12 -> 20.2% | P130: ='3.1'!C25 -> 1,016.2 | Q130: ='3.1'!D25 -> 1,032.4 | R130: ='3.1'!E25 -> 1,027.8 | S130: ='3.1'!F25 -> 1,012.9 | T130: ='3.1'!G25 -> 847.2 | U130: ='3.1'!H25 -> 851.5 | V130: ='3.1'!I25 -> 884.9 | W130: ='3.1'!J25 -> 930.4 | X130: ='3.1'!K25 -> 958.2 | Z130: ='3.1'!M25 -> -5.7% | AA130: ='3.1'!N25 -> 3.0%
B131: Life sciences | C131: ='3.1'!C13 -> 12.7 | D131: ='3.1'!D13 -> 13.0 | E131: ='3.1'!E13 -> 10.3 | F131: ='3.1'!F13 -> 11.4 | G131: ='3.1'!G13 -> 12.9 | H131: ='3.1'!H13 -> 10.4 | I131: ='3.1'!I13 -> 12.4 | J131: ='3.1'!J13 -> 12.6 | K131: ='3.1'!K13 -> 11.6 | M131: ='3.1'!M13 -> -9.1% | N131: ='3.1'!N13 -> -8.2% | P131: ='3.1'!C26 -> 297.4 | Q131: ='3.1'!D26 -> 307.4 | R131: ='3.1'!E26 -> 310.1 | S131: ='3.1'!F26 -> 290.6 | T131: ='3.1'!G26 -> 339.1 | U131: ='3.1'!H26 -> 308.3 | V131: ='3.1'!I26 -> 304.2 | W131: ='3.1'!J26 -> 319.6 | X131: ='3.1'!K26 -> 329.6 | Z131: ='3.1'!M26 -> 10.8% | AA131: ='3.1'!N26 -> 3.1%
B132: Tourism | C132: ='3.1'!C14 -> 101.8 | D132: ='3.1'!D14 -> 97.9 | E132: ='3.1'!E14 -> 104.5 | F132: ='3.1'!F14 -> 101.6 | G132: ='3.1'!G14 -> 109.7 | H132: ='3.1'!H14 -> 112.3 | I132: ='3.1'!I14 -> 115.4 | J132: ='3.1'!J14 -> 117.4 | K132: ='3.1'!K14 -> 121.4 | M132: ='3.1'!M14 -> 19.2% | N132: ='3.1'!N14 -> 3.4% | P132: ='3.1'!C27 -> 2,211.6 | Q132: ='3.1'!D27 -> 2,226.2 | R132: ='3.1'!E27 -> 2,289.5 | S132: ='3.1'!F27 -> 2,312.2 | T132: ='3.1'!G27 -> 2,466.0 | U132: ='3.1'!H27 -> 2,547.5 | V132: ='3.1'!I27 -> 2,535.5 | W132: ='3.1'!J27 -> 2,566.5 | X132: ='3.1'!K27 -> 2,618.0 | Z132: ='3.1'!M27 -> 18.4% | AA132: ='3.1'!N27 -> 2.0%
B133: In A Priority Sector5 | C133: ='3.1'!C15 -> 560.7 | D133: ='3.1'!D15 -> 551.0 | E133: ='3.1'!E15 -> 567.8 | F133: ='3.1'!F15 -> 569.2 | G133: ='3.1'!G15 -> 539.9 | H133: ='3.1'!H15 -> 524.0 | I133: ='3.1'!I15 -> 549.0 | J133: ='3.1'!J15 -> 545.4 | K133: ='3.1'!K15 -> 550.0 | M133: ='3.1'!M15 -> -1.9% | N133: ='3.1'!N15 -> 0.8% | P133: ='3.1'!C28 -> 13,071.8 | Q133: ='3.1'!D28 -> 13,223.3 | R133: ='3.1'!E28 -> 13,567.6 | S133: ='3.1'!F28 -> 13,478.4 | T133: ='3.1'!G28 -> 13,223.5 | U133: ='3.1'!H28 -> 13,208.2 | V133: ='3.1'!I28 -> 13,304.0 | W133: ='3.1'!J28 -> 13,471.2 | X133: ='3.1'!K28 -> 13,746.8 | Z133: ='3.1'!M28 -> 5.2% | AA133: ='3.1'!N28 -> 2.0%
B134: Not In A Sector | C134: ='3.1'!C16 -> 715.2 | D134: ='3.1'!D16 -> 729.2 | E134: ='3.1'!E16 -> 730.9 | F134: ='3.1'!F16 -> 725.5 | G134: ='3.1'!G16 -> 705.5 | H134: ='3.1'!H16 -> 722.1 | I134: ='3.1'!I16 -> 712.8 | J134: ='3.1'!J16 -> 713.3 | K134: ='3.1'!K16 -> 738.1 | M134: ='3.1'!M16 -> 3.2% | N134: ='3.1'!N16 -> 3.5% | P134: ='3.1'!C29 -> 15,403.0 | Q134: ='3.1'!D29 -> 15,502.7 | R134: ='3.1'!E29 -> 15,430.1 | S134: ='3.1'!F29 -> 15,618.5 | T134: ='3.1'!G29 -> 15,391.8 | U134: ='3.1'!H29 -> 15,463.8 | V134: ='3.1'!I29 -> 15,500.1 | W134: ='3.1'!J29 -> 15,575.6 | X134: ='3.1'!K29 -> 15,764.3 | Z134: ='3.1'!M29 -> 2.3% | AA134: ='3.1'!N29 -> 1.2%
B135: Total | C135: ='3.1'!C17 -> 1,275.9 | D135: ='3.1'!D17 -> 1,280.3 | E135: ='3.1'!E17 -> 1,298.7 | F135: ='3.1'!F17 -> 1,294.7 | G135: ='3.1'!G17 -> 1,245.4 | H135: ='3.1'!H17 -> 1,246.1 | I135: ='3.1'!I17 -> 1,261.8 | J135: ='3.1'!J17 -> 1,258.6 | K135: ='3.1'!K17 -> 1,288.1 | M135: ='3.1'!M17 -> 1.0% | N135: ='3.1'!N17 -> 2.3% | P135: ='3.1'!C30 -> 28,474.8 | Q135: ='3.1'!D30 -> 28,726.0 | R135: ='3.1'!E30 -> 28,997.8 | S135: ='3.1'!F30 -> 29,097.0 | T135: ='3.1'!G30 -> 28,615.3 | U135: ='3.1'!H30 -> 28,672.0 | V135: ='3.1'!I30 -> 28,804.1 | W135: ='3.1'!J30 -> 29,046.8 | X135: ='3.1'!K30 -> 29,511.1 | Z135: ='3.1'!M30 -> 3.6% | AA135: ='3.1'!N30 -> 1.6%
AA137: Source: Annual Population Survey, ONS
B138: 12005 - 2008 data based on SIC 2003 which has been converted to SIC2007. Data after 2009 based on SIC2007.
B139: 2Those people with missing industry or occupation information are excluded.
B140: 32005 - 2010 data based on SOC 2000. Data for 2011 - 2013 are based on SOC 2010 which has been converted to SOC 2000 using probalistic matching.
B141: 4Based on the updated DCMS Creative Industries classification.
B142: 5This total will not equal the sum of the individual priority sectors as there is overlap between several sectors.
B143: 6Includes those people with missing occupation information.

Sheet 3.5
B1: Employment by Level of Highest Qualification and Priority Sector1,2 (Aged 16 to 64) | AA1: Thousands
C2: Wales | P2: UK
C4: 2005 | D4: 2006 | E4: 2007 | F4: 2008 | G4: 2009 | H4: 2010 | I4: 2011 | J4: 2012 | K4: 2013 | M4: Change 2005 - 2013 | N4: Change 2012 - 2013 | P4: 2005 | Q4: 2006 | R4: 2007 | S4: 2008 | T4: 2009 | U4: 2010 | V4: 2011 | W4: 2012 | X4: 2013 | Z4: Change 2005 - 2013 | AA4: Change 2012 - 2013
B5: NQF Level 4 or Above:
B6: Advanced materials / manufacturing | C6: 27.2 | D6: 23.6 | E6: 25.3 | F6: 24.3 | G6: 21.1 | H6: 20.2 | I6: 22.1 | J6: 21.9 | K6: 23.5 | M6: -13.5% | N6: 7.2% | P6: 523.5 | Q6: 521.7 | R6: 547.9 | S6: 497.9 | T6: 419.8 | U6: 457.7 | V6: 455.4 | W6: 481.7 | X6: 489.8 | Z6: -6.4% | AA6: 1.7%
B7: Construction | C7: 18.9 | D7: 21.3 | E7: 24.0 | F7: 25.4 | G7: 22.7 | H7: 20.5 | I7: 23.5 | J7: 20.0 | K7: 18.5 | M7: -2.4% | N7: -7.7% | P7: 450.9 | Q7: 498.1 | R7: 506.3 | S7: 529.2 | T7: 517.7 | U7: 513.8 | V7: 538.0 | W7: 539.5 | X7: 594.3 | Z7: 31.8% | AA7: 10.2%
B8: Creative industries3 | C8: 16.3 | D8: 16.5 | E8: 21.6 | F8: 19.4 | G8: 25.6 | H8: 21.9 | I8: 25.3 | J8: 25.1 | K8: 31.1 | M8: 90.7% | N8: 23.6% | P8: 598.8 | Q8: 639.3 | R8: 648.3 | S8: 657.3 | T8: 880.5 | U8: 870.5 | V8: 937.2 | W8: 1,038.2 | X8: 1,056.5 | Z8: 76.4% | AA8: 1.8%
B9: Energy & environment | C9: 30.7 | D9: 33.2 | E9: 33.6 | F9: 37.7 | G9: 45.5 | H9: 40.7 | I9: 48.4 | J9: 44.7 | K9: 43.7 | M9: 42.4% | N9: -2.3% | P9: 880.1 | Q9: 910.2 | R9: 991.2 | S9: 981.5 | T9: 1,164.4 | U9: 1,222.0 | V9: 1,261.7 | W9: 1,299.8 | X9: 1,388.9 | Z9: 57.8% | AA9: 6.9%
B10: Food & Farming | C10: 5.5 | D10: 5.4 | E10: 5.4 | F10: 5.2 | G10: 5.5 | H10: 5.9 | I10: 6.4 | J10: 8.4 | K10: 8.6 | M10: 55.3% | N10: 2.6% | P10: 96.9 | Q10: 100.7 | R10: 112.2 | S10: 136.1 | T10: 116.3 | U10: 129.5 | V10: 140.1 | W10: 153.6 | X10: 149.3 | Z10: 54.1% | AA10: -2.8%
B11: Financial and professional services | C11: 37.0 | D11: 30.6 | E11: 35.4 | F11: 43.2 | G11: 48.5 | H11: 44.4 | I11: 49.4 | J11: 48.6 | K11: 44.9 | M11: 21.1% | N11: -7.6% | P11: 1,262.5 | Q11: 1,286.7 | R11: 1,466.1 | S11: 1,478.6 | T11: 1,555.7 | U11: 1,614.0 | V11: 1,662.7 | W11: 1,777.0 | X11: 1,852.6 | Z11: 46.7% | AA11: 4.3%
B12: ICT | C12: 14.2 | D12: 12.7 | E12: 13.0 | F12: 15.3 | G12: 13.4 | H12: 10.7 | I12: 14.5 | J12: 14.0 | K12: 18.3 | M12: 29.1% | N12: 30.5% | P12: 499.7 | Q12: 521.1 | R12: 519.6 | S12: 520.0 | T12: 481.2 | U12: 493.7 | V12: 532.7 | W12: 582.6 | X12: 604.2 | Z12: 20.9% | AA12: 3.7%
B13: Life sciences | C13: 5.2 | D13: 5.4 | E13: 3.7 | F13: 4.4 | G13: 6.4 | H13: 5.2 | I13: 6.5 | J13: 7.2 | K13: 6.2 | M13: 19.5% | N13: -13.5% | P13: 164.5 | Q13: 168.9 | R13: 176.3 | S13: 157.3 | T13: 184.7 | U13: 182.6 | V13: 183.0 | W13: 187.8 | X13: 200.5 | Z13: 21.9% | AA13: 6.8%
B14: Tourism | C14: 16.4 | D14: 15.6 | E14: 17.1 | F14: 20.3 | G14: 23.5 | H14: 23.0 | I14: 25.5 | J14: 27.0 | K14: 29.0 | M14: 76.3% | N14: 7.2% | P14: 400.8 | Q14: 416.6 | R14: 449.5 | S14: 483.3 | T14: 539.1 | U14: 588.2 | V14: 639.2 | W14: 677.6 | X14: 700.2 | Z14: 74.7% | AA14: 3.3%
B15: In A Priority Sector4 | C15: 132.2 | D15: 125.0 | E15: 136.8 | F15: 151.4 | G15: 154.0 | H15: 145.7 | I15: 161.6 | J15: 161.7 | K15: 166.3 | M15: 25.8% | N15: 2.8% | P15: 3,694.2 | Q15: 3,848.9 | R15: 4,153.1 | S15: 4,186.5 | T15: 4,287.1 | U15: 4,454.1 | V15: 4,668.7 | W15: 4,973.8 | X15: 5,180.1 | Z15: 40.2% | AA15: 4.1%
B16: Not In A Sector | C16: 230.4 | D16: 241.1 | E16: 251.2 | F16: 253.6 | G16: 261.7 | H16: 282.5 | I16: 280.0 | J16: 289.2 | K16: 297.4 | M16: 29.1% | N16: 2.8% | P16: 4,924.3 | Q16: 5,107.7 | R16: 5,251.4 | S16: 5,349.9 | T16: 5,562.9 | U16: 5,935.9 | V16: 6,004.8 | W16: 6,310.9 | X16: 6,520.1 | Z16: 32.4% | AA16: 3.3%
B17: Total | C17: 362.6 | D17: 366.1 | E17: 388.0 | F17: 404.9 | G17: 415.7 | H17: 428.2 | I17: 441.6 | J17: 450.9 | K17: 463.7 | M17: 27.9% | N17: 2.8% | P17: 8,618.5 | Q17: 8,956.6 | R17: 9,404.5 | S17: 9,536.3 | T17: 9,850.0 | U17: 10,390.1 | V17: 10,673.5 | W17: 11,284.7 | X17: 11,700.2 | Z17: 35.8% | AA17: 3.7%
B18: Other Qualifications:
B19: Advanced materials / manufacturing | C19: 77.2 | D19: 70.3 | E19: 64.3 | F19: 69.3 | G19: 51.7 | H19: 51.1 | I19: 50.4 | J19: 52.9 | K19: 55.4 | M19: -28.2% | N19: 4.7% | P19: 1,234.0 | Q19: 1,209.9 | R19: 1,213.8 | S19: 1,171.1 | T19: 997.4 | U19: 987.6 | V19: 959.1 | W19: 968.2 | X19: 974.1 | Z19: -21.1% | AA19: 0.6%
B20: Construction | C20: 80.8 | D20: 89.9 | E20: 93.3 | F20: 94.3 | G20: 79.0 | H20: 77.5 | I20: 73.4 | J20: 69.4 | K20: 71.2 | M20: -11.9% | N20: 2.6% | P20: 1,938.8 | Q20: 1,958.8 | R20: 1,968.5 | S20: 1,995.2 | T20: 1,794.6 | U20: 1,689.9 | V20: 1,625.4 | W20: 1,572.0 | X20: 1,584.0 | Z20: -18.3% | AA20: 0.8%
B21: Creative industries3 | C21: 12.4 | D21: 13.0 | E21: 13.4 | F21: 11.9 | G21: 10.9 | H21: 12.4 | I21: 14.0 | J21: 12.6 | K21: 13.8 | M21: 11.3% | N21: 8.9% | P21: 451.5 | Q21: 449.0 | R21: 445.7 | S21: 431.5 | T21: 487.6 | U21: 470.4 | V21: 441.1 | W21: 471.6 | X21: 457.0 | Z21: 1.2% | AA21: -3.1%
B22: Energy & environment | C22: 88.1 | D22: 90.8 | E22: 96.1 | F22: 97.2 | G22: 89.4 | H22: 85.6 | I22: 95.7 | J22: 91.3 | K22: 82.9 | M22: -5.9% | N22: -9.1% | P22: 2,031.6 | Q22: 2,034.3 | R22: 2,059.7 | S22: 2,088.0 | T22: 2,081.4 | U22: 1,989.2 | V22: 1,993.1 | W22: 1,946.6 | X22: 1,991.5 | Z22: -2.0% | AA22: 2.3%
B23: Food & Farming | C23: 24.6 | D23: 25.3 | E23: 23.7 | F23: 23.5 | G23: 21.5 | H23: 24.2 | I23: 24.4 | J23: 23.1 | K23: 25.6 | M23: 4.2% | N23: 10.6% | P23: 406.3 | Q23: 426.3 | R23: 424.9 | S23: 430.9 | T23: 400.4 | U23: 418.6 | V23: 429.2 | W23: 416.9 | X23: 399.7 | Z23: -1.6% | AA23: -4.1%
B24: Financial and professional services | C24: 54.5 | D24: 56.0 | E24: 58.3 | F24: 54.2 | G24: 55.2 | H24: 51.7 | I24: 55.6 | J24: 58.0 | K24: 52.3 | M24: -4.1% | N24: -9.9% | P24: 1,730.9 | Q24: 1,733.6 | R24: 1,753.4 | S24: 1,705.4 | T24: 1,699.5 | U24: 1,680.0 | V24: 1,644.1 | W24: 1,650.6 | X24: 1,640.2 | Z24: -5.2% | AA24: -0.6%
B25: ICT | C25: 20.3 | D25: 17.6 | E25: 15.7 | F25: 15.4 | G25: 9.5 | H25: 9.1 | I25: 10.5 | J25: 9.5 | K25: 10.1 | M25: -50.1% | N25: 6.4% | P25: 481.0 | Q25: 468.7 | R25: 464.1 | S25: 452.7 | T25: 337.1 | U25: 334.6 | V25: 322.4 | W25: 319.8 | X25: 324.0 | Z25: -32.7% | AA25: 1.3%
B26: Life sciences | C26: 5.2 | D26: 6.4 | E26: 5.5 | F26: 6.1 | G26: 5.4 | H26: 4.3 | I26: 5.3 | J26: 4.5 | K26: 4.7 | M26: -11.0% | N26: 4.5% | P26: 119.7 | Q26: 117.0 | R26: 112.5 | S26: 111.6 | T26: 134.3 | U26: 110.6 | V26: 106.4 | W26: 117.7 | X26: 113.1 | Z26: -5.5% | AA26: -3.9%
B27: Tourism | C27: 68.1 | D27: 64.5 | E27: 71.5 | F27: 65.2 | G27: 70.7 | H27: 74.7 | I27: 73.2 | J27: 76.2 | K27: 78.2 | M27: 14.9% | N27: 2.6% | P27: 1,459.3 | Q27: 1,463.3 | R27: 1,488.9 | S27: 1,488.5 | T27: 1,586.7 | U27: 1,634.1 | V27: 1,570.7 | W27: 1,587.2 | X27: 1,609.7 | Z27: 10.3% | AA27: 1.4%
B28: In A Priority Sector4 | C28: 345.8 | D28: 347.7 | E28: 352.1 | F28: 346.2 | G28: 317.7 | H28: 318.5 | I28: 320.7 | J28: 322.5 | K28: 323.9 | M28: -6.4% | N28: 0.4% | P28: 7,820.5 | Q28: 7,837.2 | R28: 7,885.9 | S28: 7,809.9 | T28: 7,540.4 | U28: 7,425.2 | V28: 7,251.7 | W28: 7,220.5 | X28: 7,245.0 | Z28: -7.4% | AA28: 0.3%
B29: Not In A Sector | C29: 402.7 | D29: 404.1 | E29: 400.7 | F29: 397.7 | G29: 374.6 | H29: 375.4 | I29: 369.9 | J29: 367.0 | K29: 379.0 | M29: -5.9% | N29: 3.3% | P29: 8,760.3 | Q29: 8,685.8 | R29: 8,537.2 | S29: 8,682.5 | T29: 8,397.9 | U29: 8,201.5 | V29: 8,070.3 | W29: 8,003.9 | X29: 7,959.3 | Z29: -9.1% | AA29: -0.6%
B30: Total | C30: 748.5 | D30: 751.9 | E30: 752.7 | F30: 743.9 | G30: 692.3 | H30: 693.9 | I30: 690.7 | J30: 689.6 | K30: 702.9 | M30: -6.1% | N30: 1.9% | P30: 16,580.8 | Q30: 16,523.0 | R30: 16,423.1 | S30: 16,492.4 | T30: 15,938.4 | U30: 15,626.7 | V30: 15,322.0 | W30: 15,224.4 | X30: 15,204.3 | Z30: -8.3% | AA30: -0.1%
B31: No Qualifications:
B32: Advanced materials / manufacturing | C32: 14.0 | D32: 12.2 | E32: 12.8 | F32: 11.0 | G32: 7.6 | H32: 6.2 | I32: 6.6 | J32: 4.4 | K32: 3.8 | M32: -73.1% | N32: -14.7% | P32: 236.6 | Q32: 223.6 | R32: 215.0 | S32: 185.5 | T32: 136.0 | U32: 129.9 | V32: 109.5 | W32: 110.7 | X32: 101.3 | Z32: -57.2% | AA32: -8.5%
B33: Construction | C33: 14.4 | D33: 15.7 | E33: 16.2 | F33: 13.4 | G33: 12.3 | H33: 9.4 | I33: 9.0 | J33: 9.1 | K33: 7.7 | M33: -46.1% | N33: -14.9% | P33: 304.7 | Q33: 304.9 | R33: 303.2 | S33: 289.8 | T33: 233.8 | U33: 199.7 | V33: 184.8 | W33: 164.9 | X33: 158.5 | Z33: -48.0% | AA33: -3.9%
B34: Creative industries3 | C34: 1.1 | D34: 0.9 | E34: 1.7 | F34: 1.2 | G34: * | H34: * | I34: 1.0 | J34: * | K34: 1.1 | M34: -5.9% | N34: * | P34: 38.8 | Q34: 39.2 | R34: 35.6 | S34: 30.0 | T34: 30.3 | U34: 33.7 | V34: 26.6 | W34: 28.2 | X34: 26.6 | Z34: -31.6% | AA34: -5.7%
B35: Energy & environment | C35: 20.4 | D35: 21.0 | E35: 20.3 | F35: 15.0 | G35: 15.8 | H35: 9.9 | I35: 10.8 | J35: 11.2 | K35: 9.5 | M35: -53.4% | N35: -15.2% | P35: 381.5 | Q35: 380.4 | R35: 383.7 | S35: 366.4 | T35: 307.0 | U35: 265.1 | V35: 252.0 | W35: 218.7 | X35: 236.2 | Z35: -38.1% | AA35: 8.0%
B36: Food & Farming | C36: 9.3 | D36: 8.4 | E36: 8.2 | F36: 7.5 | G36: 7.4 | H36: 5.1 | I36: 6.6 | J36: 5.2 | K36: 4.8 | M36: -48.3% | N36: -7.4% | P36: 118.7 | Q36: 122.6 | R36: 117.4 | S36: 107.4 | T36: 93.9 | U36: 101.1 | V36: 100.7 | W36: 83.0 | X36: 88.0 | Z36: -25.9% | AA36: 5.9%
B37: Financial and professional services | C37: 9.5 | D37: 7.6 | E37: 6.4 | F37: 5.7 | G37: 6.8 | H37: 4.8 | I37: 5.1 | J37: 5.8 | K37: 4.0 | M37: -58.2% | N37: -31.8% | P37: 200.5 | Q37: 192.3 | R37: 185.4 | S37: 184.7 | T37: 196.8 | U37: 153.9 | V37: 147.5 | W37: 133.2 | X37: 145.1 | Z37: -27.6% | AA37: 8.9%
B38: ICT | C38: 2.1 | D38: 1.5 | E38: 1.3 | F38: 1.6 | G38: * | H38: * | I38: * | J38: * | K38: * | M38: * | N38: * | P38: 38.4 | Q38: 35.0 | R38: 37.5 | S38: 31.0 | T38: 19.5 | U38: 16.7 | V38: 16.7 | W38: 16.1 | X38: 14.5 | Z38: -62.3% | AA38: -9.9%
B39: Life sciences | C39: 1.3 | D39: 1.0 | E39: 0.9 | F39: * | G39: * | H39: * | I39: * | J39: * | K39: * | M39: * | N39: * | P39: 18.2 | Q39: 18.9 | R39: 18.0 | S39: 17.9 | T39: 15.5 | U39: 9.8 | V39: 8.1 | W39: 7.7 | X39: 8.5 | Z39: -53.2% | AA39: 10.5%
B40: Tourism | C40: 14.7 | D40: 15.5 | E40: 13.6 | F40: 13.0 | G40: 12.6 | H40: 10.2 | I40: 11.5 | J40: 9.2 | K40: 7.6 | M40: -48.2% | N40: -17.3% | P40: 296.8 | Q40: 288.0 | R40: 286.2 | S40: 271.5 | T40: 269.7 | U40: 245.1 | V40: 222.1 | W40: 210.7 | X40: 204.6 | Z40: -31.1% | AA40: -2.9%
B41: In A Priority Sector4 | C41: 69.0 | D41: 66.3 | E41: 64.3 | F41: 55.3 | G41: 51.8 | H41: 40.3 | I41: 42.4 | J41: 38.1 | K41: 33.1 | M41: -52.0% | N41: -13.0% | P41: 1,285.4 | Q41: 1,258.2 | R41: 1,234.8 | S41: 1,157.1 | T41: 1,045.9 | U41: 932.9 | V41: 862.6 | W41: 795.3 | X41: 797.8 | Z41: -37.9% | AA41: 0.3%
B42: Not In A Sector | C42: 69.2 | D42: 69.7 | E42: 63.9 | F42: 57.2 | G42: 51.4 | H42: 44.9 | I42: 39.3 | J42: 33.8 | K42: 34.8 | M42: -49.7% | N42: 2.9% | P42: 1,433.4 | Q42: 1,377.1 | R42: 1,293.4 | S42: 1,224.2 | T42: 1,048.9 | U42: 923.1 | V42: 866.2 | W42: 758.8 | X42: 738.2 | Z42: -48.5% | AA42: -2.7%
B43: Total | C43: 138.2 | D43: 136.0 | E43: 128.2 | F43: 112.5 | G43: 103.2 | H43: 85.2 | I43: 81.7 | J43: 71.9 | K43: 67.9 | M43: -50.9% | N43: -5.5% | P43: 2,718.9 | Q43: 2,635.3 | R43: 2,528.2 | S43: 2,381.3 | T43: 2,094.8 | U43: 1,856.0 | V43: 1,728.8 | W43: 1,554.1 | X43: 1,536.0 | Z43: -43.5% | AA43: -1.2%
B44: All5:
B45: Advanced materials / manufacturing | C45: ='3.1'!C6 -> 118.2 | D45: ='3.1'!D6 -> 106.6 | E45: ='3.1'!E6 -> 103.8 | F45: ='3.1'!F6 -> 105.9 | G45: ='3.1'!G6 -> 81.2 | H45: ='3.1'!H6 -> 78.9 | I45: ='3.1'!I6 -> 81.3 | J45: ='3.1'!J6 -> 80.4 | K45: ='3.1'!K6 -> 84.4 | M45: ='3.1'!M6 -> -28.6% | N45: ='3.1'!N6 -> 5.0% | P45: ='3.1'!C19 -> 2,039.6 | Q45: ='3.1'!D19 -> 1,988.7 | R45: ='3.1'!E19 -> 2,011.7 | S45: ='3.1'!F19 -> 1,886.9 | T45: ='3.1'!G19 -> 1,586.8 | U45: ='3.1'!H19 -> 1,615.9 | V45: ='3.1'!I19 -> 1,569.5 | W45: ='3.1'!J19 -> 1,605.0 | X45: ='3.1'!K19 -> 1,608.1 | Z45: ='3.1'!M19 -> -21.2% | AA45: ='3.1'!N19 -> 0.2%
B46: Construction | C46: ='3.1'!C7 -> 116.0 | D46: ='3.1'!D7 -> 128.9 | E46: ='3.1'!E7 -> 135.8 | F46: ='3.1'!F7 -> 135.8 | G46: ='3.1'!G7 -> 116.0 | H46: ='3.1'!H7 -> 110.1 | I46: ='3.1'!I7 -> 109.7 | J46: ='3.1'!J7 -> 101.8 | K46: ='3.1'!K7 -> 101.8 | M46: ='3.1'!M7 -> -12.3% | N46: ='3.1'!N7 -> -0.1% | P46: ='3.1'!C20 -> 2,734.3 | Q46: ='3.1'!D20 -> 2,813.8 | R46: ='3.1'!E20 -> 2,830.7 | S46: ='3.1'!F20 -> 2,874.5 | T46: ='3.1'!G20 -> 2,609.1 | U46: ='3.1'!H20 -> 2,468.4 | V46: ='3.1'!I20 -> 2,434.3 | W46: ='3.1'!J20 -> 2,356.0 | X46: ='3.1'!K20 -> 2,427.0 | Z46: ='3.1'!M20 -> -11.2% | AA46: ='3.1'!N20 -> 3.0%
B47: Creative industries3 | C47: ='3.1'!C8 -> 30.8 | D47: ='3.1'!D8 -> 31.4 | E47: ='3.1'!E8 -> 37.6 | F47: ='3.1'!F8 -> 33.2 | G47: ='3.1'!G8 -> 38.1 | H47: ='3.1'!H8 -> 36.7 | I47: ='3.1'!I8 -> 42.0 | J47: ='3.1'!J8 -> 39.9 | K47: ='3.1'!K8 -> 48.9 | M47: ='3.1'!M8 -> 58.5% | N47: ='3.1'!N8 -> 22.4% | P47: ='3.1'!C21 -> 1,129.3 | Q47: ='3.1'!D21 -> 1,157.4 | R47: ='3.1'!E21 -> 1,162.3 | S47: ='3.1'!F21 -> 1,151.4 | T47: ='3.1'!G21 -> 1,441.1 | U47: ='3.1'!H21 -> 1,425.0 | V47: ='3.1'!I21 -> 1,464.8 | W47: ='3.1'!J21 -> 1,597.6 | X47: ='3.1'!K21 -> 1,612.7 | Z47: ='3.1'!M21 -> 42.8% | AA47: ='3.1'!N21 -> 0.9%
B48: Energy & environment | C48: ='3.1'!C9 -> 142.0 | D48: ='3.1'!D9 -> 147.2 | E48: ='3.1'!E9 -> 153.3 | F48: ='3.1'!F9 -> 153.8 | G48: ='3.1'!G9 -> 153.7 | H48: ='3.1'!H9 -> 139.5 | I48: ='3.1'!I9 -> 160.3 | J48: ='3.1'!J9 -> 151.7 | K48: ='3.1'!K9 -> 141.9 | M48: ='3.1'!M9 -> -0.1% | N48: ='3.1'!N9 -> -6.5% | P48: ='3.1'!C22 -> 3,350.3 | Q48: ='3.1'!D22 -> 3,395.5 | R48: ='3.1'!E22 -> 3,506.1 | S48: ='3.1'!F22 -> 3,526.8 | T48: ='3.1'!G22 -> 3,650.3 | U48: ='3.1'!H22 -> 3,573.1 | V48: ='3.1'!I22 -> 3,652.0 | W48: ='3.1'!J22 -> 3,597.3 | X48: ='3.1'!K22 -> 3,758.6 | Z48: ='3.1'!M22 -> 12.2% | AA48: ='3.1'!N22 -> 4.5%
B49: Food & Farming | C49: ='3.1'!C10 -> 43.9 | D49: ='3.1'!D10 -> 42.6 | E49: ='3.1'!E10 -> 41.8 | F49: ='3.1'!F10 -> 41.3 | G49: ='3.1'!G10 -> 40.3 | H49: ='3.1'!H10 -> 41.1 | I49: ='3.1'!I10 -> 43.2 | J49: ='3.1'!J10 -> 42.8 | K49: ='3.1'!K10 -> 44.6 | M49: ='3.1'!M10 -> 1.6% | N49: ='3.1'!N10 -> 4.3% | P49: ='3.1'!C23 -> 650.2 | Q49: ='3.1'!D23 -> 684.3 | R49: ='3.1'!E23 -> 692.8 | S49: ='3.1'!F23 -> 718.0 | T49: ='3.1'!G23 -> 652.4 | U49: ='3.1'!H23 -> 707.8 | V49: ='3.1'!I23 -> 730.2 | W49: ='3.1'!J23 -> 712.1 | X49: ='3.1'!K23 -> 694.7 | Z49: ='3.1'!M23 -> 6.8% | AA49: ='3.1'!N23 -> -2.5%
B50: Financial and professional services | C50: ='3.1'!C11 -> 104.3 | D50: ='3.1'!D11 -> 97.0 | E50: ='3.1'!E11 -> 103.3 | F50: ='3.1'!F11 -> 106.2 | G50: ='3.1'!G11 -> 114.1 | H50: ='3.1'!H11 -> 104.8 | I50: ='3.1'!I11 -> 115.3 | J50: ='3.1'!J11 -> 118.0 | K50: ='3.1'!K11 -> 107.0 | M50: ='3.1'!M11 -> 2.5% | N50: ='3.1'!N11 -> -9.3% | P50: ='3.1'!C24 -> 3,275.7 | Q50: ='3.1'!D24 -> 3,288.3 | R50: ='3.1'!E24 -> 3,482.5 | S50: ='3.1'!F24 -> 3,457.1 | T50: ='3.1'!G24 -> 3,551.5 | U50: ='3.1'!H24 -> 3,558.6 | V50: ='3.1'!I24 -> 3,608.1 | W50: ='3.1'!J24 -> 3,702.4 | X50: ='3.1'!K24 -> 3,789.8 | Z50: ='3.1'!M24 -> 15.7% | AA50: ='3.1'!N24 -> 2.4%
B51: ICT | C51: ='3.1'!C12 -> 36.5 | D51: ='3.1'!D12 -> 32.1 | E51: ='3.1'!E12 -> 30.4 | F51: ='3.1'!F12 -> 32.5 | G51: ='3.1'!G12 -> 23.6 | H51: ='3.1'!H12 -> 20.5 | I51: ='3.1'!I12 -> 26.1 | J51: ='3.1'!J12 -> 24.1 | K51: ='3.1'!K12 -> 29.0 | M51: ='3.1'!M12 -> -20.5% | N51: ='3.1'!N12 -> 20.2% | P51: ='3.1'!C25 -> 1,016.2 | Q51: ='3.1'!D25 -> 1,032.4 | R51: ='3.1'!E25 -> 1,027.8 | S51: ='3.1'!F25 -> 1,012.9 | T51: ='3.1'!G25 -> 847.2 | U51: ='3.1'!H25 -> 851.5 | V51: ='3.1'!I25 -> 884.9 | W51: ='3.1'!J25 -> 930.4 | X51: ='3.1'!K25 -> 958.2 | Z51: ='3.1'!M25 -> -5.7% | AA51: ='3.1'!N25 -> 3.0%
B52: Life sciences | C52: ='3.1'!C13 -> 12.7 | D52: ='3.1'!D13 -> 13.0 | E52: ='3.1'!E13 -> 10.3 | F52: ='3.1'!F13 -> 11.4 | G52: ='3.1'!G13 -> 12.9 | H52: ='3.1'!H13 -> 10.4 | I52: ='3.1'!I13 -> 12.4 | J52: ='3.1'!J13 -> 12.6 | K52: ='3.1'!K13 -> 11.6 | M52: ='3.1'!M13 -> -9.1% | N52: ='3.1'!N13 -> -8.2% | P52: ='3.1'!C26 -> 297.4 | Q52: ='3.1'!D26 -> 307.4 | R52: ='3.1'!E26 -> 310.1 | S52: ='3.1'!F26 -> 290.6 | T52: ='3.1'!G26 -> 339.1 | U52: ='3.1'!H26 -> 308.3 | V52: ='3.1'!I26 -> 304.2 | W52: ='3.1'!J26 -> 319.6 | X52: ='3.1'!K26 -> 329.6 | Z52: ='3.1'!M26 -> 10.8% | AA52: ='3.1'!N26 -> 3.1%
B53: Tourism | C53: ='3.1'!C14 -> 101.8 | D53: ='3.1'!D14 -> 97.9 | E53: ='3.1'!E14 -> 104.5 | F53: ='3.1'!F14 -> 101.6 | G53: ='3.1'!G14 -> 109.7 | H53: ='3.1'!H14 -> 112.3 | I53: ='3.1'!I14 -> 115.4 | J53: ='3.1'!J14 -> 117.4 | K53: ='3.1'!K14 -> 121.4 | M53: ='3.1'!M14 -> 19.2% | N53: ='3.1'!N14 -> 3.4% | P53: ='3.1'!C27 -> 2,211.6 | Q53: ='3.1'!D27 -> 2,226.2 | R53: ='3.1'!E27 -> 2,289.5 | S53: ='3.1'!F27 -> 2,312.2 | T53: ='3.1'!G27 -> 2,466.0 | U53: ='3.1'!H27 -> 2,547.5 | V53: ='3.1'!I27 -> 2,535.5 | W53: ='3.1'!J27 -> 2,566.5 | X53: ='3.1'!K27 -> 2,618.0 | Z53: ='3.1'!M27 -> 18.4% | AA53: ='3.1'!N27 -> 2.0%
B54: In A Priority Sector4 | C54: ='3.1'!C15 -> 560.7 | D54: ='3.1'!D15 -> 551.0 | E54: ='3.1'!E15 -> 567.8 | F54: ='3.1'!F15 -> 569.2 | G54: ='3.1'!G15 -> 539.9 | H54: ='3.1'!H15 -> 524.0 | I54: ='3.1'!I15 -> 549.0 | J54: ='3.1'!J15 -> 545.4 | K54: ='3.1'!K15 -> 550.0 | M54: ='3.1'!M15 -> -1.9% | N54: ='3.1'!N15 -> 0.8% | P54: ='3.1'!C28 -> 13,071.8 | Q54: ='3.1'!D28 -> 13,223.3 | R54: ='3.1'!E28 -> 13,567.6 | S54: ='3.1'!F28 -> 13,478.4 | T54: ='3.1'!G28 -> 13,223.5 | U54: ='3.1'!H28 -> 13,208.2 | V54: ='3.1'!I28 -> 13,304.0 | W54: ='3.1'!J28 -> 13,471.2 | X54: ='3.1'!K28 -> 13,746.8 | Z54: ='3.1'!M28 -> 5.2% | AA54: ='3.1'!N28 -> 2.0%
B55: Not In A Sector | C55: ='3.1'!C16 -> 715.2 | D55: ='3.1'!D16 -> 729.2 | E55: ='3.1'!E16 -> 730.9 | F55: ='3.1'!F16 -> 725.5 | G55: ='3.1'!G16 -> 705.5 | H55: ='3.1'!H16 -> 722.1 | I55: ='3.1'!I16 -> 712.8 | J55: ='3.1'!J16 -> 713.3 | K55: ='3.1'!K16 -> 738.1 | M55: ='3.1'!M16 -> 3.2% | N55: ='3.1'!N16 -> 3.5% | P55: ='3.1'!C29 -> 15,403.0 | Q55: ='3.1'!D29 -> 15,502.7 | R55: ='3.1'!E29 -> 15,430.1 | S55: ='3.1'!F29 -> 15,618.5 | T55: ='3.1'!G29 -> 15,391.8 | U55: ='3.1'!H29 -> 15,463.8 | V55: ='3.1'!I29 -> 15,500.1 | W55: ='3.1'!J29 -> 15,575.6 | X55: ='3.1'!K29 -> 15,764.3 | Z55: ='3.1'!M29 -> 2.3% | AA55: ='3.1'!N29 -> 1.2%
B56: Total | C56: ='3.1'!C17 -> 1,275.9 | D56: ='3.1'!D17 -> 1,280.3 | E56: ='3.1'!E17 -> 1,298.7 | F56: ='3.1'!F17 -> 1,294.7 | G56: ='3.1'!G17 -> 1,245.4 | H56: ='3.1'!H17 -> 1,246.1 | I56: ='3.1'!I17 -> 1,261.8 | J56: ='3.1'!J17 -> 1,258.6 | K56: ='3.1'!K17 -> 1,288.1 | M56: ='3.1'!M17 -> 1.0% | N56: ='3.1'!N17 -> 2.3% | P56: ='3.1'!C30 -> 28,474.8 | Q56: ='3.1'!D30 -> 28,726.0 | R56: ='3.1'!E30 -> 28,997.8 | S56: ='3.1'!F30 -> 29,097.0 | T56: ='3.1'!G30 -> 28,615.3 | U56: ='3.1'!H30 -> 28,672.0 | V56: ='3.1'!I30 -> 28,804.1 | W56: ='3.1'!J30 -> 29,046.8 | X56: ='3.1'!K30 -> 29,511.1 | Z56: ='3.1'!M30 -> 3.6% | AA56: ='3.1'!N30 -> 1.6%
AA58: Source: Annual Population Survey, ONS
B59: 12005 - 2008 data based on SIC 2003 which has been converted to SIC2007. Data after 2009 based on SIC2007.
B60: 2Those people with missing industry or qualification information are excluded.
B61: 3Based on the updated DCMS Creative Industries classification.
B62: 4This total will not equal the sum of the individual priority sectors as there is overlap between several sectors.
B63: 5Includes those people with missing qualifications information.

Sheet 3.6
B1: Employment by Gender and Priority Sector1,2 (Aged 16 Plus) | AA1: Thousands
C2: Wales | P2: UK
C4: 2005 | D4: 2006 | E4: 2007 | F4: 2008 | G4: 2009 | H4: 2010 | I4: 2011 | J4: 2012 | K4: 2013 | M4: Change 2005 - 2013 | N4: Change 2012 - 2013 | P4: 2005 | Q4: 2006 | R4: 2007 | S4: 2008 | T4: 2009 | U4: 2010 | V4: 2011 | W4: 2012 | X4: 2013 | Z4: Change 2005 - 2013 | AA4: Change 2012 - 2013
B6: Male:
B7: Advanced materials / manufacturing | C7: 94.8 | D7: 86.0 | E7: 83.5 | F7: 85.5 | G7: 67.1 | H7: 64.2 | I7: 67.7 | J7: 66.7 | K7: 68.1 | M7: -28.2% | N7: 2.1% | P7: 1,631.3 | Q7: 1,590.5 | R7: 1,605.9 | S7: 1,504.3 | T7: 1,279.7 | U7: 1,309.3 | V7: 1,272.4 | W7: 1,296.2 | X7: 1,293.2 | Z7: -20.7% | AA7: -0.2%
B8: Construction | C8: 103.6 | D8: 113.3 | E8: 120.5 | F8: 119.4 | G8: 102.6 | H8: 98.5 | I8: 97.2 | J8: 93.3 | K8: 92.5 | M8: -10.7% | N8: -0.9% | P8: 2,369.9 | Q8: 2,438.5 | R8: 2,444.4 | S8: 2,479.9 | T8: 2,290.0 | U8: 2,172.5 | V8: 2,140.3 | W8: 2,077.2 | X8: 2,123.2 | Z8: -10.4% | AA8: 2.2%
B9: Creative industries3 | C9: 17.2 | D9: 18.3 | E9: 22.4 | F9: 19.1 | G9: 24.4 | H9: 22.6 | I9: 24.7 | J9: 25.5 | K9: 30.4 | M9: 76.8% | N9: 19.4% | P9: 685.7 | Q9: 720.1 | R9: 729.4 | S9: 722.4 | T9: 921.6 | U9: 903.7 | V9: 918.7 | W9: 1,034.7 | X9: 1,018.7 | Z9: 48.6% | AA9: -1.5%
B10: Energy & environment | C10: 115.4 | D10: 121.1 | E10: 127.4 | F10: 127.7 | G10: 120.6 | H10: 112.9 | I10: 125.9 | J10: 117.9 | K10: 110.1 | M10: -4.6% | N10: -6.6% | P10: 2,679.2 | Q10: 2,697.5 | R10: 2,785.1 | S10: 2,805.0 | T10: 2,811.5 | U10: 2,763.0 | V10: 2,807.3 | W10: 2,729.9 | X10: 2,840.3 | Z10: 6.0% | AA10: 4.0%
B11: Food & Farming | C11: 32.1 | D11: 31.1 | E11: 31.1 | F11: 30.3 | G11: 29.1 | H11: 30.3 | I11: 32.4 | J11: 32.1 | K11: 32.1 | M11: -0.1% | N11: -0.2% | P11: 457.4 | Q11: 479.6 | R11: 472.0 | S11: 479.0 | T11: 468.2 | U11: 501.0 | V11: 506.9 | W11: 494.2 | X11: 478.7 | Z11: 4.7% | AA11: -3.1%
B12: Financial and professional services | C12: 51.1 | D12: 47.6 | E12: 52.0 | F12: 56.4 | G12: 62.0 | H12: 57.0 | I12: 60.5 | J12: 59.2 | K12: 56.5 | M12: 10.5% | N12: -4.5% | P12: 1,723.4 | Q12: 1,722.5 | R12: 1,857.1 | S12: 1,859.4 | T12: 1,921.7 | U12: 1,987.7 | V12: 2,014.8 | W12: 2,072.3 | X12: 2,129.7 | Z12: 23.6% | AA12: 2.8%
B13: ICT | C13: 26.4 | D13: 23.1 | E13: 22.6 | F13: 24.6 | G13: 18.5 | H13: 16.0 | I13: 20.2 | J13: 18.2 | K13: 21.6 | M13: -18.3% | N13: 18.5% | P13: 756.8 | Q13: 772.4 | R13: 773.9 | S13: 766.8 | T13: 645.8 | U13: 651.9 | V13: 683.3 | W13: 735.9 | X13: 745.0 | Z13: -1.6% | AA13: 1.2%
B14: Life sciences | C14: 7.1 | D14: 7.8 | E14: 6.4 | F14: 7.3 | G14: 7.9 | H14: 6.5 | I14: 8.5 | J14: 8.5 | K14: 7.0 | M14: -1.8% | N14: -17.3% | P14: 182.8 | Q14: 186.4 | R14: 187.6 | S14: 169.9 | T14: 205.1 | U14: 195.6 | V14: 196.1 | W14: 196.5 | X14: 208.8 | Z14: 14.2% | AA14: 6.3%
B15: Tourism | C15: 49.2 | D15: 49.0 | E15: 53.9 | F15: 51.0 | G15: 55.1 | H15: 56.6 | I15: 56.9 | J15: 61.1 | K15: 60.0 | M15: 22.1% | N15: -1.7% | P15: 1,151.4 | Q15: 1,162.0 | R15: 1,221.1 | S15: 1,226.2 | T15: 1,305.9 | U15: 1,371.9 | V15: 1,357.7 | W15: 1,364.4 | X15: 1,396.0 | Z15: 21.2% | AA15: 2.3%
B16: In A Priority Sector4 | C16: 381.4 | D16: 379.8 | E16: 395.1 | F16: 397.1 | G16: 371.5 | H16: 362.8 | I16: 373.8 | J16: 371.5 | K16: 372.7 | M16: -2.3% | N16: 0.3% | P16: 8,781.5 | Q16: 8,897.6 | R16: 9,140.3 | S16: 9,082.0 | T16: 8,900.2 | U16: 8,954.2 | V16: 8,992.7 | W16: 9,074.3 | X16: 9,231.2 | Z16: 5.1% | AA16: 1.7%
B17: Not In A Sector | C17: 297.0 | D17: 296.7 | E17: 297.7 | F17: 286.2 | G17: 280.4 | H17: 286.5 | I17: 286.2 | J17: 280.1 | K17: 289.5 | M17: -2.5% | N17: 3.4% | P17: 6,575.2 | Q17: 6,593.7 | R17: 6,531.6 | S17: 6,607.9 | T17: 6,422.7 | U17: 6,418.7 | V17: 6,465.0 | W17: 6,506.0 | X17: 6,559.7 | Z17: -0.2% | AA17: 0.8%
B18: Total | C18: 678.4 | D18: 676.5 | E18: 692.8 | F18: 683.3 | G18: 651.9 | H18: 649.2 | I18: 660.0 | J18: 651.6 | K18: 662.2 | M18: -2.4% | N18: 1.6% | P18: 15,356.7 | Q18: 15,491.2 | R18: 15,671.9 | S18: 15,689.9 | T18: 15,322.8 | U18: 15,372.8 | V18: 15,457.7 | W18: 15,580.3 | X18: 15,790.9 | Z18: 2.8% | AA18: 1.4%
B19: Female:
B20: Advanced materials / manufacturing | C20: 23.4 | D20: 20.6 | E20: 20.3 | F20: 20.4 | G20: 14.1 | H20: 14.7 | I20: 13.6 | J20: 13.7 | K20: 16.3 | M20: -30.4% | N20: 18.8% | P20: 408.3 | Q20: 398.2 | R20: 405.8 | S20: 382.6 | T20: 307.1 | U20: 306.6 | V20: 297.1 | W20: 308.8 | X20: 314.9 | Z20: -22.9% | AA20: 2.0%
B21: Construction | C21: 12.5 | D21: 15.6 | E21: 15.3 | F21: 16.3 | G21: 13.4 | H21: 11.7 | I21: 12.5 | J21: 8.5 | K21: 9.3 | M21: -25.7% | N21: 8.8% | P21: 364.3 | Q21: 375.3 | R21: 386.3 | S21: 394.7 | T21: 319.1 | U21: 295.9 | V21: 294.0 | W21: 278.8 | X21: 303.8 | Z21: -16.6% | AA21: 9.0%
B22: Creative industries3 | C22: 13.6 | D22: 13.1 | E22: 15.2 | F22: 14.1 | G22: 13.6 | H22: 14.1 | I22: 17.3 | J22: 14.4 | K22: 18.4 | M22: 35.2% | N22: 27.8% | P22: 443.7 | Q22: 437.3 | R22: 432.9 | S22: 429.0 | T22: 519.4 | U22: 521.3 | V22: 546.1 | W22: 563.0 | X22: 594.0 | Z22: 33.9% | AA22: 5.5%
B23: Energy & environment | C23: 26.6 | D23: 26.1 | E23: 25.9 | F23: 26.1 | G23: 33.1 | H23: 26.6 | I23: 34.4 | J23: 33.8 | K23: 31.7 | M23: 19.5% | N23: -6.2% | P23: 671.1 | Q23: 698.0 | R23: 721.0 | S23: 721.8 | T23: 838.8 | U23: 810.0 | V23: 844.7 | W23: 867.4 | X23: 918.3 | Z23: 36.8% | AA23: 5.9%
B24: Food & Farming | C24: 11.8 | D24: 11.5 | E24: 10.7 | F24: 10.9 | G24: 11.2 | H24: 10.8 | I24: 10.8 | J24: 10.6 | K24: 12.5 | M24: 6.2% | N24: 17.9% | P24: 192.8 | Q24: 204.6 | R24: 220.9 | S24: 239.0 | T24: 184.2 | U24: 206.9 | V24: 223.4 | W24: 217.9 | X24: 216.0 | Z24: 12.0% | AA24: -0.9%
B25: Financial and professional services | C25: 53.2 | D25: 49.5 | E25: 51.3 | F25: 49.9 | G25: 52.1 | H25: 47.8 | I25: 54.8 | J25: 58.8 | K25: 50.4 | M25: -5.2% | N25: -14.2% | P25: 1,552.3 | Q25: 1,565.8 | R25: 1,625.4 | S25: 1,597.7 | T25: 1,629.8 | U25: 1,570.9 | V25: 1,593.3 | W25: 1,630.1 | X25: 1,660.1 | Z25: 6.9% | AA25: 1.8%
B26: ICT | C26: 10.1 | D26: 8.9 | E26: 7.7 | F26: 7.9 | G26: 5.1 | H26: 4.5 | I26: 5.9 | J26: 5.9 | K26: 7.5 | M26: -26.1% | N26: 25.6% | P26: 259.4 | Q26: 260.0 | R26: 253.9 | S26: 246.1 | T26: 201.4 | U26: 199.6 | V26: 201.7 | W26: 194.5 | X26: 213.1 | Z26: -17.8% | AA26: 9.6%
B27: Life sciences | C27: 5.6 | D27: 5.1 | E27: 3.9 | F27: 4.0 | G27: 4.9 | H27: 3.9 | I27: 3.9 | J27: 4.1 | K27: 4.6 | M27: -18.5% | N27: 10.4% | P27: 114.6 | Q27: 121.1 | R27: 122.5 | S27: 120.7 | T27: 134.0 | U27: 112.7 | V27: 108.1 | W27: 123.1 | X27: 120.8 | Z27: 5.4% | AA27: -1.9%
B28: Tourism | C28: 52.7 | D28: 48.9 | E28: 50.6 | F28: 50.7 | G28: 54.6 | H28: 55.7 | I28: 58.5 | J28: 56.3 | K28: 61.3 | M28: 16.5% | N28: 8.9% | P28: 1,060.2 | Q28: 1,064.2 | R28: 1,068.4 | S28: 1,086.1 | T28: 1,160.1 | U28: 1,175.5 | V28: 1,177.7 | W28: 1,202.1 | X28: 1,222.0 | Z28: 15.3% | AA28: 1.7%
B29: In A Priority Sector4 | C29: 179.3 | D29: 171.3 | E29: 172.7 | F29: 172.1 | G29: 168.4 | H29: 161.3 | I29: 175.2 | J29: 173.9 | K29: 177.3 | M29: -1.2% | N29: 2.0% | P29: 4,290.3 | Q29: 4,325.7 | R29: 4,427.4 | S29: 4,396.4 | T29: 4,323.3 | U29: 4,254.0 | V29: 4,311.3 | W29: 4,396.9 | X29: 4,515.6 | Z29: 5.3% | AA29: 2.7%
B30: Not In A Sector | C30: 418.2 | D30: 432.5 | E30: 433.2 | F30: 439.3 | G30: 425.1 | H30: 435.7 | I30: 426.6 | J30: 433.2 | K30: 448.6 | M30: 7.3% | N30: 3.6% | P30: 8,827.8 | Q30: 8,909.0 | R30: 8,898.5 | S30: 9,010.6 | T30: 8,969.1 | U30: 9,045.2 | V30: 9,035.1 | W30: 9,069.5 | X30: 9,204.6 | Z30: 4.3% | AA30: 1.5%
B31: Total | C31: 597.5 | D31: 603.8 | E31: 605.9 | F31: 611.4 | G31: 593.5 | H31: 596.9 | I31: 601.8 | J31: 607.1 | K31: 625.9 | M31: 4.7% | N31: 3.1% | P31: 13,118.1 | Q31: 13,234.7 | R31: 13,325.9 | S31: 13,407.0 | T31: 13,292.4 | U31: 13,299.2 | V31: 13,346.4 | W31: 13,466.5 | X31: 13,720.2 | Z31: 4.6% | AA31: 1.9%
B32: All:
B33: Advanced materials / manufacturing | C33: 118.2 | D33: 106.6 | E33: 103.8 | F33: 105.9 | G33: 81.2 | H33: 78.9 | I33: 81.3 | J33: 80.4 | K33: 84.4 | M33: -28.6% | N33: 5.0% | P33: 2,039.6 | Q33: 1,988.7 | R33: 2,011.7 | S33: 1,886.9 | T33: 1,586.8 | U33: 1,615.9 | V33: 1,569.5 | W33: 1,605.0 | X33: 1,608.1 | Z33: -21.2% | AA33: 0.2%
B34: Construction | C34: 116.0 | D34: 128.9 | E34: 135.8 | F34: 135.8 | G34: 116.0 | H34: 110.1 | I34: 109.7 | J34: 101.8 | K34: 101.8 | M34: -12.3% | N34: -0.1% | P34: 2,734.3 | Q34: 2,813.8 | R34: 2,830.7 | S34: 2,874.5 | T34: 2,609.1 | U34: 2,468.4 | V34: 2,434.3 | W34: 2,356.0 | X34: 2,427.0 | Z34: -11.2% | AA34: 3.0%
B35: Creative industries3 | C35: 30.8 | D35: 31.4 | E35: 37.6 | F35: 33.2 | G35: 38.1 | H35: 36.7 | I35: 42.0 | J35: 39.9 | K35: 48.9 | M35: 58.5% | N35: 22.4% | P35: 1,129.3 | Q35: 1,157.4 | R35: 1,162.3 | S35: 1,151.4 | T35: 1,441.1 | U35: 1,425.0 | V35: 1,464.8 | W35: 1,597.6 | X35: 1,612.7 | Z35: 42.8% | AA35: 0.9%
B36: Energy & environment | C36: 142.0 | D36: 147.2 | E36: 153.3 | F36: 153.8 | G36: 153.7 | H36: 139.5 | I36: 160.3 | J36: 151.7 | K36: 141.9 | M36: -0.1% | N36: -6.5% | P36: 3,350.3 | Q36: 3,395.5 | R36: 3,506.1 | S36: 3,526.8 | T36: 3,650.3 | U36: 3,573.1 | V36: 3,652.0 | W36: 3,597.3 | X36: 3,758.6 | Z36: 12.2% | AA36: 4.5%
B37: Food & Farming | C37: 43.9 | D37: 42.6 | E37: 41.8 | F37: 41.3 | G37: 40.3 | H37: 41.1 | I37: 43.2 | J37: 42.8 | K37: 44.6 | M37: 1.6% | N37: 4.3% | P37: 650.2 | Q37: 684.3 | R37: 692.8 | S37: 718.0 | T37: 652.4 | U37: 707.8 | V37: 730.2 | W37: 712.1 | X37: 694.7 | Z37: 6.8% | AA37: -2.5%
B38: Financial and professional services | C38: 104.3 | D38: 97.0 | E38: 103.3 | F38: 106.2 | G38: 114.1 | H38: 104.8 | I38: 115.3 | J38: 118.0 | K38: 107.0 | M38: 2.5% | N38: -9.3% | P38: 3,275.7 | Q38: 3,288.3 | R38: 3,482.5 | S38: 3,457.1 | T38: 3,551.5 | U38: 3,558.6 | V38: 3,608.1 | W38: 3,702.4 | X38: 3,789.8 | Z38: 15.7% | AA38: 2.4%
B39: ICT | C39: 36.5 | D39: 32.1 | E39: 30.4 | F39: 32.5 | G39: 23.6 | H39: 20.5 | I39: 26.1 | J39: 24.1 | K39: 29.0 | M39: -20.5% | N39: 20.2% | P39: 1,016.2 | Q39: 1,032.4 | R39: 1,027.8 | S39: 1,012.9 | T39: 847.2 | U39: 851.5 | V39: 884.9 | W39: 930.4 | X39: 958.2 | Z39: -5.7% | AA39: 3.0%
B40: Life sciences | C40: 12.7 | D40: 13.0 | E40: 10.3 | F40: 11.4 | G40: 12.9 | H40: 10.4 | I40: 12.4 | J40: 12.6 | K40: 11.6 | M40: -9.1% | N40: -8.2% | P40: 297.4 | Q40: 307.4 | R40: 310.1 | S40: 290.6 | T40: 339.1 | U40: 308.3 | V40: 304.2 | W40: 319.6 | X40: 329.6 | Z40: 10.8% | AA40: 3.1%
B41: Tourism | C41: 101.8 | D41: 97.9 | E41: 104.5 | F41: 101.6 | G41: 109.7 | H41: 112.3 | I41: 115.4 | J41: 117.4 | K41: 121.4 | M41: 19.2% | N41: 3.4% | P41: 2,211.6 | Q41: 2,226.2 | R41: 2,289.5 | S41: 2,312.2 | T41: 2,466.0 | U41: 2,547.5 | V41: 2,535.5 | W41: 2,566.5 | X41: 2,618.0 | Z41: 18.4% | AA41: 2.0%
B42: In A Priority Sector4 | C42: 560.7 | D42: 551.0 | E42: 567.8 | F42: 569.2 | G42: 539.9 | H42: 524.0 | I42: 549.0 | J42: 545.4 | K42: 550.0 | M42: -1.9% | N42: 0.8% | P42: 13,071.8 | Q42: 13,223.3 | R42: 13,567.6 | S42: 13,478.4 | T42: 13,223.5 | U42: 13,208.2 | V42: 13,304.0 | W42: 13,471.2 | X42: 13,746.8 | Z42: 5.2% | AA42: 2.0%
B43: Not In A Sector | C43: 715.2 | D43: 729.2 | E43: 730.9 | F43: 725.5 | G43: 705.5 | H43: 722.1 | I43: 712.8 | J43: 713.3 | K43: 738.1 | M43: 3.2% | N43: 3.5% | P43: 15,403.0 | Q43: 15,502.7 | R43: 15,430.1 | S43: 15,618.5 | T43: 15,391.8 | U43: 15,463.8 | V43: 15,500.1 | W43: 15,575.6 | X43: 15,764.3 | Z43: 2.3% | AA43: 1.2%
B44: Total | C44: 1,275.9 | D44: 1,280.3 | E44: 1,298.7 | F44: 1,294.7 | G44: 1,245.4 | H44: 1,246.1 | I44: 1,261.8 | J44: 1,258.6 | K44: 1,288.1 | M44: 1.0% | N44: 2.3% | P44: 28,474.8 | Q44: 28,726.0 | R44: 28,997.8 | S44: 29,097.0 | T44: 28,615.3 | U44: 28,672.0 | V44: 28,804.1 | W44: 29,046.8 | X44: 29,511.1 | Z44: 3.6% | AA44: 1.6%
AA46: Source: Annual Population Survey, ONS
B47: 12005 - 2008 data based on SIC 2003 which has been converted to SIC2007. Data after 2009 based on SIC2007.
B48: 2Those people with missing industry information are excluded.
B49: 3Based on the updated DCMS Creative Industries classification.
B50: 4This total will not equal the sum of the individual priority sectors as there is overlap between several sectors.

Sheet 3.7
B1: Employment by Age and Priority Sector1,2 | AA1: Thousands
C2: Wales | P2: UK
C4: 2005 | D4: 2006 | E4: 2007 | F4: 2008 | G4: 2009 | H4: 2010 | I4: 2011 | J4: 2012 | K4: 2013 | M4: Change 2005 - 2013 | N4: Change 2012 - 2013 | P4: 2005 | Q4: 2006 | R4: 2007 | S4: 2008 | T4: 2009 | U4: 2010 | V4: 2011 | W4: 2012 | X4: 2013 | Z4: Change 2005 - 2013 | AA4: Change 2012 - 2013
B6: 16 to 24:
B7: Advanced materials / manufacturing | C7: 11.0 | D7: 10.3 | E7: 10.3 | F7: 9.1 | G7: 5.7 | H7: 6.5 | I7: 6.2 | J7: 6.8 | K7: 7.4 | M7: -32.5% | N7: 8.6% | P7: 184.3 | Q7: 171.0 | R7: 187.2 | S7: 176.6 | T7: 116.9 | U7: 134.6 | V7: 136.6 | W7: 131.4 | X7: 138.6 | Z7: -24.8% | AA7: 5.5%
B8: Construction | C8: 15.7 | D8: 17.5 | E8: 19.5 | F8: 21.0 | G8: 15.3 | H8: 16.1 | I8: 11.2 | J8: 10.0 | K8: 10.9 | M8: -30.5% | N8: 9.1% | P8: 382.9 | Q8: 411.1 | R8: 399.4 | S8: 387.1 | T8: 327.5 | U8: 280.4 | V8: 274.5 | W8: 246.8 | X8: 237.4 | Z8: -38.0% | AA8: -3.8%
B9: Creative industries3 | C9: 4.3 | D9: 3.2 | E9: 4.6 | F9: 4.7 | G9: 4.8 | H9: 2.7 | I9: 2.8 | J9: 3.8 | K9: 6.2 | M9: 45.4% | N9: 64.7% | P9: 117.3 | Q9: 116.2 | R9: 111.4 | S9: 118.0 | T9: 120.6 | U9: 118.7 | V9: 115.1 | W9: 138.0 | X9: 149.5 | Z9: 27.5% | AA9: 8.4%
B10: Energy & environment | C10: 17.6 | D10: 20.0 | E10: 20.3 | F10: 21.6 | G10: 20.4 | H10: 14.8 | I10: 17.4 | J10: 13.2 | K10: 11.7 | M10: -33.2% | N10: -11.6% | P10: 391.0 | Q10: 431.5 | R10: 456.6 | S10: 432.8 | T10: 391.8 | U10: 331.6 | V10: 342.1 | W10: 331.4 | X10: 317.3 | Z10: -18.9% | AA10: -4.3%
B11: Food & Farming | C11: 5.7 | D11: 4.5 | E11: 4.6 | F11: 4.0 | G11: 4.1 | H11: 4.0 | I11: 3.2 | J11: 3.6 | K11: 5.6 | M11: -1.1% | N11: 56.5% | P11: 78.2 | Q11: 83.3 | R11: 91.4 | S11: 87.7 | T11: 72.0 | U11: 72.0 | V11: 70.6 | W11: 71.9 | X11: 78.7 | Z11: 0.7% | AA11: 9.5%
B12: Financial and professional services | C12: 15.8 | D12: 13.9 | E12: 15.1 | F12: 13.8 | G12: 13.0 | H12: 10.0 | I12: 9.6 | J12: 11.2 | K12: 7.9 | M12: -50.3% | N12: -29.6% | P12: 420.6 | Q12: 420.0 | R12: 439.2 | S12: 414.4 | T12: 366.3 | U12: 318.4 | V12: 328.9 | W12: 344.9 | X12: 332.7 | Z12: -20.9% | AA12: -3.5%
B13: ICT | C13: 6.8 | D13: 5.2 | E13: 3.5 | F13: 4.3 | G13: 1.7 | H13: * | I13: 0.9 | J13: * | K13: 3.2 | M13: -52.7% | N13: * | P13: 96.3 | Q13: 99.0 | R13: 110.6 | S13: 92.2 | T13: 55.1 | U13: 57.6 | V13: 53.6 | W13: 68.3 | X13: 69.3 | Z13: -28.1% | AA13: 1.5%
B14: Life sciences | C14: * | D14: 1.7 | E14: 1.0 | F14: * | G14: * | H14: * | I14: * | J14: * | K14: * | M14: * | N14: * | P14: 23.5 | Q14: 22.5 | R14: 25.8 | S14: 22.3 | T14: 25.3 | U14: 22.4 | V14: 22.8 | W14: 23.3 | X14: 21.0 | Z14: -10.7% | AA14: -9.8%
B15: Tourism | C15: 31.4 | D15: 27.9 | E15: 33.5 | F15: 32.4 | G15: 38.1 | H15: 32.9 | I15: 31.0 | J15: 34.3 | K15: 37.0 | M15: 17.6% | N15: 7.8% | P15: 632.6 | Q15: 606.2 | R15: 634.2 | S15: 631.6 | T15: 681.5 | U15: 670.1 | V15: 669.9 | W15: 681.0 | X15: 682.0 | Z15: 7.8% | AA15: 0.1%
B16: In A Priority Sector4 | C16: 91.7 | D16: 85.8 | E16: 92.5 | F16: 90.3 | G16: 84.7 | H16: 75.5 | I16: 69.8 | J16: 73.0 | K16: 78.1 | M16: -14.8% | N16: 7.0% | P16: 1,926.2 | Q16: 1,929.6 | R16: 2,003.3 | S16: 1,927.7 | T16: 1,764.2 | U16: 1,673.8 | V16: 1,687.7 | W16: 1,697.7 | X16: 1,688.2 | Z16: -12.4% | AA16: -0.6%
B17: Not In A Sector | C17: 100.4 | D17: 101.5 | E17: 103.0 | F17: 99.5 | G17: 89.2 | H17: 87.7 | I17: 85.4 | J17: 74.9 | K17: 74.9 | M17: -25.4% | N17: -0.1% | P17: 2,123.4 | Q17: 2,128.2 | R17: 2,106.7 | S17: 2,131.8 | T17: 2,022.1 | U17: 1,965.0 | V17: 1,897.2 | W17: 1,832.3 | X17: 1,834.4 | Z17: -13.6% | AA17: 0.1%
B18: Total | C18: 192.1 | D18: 187.3 | E18: 195.5 | F18: 189.8 | G18: 173.8 | H18: 163.2 | I18: 155.2 | J18: 147.9 | K18: 153.0 | M18: -20.4% | N18: 3.4% | P18: 4,049.7 | Q18: 4,057.8 | R18: 4,109.9 | S18: 4,059.5 | T18: 3,786.3 | U18: 3,638.8 | V18: 3,584.8 | W18: 3,530.0 | X18: 3,522.6 | Z18: -13.0% | AA18: -0.2%
B19: 25 to 49:
B20: Advanced materials / manufacturing | C20: 76.5 | D20: 67.4 | E20: 63.4 | F20: 66.8 | G20: 52.1 | H20: 48.1 | I20: 50.7 | J20: 48.9 | K20: 49.4 | M20: -35.3% | N20: 1.1% | P20: 1,280.0 | Q20: 1,231.0 | R20: 1,214.4 | S20: 1,130.5 | T20: 963.0 | U20: 956.8 | V20: 917.1 | W20: 929.5 | X20: 939.1 | Z20: -26.6% | AA20: 1.0%
B21: Construction | C21: 67.6 | D21: 76.6 | E21: 80.1 | F21: 77.3 | G21: 67.4 | H21: 61.9 | I21: 65.7 | J21: 58.4 | K21: 59.1 | M21: -12.6% | N21: 1.3% | P21: 1,629.0 | Q21: 1,668.2 | R21: 1,680.8 | S21: 1,718.8 | T21: 1,535.3 | U21: 1,451.9 | V21: 1,463.9 | W21: 1,421.1 | X21: 1,456.5 | Z21: -10.6% | AA21: 2.5%
B22: Creative industries3 | C22: 17.6 | D22: 19.3 | E22: 24.2 | F22: 19.0 | G22: 23.7 | H22: 23.1 | I22: 27.7 | J22: 23.3 | K22: 29.1 | M22: 65.4% | N22: 25.1% | P22: 769.9 | Q22: 787.9 | R22: 796.4 | S22: 774.9 | T22: 986.2 | U22: 961.6 | V22: 993.2 | W22: 1,068.5 | X22: 1,054.3 | Z22: 36.9% | AA22: -1.3%
B23: Energy & environment | C23: 84.2 | D23: 86.1 | E23: 89.9 | F23: 85.4 | G23: 87.0 | H23: 80.6 | I23: 92.0 | J23: 87.1 | K23: 80.8 | M23: -4.0% | N23: -7.3% | P23: 2,025.6 | Q23: 2,033.3 | R23: 2,090.8 | S23: 2,108.2 | T23: 2,181.3 | U23: 2,143.3 | V23: 2,190.9 | W23: 2,154.6 | X23: 2,274.9 | Z23: 12.3% | AA23: 5.6%
B24: Food & Farming | C24: 22.9 | D24: 22.5 | E24: 21.2 | F24: 19.5 | G24: 18.3 | H24: 18.7 | I24: 21.5 | J24: 18.8 | K24: 20.8 | M24: -9.1% | N24: 11.1% | P24: 364.9 | Q24: 388.7 | R24: 384.9 | S24: 399.4 | T24: 366.4 | U24: 390.9 | V24: 403.6 | W24: 387.7 | X24: 370.0 | Z24: 1.4% | AA24: -4.6%
B25: Financial and professional services | C25: 61.0 | D25: 56.4 | E25: 60.2 | F25: 63.6 | G25: 67.7 | H25: 63.9 | I25: 72.2 | J25: 71.2 | K25: 64.7 | M25: 6.1% | N25: -9.2% | P25: 2,094.1 | Q25: 2,096.3 | R25: 2,245.6 | S25: 2,230.2 | T25: 2,278.6 | U25: 2,300.5 | V25: 2,332.8 | W25: 2,377.1 | X25: 2,418.7 | Z25: 15.5% | AA25: 1.7%
B26: ICT | C26: 23.9 | D26: 21.9 | E26: 21.0 | F26: 21.5 | G26: 17.2 | H26: 15.9 | I26: 20.7 | J26: 17.4 | K26: 19.3 | M26: -19.4% | N26: 11.2% | P26: 739.9 | Q26: 753.9 | R26: 735.2 | S26: 725.7 | T26: 622.8 | U26: 619.7 | V26: 645.1 | W26: 666.2 | X26: 679.2 | Z26: -8.2% | AA26: 2.0%
B27: Life sciences | C27: 8.1 | D27: 8.4 | E27: 6.8 | F27: 7.9 | G27: 9.0 | H27: 7.2 | I27: 8.2 | J27: 7.3 | K27: 7.4 | M27: -9.3% | N27: 0.6% | P27: 206.1 | Q27: 211.1 | R27: 210.0 | S27: 193.1 | T27: 230.9 | U27: 210.6 | V27: 212.4 | W27: 205.6 | X27: 221.6 | Z27: 7.6% | AA27: 7.8%
B28: Tourism | C28: 46.5 | D28: 45.8 | E28: 46.3 | F28: 42.8 | G28: 47.0 | H28: 52.8 | I28: 55.0 | J28: 54.5 | K28: 54.6 | M28: 17.2% | N28: 0.1% | P28: 1,111.2 | Q28: 1,148.7 | R28: 1,171.8 | S28: 1,186.4 | T28: 1,252.6 | U28: 1,322.1 | V28: 1,325.4 | W28: 1,326.5 | X28: 1,354.9 | Z28: 21.9% | AA28: 2.1%
B29: In A Priority Sector4 | C29: 321.4 | D29: 318.4 | E29: 322.6 | F29: 317.7 | G29: 303.0 | H29: 296.2 | I29: 318.5 | J29: 304.5 | K29: 305.6 | M29: -4.9% | N29: 0.4% | P29: 7,960.6 | Q29: 8,051.0 | R29: 8,241.7 | S29: 8,178.3 | T29: 7,997.9 | U29: 7,972.4 | V29: 8,063.2 | W29: 8,114.8 | X29: 8,256.5 | Z29: 3.7% | AA29: 1.7%
B30: Not In A Sector | C30: 416.8 | D30: 420.5 | E30: 420.6 | F30: 418.7 | G30: 406.3 | H30: 414.5 | I30: 406.1 | J30: 408.1 | K30: 421.0 | M30: 1.0% | N30: 3.2% | P30: 9,071.4 | Q30: 9,041.5 | R30: 8,945.3 | S30: 9,023.0 | T30: 8,932.9 | U30: 8,999.9 | V30: 9,014.3 | W30: 9,077.8 | X30: 9,085.4 | Z30: 0.2% | AA30: 0.1%
B31: Total | C31: 738.2 | D31: 739.0 | E31: 743.2 | F31: 736.4 | G31: 709.3 | H31: 710.6 | I31: 724.6 | J31: 712.5 | K31: 726.7 | M31: -1.6% | N31: 2.0% | P31: 17,031.9 | Q31: 17,092.5 | R31: 17,186.9 | S31: 17,201.3 | T31: 16,930.8 | U31: 16,972.3 | V31: 17,077.5 | W31: 17,192.6 | X31: 17,342.0 | Z31: 1.8% | AA31: 0.9%
B32: 50 plus:
B33: Advanced materials / manufacturing | C33: 30.7 | D33: 29.0 | E33: 30.1 | F33: 30.0 | G33: 23.4 | H33: 24.3 | I33: 24.4 | J33: 24.6 | K33: 27.5 | M33: -10.5% | N33: 11.8% | P33: 575.2 | Q33: 586.7 | R33: 610.1 | S33: 579.8 | T33: 506.9 | U33: 524.5 | V33: 515.8 | W33: 544.1 | X33: 530.4 | Z33: -7.8% | AA33: -2.5%
B34: Construction | C34: 32.7 | D34: 34.8 | E34: 36.2 | F34: 37.4 | G34: 33.3 | H34: 32.1 | I34: 32.8 | J34: 33.5 | K34: 31.7 | M34: -3.1% | N34: -5.2% | P34: 722.3 | Q34: 734.6 | R34: 750.6 | S34: 768.6 | T34: 746.3 | U34: 736.1 | V34: 696.0 | W34: 688.2 | X34: 733.1 | Z34: 1.5% | AA34: 6.5%
B35: Creative industries3 | C35: 8.9 | D35: 8.9 | E35: 8.7 | F35: 9.5 | G35: 9.5 | H35: 10.9 | I35: 11.5 | J35: 12.9 | K35: 13.5 | M35: 51.1% | N35: 5.1% | P35: 242.1 | Q35: 253.3 | R35: 254.5 | S35: 258.5 | T35: 334.2 | U35: 344.7 | V35: 356.5 | W35: 391.1 | X35: 408.9 | Z35: 68.9% | AA35: 4.5%
B36: Energy & environment | C36: 40.2 | D36: 41.1 | E36: 43.1 | F36: 46.8 | G36: 46.4 | H36: 44.1 | I36: 50.9 | J36: 51.4 | K36: 49.4 | M36: 22.8% | N36: -3.8% | P36: 933.6 | Q36: 930.7 | R36: 958.8 | S36: 985.9 | T36: 1,077.3 | U36: 1,098.2 | V36: 1,119.0 | W36: 1,111.3 | X36: 1,166.4 | Z36: 24.9% | AA36: 5.0%
B37: Food & Farming | C37: 15.3 | D37: 15.6 | E37: 16.0 | F37: 17.8 | G37: 17.9 | H37: 18.4 | I37: 18.5 | J37: 20.4 | K37: 18.1 | M37: 18.6% | N37: -11.1% | P37: 207.1 | Q37: 212.3 | R37: 216.5 | S37: 230.9 | T37: 214.0 | U37: 244.9 | V37: 256.1 | W37: 252.5 | X37: 245.9 | Z37: 18.7% | AA37: -2.6%
B38: Financial and professional services | C38: 27.5 | D38: 26.7 | E38: 28.1 | F38: 28.8 | G38: 33.4 | H38: 30.9 | I38: 33.4 | J38: 35.6 | K38: 34.4 | M38: 25.0% | N38: -3.3% | P38: 761.0 | Q38: 772.0 | R38: 797.8 | S38: 812.5 | T38: 906.6 | U38: 939.7 | V38: 946.4 | W38: 980.3 | X38: 1,038.4 | Z38: 36.5% | AA38: 5.9%
B39: ICT | C39: 5.7 | D39: 4.9 | E39: 5.9 | F39: 6.7 | G39: 4.7 | H39: 3.2 | I39: 4.5 | J39: 5.6 | K39: 6.5 | M39: 13.0% | N39: 14.9% | P39: 179.9 | Q39: 179.5 | R39: 181.9 | S39: 195.0 | T39: 169.3 | U39: 174.2 | V39: 186.3 | W39: 195.9 | X39: 209.7 | Z39: 16.5% | AA39: 7.0%
B40: Life sciences | C40: 3.7 | D40: 2.8 | E40: 2.5 | F40: 2.4 | G40: 3.1 | H40: 2.9 | I40: 3.5 | J40: 4.3 | K40: 3.0 | M40: -17.7% | N40: -29.7% | P40: 67.8 | Q40: 73.8 | R40: 74.3 | S40: 75.2 | T40: 82.8 | U40: 75.3 | V40: 69.0 | W40: 90.7 | X40: 86.9 | Z40: 28.2% | AA40: -4.1%
B41: Tourism | C41: 23.9 | D41: 24.1 | E41: 24.7 | F41: 26.4 | G41: 24.6 | H41: 26.6 | I41: 29.4 | J41: 28.6 | K41: 29.9 | M41: 25.0% | N41: 4.3% | P41: 467.8 | Q41: 471.3 | R41: 483.4 | S41: 494.3 | T41: 532.0 | U41: 555.3 | V41: 540.2 | W41: 558.9 | X41: 581.1 | Z41: 24.2% | AA41: 4.0%
B42: In A Priority Sector4 | C42: 147.6 | D42: 146.8 | E42: 152.7 | F42: 161.2 | G42: 152.3 | H42: 152.4 | I42: 160.7 | J42: 167.9 | K42: 166.2 | M42: 12.6% | N42: -1.0% | P42: 3,185.0 | Q42: 3,242.7 | R42: 3,322.7 | S42: 3,372.4 | T42: 3,461.5 | U42: 3,562.0 | V42: 3,553.2 | W42: 3,658.7 | X42: 3,802.0 | Z42: 19.4% | AA42: 3.9%
B43: Not In A Sector | C43: 198.0 | D43: 207.2 | E43: 207.3 | F43: 207.3 | G43: 210.0 | H43: 219.9 | I43: 221.3 | J43: 230.2 | K43: 242.2 | M43: 22.3% | N43: 5.2% | P43: 4,208.2 | Q43: 4,333.0 | R43: 4,378.2 | S43: 4,463.7 | T43: 4,436.8 | U43: 4,498.9 | V43: 4,588.6 | W43: 4,665.5 | X43: 4,844.5 | Z43: 15.1% | AA43: 3.8%
B44: Total | C44: 345.6 | D44: 354.0 | E44: 360.0 | F44: 368.5 | G44: 362.3 | H44: 372.3 | I44: 382.0 | J44: 398.2 | K44: 408.4 | M44: 18.2% | N44: 2.6% | P44: 7,393.2 | Q44: 7,575.7 | R44: 7,700.9 | S44: 7,836.1 | T44: 7,898.2 | U44: 8,060.9 | V44: 8,141.8 | W44: 8,324.2 | X44: 8,646.5 | Z44: 17.0% | AA44: 3.9%
B45: All:
B46: Advanced materials / manufacturing | C46: 118.2 | D46: 106.6 | E46: 103.8 | F46: 105.9 | G46: 81.2 | H46: 78.9 | I46: 81.3 | J46: 80.4 | K46: 84.4 | M46: -28.6% | N46: 5.0% | P46: 2,039.6 | Q46: 1,988.7 | R46: 2,011.7 | S46: 1,886.9 | T46: 1,586.8 | U46: 1,615.9 | V46: 1,569.5 | W46: 1,605.0 | X46: 1,608.1 | Z46: -21.2% | AA46: 0.2%
B47: Construction | C47: 116.0 | D47: 128.9 | E47: 135.8 | F47: 135.8 | G47: 116.0 | H47: 110.1 | I47: 109.7 | J47: 101.8 | K47: 101.8 | M47: -12.3% | N47: -0.1% | P47: 2,734.3 | Q47: 2,813.8 | R47: 2,830.7 | S47: 2,874.5 | T47: 2,609.1 | U47: 2,468.4 | V47: 2,434.3 | W47: 2,356.0 | X47: 2,427.0 | Z47: -11.2% | AA47: 3.0%
B48: Creative industries3 | C48: 30.8 | D48: 31.4 | E48: 37.6 | F48: 33.2 | G48: 38.1 | H48: 36.7 | I48: 42.0 | J48: 39.9 | K48: 48.9 | M48: 58.5% | N48: 22.4% | P48: 1,129.3 | Q48: 1,157.4 | R48: 1,162.3 | S48: 1,151.4 | T48: 1,441.1 | U48: 1,425.0 | V48: 1,464.8 | W48: 1,597.6 | X48: 1,612.7 | Z48: 42.8% | AA48: 0.9%
B49: Energy & environment | C49: 142.0 | D49: 147.2 | E49: 153.3 | F49: 153.8 | G49: 153.7 | H49: 139.5 | I49: 160.3 | J49: 151.7 | K49: 141.9 | M49: -0.1% | N49: -6.5% | P49: 3,350.3 | Q49: 3,395.5 | R49: 3,506.1 | S49: 3,526.8 | T49: 3,650.3 | U49: 3,573.1 | V49: 3,652.0 | W49: 3,597.3 | X49: 3,758.6 | Z49: 12.2% | AA49: 4.5%
B50: Food & Farming | C50: 43.9 | D50: 42.6 | E50: 41.8 | F50: 41.3 | G50: 40.3 | H50: 41.1 | I50: 43.2 | J50: 42.8 | K50: 44.6 | M50: 1.6% | N50: 4.3% | P50: 650.2 | Q50: 684.3 | R50: 692.8 | S50: 718.0 | T50: 652.4 | U50: 707.8 | V50: 730.2 | W50: 712.1 | X50: 694.7 | Z50: 6.8% | AA50: -2.5%
B51: Financial and professional services | C51: 104.3 | D51: 97.0 | E51: 103.3 | F51: 106.2 | G51: 114.1 | H51: 104.8 | I51: 115.3 | J51: 118.0 | K51: 107.0 | M51: 2.5% | N51: -9.3% | P51: 3,275.7 | Q51: 3,288.3 | R51: 3,482.5 | S51: 3,457.1 | T51: 3,551.5 | U51: 3,558.6 | V51: 3,608.1 | W51: 3,702.4 | X51: 3,789.8 | Z51: 15.7% | AA51: 2.4%
B52: ICT | C52: 36.5 | D52: 32.1 | E52: 30.4 | F52: 32.5 | G52: 23.6 | H52: 20.5 | I52: 26.1 | J52: 24.1 | K52: 29.0 | M52: -20.5% | N52: 20.2% | P52: 1,016.2 | Q52: 1,032.4 | R52: 1,027.8 | S52: 1,012.9 | T52: 847.2 | U52: 851.5 | V52: 884.9 | W52: 930.4 | X52: 958.2 | Z52: -5.7% | AA52: 3.0%
B53: Life sciences | C53: 12.7 | D53: 13.0 | E53: 10.3 | F53: 11.4 | G53: 12.9 | H53: 10.4 | I53: 12.4 | J53: 12.6 | K53: 11.6 | M53: -9.1% | N53: -8.2% | P53: 297.4 | Q53: 307.4 | R53: 310.1 | S53: 290.6 | T53: 339.1 | U53: 308.3 | V53: 304.2 | W53: 319.6 | X53: 329.6 | Z53: 10.8% | AA53: 3.1%
B54: Tourism | C54: 101.8 | D54: 97.9 | E54: 104.5 | F54: 101.6 | G54: 109.7 | H54: 112.3 | I54: 115.4 | J54: 117.4 | K54: 121.4 | M54: 19.2% | N54: 3.4% | P54: 2,211.6 | Q54: 2,226.2 | R54: 2,289.5 | S54: 2,312.2 | T54: 2,466.0 | U54: 2,547.5 | V54: 2,535.5 | W54: 2,566.5 | X54: 2,618.0 | Z54: 18.4% | AA54: 2.0%
B55: In A Priority Sector4 | C55: 560.7 | D55: 551.0 | E55: 567.8 | F55: 569.2 | G55: 539.9 | H55: 524.0 | I55: 549.0 | J55: 545.4 | K55: 550.0 | M55: -1.9% | N55: 0.8% | P55: 13,071.8 | Q55: 13,223.3 | R55: 13,567.6 | S55: 13,478.4 | T55: 13,223.5 | U55: 13,208.2 | V55: 13,304.0 | W55: 13,471.2 | X55: 13,746.8 | Z55: 5.2% | AA55: 2.0%
B56: Not In A Sector | C56: 715.2 | D56: 729.2 | E56: 730.9 | F56: 725.5 | G56: 705.5 | H56: 722.1 | I56: 712.8 | J56: 713.3 | K56: 738.1 | M56: 3.2% | N56: 3.5% | P56: 15,403.0 | Q56: 15,502.7 | R56: 15,430.1 | S56: 15,618.5 | T56: 15,391.8 | U56: 15,463.8 | V56: 15,500.1 | W56: 15,575.6 | X56: 15,764.3 | Z56: 2.3% | AA56: 1.2%
B57: Total | C57: 1,275.9 | D57: 1,280.3 | E57: 1,298.7 | F57: 1,294.7 | G57: 1,245.4 | H57: 1,246.1 | I57: 1,261.8 | J57: 1,258.6 | K57: 1,288.1 | M57: 1.0% | N57: 2.3% | P57: 28,474.8 | Q57: 28,726.0 | R57: 28,997.8 | S57: 29,097.0 | T57: 28,615.3 | U57: 28,672.0 | V57: 28,804.1 | W57: 29,046.8 | X57: 29,511.1 | Z57: 3.6% | AA57: 1.6%
AA59: Source: Annual Population Survey, ONS
B60: 12005 - 2008 data based on SIC 2003 which has been converted to SIC2007. Data after 2009 based on SIC2007.
B61: 2Those people with missing industry information are excluded.
B62: 3Based on the updated DCMS Creative Industries classification.
B63: 4This total will not equal the sum of the individual priority sectors as there is overlap between several sectors.

Sheet 3.8
B1: Employment by Disability and Priority Sector1,2,3,4 (Aged 16-59/64) | AA1: Thousands
C2: Wales | P2: UK
C4: 2005 | D4: 2006 | E4: 2007 | F4: 2008 | G4: 2009 | H4: 2010 | I4: 2011 | J4: 2012 | K4: 2013 | M4: Change 2005 - 2013 | N4: Change 2012 - 2013 | P4: 2005 | Q4: 2006 | R4: 2007 | S4: 2008 | T4: 2009 | U4: 2010 | V4: 2011 | W4: 2012 | X4: 2012 | Z4: Change 2005 - 2013 | AA4: Change 2012 - 2013
B6: Disabled:
B7: Advanced materials / manufacturing | C7: 11.8 | D7: 9.8 | E7: 9.1 | F7: 9.8 | G7: 7.8 | H7: 8.5 | I7: 8.9 | J7: 8.7 | K7: n/a | M7: n/a | N7: n/a | P7: 183.8 | Q7: 176.2 | R7: 176.4 | S7: 162.7 | T7: 143.1 | U7: 162.6 | V7: 158.8 | W7: 164.2 | X7: n/a | Z7: n/a | AA7: n/a
B8: Construction | C8: 11.2 | D8: 12.2 | E8: 13.7 | F8: 13.4 | G8: 9.8 | H8: 11.8 | I8: 10.5 | J8: 11.5 | K8: n/a | M8: n/a | N8: n/a | P8: 241.8 | Q8: 226.0 | R8: 241.7 | S8: 246.0 | T8: 220.9 | U8: 225.6 | V8: 235.3 | W8: 227.9 | X8: n/a | Z8: n/a | AA8: n/a
B9: Creative industries5 | C9: 2.6 | D9: 1.9 | E9: 4.0 | F9: 3.9 | G9: 3.4 | H9: 3.6 | I9: 4.4 | J9: 3.1 | K9: n/a | M9: n/a | N9: n/a | P9: 83.6 | Q9: 82.0 | R9: 79.0 | S9: 89.0 | T9: 100.1 | U9: 129.2 | V9: 119.2 | W9: 133.0 | X9: n/a | Z9: n/a | AA9: n/a
B10: Energy & environment | C10: 13.9 | D10: 13.8 | E10: 15.5 | F10: 14.3 | G10: 14.3 | H10: 15.2 | I10: 15.5 | J10: 17.5 | K10: n/a | M10: n/a | N10: n/a | P10: 287.4 | Q10: 281.1 | R10: 305.7 | S10: 306.2 | T10: 317.5 | U10: 340.8 | V10: 356.7 | W10: 346.4 | X10: n/a | Z10: n/a | AA10: n/a
B11: Food & Farming | C11: 3.3 | D11: 3.6 | E11: 3.3 | F11: 3.3 | G11: 3.8 | H11: 4.3 | I11: 3.5 | J11: 3.9 | K11: n/a | M11: n/a | N11: n/a | P11: 59.9 | Q11: 61.4 | R11: 59.1 | S11: 56.1 | T11: 46.7 | U11: 64.9 | V11: 62.2 | W11: 60.9 | X11: n/a | Z11: n/a | AA11: n/a
B12: Financial and professional services | C12: 10.9 | D12: 9.9 | E12: 9.3 | F12: 9.3 | G12: 11.4 | H12: 10.7 | I12: 12.1 | J12: 15.2 | K12: n/a | M12: n/a | N12: n/a | P12: 244.7 | Q12: 251.0 | R12: 271.6 | S12: 274.5 | T12: 292.1 | U12: 326.6 | V12: 333.6 | W12: 344.3 | X12: n/a | Z12: n/a | AA12: n/a
B13: ICT | C13: 2.9 | D13: 2.3 | E13: 3.7 | F13: 3.0 | G13: 1.6 | H13: 2.1 | I13: 2.6 | J13: 2.5 | K13: n/a | M13: n/a | N13: n/a | P13: 73.2 | Q13: 75.0 | R13: 72.6 | S13: 78.0 | T13: 57.4 | U13: 77.5 | V13: 75.9 | W13: 78.8 | X13: n/a | Z13: n/a | AA13: n/a
B14: Life sciences | C14: 1.3 | D14: 1.5 | E14: 0.7 | F14: * | G14: 1.8 | H14: * | I14: 1.6 | J14: 0.7 | K14: n/a | M14: n/a | N14: n/a | P14: 22.0 | Q14: 23.8 | R14: 24.1 | S14: 25.5 | T14: 29.6 | U14: 26.2 | V14: 30.9 | W14: 32.1 | X14: n/a | Z14: n/a | AA14: n/a
B15: Tourism | C15: 12.3 | D15: 9.1 | E15: 10.5 | F15: 10.5 | G15: 10.2 | H15: 11.5 | I15: 14.5 | J15: 10.4 | K15: n/a | M15: n/a | N15: n/a | P15: 185.3 | Q15: 195.2 | R15: 203.6 | S15: 207.5 | T15: 210.8 | U15: 245.4 | V15: 248.0 | W15: 249.3 | X15: n/a | Z15: n/a | AA15: n/a
B16: In A Priority Sector6 | C16: 56.3 | D16: 51.4 | E16: 54.0 | F16: 53.6 | G16: 50.2 | H16: 56.3 | I16: 57.9 | J16: 57.6 | K16: n/a | M16: n/a | N16: n/a | P16: 1,079.9 | Q16: 1,082.2 | R16: 1,127.8 | S16: 1,121.7 | T16: 1,107.1 | U16: 1,244.9 | V16: 1,249.4 | W16: 1,275.2 | X16: n/a | Z16: n/a | AA16: n/a
B17: Not In A Sector | C17: 71.9 | D17: 74.3 | E17: 75.8 | F17: 76.2 | G17: 72.4 | H17: 89.5 | I17: 92.2 | J17: 91.4 | K17: n/a | M17: n/a | N17: n/a | P17: 1,477.7 | Q17: 1,514.2 | R17: 1,505.6 | S17: 1,549.9 | T17: 1,533.3 | U17: 1,714.1 | V17: 1,742.8 | W17: 1,724.0 | X17: n/a | Z17: n/a | AA17: n/a
B18: Total | C18: 128.1 | D18: 125.8 | E18: 129.8 | F18: 129.8 | G18: 122.6 | H18: 145.9 | I18: 150.1 | J18: 149.0 | K18: n/a | M18: n/a | N18: n/a | P18: 2,557.6 | Q18: 2,596.4 | R18: 2,633.5 | S18: 2,671.6 | T18: 2,640.5 | U18: 2,959.0 | V18: 2,992.2 | W18: 2,999.1 | X18: n/a | Z18: n/a | AA18: n/a
B19: Non-Disabled:
B20: Advanced materials / manufacturing | C20: 105.9 | D20: 95.1 | E20: 92.3 | F20: 93.9 | G20: 72.1 | H20: 68.5 | I20: 71.0 | J20: 70.1 | K20: n/a | M20: n/a | N20: n/a | P20: 1,797.3 | Q20: 1,763.5 | R20: 1,782.4 | S20: 1,672.1 | T20: 1,398.9 | U20: 1,395.6 | V20: 1,361.9 | W20: 1,379.8 | X20: n/a | Z20: n/a | AA20: n/a
B21: Construction | C21: 102.6 | D21: 114.1 | E21: 118.8 | F21: 118.8 | G21: 103.2 | H21: 95.1 | I21: 95.1 | J21: 86.8 | K21: n/a | M21: n/a | N21: n/a | P21: 2,436.6 | Q21: 2,517.8 | R21: 2,516.0 | S21: 2,546.7 | T21: 2,303.3 | U21: 2,158.2 | V21: 2,115.5 | W21: 2,034.8 | X21: n/a | Z21: n/a | AA21: n/a
B22: Creative industries5 | C22: 26.6 | D22: 28.0 | E22: 32.3 | F22: 27.8 | G22: 32.7 | H22: 30.8 | I22: 34.7 | J22: 34.0 | K22: n/a | M22: n/a | N22: n/a | P22: 992.9 | Q22: 1,029.6 | R22: 1,034.6 | S22: 1,012.4 | T22: 1,272.4 | U22: 1,218.4 | V22: 1,270.0 | W22: 1,378.9 | X22: n/a | Z22: n/a | AA22: n/a
B23: Energy & environment | C23: 124.4 | D23: 129.8 | E23: 133.0 | F23: 134.5 | G23: 134.4 | H23: 119.3 | I23: 138.4 | J23: 128.3 | K23: n/a | M23: n/a | N23: n/a | P23: 2,975.4 | Q23: 3,012.8 | R23: 3,092.2 | S23: 3,092.9 | T23: 3,190.1 | U23: 3,087.5 | V23: 3,137.6 | W23: 3,081.1 | X23: n/a | Z23: n/a | AA23: n/a
B24: Food & Farming | C24: 35.5 | D24: 34.5 | E24: 33.0 | F24: 31.8 | G24: 29.4 | H24: 29.7 | I24: 33.3 | J24: 31.5 | K24: n/a | M24: n/a | N24: n/a | P24: 552.9 | Q24: 578.1 | R24: 584.7 | S24: 604.8 | T24: 553.6 | U24: 571.0 | V24: 598.3 | W24: 579.6 | X24: n/a | Z24: n/a | AA24: n/a
B25: Financial and professional services | C25: 88.9 | D25: 82.3 | E25: 88.8 | F25: 92.1 | G25: 97.1 | H25: 87.8 | I25: 96.7 | J25: 95.2 | K25: n/a | M25: n/a | N25: n/a | P25: 2,901.9 | Q25: 2,910.5 | R25: 3,071.8 | S25: 3,033.2 | T25: 3,091.2 | U25: 3,056.3 | V25: 3,083.3 | W25: 3,152.4 | X25: n/a | Z25: n/a | AA25: n/a
B26: ICT | C26: 33.5 | D26: 29.4 | E26: 26.0 | F26: 29.0 | G26: 21.7 | H26: 18.2 | I26: 23.0 | J26: 21.3 | K26: n/a | M26: n/a | N26: n/a | P26: 940.8 | Q26: 946.4 | R26: 945.3 | S26: 922.5 | T26: 775.4 | U26: 761.8 | V26: 792.3 | W26: 831.8 | X26: n/a | Z26: n/a | AA26: n/a
B27: Life sciences | C27: 10.4 | D27: 11.2 | E27: 9.4 | F27: 10.5 | G27: 10.9 | H27: 9.4 | I27: 10.5 | J27: 11.7 | K27: n/a | M27: n/a | N27: n/a | P27: 279.2 | Q27: 279.2 | R27: 277.0 | S27: 256.3 | T27: 302.2 | U27: 273.5 | V27: 266.9 | W27: 277.8 | X27: n/a | Z27: n/a | AA27: n/a
B28: Tourism | C28: 85.1 | D28: 84.3 | E28: 90.0 | F28: 85.2 | G28: 93.6 | H28: 94.5 | I28: 93.2 | J28: 98.8 | K28: n/a | M28: n/a | N28: n/a | P28: 1,938.5 | Q28: 1,934.7 | R28: 1,984.2 | S28: 1,997.5 | T28: 2,140.9 | U28: 2,173.6 | V28: 2,161.9 | W28: 2,176.3 | X28: n/a | Z28: n/a | AA28: n/a
B29: In A Priority Sector6 | C29: 485.5 | D29: 480.0 | E29: 491.7 | F29: 491.2 | G29: 464.6 | H29: 440.6 | I29: 461.3 | J29: 456.6 | K29: n/a | M29: n/a | N29: n/a | P29: 11,587.3 | Q29: 11,710.7 | R29: 11,977.8 | S29: 11,856.4 | T29: 11,583.3 | U29: 11,375.2 | V29: 11,455.6 | W29: 11,531.6 | X29: n/a | Z29: n/a | AA29: n/a
B30: Not In A Sector | C30: 615.8 | D30: 622.7 | E30: 620.1 | F30: 612.4 | G30: 593.9 | H30: 590.8 | I30: 579.9 | J30: 575.0 | K30: n/a | M30: n/a | N30: n/a | P30: 13,313.3 | Q30: 13,276.8 | R30: 13,161.8 | S30: 13,274.0 | T30: 13,024.1 | U30: 12,899.8 | V30: 12,872.9 | W30: 12,897.3 | X30: n/a | Z30: n/a | AA30: n/a
B31: Total | C31: 1,101.4 | D31: 1,102.7 | E31: 1,111.8 | F31: 1,103.6 | G31: 1,058.5 | H31: 1,031.5 | I31: 1,041.2 | J31: 1,031.6 | K31: n/a | M31: n/a | N31: n/a | P31: 24,900.5 | Q31: 24,987.5 | R31: 25,139.7 | S31: 25,130.4 | T31: 24,607.4 | U31: 24,275.0 | V31: 24,328.5 | W31: 24,428.8 | X31: n/a | Z31: n/a | AA31: n/a
B32: All7:
B33: Advanced materials / manufacturing | C33: ='3.1'!C6 -> 118.2 | D33: ='3.1'!D6 -> 106.6 | E33: ='3.1'!E6 -> 103.8 | F33: ='3.1'!F6 -> 105.9 | G33: ='3.1'!G6 -> 81.2 | H33: ='3.1'!H6 -> 78.9 | I33: ='3.1'!I6 -> 81.3 | J33: ='3.1'!J6 -> 80.4 | K33: ='3.1'!K6 -> 84.4 | M33: ='3.1'!M6 -> -28.6% | N33: ='3.1'!N6 -> 5.0% | P33: ='3.1'!C19 -> 2,039.6 | Q33: ='3.1'!D19 -> 1,988.7 | R33: ='3.1'!E19 -> 2,011.7 | S33: ='3.1'!F19 -> 1,886.9 | T33: ='3.1'!G19 -> 1,586.8 | U33: ='3.1'!H19 -> 1,615.9 | V33: ='3.1'!I19 -> 1,569.5 | W33: ='3.1'!J19 -> 1,605.0 | X33: ='3.1'!K19 -> 1,608.1 | Z33: ='3.1'!M19 -> -21.2% | AA33: ='3.1'!N19 -> 0.2%
B34: Construction | C34: ='3.1'!C7 -> 116.0 | D34: ='3.1'!D7 -> 128.9 | E34: ='3.1'!E7 -> 135.8 | F34: ='3.1'!F7 -> 135.8 | G34: ='3.1'!G7 -> 116.0 | H34: ='3.1'!H7 -> 110.1 | I34: ='3.1'!I7 -> 109.7 | J34: ='3.1'!J7 -> 101.8 | K34: ='3.1'!K7 -> 101.8 | M34: ='3.1'!M7 -> -12.3% | N34: ='3.1'!N7 -> -0.1% | P34: ='3.1'!C20 -> 2,734.3 | Q34: ='3.1'!D20 -> 2,813.8 | R34: ='3.1'!E20 -> 2,830.7 | S34: ='3.1'!F20 -> 2,874.5 | T34: ='3.1'!G20 -> 2,609.1 | U34: ='3.1'!H20 -> 2,468.4 | V34: ='3.1'!I20 -> 2,434.3 | W34: ='3.1'!J20 -> 2,356.0 | X34: ='3.1'!K20 -> 2,427.0 | Z34: ='3.1'!M20 -> -11.2% | AA34: ='3.1'!N20 -> 3.0%
B35: Creative industries5 | C35: ='3.1'!C8 -> 30.8 | D35: ='3.1'!D8 -> 31.4 | E35: ='3.1'!E8 -> 37.6 | F35: ='3.1'!F8 -> 33.2 | G35: ='3.1'!G8 -> 38.1 | H35: ='3.1'!H8 -> 36.7 | I35: ='3.1'!I8 -> 42.0 | J35: ='3.1'!J8 -> 39.9 | K35: ='3.1'!K8 -> 48.9 | M35: ='3.1'!M8 -> 58.5% | N35: ='3.1'!N8 -> 22.4% | P35: ='3.1'!C21 -> 1,129.3 | Q35: ='3.1'!D21 -> 1,157.4 | R35: ='3.1'!E21 -> 1,162.3 | S35: ='3.1'!F21 -> 1,151.4 | T35: ='3.1'!G21 -> 1,441.1 | U35: ='3.1'!H21 -> 1,425.0 | V35: ='3.1'!I21 -> 1,464.8 | W35: ='3.1'!J21 -> 1,597.6 | X35: ='3.1'!K21 -> 1,612.7 | Z35: ='3.1'!M21 -> 42.8% | AA35: ='3.1'!N21 -> 0.9%
B36: Energy & environment | C36: ='3.1'!C9 -> 142.0 | D36: ='3.1'!D9 -> 147.2 | E36: ='3.1'!E9 -> 153.3 | F36: ='3.1'!F9 -> 153.8 | G36: ='3.1'!G9 -> 153.7 | H36: ='3.1'!H9 -> 139.5 | I36: ='3.1'!I9 -> 160.3 | J36: ='3.1'!J9 -> 151.7 | K36: ='3.1'!K9 -> 141.9 | M36: ='3.1'!M9 -> -0.1% | N36: ='3.1'!N9 -> -6.5% | P36: ='3.1'!C22 -> 3,350.3 | Q36: ='3.1'!D22 -> 3,395.5 | R36: ='3.1'!E22 -> 3,506.1 | S36: ='3.1'!F22 -> 3,526.8 | T36: ='3.1'!G22 -> 3,650.3 | U36: ='3.1'!H22 -> 3,573.1 | V36: ='3.1'!I22 -> 3,652.0 | W36: ='3.1'!J22 -> 3,597.3 | X36: ='3.1'!K22 -> 3,758.6 | Z36: ='3.1'!M22 -> 12.2% | AA36: ='3.1'!N22 -> 4.5%
B37: Food & Farming | C37: ='3.1'!C10 -> 43.9 | D37: ='3.1'!D10 -> 42.6 | E37: ='3.1'!E10 -> 41.8 | F37: ='3.1'!F10 -> 41.3 | G37: ='3.1'!G10 -> 40.3 | H37: ='3.1'!H10 -> 41.1 | I37: ='3.1'!I10 -> 43.2 | J37: ='3.1'!J10 -> 42.8 | K37: ='3.1'!K10 -> 44.6 | M37: ='3.1'!M10 -> 1.6% | N37: ='3.1'!N10 -> 4.3% | P37: ='3.1'!C23 -> 650.2 | Q37: ='3.1'!D23 -> 684.3 | R37: ='3.1'!E23 -> 692.8 | S37: ='3.1'!F23 -> 718.0 | T37: ='3.1'!G23 -> 652.4 | U37: ='3.1'!H23 -> 707.8 | V37: ='3.1'!I23 -> 730.2 | W37: ='3.1'!J23 -> 712.1 | X37: ='3.1'!K23 -> 694.7 | Z37: ='3.1'!M23 -> 6.8% | AA37: ='3.1'!N23 -> -2.5%
B38: Financial and professional services | C38: ='3.1'!C11 -> 104.3 | D38: ='3.1'!D11 -> 97.0 | E38: ='3.1'!E11 -> 103.3 | F38: ='3.1'!F11 -> 106.2 | G38: ='3.1'!G11 -> 114.1 | H38: ='3.1'!H11 -> 104.8 | I38: ='3.1'!I11 -> 115.3 | J38: ='3.1'!J11 -> 118.0 | K38: ='3.1'!K11 -> 107.0 | M38: ='3.1'!M11 -> 2.5% | N38: ='3.1'!N11 -> -9.3% | P38: ='3.1'!C24 -> 3,275.7 | Q38: ='3.1'!D24 -> 3,288.3 | R38: ='3.1'!E24 -> 3,482.5 | S38: ='3.1'!F24 -> 3,457.1 | T38: ='3.1'!G24 -> 3,551.5 | U38: ='3.1'!H24 -> 3,558.6 | V38: ='3.1'!I24 -> 3,608.1 | W38: ='3.1'!J24 -> 3,702.4 | X38: ='3.1'!K24 -> 3,789.8 | Z38: ='3.1'!M24 -> 15.7% | AA38: ='3.1'!N24 -> 2.4%
B39: ICT | C39: ='3.1'!C12 -> 36.5 | D39: ='3.1'!D12 -> 32.1 | E39: ='3.1'!E12 -> 30.4 | F39: ='3.1'!F12 -> 32.5 | G39: ='3.1'!G12 -> 23.6 | H39: ='3.1'!H12 -> 20.5 | I39: ='3.1'!I12 -> 26.1 | J39: ='3.1'!J12 -> 24.1 | K39: ='3.1'!K12 -> 29.0 | M39: ='3.1'!M12 -> -20.5% | N39: ='3.1'!N12 -> 20.2% | P39: ='3.1'!C25 -> 1,016.2 | Q39: ='3.1'!D25 -> 1,032.4 | R39: ='3.1'!E25 -> 1,027.8 | S39: ='3.1'!F25 -> 1,012.9 | T39: ='3.1'!G25 -> 847.2 | U39: ='3.1'!H25 -> 851.5 | V39: ='3.1'!I25 -> 884.9 | W39: ='3.1'!J25 -> 930.4 | X39: ='3.1'!K25 -> 958.2 | Z39: ='3.1'!M25 -> -5.7% | AA39: ='3.1'!N25 -> 3.0%
B40: Life sciences | C40: ='3.1'!C13 -> 12.7 | D40: ='3.1'!D13 -> 13.0 | E40: ='3.1'!E13 -> 10.3 | F40: ='3.1'!F13 -> 11.4 | G40: ='3.1'!G13 -> 12.9 | H40: ='3.1'!H13 -> 10.4 | I40: ='3.1'!I13 -> 12.4 | J40: ='3.1'!J13 -> 12.6 | K40: ='3.1'!K13 -> 11.6 | M40: ='3.1'!M13 -> -9.1% | N40: ='3.1'!N13 -> -8.2% | P40: ='3.1'!C26 -> 297.4 | Q40: ='3.1'!D26 -> 307.4 | R40: ='3.1'!E26 -> 310.1 | S40: ='3.1'!F26 -> 290.6 | T40: ='3.1'!G26 -> 339.1 | U40: ='3.1'!H26 -> 308.3 | V40: ='3.1'!I26 -> 304.2 | W40: ='3.1'!J26 -> 319.6 | X40: ='3.1'!K26 -> 329.6 | Z40: ='3.1'!M26 -> 10.8% | AA40: ='3.1'!N26 -> 3.1%
B41: Tourism | C41: ='3.1'!C14 -> 101.8 | D41: ='3.1'!D14 -> 97.9 | E41: ='3.1'!E14 -> 104.5 | F41: ='3.1'!F14 -> 101.6 | G41: ='3.1'!G14 -> 109.7 | H41: ='3.1'!H14 -> 112.3 | I41: ='3.1'!I14 -> 115.4 | J41: ='3.1'!J14 -> 117.4 | K41: ='3.1'!K14 -> 121.4 | M41: ='3.1'!M14 -> 19.2% | N41: ='3.1'!N14 -> 3.4% | P41: ='3.1'!C27 -> 2,211.6 | Q41: ='3.1'!D27 -> 2,226.2 | R41: ='3.1'!E27 -> 2,289.5 | S41: ='3.1'!F27 -> 2,312.2 | T41: ='3.1'!G27 -> 2,466.0 | U41: ='3.1'!H27 -> 2,547.5 | V41: ='3.1'!I27 -> 2,535.5 | W41: ='3.1'!J27 -> 2,566.5 | X41: ='3.1'!K27 -> 2,618.0 | Z41: ='3.1'!M27 -> 18.4% | AA41: ='3.1'!N27 -> 2.0%
B42: In A Priority Sector6 | C42: ='3.1'!C15 -> 560.7 | D42: ='3.1'!D15 -> 551.0 | E42: ='3.1'!E15 -> 567.8 | F42: ='3.1'!F15 -> 569.2 | G42: ='3.1'!G15 -> 539.9 | H42: ='3.1'!H15 -> 524.0 | I42: ='3.1'!I15 -> 549.0 | J42: ='3.1'!J15 -> 545.4 | K42: ='3.1'!K15 -> 550.0 | M42: ='3.1'!M15 -> -1.9% | N42: ='3.1'!N15 -> 0.8% | P42: ='3.1'!C28 -> 13,071.8 | Q42: ='3.1'!D28 -> 13,223.3 | R42: ='3.1'!E28 -> 13,567.6 | S42: ='3.1'!F28 -> 13,478.4 | T42: ='3.1'!G28 -> 13,223.5 | U42: ='3.1'!H28 -> 13,208.2 | V42: ='3.1'!I28 -> 13,304.0 | W42: ='3.1'!J28 -> 13,471.2 | X42: ='3.1'!K28 -> 13,746.8 | Z42: ='3.1'!M28 -> 5.2% | AA42: ='3.1'!N28 -> 2.0%
B43: Not In A Sector | C43: ='3.1'!C16 -> 715.2 | D43: ='3.1'!D16 -> 729.2 | E43: ='3.1'!E16 -> 730.9 | F43: ='3.1'!F16 -> 725.5 | G43: ='3.1'!G16 -> 705.5 | H43: ='3.1'!H16 -> 722.1 | I43: ='3.1'!I16 -> 712.8 | J43: ='3.1'!J16 -> 713.3 | K43: ='3.1'!K16 -> 738.1 | M43: ='3.1'!M16 -> 3.2% | N43: ='3.1'!N16 -> 3.5% | P43: ='3.1'!C29 -> 15,403.0 | Q43: ='3.1'!D29 -> 15,502.7 | R43: ='3.1'!E29 -> 15,430.1 | S43: ='3.1'!F29 -> 15,618.5 | T43: ='3.1'!G29 -> 15,391.8 | U43: ='3.1'!H29 -> 15,463.8 | V43: ='3.1'!I29 -> 15,500.1 | W43: ='3.1'!J29 -> 15,575.6 | X43: ='3.1'!K29 -> 15,764.3 | Z43: ='3.1'!M29 -> 2.3% | AA43: ='3.1'!N29 -> 1.2%
B44: Total | C44: ='3.1'!C17 -> 1,275.9 | D44: ='3.1'!D17 -> 1,280.3 | E44: ='3.1'!E17 -> 1,298.7 | F44: ='3.1'!F17 -> 1,294.7 | G44: ='3.1'!G17 -> 1,245.4 | H44: ='3.1'!H17 -> 1,246.1 | I44: ='3.1'!I17 -> 1,261.8 | J44: ='3.1'!J17 -> 1,258.6 | K44: ='3.1'!K17 -> 1,288.1 | M44: ='3.1'!M17 -> 1.0% | N44: ='3.1'!N17 -> 2.3% | P44: ='3.1'!C30 -> 28,474.8 | Q44: ='3.1'!D30 -> 28,726.0 | R44: ='3.1'!E30 -> 28,997.8 | S44: ='3.1'!F30 -> 29,097.0 | T44: ='3.1'!G30 -> 28,615.3 | U44: ='3.1'!H30 -> 28,672.0 | V44: ='3.1'!I30 -> 28,804.1 | W44: ='3.1'!J30 -> 29,046.8 | X44: ='3.1'!K30 -> 29,511.1 | Z44: ='3.1'!M30 -> 3.6% | AA44: ='3.1'!N30 -> 1.6%
AA46: Source: Annual Population Survey, ONS
B47: 12005 - 2008 data based on SIC 2003 which has been converted to SIC2007. Data after 2009 based on SIC2007.
B48: 2Those people with missing industry information are excluded.
B49: 3The non-disabled population refers to all those not classified as Disability Discrimination Act (DDA) disabled.
B50: 4Due to changes in the way in which the disability questions were asked in 2010 there is a discontinuity in the series. Data for 2005-2009 should not be compared with 2010 onwards.
B51: Furthermore, estimates have not been included for 2013 due to changes in the survey questions relating to disability, effective from the April-June 2013 quarter. This has resulted in inconsistencies in these estimates over the full calendar year.
B52: 5Based on the updated DCMS Creative Industries classification.
B53: 6This total will not equal the sum of the individual priority sectors as there is overlap between several sectors.
B54: 7Includes those people with missing disability information.

Sheet 3.9
B1: Employment by Ethnicity and Priority Sector1,2,3 (Aged 16 Plus) | AA1: Thousands
C2: Wales | P2: UK
C4: 2005 | D4: 2006 | E4: 2007 | F4: 2008 | G4: 2009 | H4: 2010 | I4: 2011 | J4: 2012 | K4: 2013 | M4: Change 2005 - 2013 | N4: Change 2012 - 2013 | P4: 2005 | Q4: 2006 | R4: 2007 | S4: 2008 | T4: 2009 | U4: 2010 | V4: 2011 | W4: 2012 | X4: 2013 | Z4: Change 2005 - 2013 | AA4: Change 2012 - 2013
B6: Non-White:
B7: Advanced materials / manufacturing | C7: 1.3 | D7: 2.2 | E7: 1.8 | F7: 1.0 | G7: 0.8 | H7: 1.6 | I7: 1.6 | J7: 0.9 | K7: 1.8 | M7: n/a | N7: 99.1% | P7: 105.8 | Q7: 117.6 | R7: 128.8 | S7: 108.4 | T7: 81.0 | U7: 77.6 | V7: 83.4 | W7: 81.1 | X7: 92.5 | Z7: n/a | AA7: 14.1%
B8: Construction | C8: * | D8: 1.3 | E8: 1.1 | F8: 1.1 | G8: * | H8: 1.3 | I8: 1.3 | J8: * | K8: * | M8: n/a | N8: * | P8: 91.4 | Q8: 113.7 | R8: 119.1 | S8: 120.7 | T8: 105.4 | U8: 104.4 | V8: 120.2 | W8: 109.3 | X8: 125.3 | Z8: n/a | AA8: 14.6%
B9: Creative industries4 | C9: * | D9: * | E9: 2.1 | F9: * | G9: * | H9: * | I9: 2.1 | J9: 1.8 | K9: 3.1 | M9: n/a | N9: 68.2% | P9: 84.4 | Q9: 105.0 | R9: 102.7 | S9: 113.7 | T9: 135.8 | U9: 134.3 | V9: 151.2 | W9: 177.6 | X9: 175.4 | Z9: n/a | AA9: -1.2%
B10: Energy & environment | C10: 1.6 | D10: 2.0 | E10: 1.7 | F10: 1.6 | G10: 1.9 | H10: 3.0 | I10: 2.0 | J10: 2.2 | K10: 3.2 | M10: n/a | N10: 47.7% | P10: 139.4 | Q10: 160.7 | R10: 190.5 | S10: 198.8 | T10: 208.2 | U10: 217.9 | V10: 236.1 | W10: 234.5 | X10: 280.9 | Z10: n/a | AA10: 19.8%
B11: Food & Farming | C11: 0.9 | D11: 1.2 | E11: 1.7 | F11: * | G11: * | H11: * | I11: * | J11: 1.1 | K11: 2.0 | M11: n/a | N11: 75.4% | P11: 37.0 | Q11: 39.2 | R11: 50.1 | S11: 46.0 | T11: 42.0 | U11: 44.6 | V11: 47.5 | W11: 47.5 | X11: 49.3 | Z11: n/a | AA11: 3.9%
B12: Financial and professional services | C12: 1.9 | D12: 2.4 | E12: 3.6 | F12: 5.5 | G12: 4.2 | H12: 3.4 | I12: 5.2 | J12: 4.2 | K12: 4.5 | M12: n/a | N12: 8.0% | P12: 266.2 | Q12: 291.4 | R12: 346.6 | S12: 352.1 | T12: 367.2 | U12: 388.6 | V12: 415.6 | W12: 437.9 | X12: 438.0 | Z12: n/a | AA12: 0.0%
B13: ICT | C13: 1.9 | D13: 2.5 | E13: 2.2 | F13: 1.7 | G13: * | H13: * | I13: 2.2 | J13: 1.7 | K13: 2.6 | M13: n/a | N13: 51.7% | P13: 105.7 | Q13: 114.6 | R13: 114.6 | S13: 122.7 | T13: 104.4 | U13: 108.0 | V13: 114.4 | W13: 127.4 | X13: 131.4 | Z13: n/a | AA13: 3.2%
B14: Life sciences | C14: * | D14: * | E14: * | F14: * | G14: * | H14: * | I14: * | J14: * | K14: * | M14: n/a | N14: * | P14: 20.6 | Q14: 20.1 | R14: 25.3 | S14: 25.1 | T14: 28.3 | U14: 27.3 | V14: 23.3 | W14: 24.9 | X14: 30.0 | Z14: n/a | AA14: 20.4%
B15: Tourism | C15: 4.4 | D15: 6.0 | E15: 8.4 | F15: 7.7 | G15: 9.4 | H15: 9.0 | I15: 8.4 | J15: 7.8 | K15: 5.4 | M15: n/a | N15: -30.6% | P15: 283.0 | Q15: 284.7 | R15: 307.3 | S15: 337.9 | T15: 340.9 | U15: 376.7 | V15: 374.6 | W15: 398.1 | X15: 390.6 | Z15: n/a | AA15: -1.9%
B16: In A Priority Sector5 | C16: 11.8 | D16: 16.2 | E16: 19.6 | F16: 18.4 | G16: 17.2 | H16: 18.0 | I16: 20.5 | J16: 17.7 | K16: 19.0 | M16: n/a | N16: 7.4% | P16: 953.4 | Q16: 1,032.8 | R16: 1,153.5 | S16: 1,175.9 | T16: 1,145.1 | U16: 1,195.0 | V16: 1,260.4 | W16: 1,313.7 | X16: 1,347.3 | Z16: n/a | AA16: 2.6%
B17: Not In A Sector | C17: 17.2 | D17: 17.7 | E17: 20.5 | F17: 19.8 | G17: 26.8 | H17: 25.6 | I17: 29.6 | J17: 26.1 | K17: 24.3 | M17: n/a | N17: -7.0% | P17: 1,213.2 | Q17: 1,298.3 | R17: 1,325.7 | S17: 1,416.9 | T17: 1,469.9 | U17: 1,518.2 | V17: 1,593.4 | W17: 1,625.9 | X17: 1,649.1 | Z17: n/a | AA17: 1.4%
B18: Total | C18: 28.9 | D18: 33.9 | E18: 40.1 | F18: 38.3 | G18: 44.0 | H18: 43.6 | I18: 50.1 | J18: 43.8 | K18: 43.3 | M18: n/a | N18: -1.2% | P18: 2,166.6 | Q18: 2,331.1 | R18: 2,479.2 | S18: 2,592.8 | T18: 2,615.0 | U18: 2,713.2 | V18: 2,853.8 | W18: 2,939.6 | X18: 2,996.5 | Z18: n/a | AA18: 1.9%
B19: White:
B20: Advanced materials / manufacturing | C20: 116.8 | D20: 104.3 | E20: 102.0 | F20: 104.9 | G20: 80.5 | H20: 77.3 | I20: 79.6 | J20: 79.4 | K20: 82.3 | M20: n/a | N20: 3.7% | P20: 1,933.2 | Q20: 1,871.0 | R20: 1,882.6 | S20: 1,777.9 | T20: 1,504.6 | U20: 1,537.5 | V20: 1,485.3 | W20: 1,523.4 | X20: 1,515.3 | Z20: n/a | AA20: -0.5%
B21: Construction | C21: 115.2 | D21: 127.7 | E21: 134.7 | F21: 134.7 | G21: 115.2 | H21: 108.8 | I21: 108.3 | J21: 101.1 | K21: 101.1 | M21: n/a | N21: -0.1% | P21: 2,640.8 | Q21: 2,699.2 | R21: 2,711.1 | S21: 2,753.1 | T21: 2,503.1 | U21: 2,363.1 | V21: 2,312.8 | W21: 2,245.5 | X21: 2,300.6 | Z21: n/a | AA21: 2.5%
B22: Creative industries4 | C22: 29.9 | D22: 30.1 | E22: 35.5 | F22: 32.2 | G22: 37.0 | H22: 35.8 | I22: 39.9 | J22: 38.0 | K22: 45.7 | M22: n/a | N22: 20.5% | P22: 1,044.4 | Q22: 1,051.5 | R22: 1,058.1 | S22: 1,037.0 | T22: 1,304.9 | U22: 1,288.8 | V22: 1,311.8 | W22: 1,418.6 | X22: 1,437.0 | Z22: n/a | AA22: 1.3%
B23: Energy & environment | C23: 140.4 | D23: 145.3 | E23: 151.6 | F23: 152.2 | G23: 151.8 | H23: 136.5 | I23: 158.1 | J23: 149.4 | K23: 138.3 | M23: n/a | N23: -7.4% | P23: 3,208.4 | Q23: 3,233.2 | R23: 3,314.3 | S23: 3,326.5 | T23: 3,440.0 | U23: 3,353.2 | V23: 3,413.9 | W23: 3,361.6 | X23: 3,476.1 | Z23: n/a | AA23: 3.4%
B24: Food & Farming | C24: 43.0 | D24: 41.5 | E24: 40.1 | F24: 40.2 | G24: 40.0 | H24: 40.7 | I24: 42.5 | J24: 41.7 | K24: 42.6 | M24: n/a | N24: 2.4% | P24: 612.8 | Q24: 644.9 | R24: 642.6 | S24: 671.3 | T24: 610.0 | U24: 662.9 | V24: 682.7 | W24: 664.4 | X24: 645.3 | Z24: n/a | AA24: -2.9%
B25: Financial and professional services | C25: 102.4 | D25: 94.6 | E25: 99.8 | F25: 100.7 | G25: 109.7 | H25: 101.3 | I25: 110.0 | J25: 113.8 | K25: 102.2 | M25: n/a | N25: -10.1% | P25: 3,008.2 | Q25: 2,995.3 | R25: 3,134.1 | S25: 3,103.1 | T25: 3,182.1 | U25: 3,168.8 | V25: 3,190.6 | W25: 3,262.7 | X25: 3,348.2 | Z25: n/a | AA25: 2.6%
B26: ICT | C26: 34.6 | D26: 29.6 | E26: 28.2 | F26: 30.8 | G26: 22.5 | H26: 19.5 | I26: 23.8 | J26: 22.4 | K26: 26.3 | M26: n/a | N26: 17.7% | P26: 910.0 | Q26: 916.6 | R26: 911.9 | S26: 890.2 | T26: 742.1 | U26: 742.9 | V26: 769.4 | W26: 802.1 | X26: 826.5 | Z26: n/a | AA26: 3.0%
B27: Life sciences | C27: 12.5 | D27: 12.4 | E27: 10.2 | F27: 11.3 | G27: 12.6 | H27: 10.0 | I27: 11.9 | J27: 12.6 | K27: 10.9 | M27: n/a | N27: -13.4% | P27: 276.7 | Q27: 287.2 | R27: 284.6 | S27: 265.5 | T27: 310.8 | U27: 281.0 | V27: 280.5 | W27: 294.1 | X27: 299.6 | Z27: n/a | AA27: 1.8%
B28: Tourism | C28: 97.5 | D28: 91.8 | E28: 96.1 | F28: 93.9 | G28: 100.3 | H28: 103.2 | I28: 107.0 | J28: 109.5 | K28: 115.9 | M28: n/a | N28: 5.8% | P28: 1,927.5 | Q28: 1,939.5 | R28: 1,980.4 | S28: 1,972.7 | T28: 2,123.2 | U28: 2,168.5 | V28: 2,159.0 | W28: 2,166.7 | X28: 2,226.7 | Z28: n/a | AA28: 2.8%
B29: In A Priority Sector5 | C29: 548.8 | D29: 534.7 | E29: 548.2 | F29: 550.7 | G29: 522.2 | H29: 505.8 | I29: 528.3 | J29: 527.5 | K29: 530.5 | M29: n/a | N29: 0.6% | P29: 12,112.1 | Q29: 12,184.4 | R29: 12,407.5 | S29: 12,296.3 | T29: 12,071.1 | U29: 12,005.5 | V29: 12,035.8 | W29: 12,149.9 | X29: 12,393.6 | Z29: n/a | AA29: 2.0%
B30: Not In A Sector | C30: 697.7 | D30: 711.5 | E30: 710.4 | F30: 705.6 | G30: 678.5 | H30: 696.3 | I30: 683.1 | J30: 686.8 | K30: 713.7 | M30: n/a | N30: 3.9% | P30: 14,183.3 | Q30: 14,198.6 | R30: 14,098.2 | S30: 14,196.6 | T30: 13,913.4 | U30: 13,932.9 | V30: 13,897.5 | W30: 13,942.6 | X30: 14,108.1 | Z30: n/a | AA30: 1.2%
B31: Total | C31: 1,246.5 | D31: 1,246.2 | E31: 1,258.6 | F31: 1,256.4 | G31: 1,200.7 | H31: 1,202.1 | I31: 1,211.3 | J31: 1,214.3 | K31: 1,244.2 | M31: n/a | N31: 2.5% | P31: 26,295.4 | Q31: 26,383.0 | R31: 26,505.7 | S31: 26,493.0 | T31: 25,984.5 | U31: 25,938.4 | V31: 25,933.3 | W31: 26,092.5 | X31: 26,501.7 | Z31: n/a | AA31: 1.6%
B32: All6:
B33: Advanced materials / manufacturing | C33: ='3.1'!C6 -> 118.2 | D33: ='3.1'!D6 -> 106.6 | E33: ='3.1'!E6 -> 103.8 | F33: ='3.1'!F6 -> 105.9 | G33: ='3.1'!G6 -> 81.2 | H33: ='3.1'!H6 -> 78.9 | I33: ='3.1'!I6 -> 81.3 | J33: ='3.1'!J6 -> 80.4 | K33: ='3.1'!K6 -> 84.4 | M33: ='3.1'!M6 -> -28.6% | N33: ='3.1'!N6 -> 5.0% | P33: ='3.1'!C19 -> 2,039.6 | Q33: ='3.1'!D19 -> 1,988.7 | R33: ='3.1'!E19 -> 2,011.7 | S33: ='3.1'!F19 -> 1,886.9 | T33: ='3.1'!G19 -> 1,586.8 | U33: ='3.1'!H19 -> 1,615.9 | V33: ='3.1'!I19 -> 1,569.5 | W33: ='3.1'!J19 -> 1,605.0 | X33: ='3.1'!K19 -> 1,608.1 | Z33: ='3.1'!M19 -> -21.2% | AA33: ='3.1'!N19 -> 0.2%
B34: Construction | C34: ='3.1'!C7 -> 116.0 | D34: ='3.1'!D7 -> 128.9 | E34: ='3.1'!E7 -> 135.8 | F34: ='3.1'!F7 -> 135.8 | G34: ='3.1'!G7 -> 116.0 | H34: ='3.1'!H7 -> 110.1 | I34: ='3.1'!I7 -> 109.7 | J34: ='3.1'!J7 -> 101.8 | K34: ='3.1'!K7 -> 101.8 | M34: ='3.1'!M7 -> -12.3% | N34: ='3.1'!N7 -> -0.1% | P34: ='3.1'!C20 -> 2,734.3 | Q34: ='3.1'!D20 -> 2,813.8 | R34: ='3.1'!E20 -> 2,830.7 | S34: ='3.1'!F20 -> 2,874.5 | T34: ='3.1'!G20 -> 2,609.1 | U34: ='3.1'!H20 -> 2,468.4 | V34: ='3.1'!I20 -> 2,434.3 | W34: ='3.1'!J20 -> 2,356.0 | X34: ='3.1'!K20 -> 2,427.0 | Z34: ='3.1'!M20 -> -11.2% | AA34: ='3.1'!N20 -> 3.0%
B35: Creative industries4 | C35: ='3.1'!C8 -> 30.8 | D35: ='3.1'!D8 -> 31.4 | E35: ='3.1'!E8 -> 37.6 | F35: ='3.1'!F8 -> 33.2 | G35: ='3.1'!G8 -> 38.1 | H35: ='3.1'!H8 -> 36.7 | I35: ='3.1'!I8 -> 42.0 | J35: ='3.1'!J8 -> 39.9 | K35: ='3.1'!K8 -> 48.9 | M35: ='3.1'!M8 -> 58.5% | N35: ='3.1'!N8 -> 22.4% | P35: ='3.1'!C21 -> 1,129.3 | Q35: ='3.1'!D21 -> 1,157.4 | R35: ='3.1'!E21 -> 1,162.3 | S35: ='3.1'!F21 -> 1,151.4 | T35: ='3.1'!G21 -> 1,441.1 | U35: ='3.1'!H21 -> 1,425.0 | V35: ='3.1'!I21 -> 1,464.8 | W35: ='3.1'!J21 -> 1,597.6 | X35: ='3.1'!K21 -> 1,612.7 | Z35: ='3.1'!M21 -> 42.8% | AA35: ='3.1'!N21 -> 0.9%
B36: Energy & environment | C36: ='3.1'!C9 -> 142.0 | D36: ='3.1'!D9 -> 147.2 | E36: ='3.1'!E9 -> 153.3 | F36: ='3.1'!F9 -> 153.8 | G36: ='3.1'!G9 -> 153.7 | H36: ='3.1'!H9 -> 139.5 | I36: ='3.1'!I9 -> 160.3 | J36: ='3.1'!J9 -> 151.7 | K36: ='3.1'!K9 -> 141.9 | M36: ='3.1'!M9 -> -0.1% | N36: ='3.1'!N9 -> -6.5% | P36: ='3.1'!C22 -> 3,350.3 | Q36: ='3.1'!D22 -> 3,395.5 | R36: ='3.1'!E22 -> 3,506.1 | S36: ='3.1'!F22 -> 3,526.8 | T36: ='3.1'!G22 -> 3,650.3 | U36: ='3.1'!H22 -> 3,573.1 | V36: ='3.1'!I22 -> 3,652.0 | W36: ='3.1'!J22 -> 3,597.3 | X36: ='3.1'!K22 -> 3,758.6 | Z36: ='3.1'!M22 -> 12.2% | AA36: ='3.1'!N22 -> 4.5%
B37: Food & Farming | C37: ='3.1'!C10 -> 43.9 | D37: ='3.1'!D10 -> 42.6 | E37: ='3.1'!E10 -> 41.8 | F37: ='3.1'!F10 -> 41.3 | G37: ='3.1'!G10 -> 40.3 | H37: ='3.1'!H10 -> 41.1 | I37: ='3.1'!I10 -> 43.2 | J37: ='3.1'!J10 -> 42.8 | K37: ='3.1'!K10 -> 44.6 | M37: ='3.1'!M10 -> 1.6% | N37: ='3.1'!N10 -> 4.3% | P37: ='3.1'!C23 -> 650.2 | Q37: ='3.1'!D23 -> 684.3 | R37: ='3.1'!E23 -> 692.8 | S37: ='3.1'!F23 -> 718.0 | T37: ='3.1'!G23 -> 652.4 | U37: ='3.1'!H23 -> 707.8 | V37: ='3.1'!I23 -> 730.2 | W37: ='3.1'!J23 -> 712.1 | X37: ='3.1'!K23 -> 694.7 | Z37: ='3.1'!M23 -> 6.8% | AA37: ='3.1'!N23 -> -2.5%
B38: Financial and professional services | C38: ='3.1'!C11 -> 104.3 | D38: ='3.1'!D11 -> 97.0 | E38: ='3.1'!E11 -> 103.3 | F38: ='3.1'!F11 -> 106.2 | G38: ='3.1'!G11 -> 114.1 | H38: ='3.1'!H11 -> 104.8 | I38: ='3.1'!I11 -> 115.3 | J38: ='3.1'!J11 -> 118.0 | K38: ='3.1'!K11 -> 107.0 | M38: ='3.1'!M11 -> 2.5% | N38: ='3.1'!N11 -> -9.3% | P38: ='3.1'!C24 -> 3,275.7 | Q38: ='3.1'!D24 -> 3,288.3 | R38: ='3.1'!E24 -> 3,482.5 | S38: ='3.1'!F24 -> 3,457.1 | T38: ='3.1'!G24 -> 3,551.5 | U38: ='3.1'!H24 -> 3,558.6 | V38: ='3.1'!I24 -> 3,608.1 | W38: ='3.1'!J24 -> 3,702.4 | X38: ='3.1'!K24 -> 3,789.8 | Z38: ='3.1'!M24 -> 15.7% | AA38: ='3.1'!N24 -> 2.4%
B39: ICT | C39: ='3.1'!C12 -> 36.5 | D39: ='3.1'!D12 -> 32.1 | E39: ='3.1'!E12 -> 30.4 | F39: ='3.1'!F12 -> 32.5 | G39: ='3.1'!G12 -> 23.6 | H39: ='3.1'!H12 -> 20.5 | I39: ='3.1'!I12 -> 26.1 | J39: ='3.1'!J12 -> 24.1 | K39: ='3.1'!K12 -> 29.0 | M39: ='3.1'!M12 -> -20.5% | N39: ='3.1'!N12 -> 20.2% | P39: ='3.1'!C25 -> 1,016.2 | Q39: ='3.1'!D25 -> 1,032.4 | R39: ='3.1'!E25 -> 1,027.8 | S39: ='3.1'!F25 -> 1,012.9 | T39: ='3.1'!G25 -> 847.2 | U39: ='3.1'!H25 -> 851.5 | V39: ='3.1'!I25 -> 884.9 | W39: ='3.1'!J25 -> 930.4 | X39: ='3.1'!K25 -> 958.2 | Z39: ='3.1'!M25 -> -5.7% | AA39: ='3.1'!N25 -> 3.0%
B40: Life sciences | C40: ='3.1'!C13 -> 12.7 | D40: ='3.1'!D13 -> 13.0 | E40: ='3.1'!E13 -> 10.3 | F40: ='3.1'!F13 -> 11.4 | G40: ='3.1'!G13 -> 12.9 | H40: ='3.1'!H13 -> 10.4 | I40: ='3.1'!I13 -> 12.4 | J40: ='3.1'!J13 -> 12.6 | K40: ='3.1'!K13 -> 11.6 | M40: ='3.1'!M13 -> -9.1% | N40: ='3.1'!N13 -> -8.2% | P40: ='3.1'!C26 -> 297.4 | Q40: ='3.1'!D26 -> 307.4 | R40: ='3.1'!E26 -> 310.1 | S40: ='3.1'!F26 -> 290.6 | T40: ='3.1'!G26 -> 339.1 | U40: ='3.1'!H26 -> 308.3 | V40: ='3.1'!I26 -> 304.2 | W40: ='3.1'!J26 -> 319.6 | X40: ='3.1'!K26 -> 329.6 | Z40: ='3.1'!M26 -> 10.8% | AA40: ='3.1'!N26 -> 3.1%
B41: Tourism | C41: ='3.1'!C14 -> 101.8 | D41: ='3.1'!D14 -> 97.9 | E41: ='3.1'!E14 -> 104.5 | F41: ='3.1'!F14 -> 101.6 | G41: ='3.1'!G14 -> 109.7 | H41: ='3.1'!H14 -> 112.3 | I41: ='3.1'!I14 -> 115.4 | J41: ='3.1'!J14 -> 117.4 | K41: ='3.1'!K14 -> 121.4 | M41: ='3.1'!M14 -> 19.2% | N41: ='3.1'!N14 -> 3.4% | P41: ='3.1'!C27 -> 2,211.6 | Q41: ='3.1'!D27 -> 2,226.2 | R41: ='3.1'!E27 -> 2,289.5 | S41: ='3.1'!F27 -> 2,312.2 | T41: ='3.1'!G27 -> 2,466.0 | U41: ='3.1'!H27 -> 2,547.5 | V41: ='3.1'!I27 -> 2,535.5 | W41: ='3.1'!J27 -> 2,566.5 | X41: ='3.1'!K27 -> 2,618.0 | Z41: ='3.1'!M27 -> 18.4% | AA41: ='3.1'!N27 -> 2.0%
B42: In A Priority Sector5 | C42: ='3.1'!C15 -> 560.7 | D42: ='3.1'!D15 -> 551.0 | E42: ='3.1'!E15 -> 567.8 | F42: ='3.1'!F15 -> 569.2 | G42: ='3.1'!G15 -> 539.9 | H42: ='3.1'!H15 -> 524.0 | I42: ='3.1'!I15 -> 549.0 | J42: ='3.1'!J15 -> 545.4 | K42: ='3.1'!K15 -> 550.0 | M42: ='3.1'!M15 -> -1.9% | N42: ='3.1'!N15 -> 0.8% | P42: ='3.1'!C28 -> 13,071.8 | Q42: ='3.1'!D28 -> 13,223.3 | R42: ='3.1'!E28 -> 13,567.6 | S42: ='3.1'!F28 -> 13,478.4 | T42: ='3.1'!G28 -> 13,223.5 | U42: ='3.1'!H28 -> 13,208.2 | V42: ='3.1'!I28 -> 13,304.0 | W42: ='3.1'!J28 -> 13,471.2 | X42: ='3.1'!K28 -> 13,746.8 | Z42: ='3.1'!M28 -> 5.2% | AA42: ='3.1'!N28 -> 2.0%
B43: Not In A Sector | C43: ='3.1'!C16 -> 715.2 | D43: ='3.1'!D16 -> 729.2 | E43: ='3.1'!E16 -> 730.9 | F43: ='3.1'!F16 -> 725.5 | G43: ='3.1'!G16 -> 705.5 | H43: ='3.1'!H16 -> 722.1 | I43: ='3.1'!I16 -> 712.8 | J43: ='3.1'!J16 -> 713.3 | K43: ='3.1'!K16 -> 738.1 | M43: ='3.1'!M16 -> 3.2% | N43: ='3.1'!N16 -> 3.5% | P43: ='3.1'!C29 -> 15,403.0 | Q43: ='3.1'!D29 -> 15,502.7 | R43: ='3.1'!E29 -> 15,430.1 | S43: ='3.1'!F29 -> 15,618.5 | T43: ='3.1'!G29 -> 15,391.8 | U43: ='3.1'!H29 -> 15,463.8 | V43: ='3.1'!I29 -> 15,500.1 | W43: ='3.1'!J29 -> 15,575.6 | X43: ='3.1'!K29 -> 15,764.3 | Z43: ='3.1'!M29 -> 2.3% | AA43: ='3.1'!N29 -> 1.2%
B44: Total | C44: ='3.1'!C17 -> 1,275.9 | D44: ='3.1'!D17 -> 1,280.3 | E44: ='3.1'!E17 -> 1,298.7 | F44: ='3.1'!F17 -> 1,294.7 | G44: ='3.1'!G17 -> 1,245.4 | H44: ='3.1'!H17 -> 1,246.1 | I44: ='3.1'!I17 -> 1,261.8 | J44: ='3.1'!J17 -> 1,258.6 | K44: ='3.1'!K17 -> 1,288.1 | M44: ='3.1'!M17 -> 1.0% | N44: ='3.1'!N17 -> 2.3% | P44: ='3.1'!C30 -> 28,474.8 | Q44: ='3.1'!D30 -> 28,726.0 | R44: ='3.1'!E30 -> 28,997.8 | S44: ='3.1'!F30 -> 29,097.0 | T44: ='3.1'!G30 -> 28,615.3 | U44: ='3.1'!H30 -> 28,672.0 | V44: ='3.1'!I30 -> 28,804.1 | W44: ='3.1'!J30 -> 29,046.8 | X44: ='3.1'!K30 -> 29,511.1 | Z44: ='3.1'!M30 -> 3.6% | AA44: ='3.1'!N30 -> 1.6%
AA46: Source: Annual Population Survey, ONS
B47: 12005 - 2008 data based on SIC 2003 which has been converted to SIC2007. Data after 2009 based on SIC2007.
B48: 2Those people with missing industry or ethnicity information are excluded.
B49: 3In 2011 the ethnicity questions on the APS changed, therefore periods prior to 2011 should not be compared with 2011. For more information please see: http://www.ons.gov.uk/ons/guide-method/method-quality/specific/labour-market/subnational-labour/changes-made-to-ethnicity-questions-on-the-lfs-during-2011-and-effect-on-aps.pdf
B50: 4Based on the updated DCMS Creative Industries classification.
B51: 5This total will not equal the sum of the individual priority sectors as there is overlap between several sectors.
B52: 6Includes those people with missing ethnicity information.

Sheet 3.10
B1: Employment by Full-Time/Part-Time and Priority Sector1,2 (Aged 16 Plus) | AA1: Thousands
C2: Wales | P2: UK
C4: 2005 | D4: 2006 | E4: 2007 | F4: 2008 | G4: 2009 | H4: 2010 | I4: 2011 | J4: 2012 | K4: 2013 | M4: Change 2005 - 2013 | N4: Change 2012 - 2013 | P4: 2005 | Q4: 2006 | R4: 2007 | S4: 2008 | T4: 2009 | U4: 2010 | V4: 2011 | W4: 2012 | X4: 2013 | Z4: Change 2005 - 2013 | AA4: Change 2012 - 2013
B6: Full-Time:
B7: Advanced materials / manufacturing | C7: 111.9 | D7: 100.6 | E7: 96.5 | F7: 99.3 | G7: 77.3 | H7: 74.4 | I7: 76.7 | J7: 75.7 | K7: 78.9 | M7: -29.4% | N7: 4.2% | P7: 1,900.0 | Q7: 1,848.2 | R7: 1,856.4 | S7: 1,744.4 | T7: 1,465.2 | U7: 1,486.7 | V7: 1,458.2 | W7: 1,478.5 | X7: 1,491.6 | Z7: -21.5% | AA7: 0.9%
B8: Construction | C8: 106.0 | D8: 117.5 | E8: 123.3 | F8: 124.5 | G8: 105.8 | H8: 99.9 | I8: 97.9 | J8: 90.9 | K8: 89.8 | M8: -15.3% | N8: -1.2% | P8: 2,493.2 | Q8: 2,567.5 | R8: 2,580.9 | S8: 2,621.8 | T8: 2,377.4 | U8: 2,232.6 | V8: 2,180.0 | W8: 2,096.0 | X8: 2,181.6 | Z8: -12.5% | AA8: 4.1%
B9: Creative industries3 | C9: 21.8 | D9: 24.1 | E9: 29.2 | F9: 24.0 | G9: 28.4 | H9: 28.7 | I9: 32.3 | J9: 27.4 | K9: 36.1 | M9: 65.5% | N9: 31.7% | P9: 892.5 | Q9: 920.7 | R9: 925.5 | S9: 923.8 | T9: 1,146.2 | U9: 1,137.2 | V9: 1,163.9 | W9: 1,267.6 | X9: 1,276.6 | Z9: 43.0% | AA9: 0.7%
B10: Energy & environment | C10: 123.1 | D10: 128.6 | E10: 134.4 | F10: 133.7 | G10: 131.8 | H10: 120.7 | I10: 137.5 | J10: 127.0 | K10: 119.7 | M10: -2.7% | N10: -5.8% | P10: 2,920.7 | Q10: 2,973.5 | R10: 3,054.5 | S10: 3,068.9 | T10: 3,123.6 | U10: 3,024.6 | V10: 3,065.1 | W10: 2,998.2 | X10: 3,131.9 | Z10: 7.2% | AA10: 4.5%
B11: Food & Farming | C11: 38.5 | D11: 37.2 | E11: 35.6 | F11: 35.5 | G11: 34.5 | H11: 34.8 | I11: 37.4 | J11: 36.3 | K11: 37.7 | M11: -1.9% | N11: 4.0% | P11: 548.6 | Q11: 584.9 | R11: 577.3 | S11: 600.8 | T11: 561.4 | U11: 606.2 | V11: 622.5 | W11: 595.1 | X11: 577.4 | Z11: 5.2% | AA11: -3.0%
B12: Financial and professional services | C12: 77.2 | D12: 70.6 | E12: 78.0 | F12: 78.3 | G12: 85.0 | H12: 75.8 | I12: 86.1 | J12: 87.6 | K12: 79.9 | M12: 3.5% | N12: -8.7% | P12: 2,570.4 | Q12: 2,593.5 | R12: 2,748.5 | S12: 2,714.4 | T12: 2,775.0 | U12: 2,772.1 | V12: 2,788.1 | W12: 2,891.3 | X12: 2,900.0 | Z12: 12.8% | AA12: 0.3%
B13: ICT | C13: 33.0 | D13: 28.9 | E13: 27.9 | F13: 29.2 | G13: 21.6 | H13: 19.2 | I13: 24.2 | J13: 21.7 | K13: 27.1 | M13: -17.8% | N13: 24.9% | P13: 919.6 | Q13: 943.8 | R13: 938.1 | S13: 928.7 | T13: 771.3 | U13: 777.6 | V13: 805.6 | W13: 849.0 | X13: 872.8 | Z13: -5.1% | AA13: 2.8%
B14: Life sciences | C14: 11.0 | D14: 11.8 | E14: 9.8 | F14: 10.5 | G14: 11.8 | H14: 9.4 | I14: 11.9 | J14: 11.1 | K14: 10.0 | M14: -9.1% | N14: -10.2% | P14: 270.5 | Q14: 275.4 | R14: 276.0 | S14: 262.0 | T14: 301.6 | U14: 275.5 | V14: 280.8 | W14: 285.9 | X14: 294.8 | Z14: 9.0% | AA14: 3.1%
B15: Tourism | C15: 55.0 | D15: 57.1 | E15: 60.3 | F15: 58.4 | G15: 59.5 | H15: 59.7 | I15: 64.2 | J15: 64.9 | K15: 62.3 | M15: 13.4% | N15: -3.9% | P15: 1,350.5 | Q15: 1,377.8 | R15: 1,419.1 | S15: 1,432.8 | T15: 1,483.9 | U15: 1,530.5 | V15: 1,519.6 | W15: 1,506.9 | X15: 1,574.4 | Z15: 16.6% | AA15: 4.5%
B16: In A Priority Sector4 | C16: 453.9 | D16: 450.4 | E16: 461.8 | F16: 462.8 | G16: 429.3 | H16: 411.0 | I16: 434.8 | J16: 425.5 | K16: 425.8 | M16: -6.2% | N16: 0.1% | P16: 10,731.1 | Q16: 10,907.3 | R16: 11,153.8 | S16: 11,071.0 | T16: 10,681.6 | U16: 10,599.2 | V16: 10,640.1 | W16: 10,709.4 | X16: 10,940.1 | Z16: 1.9% | AA16: 2.2%
B17: Not In A Sector | C17: 485.0 | D17: 490.6 | E17: 487.4 | F17: 489.3 | G17: 469.2 | H17: 479.7 | I17: 473.7 | J17: 477.6 | K17: 493.8 | M17: 1.8% | N17: 3.4% | P17: 10,466.3 | Q17: 10,513.5 | R17: 10,457.1 | S17: 10,597.2 | T17: 10,391.0 | U17: 10,378.6 | V17: 10,390.4 | W17: 10,429.4 | X17: 10,590.1 | Z17: 1.2% | AA17: 1.5%
B18: Total | C18: 938.9 | D18: 941.0 | E18: 949.2 | F18: 952.1 | G18: 898.4 | H18: 890.7 | I18: 908.5 | J18: 903.1 | K18: 919.6 | M18: -2.1% | N18: 1.8% | P18: 21,197.4 | Q18: 21,420.8 | R18: 21,610.8 | S18: 21,668.2 | T18: 21,072.6 | U18: 20,977.8 | V18: 21,030.5 | W18: 21,138.7 | X18: 21,530.2 | Z18: 1.6% | AA18: 1.9%
B19: Part-Time:
B20: Advanced materials / manufacturing | C20: 6.3 | D20: 6.0 | E20: 7.2 | F20: 6.6 | G20: 4.0 | H20: 4.5 | I20: 4.6 | J20: 4.7 | K20: 5.4 | M20: -13.9% | N20: 17.1% | P20: 139.1 | Q20: 140.5 | R20: 154.8 | S20: 142.2 | T20: 121.5 | U20: 129.1 | V20: 111.4 | W20: 126.4 | X20: 116.3 | Z20: -16.4% | AA20: -8.0%
B21: Construction | C21: 10.0 | D21: 11.4 | E21: 12.5 | F21: 11.1 | G21: 10.2 | H21: 10.2 | I21: 11.6 | J21: 10.7 | K21: 11.6 | M21: 16.5% | N21: 8.1% | P21: 238.7 | Q21: 245.7 | R21: 248.5 | S21: 250.8 | T21: 227.4 | U21: 234.4 | V21: 251.0 | W21: 256.4 | X21: 242.9 | Z21: 1.8% | AA21: -5.2%
B22: Creative industries3 | C22: 9.0 | D22: 7.2 | E22: 8.4 | F22: 9.2 | G22: 9.5 | H22: 8.0 | I22: 9.8 | J22: 12.5 | K22: 12.7 | M22: 41.6% | N22: 2.1% | P22: 235.6 | Q22: 234.2 | R22: 234.8 | S22: 226.0 | T22: 292.6 | U22: 287.0 | V22: 297.5 | W22: 327.7 | X22: 333.9 | Z22: 41.7% | AA22: 1.9%
B23: Energy & environment | C23: 18.7 | D23: 18.6 | E23: 18.9 | F23: 19.9 | G23: 21.9 | H23: 18.9 | I23: 22.3 | J23: 24.5 | K23: 21.8 | M23: 16.6% | N23: -11.1% | P23: 427.0 | Q23: 420.6 | R23: 450.4 | S23: 456.5 | T23: 524.5 | U23: 547.8 | V23: 583.7 | W23: 596.0 | X23: 623.3 | Z23: 46.0% | AA23: 4.6%
B24: Food & Farming | C24: 5.4 | D24: 5.4 | E24: 6.1 | F24: 5.7 | G24: 5.6 | H24: 6.2 | I24: 5.8 | J24: 6.4 | K24: 6.8 | M24: 26.2% | N24: 6.6% | P24: 101.1 | Q24: 99.3 | R24: 114.9 | S24: 116.9 | T24: 90.8 | U24: 101.4 | V24: 106.8 | W24: 116.8 | X24: 116.5 | Z24: 15.3% | AA24: -0.2%
B25: Financial and professional services | C25: 27.1 | D25: 26.4 | E25: 25.3 | F25: 27.9 | G25: 29.2 | H25: 28.8 | I25: 29.1 | J25: 30.4 | K25: 27.1 | M25: -0.1% | N25: -10.9% | P25: 704.2 | Q25: 693.4 | R25: 732.1 | S25: 741.6 | T25: 774.3 | U25: 784.6 | V25: 817.6 | W25: 807.2 | X25: 886.2 | Z25: 25.8% | AA25: 9.8%
B26: ICT | C26: 3.5 | D26: 3.1 | E26: 2.5 | F26: 3.3 | G26: 2.0 | H26: 1.4 | I26: 1.9 | J26: 2.4 | K26: 1.9 | M26: -45.9% | N26: -21.9% | P26: 96.0 | Q26: 88.5 | R26: 88.7 | S26: 84.1 | T26: 75.6 | U26: 73.8 | V26: 79.0 | W26: 81.2 | X26: 85.4 | Z26: -11.1% | AA26: 5.2%
B27: Life sciences | C27: 1.8 | D27: 1.2 | E27: * | F27: 0.9 | G27: 1.0 | H27: 1.0 | I27: * | J27: 1.5 | K27: 1.6 | M27: -9.4% | N27: 6.1% | P27: 26.8 | Q27: 31.9 | R27: 34.1 | S27: 28.6 | T27: 37.3 | U27: 32.8 | V27: 23.4 | W27: 33.7 | X27: 34.4 | Z27: 28.2% | AA27: 1.9%
B28: Tourism | C28: 46.9 | D28: 40.8 | E28: 44.2 | F28: 43.0 | G28: 50.1 | H28: 52.4 | I28: 50.7 | J28: 52.5 | K28: 58.6 | M28: 25.0% | N28: 11.5% | P28: 859.2 | Q28: 846.5 | R28: 868.5 | S28: 875.7 | T28: 980.3 | U28: 1,014.5 | V28: 1,012.4 | W28: 1,055.6 | X28: 1,038.3 | Z28: 20.8% | AA28: -1.6%
B29: In A Priority Sector4 | C29: 106.5 | D29: 100.3 | E29: 106.0 | F29: 106.0 | G29: 110.4 | H29: 112.6 | I29: 113.0 | J29: 119.5 | K29: 123.2 | M29: 15.6% | N29: 3.1% | P29: 2,332.9 | Q29: 2,310.3 | R29: 2,406.2 | S29: 2,399.5 | T29: 2,531.7 | U29: 2,602.6 | V29: 2,650.7 | W29: 2,748.4 | X29: 2,793.9 | Z29: 19.8% | AA29: 1.7%
B30: Not In A Sector | C30: 229.8 | D30: 238.4 | E30: 243.1 | F30: 236.0 | G30: 235.8 | H30: 242.0 | I30: 238.8 | J30: 235.1 | K30: 244.0 | M30: 6.2% | N30: 3.8% | P30: 4,931.4 | Q30: 4,982.0 | R30: 4,967.3 | S30: 5,013.9 | T30: 4,994.2 | U30: 5,079.2 | V30: 5,103.2 | W30: 5,134.5 | X30: 5,163.8 | Z30: 4.7% | AA30: 0.6%
B31: Total | C31: 336.3 | D31: 338.7 | E31: 349.1 | F31: 342.0 | G31: 346.2 | H31: 354.6 | I31: 351.7 | J31: 354.6 | K31: 367.2 | M31: 9.2% | N31: 3.6% | P31: 7,264.3 | Q31: 7,292.3 | R31: 7,373.5 | S31: 7,413.4 | T31: 7,525.9 | U31: 7,681.8 | V31: 7,753.9 | W31: 7,882.9 | X31: 7,957.7 | Z31: 9.5% | AA31: 0.9%
B32: All5:
B33: Advanced materials / manufacturing | C33: ='3.1'!C6 -> 118.2 | D33: ='3.1'!D6 -> 106.6 | E33: ='3.1'!E6 -> 103.8 | F33: ='3.1'!F6 -> 105.9 | G33: ='3.1'!G6 -> 81.2 | H33: ='3.1'!H6 -> 78.9 | I33: ='3.1'!I6 -> 81.3 | J33: ='3.1'!J6 -> 80.4 | K33: ='3.1'!K6 -> 84.4 | M33: ='3.1'!M6 -> -28.6% | N33: ='3.1'!N6 -> 5.0% | P33: ='3.1'!C19 -> 2,039.6 | Q33: ='3.1'!D19 -> 1,988.7 | R33: ='3.1'!E19 -> 2,011.7 | S33: ='3.1'!F19 -> 1,886.9 | T33: ='3.1'!G19 -> 1,586.8 | U33: ='3.1'!H19 -> 1,615.9 | V33: ='3.1'!I19 -> 1,569.5 | W33: ='3.1'!J19 -> 1,605.0 | X33: ='3.1'!K19 -> 1,608.1 | Z33: ='3.1'!M19 -> -21.2% | AA33: ='3.1'!N19 -> 0.2%
B34: Construction | C34: ='3.1'!C7 -> 116.0 | D34: ='3.1'!D7 -> 128.9 | E34: ='3.1'!E7 -> 135.8 | F34: ='3.1'!F7 -> 135.8 | G34: ='3.1'!G7 -> 116.0 | H34: ='3.1'!H7 -> 110.1 | I34: ='3.1'!I7 -> 109.7 | J34: ='3.1'!J7 -> 101.8 | K34: ='3.1'!K7 -> 101.8 | M34: ='3.1'!M7 -> -12.3% | N34: ='3.1'!N7 -> -0.1% | P34: ='3.1'!C20 -> 2,734.3 | Q34: ='3.1'!D20 -> 2,813.8 | R34: ='3.1'!E20 -> 2,830.7 | S34: ='3.1'!F20 -> 2,874.5 | T34: ='3.1'!G20 -> 2,609.1 | U34: ='3.1'!H20 -> 2,468.4 | V34: ='3.1'!I20 -> 2,434.3 | W34: ='3.1'!J20 -> 2,356.0 | X34: ='3.1'!K20 -> 2,427.0 | Z34: ='3.1'!M20 -> -11.2% | AA34: ='3.1'!N20 -> 3.0%
B35: Creative industries3 | C35: ='3.1'!C8 -> 30.8 | D35: ='3.1'!D8 -> 31.4 | E35: ='3.1'!E8 -> 37.6 | F35: ='3.1'!F8 -> 33.2 | G35: ='3.1'!G8 -> 38.1 | H35: ='3.1'!H8 -> 36.7 | I35: ='3.1'!I8 -> 42.0 | J35: ='3.1'!J8 -> 39.9 | K35: ='3.1'!K8 -> 48.9 | M35: ='3.1'!M8 -> 58.5% | N35: ='3.1'!N8 -> 22.4% | P35: ='3.1'!C21 -> 1,129.3 | Q35: ='3.1'!D21 -> 1,157.4 | R35: ='3.1'!E21 -> 1,162.3 | S35: ='3.1'!F21 -> 1,151.4 | T35: ='3.1'!G21 -> 1,441.1 | U35: ='3.1'!H21 -> 1,425.0 | V35: ='3.1'!I21 -> 1,464.8 | W35: ='3.1'!J21 -> 1,597.6 | X35: ='3.1'!K21 -> 1,612.7 | Z35: ='3.1'!M21 -> 42.8% | AA35: ='3.1'!N21 -> 0.9%
B36: Energy & environment | C36: ='3.1'!C9 -> 142.0 | D36: ='3.1'!D9 -> 147.2 | E36: ='3.1'!E9 -> 153.3 | F36: ='3.1'!F9 -> 153.8 | G36: ='3.1'!G9 -> 153.7 | H36: ='3.1'!H9 -> 139.5 | I36: ='3.1'!I9 -> 160.3 | J36: ='3.1'!J9 -> 151.7 | K36: ='3.1'!K9 -> 141.9 | M36: ='3.1'!M9 -> -0.1% | N36: ='3.1'!N9 -> -6.5% | P36: ='3.1'!C22 -> 3,350.3 | Q36: ='3.1'!D22 -> 3,395.5 | R36: ='3.1'!E22 -> 3,506.1 | S36: ='3.1'!F22 -> 3,526.8 | T36: ='3.1'!G22 -> 3,650.3 | U36: ='3.1'!H22 -> 3,573.1 | V36: ='3.1'!I22 -> 3,652.0 | W36: ='3.1'!J22 -> 3,597.3 | X36: ='3.1'!K22 -> 3,758.6 | Z36: ='3.1'!M22 -> 12.2% | AA36: ='3.1'!N22 -> 4.5%
B37: Food & Farming | C37: ='3.1'!C10 -> 43.9 | D37: ='3.1'!D10 -> 42.6 | E37: ='3.1'!E10 -> 41.8 | F37: ='3.1'!F10 -> 41.3 | G37: ='3.1'!G10 -> 40.3 | H37: ='3.1'!H10 -> 41.1 | I37: ='3.1'!I10 -> 43.2 | J37: ='3.1'!J10 -> 42.8 | K37: ='3.1'!K10 -> 44.6 | M37: ='3.1'!M10 -> 1.6% | N37: ='3.1'!N10 -> 4.3% | P37: ='3.1'!C23 -> 650.2 | Q37: ='3.1'!D23 -> 684.3 | R37: ='3.1'!E23 -> 692.8 | S37: ='3.1'!F23 -> 718.0 | T37: ='3.1'!G23 -> 652.4 | U37: ='3.1'!H23 -> 707.8 | V37: ='3.1'!I23 -> 730.2 | W37: ='3.1'!J23 -> 712.1 | X37: ='3.1'!K23 -> 694.7 | Z37: ='3.1'!M23 -> 6.8% | AA37: ='3.1'!N23 -> -2.5%
B38: Financial and professional services | C38: ='3.1'!C11 -> 104.3 | D38: ='3.1'!D11 -> 97.0 | E38: ='3.1'!E11 -> 103.3 | F38: ='3.1'!F11 -> 106.2 | G38: ='3.1'!G11 -> 114.1 | H38: ='3.1'!H11 -> 104.8 | I38: ='3.1'!I11 -> 115.3 | J38: ='3.1'!J11 -> 118.0 | K38: ='3.1'!K11 -> 107.0 | M38: ='3.1'!M11 -> 2.5% | N38: ='3.1'!N11 -> -9.3% | P38: ='3.1'!C24 -> 3,275.7 | Q38: ='3.1'!D24 -> 3,288.3 | R38: ='3.1'!E24 -> 3,482.5 | S38: ='3.1'!F24 -> 3,457.1 | T38: ='3.1'!G24 -> 3,551.5 | U38: ='3.1'!H24 -> 3,558.6 | V38: ='3.1'!I24 -> 3,608.1 | W38: ='3.1'!J24 -> 3,702.4 | X38: ='3.1'!K24 -> 3,789.8 | Z38: ='3.1'!M24 -> 15.7% | AA38: ='3.1'!N24 -> 2.4%
B39: ICT | C39: ='3.1'!C12 -> 36.5 | D39: ='3.1'!D12 -> 32.1 | E39: ='3.1'!E12 -> 30.4 | F39: ='3.1'!F12 -> 32.5 | G39: ='3.1'!G12 -> 23.6 | H39: ='3.1'!H12 -> 20.5 | I39: ='3.1'!I12 -> 26.1 | J39: ='3.1'!J12 -> 24.1 | K39: ='3.1'!K12 -> 29.0 | M39: ='3.1'!M12 -> -20.5% | N39: ='3.1'!N12 -> 20.2% | P39: ='3.1'!C25 -> 1,016.2 | Q39: ='3.1'!D25 -> 1,032.4 | R39: ='3.1'!E25 -> 1,027.8 | S39: ='3.1'!F25 -> 1,012.9 | T39: ='3.1'!G25 -> 847.2 | U39: ='3.1'!H25 -> 851.5 | V39: ='3.1'!I25 -> 884.9 | W39: ='3.1'!J25 -> 930.4 | X39: ='3.1'!K25 -> 958.2 | Z39: ='3.1'!M25 -> -5.7% | AA39: ='3.1'!N25 -> 3.0%
B40: Life sciences | C40: ='3.1'!C13 -> 12.7 | D40: ='3.1'!D13 -> 13.0 | E40: ='3.1'!E13 -> 10.3 | F40: ='3.1'!F13 -> 11.4 | G40: ='3.1'!G13 -> 12.9 | H40: ='3.1'!H13 -> 10.4 | I40: ='3.1'!I13 -> 12.4 | J40: ='3.1'!J13 -> 12.6 | K40: ='3.1'!K13 -> 11.6 | M40: ='3.1'!M13 -> -9.1% | N40: ='3.1'!N13 -> -8.2% | P40: ='3.1'!C26 -> 297.4 | Q40: ='3.1'!D26 -> 307.4 | R40: ='3.1'!E26 -> 310.1 | S40: ='3.1'!F26 -> 290.6 | T40: ='3.1'!G26 -> 339.1 | U40: ='3.1'!H26 -> 308.3 | V40: ='3.1'!I26 -> 304.2 | W40: ='3.1'!J26 -> 319.6 | X40: ='3.1'!K26 -> 329.6 | Z40: ='3.1'!M26 -> 10.8% | AA40: ='3.1'!N26 -> 3.1%
B41: Tourism | C41: ='3.1'!C14 -> 101.8 | D41: ='3.1'!D14 -> 97.9 | E41: ='3.1'!E14 -> 104.5 | F41: ='3.1'!F14 -> 101.6 | G41: ='3.1'!G14 -> 109.7 | H41: ='3.1'!H14 -> 112.3 | I41: ='3.1'!I14 -> 115.4 | J41: ='3.1'!J14 -> 117.4 | K41: ='3.1'!K14 -> 121.4 | M41: ='3.1'!M14 -> 19.2% | N41: ='3.1'!N14 -> 3.4% | P41: ='3.1'!C27 -> 2,211.6 | Q41: ='3.1'!D27 -> 2,226.2 | R41: ='3.1'!E27 -> 2,289.5 | S41: ='3.1'!F27 -> 2,312.2 | T41: ='3.1'!G27 -> 2,466.0 | U41: ='3.1'!H27 -> 2,547.5 | V41: ='3.1'!I27 -> 2,535.5 | W41: ='3.1'!J27 -> 2,566.5 | X41: ='3.1'!K27 -> 2,618.0 | Z41: ='3.1'!M27 -> 18.4% | AA41: ='3.1'!N27 -> 2.0%
B42: In A Priority Sector4 | C42: ='3.1'!C15 -> 560.7 | D42: ='3.1'!D15 -> 551.0 | E42: ='3.1'!E15 -> 567.8 | F42: ='3.1'!F15 -> 569.2 | G42: ='3.1'!G15 -> 539.9 | H42: ='3.1'!H15 -> 524.0 | I42: ='3.1'!I15 -> 549.0 | J42: ='3.1'!J15 -> 545.4 | K42: ='3.1'!K15 -> 550.0 | M42: ='3.1'!M15 -> -1.9% | N42: ='3.1'!N15 -> 0.8% | P42: ='3.1'!C28 -> 13,071.8 | Q42: ='3.1'!D28 -> 13,223.3 | R42: ='3.1'!E28 -> 13,567.6 | S42: ='3.1'!F28 -> 13,478.4 | T42: ='3.1'!G28 -> 13,223.5 | U42: ='3.1'!H28 -> 13,208.2 | V42: ='3.1'!I28 -> 13,304.0 | W42: ='3.1'!J28 -> 13,471.2 | X42: ='3.1'!K28 -> 13,746.8 | Z42: ='3.1'!M28 -> 5.2% | AA42: ='3.1'!N28 -> 2.0%
B43: Not In A Sector | C43: ='3.1'!C16 -> 715.2 | D43: ='3.1'!D16 -> 729.2 | E43: ='3.1'!E16 -> 730.9 | F43: ='3.1'!F16 -> 725.5 | G43: ='3.1'!G16 -> 705.5 | H43: ='3.1'!H16 -> 722.1 | I43: ='3.1'!I16 -> 712.8 | J43: ='3.1'!J16 -> 713.3 | K43: ='3.1'!K16 -> 738.1 | M43: ='3.1'!M16 -> 3.2% | N43: ='3.1'!N16 -> 3.5% | P43: ='3.1'!C29 -> 15,403.0 | Q43: ='3.1'!D29 -> 15,502.7 | R43: ='3.1'!E29 -> 15,430.1 | S43: ='3.1'!F29 -> 15,618.5 | T43: ='3.1'!G29 -> 15,391.8 | U43: ='3.1'!H29 -> 15,463.8 | V43: ='3.1'!I29 -> 15,500.1 | W43: ='3.1'!J29 -> 15,575.6 | X43: ='3.1'!K29 -> 15,764.3 | Z43: ='3.1'!M29 -> 2.3% | AA43: ='3.1'!N29 -> 1.2%
B44: Total | C44: ='3.1'!C17 -> 1,275.9 | D44: ='3.1'!D17 -> 1,280.3 | E44: ='3.1'!E17 -> 1,298.7 | F44: ='3.1'!F17 -> 1,294.7 | G44: ='3.1'!G17 -> 1,245.4 | H44: ='3.1'!H17 -> 1,246.1 | I44: ='3.1'!I17 -> 1,261.8 | J44: ='3.1'!J17 -> 1,258.6 | K44: ='3.1'!K17 -> 1,288.1 | M44: ='3.1'!M17 -> 1.0% | N44: ='3.1'!N17 -> 2.3% | P44: ='3.1'!C30 -> 28,474.8 | Q44: ='3.1'!D30 -> 28,726.0 | R44: ='3.1'!E30 -> 28,997.8 | S44: ='3.1'!F30 -> 29,097.0 | T44: ='3.1'!G30 -> 28,615.3 | U44: ='3.1'!H30 -> 28,672.0 | V44: ='3.1'!I30 -> 28,804.1 | W44: ='3.1'!J30 -> 29,046.8 | X44: ='3.1'!K30 -> 29,511.1 | Z44: ='3.1'!M30 -> 3.6% | AA44: ='3.1'!N30 -> 1.6%
AA46: Source: Annual Population Survey, ONS
B47: 12006 - 2008 data based on SIC 2003 which has been converted to SIC2007. Data after 2009 based on SIC2007.
B48: 2Those people with missing industry or full-time/part-time information are excluded.
B49: 3Based on the updated DCMS Creative Industries classification.
B50: 4This total will not equal the sum of the individual priority sectors as there is overlap between several sectors.
B51: 5Includes those people with missing full-time/part-time information.

Sheet 3.11
B1: Second Jobs by Priority Sector1,2 (Aged 16 Plus) | AA1: Thousands
C2: Wales | P2: UK
C4: 2005 | D4: 2006 | E4: 2007 | F4: 2008 | G4: 2009 | H4: 2010 | I4: 2011 | J4: 2012 | K4: 2013 | M4: Change 2005 - 2013 | N4: Change 2012 - 2013 | P4: 2005 | Q4: 2006 | R4: 2007 | S4: 2008 | T4: 2009 | U4: 2010 | V4: 2011 | W4: 2012 | X4: 2013 | Z4: Change 2005 - 2013 | AA4: Change 2012 - 2013
B6: Employees:
B7: Advanced materials / manufacturing | C7: * | D7: * | E7: * | F7: * | G7: * | H7: * | I7: * | J7: * | K7: * | M7: * | N7: * | P7: 7.6 | Q7: 7.9 | R7: 8.5 | S7: 8.3 | T7: 6.4 | U7: 5.8 | V7: 9.0 | W7: 3.9 | X7: 5.0 | Z7: -34.2% | AA7: 29.1%
B8: Construction | C8: * | D8: * | E8: 1.3 | F8: * | G8: * | H8: 1.0 | I8: * | J8: * | K8: * | M8: * | N8: * | P8: 16.6 | Q8: 13.2 | R8: 17.3 | S8: 17.5 | T8: 15.3 | U8: 13.5 | V8: 13.5 | W8: 12.8 | X8: 14.4 | Z8: -13.2% | AA8: 13.0%
B9: Creative industries4 | C9: 1.3 | D9: 1.0 | E9: * | F9: * | G9: * | H9: * | I9: 0.8 | J9: * | K9: 0.9 | M9: -33.8% | N9: * | P9: 21.1 | Q9: 22.7 | R9: 26.5 | S9: 21.9 | T9: 23.6 | U9: 20.8 | V9: 29.3 | W9: 28.4 | X9: 26.2 | Z9: 24.4% | AA9: -7.8%
B10: Energy & environment | C10: 1.4 | D10: 1.1 | E10: 2.3 | F10: 0.9 | G10: 1.6 | H10: 2.3 | I10: 1.8 | J10: 1.9 | K10: 1.9 | M10: 35.5% | N10: 0.0% | P10: 36.8 | Q10: 34.0 | R10: 41.3 | S10: 42.7 | T10: 42.2 | U10: 46.6 | V10: 54.1 | W10: 43.7 | X10: 53.3 | Z10: 45.0% | AA10: 22.1%
B11: Food & Farming | C11: * | D11: * | E11: * | F11: * | G11: * | H11: * | I11: * | J11: * | K11: * | M11: * | N11: * | P11: 10.2 | Q11: 8.8 | R11: 9.9 | S11: 9.1 | T11: 4.3 | U11: 6.8 | V11: 8.6 | W11: 6.0 | X11: 6.5 | Z11: -37.0% | AA11: 8.0%
B12: Financial and professional services | C12: 1.7 | D12: 1.8 | E12: 2.5 | F12: 1.8 | G12: 2.2 | H12: 2.0 | I12: 3.0 | J12: 2.6 | K12: 2.4 | M12: 37.3% | N12: -7.1% | P12: 55.9 | Q12: 57.4 | R12: 65.0 | S12: 66.7 | T12: 62.3 | U12: 62.9 | V12: 73.8 | W12: 59.4 | X12: 68.8 | Z12: 23.0% | AA12: 15.9%
B13: ICT | C13: * | D13: * | E13: * | F13: * | G13: * | H13: * | I13: * | J13: * | K13: * | M13: * | N13: * | P13: 3.5 | Q13: 6.6 | R13: 7.2 | S13: 6.6 | T13: 4.2 | U13: 4.7 | V13: 10.6 | W13: 7.3 | X13: 5.6 | Z13: 61.2% | AA13: -23.3%
B14: Life sciences | C14: * | D14: * | E14: * | F14: * | G14: * | H14: * | I14: * | J14: * | K14: * | M14: * | N14: * | P14: 2.9 | Q14: * | R14: 3.2 | S14: 2.7 | T14: * | U14: 3.2 | V14: 2.3 | W14: * | X14: 2.4 | Z14: -19.1% | AA14: *
B15: Tourism | C15: 6.8 | D15: 6.8 | E15: 5.4 | F15: 7.0 | G15: 9.2 | H15: 5.1 | I15: 7.3 | J15: 5.8 | K15: 6.1 | M15: -9.0% | N15: 5.6% | P15: 143.8 | Q15: 132.7 | R15: 133.9 | S15: 122.9 | T15: 137.8 | U15: 121.0 | V15: 127.4 | W15: 118.1 | X15: 118.6 | Z15: -17.5% | AA15: 0.4%
B16: In A Priority Sector5 | C16: 10.5 | D16: 10.7 | E16: 10.9 | F16: 10.9 | G16: 12.9 | H16: 9.0 | I16: 11.6 | J16: 10.1 | K16: 10.9 | M16: 4.2% | N16: 7.8% | P16: 254.5 | Q16: 241.3 | R16: 259.7 | S16: 250.6 | T16: 248.0 | U16: 234.9 | V16: 263.3 | W16: 229.6 | X16: 240.9 | Z16: -5.3% | AA16: 4.9%
B17: Not In A Sector | C17: 24.3 | D17: 24.8 | E17: 24.5 | F17: 26.1 | G17: 25.5 | H17: 24.9 | I17: 24.9 | J17: 22.8 | K17: 22.9 | M17: -5.7% | N17: 0.3% | P17: 479.6 | Q17: 474.6 | R17: 482.7 | S17: 488.4 | T17: 466.8 | U17: 454.8 | V17: 457.7 | W17: 461.0 | X17: 469.0 | Z17: -2.2% | AA17: 1.7%
B18: Total | C18: 34.7 | D18: 35.6 | E18: 35.4 | F18: 37.1 | G18: 38.4 | H18: 33.9 | I18: 36.5 | J18: 32.9 | K18: 33.8 | M18: -2.7% | N18: 2.6% | P18: 734.1 | Q18: 715.9 | R18: 742.4 | S18: 739.0 | T18: 714.8 | U18: 689.7 | V18: 721.0 | W18: 690.6 | X18: 709.9 | Z18: -3.3% | AA18: 2.8%
B19: Self Employed:
B20: Advanced materials / manufacturing | C20: * | D20: * | E20: * | F20: * | G20: * | H20: * | I20: * | J20: * | K20: * | M20: * | N20: * | P20: 8.6 | Q20: 7.3 | R20: 5.5 | S20: 5.6 | T20: 5.5 | U20: 7.6 | V20: 5.8 | W20: 5.2 | X20: 5.6 | Z20: -34.2% | AA20: 8.8%
B21: Construction | C21: 1.0 | D21: 1.2 | E21: 1.5 | F21: 1.0 | G21: 1.3 | H21: 1.3 | I21: 1.0 | J21: 1.0 | K21: 1.0 | M21: -5.8% | N21: -4.6% | P21: 22.7 | Q21: 21.6 | R21: 22.4 | S21: 21.1 | T21: 24.3 | U21: 21.1 | V21: 19.8 | W21: 19.8 | X21: 20.4 | Z21: -9.9% | AA21: 2.9%
B22: Creative industries4 | C22: 1.9 | D22: 2.2 | E22: 2.1 | F22: 1.9 | G22: 2.0 | H22: 1.7 | I22: 2.7 | J22: 2.4 | K22: 2.3 | M22: 20.9% | N22: -0.4% | P22: 48.3 | Q22: 51.5 | R22: 52.2 | S22: 51.4 | T22: 71.2 | U22: 74.7 | V22: 64.8 | W22: 69.7 | X22: 85.2 | Z22: 76.6% | AA22: 22.4%
B23: Energy & environment | C23: 2.1 | D23: 1.8 | E23: 1.5 | F23: 1.5 | G23: 1.9 | H23: 1.2 | I23: 1.5 | J23: 1.9 | K23: 1.8 | M23: -11.2% | N23: -3.0% | P23: 34.3 | Q23: 30.5 | R23: 30.8 | S23: 29.4 | T23: 38.4 | U23: 43.2 | V23: 37.6 | W23: 40.6 | X23: 41.2 | Z23: 20.2% | AA23: 1.3%
B24: Food & Farming | C24: 2.6 | D24: 2.3 | E24: 2.0 | F24: 2.4 | G24: 2.6 | H24: 2.8 | I24: 1.8 | J24: 2.2 | K24: 1.8 | M24: -28.2% | N24: -16.5% | P24: 21.0 | Q24: 16.2 | R24: 15.1 | S24: 20.5 | T24: 18.8 | U24: 22.0 | V24: 20.1 | W24: 16.8 | X24: 16.1 | Z24: -23.1% | AA24: -4.3%
B25: Financial and professional services | C25: 2.8 | D25: 2.4 | E25: 2.7 | F25: 1.8 | G25: 2.7 | H25: 3.0 | I25: 2.5 | J25: 2.8 | K25: 2.4 | M25: -15.2% | N25: -15.5% | P25: 51.9 | Q25: 49.9 | R25: 47.7 | S25: 45.8 | T25: 56.4 | U25: 59.6 | V25: 69.9 | W25: 68.5 | X25: 60.1 | Z25: 15.9% | AA25: -12.3%
B26: ICT | C26: * | D26: * | E26: * | F26: * | G26: * | H26: * | I26: * | J26: * | K26: * | M26: * | N26: * | P26: 9.6 | Q26: 8.4 | R26: 15.8 | S26: 14.8 | T26: 14.1 | U26: 13.9 | V26: 10.8 | W26: 12.2 | X26: 13.6 | Z26: 41.6% | AA26: 12.0%
B27: Life sciences | C27: * | D27: * | E27: * | F27: * | G27: * | H27: * | I27: * | J27: * | K27: * | M27: * | N27: * | P27: * | Q27: * | R27: 1.8 | S27: * | T27: 2.3 | U27: * | V27: * | W27: 2.2 | X27: 2.1 | Z27: * | AA27: -3.5%
B28: Tourism | C28: 2.8 | D28: 3.4 | E28: 3.1 | F28: 2.9 | G28: 3.1 | H28: 2.6 | I28: 3.9 | J28: 3.6 | K28: 3.4 | M28: 19.3% | N28: -8.1% | P28: 53.6 | Q28: 55.1 | R28: 52.0 | S28: 53.3 | T28: 54.8 | U28: 59.0 | V28: 57.3 | W28: 64.0 | X28: 67.7 | Z28: 26.2% | AA28: 5.7%
B29: In A Priority Sector5 | C29: 10.9 | D29: 11.1 | E29: 10.4 | F29: 9.7 | G29: 11.2 | H29: 11.5 | I29: 10.7 | J29: 12.3 | K29: 10.8 | M29: -1.6% | N29: -12.3% | P29: 182.8 | Q29: 178.9 | R29: 178.4 | S29: 182.0 | T29: 216.1 | U29: 228.7 | V29: 220.6 | W29: 227.9 | X29: 235.8 | Z29: 29.0% | AA29: 3.5%
B30: Not In A Sector | C30: 8.1 | D30: 6.4 | E30: 6.0 | F30: 6.7 | G30: 7.2 | H30: 8.0 | I30: 7.7 | J30: 7.3 | K30: 8.9 | M30: 10.0% | N30: 22.3% | P30: 164.2 | Q30: 169.3 | R30: 177.8 | S30: 180.6 | T30: 191.3 | U30: 171.2 | V30: 187.3 | W30: 180.5 | X30: 183.5 | Z30: 11.7% | AA30: 1.6%
B31: Total | C31: 19.0 | D31: 17.5 | E31: 16.4 | F31: 16.5 | G31: 18.4 | H31: 19.5 | I31: 18.4 | J31: 19.5 | K31: 19.7 | M31: 3.3% | N31: 0.6% | P31: 347.0 | Q31: 348.2 | R31: 356.1 | S31: 362.6 | T31: 407.4 | U31: 399.9 | V31: 407.9 | W31: 408.4 | X31: 419.3 | Z31: 20.8% | AA31: 2.7%
B32: All3:
B33: Advanced materials / manufacturing | C33: 0.7 | D33: 0.8 | E33: * | F33: * | G33: * | H33: * | I33: * | J33: * | K33: * | M33: * | N33: * | P33: 16.2 | Q33: 15.2 | R33: 14.1 | S33: 14.0 | T33: 11.9 | U33: 13.4 | V33: 14.8 | W33: 9.1 | X33: 10.6 | Z33: -34.2% | AA33: 17.5%
B34: Construction | C34: 1.6 | D34: 1.9 | E34: 2.8 | F34: 1.4 | G34: 1.7 | H34: 2.4 | I34: 1.4 | J34: 1.4 | K34: 1.4 | M34: -12.4% | N34: -3.0% | P34: 39.3 | Q34: 34.8 | R34: 39.8 | S34: 38.6 | T34: 39.6 | U34: 34.6 | V34: 33.3 | W34: 32.6 | X34: 34.9 | Z34: -11.3% | AA34: 6.9%
B35: Creative industries4 | C35: 3.2 | D35: 3.2 | E35: 2.9 | F35: 2.8 | G35: 2.7 | H35: 2.3 | I35: 3.4 | J35: 3.1 | K35: 3.2 | M35: -0.9% | N35: 2.6% | P35: 69.3 | Q35: 74.2 | R35: 78.7 | S35: 73.3 | T35: 94.7 | U35: 95.5 | V35: 94.1 | W35: 98.1 | X35: 111.4 | Z35: 60.8% | AA35: 13.6%
B36: Energy & environment | C36: 3.5 | D36: 2.9 | E36: 3.8 | F36: 2.4 | G36: 3.6 | H36: 3.5 | I36: 3.3 | J36: 3.8 | K36: 3.8 | M36: 7.7% | N36: -1.5% | P36: 71.0 | Q36: 64.5 | R36: 72.2 | S36: 72.1 | T36: 80.6 | U36: 89.8 | V36: 91.7 | W36: 84.3 | X36: 94.5 | Z36: 33.0% | AA36: 12.1%
B37: Food & Farming | C37: 2.9 | D37: 2.6 | E37: 2.5 | F37: 3.3 | G37: 2.7 | H37: 2.9 | I37: 2.0 | J37: 2.3 | K37: 2.5 | M37: -16.6% | N37: 6.2% | P37: 31.2 | Q37: 25.0 | R37: 25.0 | S37: 29.5 | T37: 23.1 | U37: 28.8 | V37: 28.7 | W37: 22.8 | X37: 22.6 | Z37: -27.7% | AA37: -1.1%
B38: Financial and professional services | C38: 4.5 | D38: 4.2 | E38: 5.1 | F38: 3.6 | G38: 5.0 | H38: 5.0 | I38: 5.5 | J38: 5.3 | K38: 4.7 | M38: 5.0% | N38: -11.5% | P38: 107.8 | Q38: 107.3 | R38: 112.7 | S38: 112.5 | T38: 118.7 | U38: 122.5 | V38: 143.7 | W38: 128.0 | X38: 129.0 | Z38: 19.6% | AA38: 0.8%
B39: ICT | C39: * | D39: 0.8 | E39: * | F39: * | G39: * | H39: * | I39: * | J39: * | K39: * | M39: * | N39: * | P39: 13.1 | Q39: 14.9 | R39: 23.0 | S39: 21.3 | T39: 18.3 | U39: 18.6 | V39: 21.4 | W39: 19.5 | X39: 19.3 | Z39: 46.8% | AA39: -1.3%
B40: Life sciences | C40: * | D40: * | E40: * | F40: * | G40: * | H40: * | I40: * | J40: * | K40: * | M40: * | N40: * | P40: 4.6 | Q40: 2.3 | R40: 5.0 | S40: 3.9 | T40: 4.4 | U40: 4.3 | V40: 3.2 | W40: 3.6 | X40: 4.5 | Z40: -3.2% | AA40: 22.8%
B41: Tourism | C41: 9.6 | D41: 10.2 | E41: 8.5 | F41: 9.9 | G41: 12.3 | H41: 7.7 | I41: 11.1 | J41: 9.5 | K41: 9.5 | M41: -0.7% | N41: 0.3% | P41: 197.4 | Q41: 187.8 | R41: 185.9 | S41: 176.2 | T41: 192.6 | U41: 179.9 | V41: 184.7 | W41: 182.2 | X41: 186.3 | Z41: -5.6% | AA41: 2.3%
B42: In A Priority Sector5 | C42: 21.4 | D42: 21.8 | E42: 21.3 | F42: 20.6 | G42: 24.1 | H42: 20.5 | I42: 22.3 | J42: 22.4 | K42: 21.7 | M42: 1.3% | N42: -3.2% | P42: 437.4 | Q42: 420.2 | R42: 438.1 | S42: 432.6 | T42: 464.1 | U42: 463.6 | V42: 483.9 | W42: 457.5 | X42: 476.8 | Z42: 9.0% | AA42: 4.2%
B43: Not In A Sector | C43: 32.4 | D43: 31.3 | E43: 30.5 | F43: 32.9 | G43: 32.7 | H43: 32.9 | I43: 32.5 | J43: 30.1 | K43: 31.8 | M43: -1.8% | N43: 5.6% | P43: 643.8 | Q43: 643.9 | R43: 660.5 | S43: 669.0 | T43: 658.1 | U43: 626.0 | V43: 645.0 | W43: 641.5 | X43: 652.4 | Z43: 1.3% | AA43: 1.7%
B44: Total | C44: 53.7 | D44: 53.1 | E44: 51.8 | F44: 53.5 | G44: 56.8 | H44: 53.4 | I44: 54.8 | J44: 52.5 | K44: 53.4 | M44: -0.6% | N44: 1.8% | P44: 1,081.2 | Q44: 1,064.1 | R44: 1,098.6 | S44: 1,101.6 | T44: 1,122.2 | U44: 1,089.6 | V44: 1,128.9 | W44: 1,099.0 | X44: 1,129.2 | Z44: 4.4% | AA44: 2.7%
B45: 12005 - 2008 data based on SIC 2003 which has been converted to SIC2007. Data after 2009 based on SIC2007.
AA46: Source: Annual Population Survey, ONS
B47: 12005 - 2008 data based on SIC 2003 which has been converted to SIC2007. Data after 2009 based on SIC2007.
B48: 2Those people with missing industry information are excluded.
B49: 3Also includes those who arent employees or self-employed (Government supported trainees or unpaid family workers).
B50: 4Based on the updated DCMS Creative Industries classification.
B51: 5This total will not equal the sum of the individual priority sectors as there is overlap between several sectors.

Sheet 4.1
B1: Mean Gross Weekly Earnings (£), by Full-Time/Part-Time and Priority Sector, Wales1,2
C2: 2005 | D2: 2006 | E2: 2007 | F2: 2008 | G2: 2009 | H2: 2010 | I2: 2011 | J2: 2012 | K2: 2013 | M2: Change 2005 - 2013 | N2: Change 2012 - 2013
B4: Full-Time:
B5: Advanced materials / manufacturing | C5: 494.5 | D5: 512.7 | E5: 518.5 | F5: 540.0 | G5: 554.8 | H5: 572.0 | I5: 593.6 | J5: 582.9 | K5: 612.6 | M5: 23.9% | N5: 5.1%
B6: Construction | C6: 465.4 | D6: 491.7 | E6: 505.0 | F6: 509.1 | G6: 504.5 | H6: 520.9 | I6: 521.5 | J6: 522.2 | K6: 532.1 | M6: 14.3% | N6: 1.9%
B7: Creative industries3 | C7: 496.7 | D7: 519.4 | E7: 516.0 | F7: 586.8 | G7: 619.7 | H7: 620.5 | I7: 610.8 | J7: 596.6 | K7: 627.0 | M7: 26.2% | N7: 5.1%
B8: Energy & environment | C8: 466.9 | D8: 500.4 | E8: 508.7 | F8: 552.5 | G8: 543.9 | H8: 552.4 | I8: 569.6 | J8: 557.6 | K8: 571.9 | M8: 22.5% | N8: 2.6%
B9: Food & Farming | C9: 433.0 | D9: 440.8 | E9: 395.8 | F9: 431.0 | G9: 415.6 | H9: 411.3 | I9: 416.3 | J9: 409.8 | K9: 442.8 | M9: 2.3% | N9: 8.1%
B10: Financial and professional services | C10: 417.7 | D10: 438.8 | E10: 443.8 | F10: 471.2 | G10: 482.6 | H10: 495.7 | I10: 480.8 | J10: 525.7 | K10: 492.6 | M10: 17.9% | N10: -6.3%
B11: ICT | C11: 517.0 | D11: 486.5 | E11: 519.8 | F11: 609.0 | G11: 617.9 | H11: 627.0 | I11: 679.1 | J11: 619.1 | K11: 611.2 | M11: 18.2% | N11: -1.3%
B12: Life sciences | C12: 455.5 | D12: 520.9 | E12: 448.9 | F12: 468.2 | G12: 534.8 | H12: 519.4 | I12: 531.3 | J12: 546.8 | K12: 592.5 | M12: 30.1% | N12: 8.4%
B13: Tourism | C13: 334.6 | D13: 331.7 | E13: 346.0 | F13: 367.8 | G13: 358.0 | H13: 350.7 | I13: 380.8 | J13: 379.7 | K13: 413.2 | M13: 23.5% | N13: 8.8%
B14: In A Priority Sector | C14: 453.9 | D14: 466.1 | E14: 466.7 | F14: 496.3 | G14: 506.3 | H14: 514.7 | I14: 518.0 | J14: 524.6 | K14: 536.6 | M14: 18.2% | N14: 2.3%
B15: Not In A Sector | C15: 455.7 | D15: 466.2 | E15: 475.4 | F15: 499.4 | G15: 506.3 | H15: 516.6 | I15: 515.2 | J15: 518.3 | K15: 541.0 | M15: 18.7% | N15: 4.4%
B16: Total | C16: 454.8 | D16: 466.2 | E16: 472.0 | F16: 498.2 | G16: 506.3 | H16: 515.8 | I16: 516.3 | J16: 520.8 | K16: 539.0 | M16: 18.5% | N16: 3.5%
B17: Part-Time:
B18: Advanced materials / manufacturing | C18: 268.9 | D18: 341.5 | E18: 353.6 | F18: 344.5 | G18: 409.4 | H18: 391.9 | I18: 474.2 | J18: 367.4 | K18: 372.3 | M18: 38.5% | N18: 1.4%
B19: Construction | C19: 196.9 | D19: 183.1 | E19: 226.6 | F19: 179.1 | G19: 215.0 | H19: 188.1 | I19: 169.3 | J19: 159.1 | K19: 192.3 | M19: -2.3% | N19: 20.9%
B20: Creative industries3 | C20: 197.4 | D20: 160.3 | E20: 135.1 | F20: 168.5 | G20: 143.1 | H20: 122.8 | I20: 176.5 | J20: 167.0 | K20: 163.6 | M20: -17.1% | N20: -2.0%
B21: Energy & environment | C21: 141.3 | D21: 139.5 | E21: 175.3 | F21: 182.5 | G21: 193.5 | H21: 159.8 | I21: 150.9 | J21: 141.5 | K21: 164.1 | M21: 16.2% | N21: 15.9%
B22: Food & Farming | C22: 194.2 | D22: 152.8 | E22: 198.9 | F22: 216.8 | G22: 205.4 | H22: 177.5 | I22: 160.3 | J22: 259.8 | K22: 298.2 | M22: 53.5% | N22: 14.8%
B23: Financial and professional services | C23: 150.5 | D23: 167.5 | E23: 167.7 | F23: 170.0 | G23: 168.3 | H23: 158.8 | I23: 168.5 | J23: 168.9 | K23: 167.5 | M23: 11.4% | N23: -0.8%
B24: ICT | C24: 190.1 | D24: 246.9 | E24: 175.2 | F24: 195.9 | G24: 223.0 | H24: 195.5 | I24: 226.2 | J24: 357.5 | K24: 281.4 | M24: 48.0% | N24: -21.3%
B25: Life sciences | C25: 286.6 | D25: 235.8 | E25: 236.0 | F25: 256.4 | G25: 276.7 | H25: * | I25: * | J25: * | K25: * | M25: * | N25: *
B26: Tourism | C26: 102.0 | D26: 102.6 | E26: 104.7 | F26: 111.3 | G26: 108.0 | H26: 103.1 | I26: 105.7 | J26: 109.6 | K26: 110.6 | M26: 8.5% | N26: 0.9%
B27: In A Priority Sector | C27: 143.9 | D27: 153.2 | E27: 168.8 | F27: 169.9 | G27: 166.4 | H27: 154.0 | I27: 157.1 | J27: 151.9 | K27: 156.9 | M27: 9.0% | N27: 3.3%
B28: Not In A Sector | C28: 165.1 | D28: 164.4 | E28: 164.6 | F28: 167.2 | G28: 177.9 | H28: 192.5 | I28: 195.0 | J28: 186.6 | K28: 200.0 | M28: 21.1% | N28: 7.2%
B29: Total | C29: 160.3 | D29: 161.7 | E29: 165.5 | F29: 167.8 | G29: 175.2 | H29: 182.4 | I29: 185.1 | J29: 177.9 | K29: 189.1 | M29: 17.9% | N29: 6.3%
N31: Source: Annual Survey of Hours and Earnings (ASHE), ONS
B32: 1The totals here do not match the estimates published in other releases as those persons with no industry are excluded from this analysis.
B33: 22005 - 2008 data based on SIC 2003 which has been converted t SIC2007. Data after 2009 based on SIC2007.
B34: 3Based on the updated DCMS Creative Industries classification.
B35: *Denotes data item is either disclosive or isnt sufficiently robust for publication.

Sheet 4.2
B1: Mean Gross Weekly Earnings (£), by Full-Time/Part-Time and Priority Sector, UK1,2
C2: 2005 | D2: 2006 | E2: 2007 | F2: 2008 | G2: 2009 | H2: 2010 | I2: 2011 | J2: 2012 | K2: 2013 | M2: Change 2005 - 2013 | N2: Change 2012 - 2013
B4: Full-Time:
B5: Advanced materials / manufacturing | C5: 516.1 | D5: 540.5 | E5: 554.2 | F5: 579.6 | G5: 578.4 | H5: 595.4 | I5: 610.3 | J5: 628.8 | K5: 644.1 | M5: 24.8% | N5: 2.4%
B6: Construction | C6: 521.9 | D6: 550.0 | E6: 572.1 | F6: 593.6 | G6: 606.2 | H6: 609.5 | I6: 612.1 | J6: 621.4 | K6: 635.5 | M6: 21.8% | N6: 2.3%
B7: Creative industries3 | C7: 672.4 | D7: 701.1 | E7: 714.7 | F7: 750.8 | G7: 734.8 | H7: 744.1 | I7: 763.2 | J7: 750.2 | K7: 755.4 | M7: 12.4% | N7: 0.7%
B8: Energy & environment | C8: 561.9 | D8: 590.1 | E8: 602.1 | F8: 636.2 | G8: 657.8 | H8: 663.4 | I8: 672.2 | J8: 670.9 | K8: 693.8 | M8: 23.5% | N8: 3.4%
B9: Food & Farming | C9: 452.9 | D9: 454.3 | E9: 473.6 | F9: 497.4 | G9: 505.1 | H9: 500.7 | I9: 506.5 | J9: 516.4 | K9: 537.5 | M9: 18.7% | N9: 4.1%
B10: Financial and professional services | C10: 610.3 | D10: 628.7 | E10: 651.7 | F10: 689.9 | G10: 700.1 | H10: 715.1 | I10: 732.5 | J10: 722.2 | K10: 739.2 | M10: 21.1% | N10: 2.4%
B11: ICT | C11: 667.2 | D11: 693.3 | E11: 715.3 | F11: 761.8 | G11: 757.0 | H11: 766.5 | I11: 762.3 | J11: 781.6 | K11: 772.8 | M11: 15.8% | N11: -1.1%
B12: Life sciences | C12: 653.8 | D12: 672.7 | E12: 667.4 | F12: 709.5 | G12: 727.0 | H12: 740.1 | I12: 761.9 | J12: 773.9 | K12: 765.7 | M12: 17.1% | N12: -1.1%
B13: Tourism | C13: 400.8 | D13: 420.2 | E13: 428.2 | F13: 447.2 | G13: 448.9 | H13: 452.3 | I13: 446.1 | J13: 454.4 | K13: 470.5 | M13: 17.4% | N13: 3.5%
B14: In A Priority Sector | C14: 554.1 | D14: 575.6 | E14: 592.9 | F14: 625.6 | G14: 632.2 | H14: 642.0 | I14: 651.4 | J14: 656.1 | K14: 671.8 | M14: 21.2% | N14: 2.4%
B15: Not In A Sector | C15: 484.6 | D15: 499.7 | E15: 513.4 | F15: 532.2 | G15: 549.0 | H15: 562.9 | I15: 562.6 | J15: 568.7 | K15: 578.0 | M15: 19.3% | N15: 1.6%
B16: Total | C16: 516.4 | D16: 534.9 | E16: 550.3 | F16: 575.6 | G16: 587.2 | H16: 598.6 | I16: 602.9 | J16: 607.8 | K16: 620.3 | M16: 20.1% | N16: 2.1%
B17: Part-Time:
B18: Advanced materials / manufacturing | C18: 255.5 | D18: 260.7 | E18: 289.5 | F18: 338.5 | G18: 304.9 | H18: 308.0 | I18: 304.6 | J18: 262.5 | K18: 275.3 | M18: 7.8% | N18: 4.9%
B19: Construction | C19: 207.2 | D19: 221.3 | E19: 236.8 | F19: 233.0 | G19: 223.9 | H19: 218.7 | I19: 208.6 | J19: 208.5 | K19: 215.7 | M19: 4.1% | N19: 3.5%
B20: Creative industries3 | C20: 206.9 | D20: 211.0 | E20: 217.8 | F20: 215.6 | G20: 223.6 | H20: 224.7 | I20: 220.6 | J20: 218.9 | K20: 228.2 | M20: 10.3% | N20: 4.3%
B21: Energy & environment | C21: 162.7 | D21: 168.3 | E21: 183.8 | F21: 191.5 | G21: 192.4 | H21: 184.3 | I21: 181.9 | J21: 182.4 | K21: 181.2 | M21: 11.3% | N21: -0.6%
B22: Food & Farming | C22: 180.6 | D22: 188.5 | E22: 182.1 | F22: 181.2 | G22: 203.0 | H22: 175.3 | I22: 171.0 | J22: 208.5 | K22: 210.2 | M22: 16.4% | N22: 0.8%
B23: Financial and professional services | C23: 181.9 | D23: 189.3 | E23: 198.5 | F23: 200.8 | G23: 211.4 | H23: 211.2 | I23: 200.6 | J23: 202.2 | K23: 205.6 | M23: 13.0% | N23: 1.7%
B24: ICT | C24: 260.5 | D24: 272.4 | E24: 259.6 | F24: 323.0 | G24: 276.6 | H24: 294.9 | I24: 307.8 | J24: 289.3 | K24: 292.7 | M24: 12.4% | N24: 1.2%
B25: Life sciences | C25: 284.1 | D25: 269.9 | E25: 355.9 | F25: 326.5 | G25: 425.8 | H25: 388.7 | I25: 449.1 | J25: 537.7 | K25: 338.3 | M25: 19.1% | N25: -37.1%
B26: Tourism | C26: 120.6 | D26: 113.8 | E26: 115.9 | F26: 125.8 | G26: 127.8 | H26: 122.8 | I26: 121.9 | J26: 128.0 | K26: 130.7 | M26: 8.4% | N26: 2.2%
B27: In A Priority Sector | C27: 168.0 | D27: 171.1 | E27: 179.5 | F27: 188.1 | G27: 191.0 | H27: 185.5 | I27: 179.1 | J27: 180.6 | K27: 183.3 | M27: 9.1% | N27: 1.5%
B28: Not In A Sector | C28: 166.6 | D28: 174.4 | E28: 182.0 | F28: 185.1 | G28: 195.7 | H28: 202.3 | I28: 204.9 | J28: 205.3 | K28: 211.6 | M28: 27.0% | N28: 3.1%
B29: Total | C29: 167.0 | D29: 173.4 | E29: 181.2 | F29: 185.9 | G29: 194.3 | H29: 197.3 | I29: 197.3 | J29: 197.7 | K29: 202.9 | M29: 21.5% | N29: 2.6%
N31: Source: Annual Survey of Hours and Earnings (ASHE), ONS
B32: 1The totals here do not match the estimates published in other releases as those persons with no industry are excluded from this analysis.
B33: 22005 - 2008 data based on SIC 2003 which has been converted t SIC2007. Data after 2009 based on SIC2007.
B34: 3Based on the updated DCMS Creative Industries classification.
B35: *Denotes data item is either disclosive or isnt sufficiently robust for publication.

Sheet 4.3
B1: Median Gross Weekly Earnings (£), by Full-Time/Part-Time and Priority Sector, Wales1,2
C2: 2005 | D2: 2006 | E2: 2007 | F2: 2008 | G2: 2009 | H2: 2010 | I2: 2011 | J2: 2012 | K2: 2013 | M2: Change 2005 - 2013 | N2: Change 2012 - 2013
B4: Full-Time:
B5: Advanced materials / manufacturing | C5: 464.3 | D5: 482.8 | E5: 479.1 | F5: 523.2 | G5: 530.4 | H5: 542.5 | I5: 553.9 | J5: 563.7 | K5: 599.2 | M5: 29.1% | N5: 6.3%
B6: Construction | C6: 419.6 | D6: 422.4 | E6: 438.8 | F6: 430.0 | G6: 450.1 | H6: 469.6 | I6: 470.5 | J6: 454.9 | K6: 475.0 | M6: 13.2% | N6: 4.4%
B7: Creative industries3 | C7: 411.7 | D7: 422.0 | E7: 423.9 | F7: 479.1 | G7: 501.4 | H7: 516.9 | I7: 536.8 | J7: 493.0 | K7: 518.8 | M7: 26.0% | N7: 5.2%
B8: Energy & environment | C8: 401.8 | D8: 432.9 | E8: 440.0 | F8: 480.0 | G8: 486.3 | H8: 504.0 | I8: 512.3 | J8: 493.2 | K8: 505.7 | M8: 25.9% | N8: 2.5%
B9: Food & Farming | C9: 352.2 | D9: 373.7 | E9: 343.0 | F9: 382.3 | G9: 370.9 | H9: 363.6 | I9: 368.1 | J9: 376.9 | K9: 376.4 | M9: 6.9% | N9: -0.1%
B10: Financial and professional services | C10: 341.1 | D10: 360.5 | E10: 361.5 | F10: 383.0 | G10: 396.4 | H10: 403.9 | I10: 398.6 | J10: 416.7 | K10: 424.1 | M10: 24.3% | N10: 1.8%
B11: ICT | C11: 460.0 | D11: 426.4 | E11: 478.4 | F11: 571.1 | G11: 550.9 | H11: 548.0 | I11: 608.6 | J11: 582.7 | K11: 584.5 | M11: 27.1% | N11: 0.3%
B12: Life sciences | C12: 380.4 | D12: 402.8 | E12: 399.1 | F12: 436.5 | G12: 470.5 | H12: 429.0 | I12: 476.6 | J12: 495.3 | K12: 531.8 | M12: 39.8% | N12: 7.4%
B13: Tourism | C13: 281.0 | D13: 287.5 | E13: 307.3 | F13: 313.4 | G13: 306.6 | H13: 295.6 | I13: 325.8 | J13: 329.6 | K13: 339.4 | M13: 20.8% | N13: 3.0%
B14: In A Priority Sector | C14: 396.0 | D14: 402.7 | E14: 403.3 | F14: 423.6 | G14: 447.4 | H14: 455.3 | I14: 459.0 | J14: 456.7 | K14: 476.7 | M14: 20.4% | N14: 4.4%
B15: Not In A Sector | C15: 386.0 | D15: 397.9 | E15: 405.1 | F15: 416.9 | G15: 432.2 | H15: 448.2 | I15: 446.7 | J15: 449.8 | K15: 469.2 | M15: 21.6% | N15: 4.3%
B16: Total | C16: 389.8 | D16: 400.0 | E16: 404.3 | F16: 420.1 | G16: 440.5 | H16: 451.0 | I16: 451.4 | J16: 452.6 | K16: 472.3 | M16: 21.2% | N16: 4.4%
B17: Part-Time:
B18: Advanced materials / manufacturing | C18: 156.0 | D18: 198.1 | E18: 352.7 | F18: 225.0 | G18: 345.0 | H18: 268.7 | I18: 302.3 | J18: 242.4 | K18: 245.4 | M18: 57.3% | N18: 1.2%
B19: Construction | C19: 180.0 | D19: 121.1 | E19: 155.1 | F19: 155.0 | G19: 180.0 | H19: 130.0 | I19: 138.5 | J19: 140.0 | K19: 154.0 | M19: -14.5% | N19: 10.0%
